Workbook

Sheet Cover

Sheet Contents
A8: Contents
A11: Tab | B11: Description
A12: One-pager
A14: Cover, Guide & Drivers
A16: RAG and Ranking
A18: Chapter 2 - Incentive Payments
A19: Incentive Payments | B19: Summary table of 2018-19 incentive payments including: BMCS, IIS, ICE, TTC, LDR and total incentive payments
A21: Reliability | B21: Reliability and Availability incentive measures including: IIS, GSoP, WSC and Network resilience
A23: Network Asset Secondary Deliverables | B23: Health, critically and monetised risk
A25: Connections | B25: Connection incentives including: Time to Connect Incentive, Incentive on Connections Engagement (ICE), Connections on Guaranteed Standards of Performance and Customer Satisfaction Survey
A27: Environment | B27: Environment incentives including: Obligation to manage losses, Business Carbon Footprint, limiting emissions of Sulphur Hexafluoride (SF6), Fluid filled cable leakage, Noise pollution, Visual impact allowance for undergrounding overhead lines in Areas of Outstanding Natural Beauty (AONB) & National Parks and Environmental report
A29: Customer Satisfaction | B29: Customer Satisfaction incentives including: Customer Satisfaction Survey, Complaints Metric and Stakeholder Engagement and Consumer Vulnerability
A31: Innovation | B31: Innovation data including: Network Innovation Allowance, Network Innovation Competition and Innovation projects
A33: Chapter 3 - Financial Performance
A34: Financial Performance | B34: Review of the expenditure and financial performance of DNOs in 2018/19
A36: Chapter 4 - Expenditure Drivers
A37: Expenditure Drivers | B37: Expenditure driver's data including: Expenditure drivers of allowances and expenditures of each cost category, distribution of overall allowances and expenditures and Baselines allowances & actual expenditure by cost category
A39: Expenditure Drivers 2 | B39: Overall outline of baseline allowances of each cost category, areas of underspend and areas of overspend

Sheet One-pager
A1: One-Pager
A2: Industry Average
A3: One-Pager - key data points of each DNO (Dropdown Menu above)
A4: Cover, Guide and Drivers | G4: Financial Performance
B5: 2020 | C5: 10 year trend | H5: 2020 | I5: ED1 trend
A6: Customer numbers | B6: =TEXT(Calculations!L7,"#,##0") -> 2,142,500 | G6: Allowed totex | H6: ="£"&TEXT(Calculations!J234,"#,##0.00")&"m" -> £261.01m
A7: Network length | B7: =TEXT(Calculations!L8,"#,##0.00")&"km" -> 57,372.75km | G7: Actual totex | H7: ="£"&TEXT(Calculations!J235,"#,##0.00")&"m" -> £259.01m
A8: Total units distributed | B8: =TEXT(Calculations!L9,"#,##0.00")&" GWh" -> 19,236.07 GWh | G8: Overspend/underspend | H8: =TEXT(Calculations!J236,"+£0.00;-£0.00")&"m" -> -£2.01m
A9: Network-wide peak load | B9: =TEXT(Calculations!L10,"#,##0")&" MVA" -> 3,589 MVA | G9: Allowed totex after totex incentive rate | H9: ="£"&TEXT(Calculations!J238,"#,##0.00")&"m" -> £260.86m
A11: Incentive Payments | G11: Customer Bill Impact (per customer) | H11: ="£"&TEXT(Calculations!K241,"#,##0.00") -> £92.71
B12: 2020 | G12: RAV at start of financial year | H12: ="£"&TEXT(Calculations!J244,"#,##0.00")&"m" -> £1,914.80m
A13: Total Incentive Payments | B13: ="£"&TEXT(Calculations!C19,"#,##0.00")&"m" -> £16.71m | G13: RAV at end of financial year | H13: ="£"&TEXT(Calculations!J247,"#,##0.00")&"m" -> £1,939.02m
A15: Reliability | G15: Expenditure Drivers (Over-spend/under-spend %)
B16: 2020 | C16: ED1 trend | D16: RAG rating | H16: 2020 Difference | I16: 2020 Difference % | J16: ED1 trend
A17: CI Performance | B17: =Calculations!H24 -> 41.21111265 | D17: =IF(B17<=(Calculations!H29+Calculations!H35),"Green",IF(B17<=(Calculations!H29+Calculations!H35)*1.05,"Amber","Red")) -> Green | G17: Network reinforcement | H17: =TEXT(Calculations!Q269,"+£0.00;-£0.00")&"m" -> -£10.66m | I17: =IFERROR(TEXT(Calculations!Q270,"+0.00%;-0.00%"),"") -> -40.66%
A18: CML Performance | B18: =Calculations!H26 -> 33.11021141 | D18: =IF(B18<=(Calculations!H32+Calculations!H38),"Green",IF(B18<=(Calculations!H32+Calculations!H38)*1.05,"Amber","Red")) -> Green | G18: Replacing and refurbishing equipment | H18: =TEXT(Calculations!Q276,"+£0.00;-£0.00")&"m" -> -£12.00m | I18: =IFERROR(TEXT(Calculations!Q277,"+0.00%;-0.00%"),"") -> -18.46%
A19: IIS Total Reward/Penalty | B19: ="£"&TEXT(Calculations!H40,"#,##0.00")&"m" -> £11.46m | G19: Network faults | H19: =TEXT(Calculations!Q283,"+£0.00;-£0.00")&"m" -> +£8.12m | I19: =IFERROR(TEXT(Calculations!Q284,"+0.00%;-0.00%"),"") -> +27.12%
A20: GSOP mandatory payments vs valid payments owed | B20: =Calculations!H70 -> 0.9016498316 | G20: Operational support | H20: =TEXT(Calculations!Q290,"+£0.00;-£0.00")&"m" -> +£7.64m | I20: =IFERROR(TEXT(Calculations!Q291,"+0.00%;-0.00%"),"") -> +15.03%
A21: WSC Expenditure | B21: ="£"&TEXT(Calculations!H75,"#,##0.00")&"m" -> £0.14m | G21: Business support | H21: =TEXT(Calculations!Q297,"+£0.00;-£0.00")&"m" -> +£2.47m | I21: =IFERROR(TEXT(Calculations!Q298,"+0.00%;-0.00%"),"") -> +8.96%
A22: Total Resilience Baseline | B22: ="£"&TEXT(Calculations!H88,"#,##0.00")&"m" -> £10.71m | G22: Black start, Flood mitigation, Physical security and Tree cutting | H22: =TEXT(Calculations!Q304,"+£0.00;-£0.00")&"m" -> +£0.08m | I22: =IFERROR(TEXT(Calculations!Q305,"+0.00%;-0.00%"),"") -> +0.74%
A23: Total Resilience Actual | B23: ="£"&TEXT(Calculations!H89,"#,##0.00")&"m" -> £10.79m
G24: Connections | H24: =TEXT(Calculations!Q311,"+£0.00;-£0.00")&"m" -> +£2.42m | I24: =IFERROR(TEXT(Calculations!Q312,"+0.00%;-0.00%"),"") -> +95.77%
A25: Connections | G25: Reinforcement | H25: =TEXT(Calculations!Q318,"+£0.00;-£0.00")&"m" -> -£11.62m | I25: =IFERROR(TEXT(Calculations!Q319,"+0.00%;-0.00%"),"") -> -53.20%
B26: 2020 | C26: ED1 trend | D26: RAG rating | E26: Ranking | G26: Transmission Connection Point | H26: =TEXT(Calculations!Q325,"+£0.00;-£0.00")&"m" -> -£1.46m | I26: =IFERROR(TEXT(Calculations!Q326,"+0.00%;-0.00%"),"") -> -78.44%
A27: Distributed Generation | B27: =TEXT(Calculations!G106,"#,##0.00")&" MW" -> 86.85 MW | G27: Diversions (Excluding Rail Electrification) | H27: =TEXT(Calculations!Q332,"+£0.00;-£0.00")&"m" -> +£1.93m | I27: =IFERROR(TEXT(Calculations!Q333,"+0.00%;-0.00%"),"") -> +29.62%
A28: TTC Reward | B28: ="£"&TEXT(Calculations!G118,"#,##0.00")&"m" -> £0.92m | D28: =Calculations!G119 -> Green | E28: =Calculations!G121 -> 7.428571429 | G28: Diversions Rail Elec | H28: =TEXT(Calculations!Q339,"+£0.00;-£0.00")&"m" -> +£0.09m | I28: =IFERROR(TEXT(Calculations!Q340,"+0.00%;-0.00%"),"") -> +41.43%
A29: ICE Penalty | B29: ="£"&TEXT(Calculations!C15,"#,##0.00")&"m" -> £0.00m | G29: Asset Replacement | H29: =TEXT(Calculations!Q346,"+£0.00;-£0.00")&"m" -> -£8.87m | I29: =IFERROR(TEXT(Calculations!Q347,"+0.00%;-0.00%"),"") -> -17.20%
A30: Penalties paid against Connection GSOPs | B30: ="£"&TEXT(Calculations!G127,"#,##0") -> £15,115 | D30: =Calculations!G129 -> Green | E30: =Calculations!G130 -> 7.428571429 | G30: Refurbishment | H30: =TEXT(Calculations!Q353,"+£0.00;-£0.00")&"m" -> -£0.69m | I30: =IFERROR(TEXT(Calculations!Q354,"+0.00%;-0.00%"),"") -> -10.78%
G31: Civil Works Condition Driven | H31: =TEXT(Calculations!Q360,"+£0.00;-£0.00")&"m" -> -£1.74m | I31: =IFERROR(TEXT(Calculations!Q361,"+0.00%;-0.00%"),"") -> -37.04%
A32: Environment | G32: Operational IT and telecoms | H32: =TEXT(Calculations!Q367,"+£0.00;-£0.00")&"m" -> +£0.01m | I32: =IFERROR(TEXT(Calculations!Q368,"+0.00%;-0.00%"),"") -> +0.32%
B33: 2020 | C33: ED1 trend | E33: Ranking | G33: Blackstart | H33: =TEXT(Calculations!Q374,"+£0.00;-£0.00")&"m" -> -£0.00m | I33: =IFERROR(TEXT(Calculations!Q375,"+0.00%;-0.00%"),"") -> -0.78%
A34: Distribution Losses | B34: =Calculations!L136 -> 0.06189007468 | G34: BT21CN | H34: =TEXT(Calculations!Q381,"+£0.00;-£0.00")&"m" -> +£0.02m | I34: =IFERROR(TEXT(Calculations!Q382,"+0.00%;-0.00%"),"") -> +4.79%
A35: LDR Reward (2018/19) | B35: ="£"&TEXT(Calculations!L135,"#,##0.00") -> £ | E35: =Calculations!L137 ->  | G35: Legal & Safety | H35: =TEXT(Calculations!Q388,"+£0.00;-£0.00")&"m" -> -£1.60m | I35: =IFERROR(TEXT(Calculations!Q389,"+0.00%;-0.00%"),"") -> -40.09%
A36: BCF (as % of network length and customer numbers) | B36: =Calculations!L141 -> 0.1247011419 | E36: =Calculations!L142 -> 7.5 | G36: QoS & North of Scotland Resilience | H36: =TEXT(Calculations!Q395,"+£0.00;-£0.00")&"m" -> +£2.30m | I36: =IFERROR(TEXT(Calculations!Q396,"+0.00%;-0.00%"),"") -> +366.71%
A37: SF6 emissions (as % of SF6 bank) | B37: =Calculations!L147 -> 0.002699085231 | E37: =Calculations!L148 -> 7.5 | G37: Flood Mitigation | H37: =TEXT(Calculations!Q402,"+£0.00;-£0.00")&"m" -> +£3.81m | I37: =IFERROR(TEXT(Calculations!Q403,"+0.00%;-0.00%"),"") -> +2238.87%
A38: Top up of fluid-filled cabes (as % of oil in service) | B38: =Calculations!L153 -> 0.02056637235 | E38: =Calculations!L154 -> 6.5 | G38: Physical Security | H38: =TEXT(Calculations!Q409,"+£0.00;-£0.00")&"m" -> -£0.03m | I38: =IFERROR(TEXT(Calculations!Q410,"+0.00%;-0.00%"),"") -> -13.07%
A39: Undergrounding expenditure | B39: ="£"&TEXT(Calculations!L159,"#,##0.00")&"m" -> £0.52m | G39: Rising and Lateral Mains | H39: =TEXT(Calculations!Q416,"+£0.00;-£0.00")&"m" -> -£0.72m | I39: =IFERROR(TEXT(Calculations!Q417,"+0.00%;-0.00%"),"") -> -38.17%
A40: Slow charge EVs connected to the distribution network | B40: =TEXT(Calculations!L162,"#,##0.00")&" MW" -> 0.70 MW | G40: Overhead Line Clearances | H40: =TEXT(Calculations!Q423,"+£0.00;-£0.00")&"m" -> +£2.15m | I40: =IFERROR(TEXT(Calculations!Q424,"+0.00%;-0.00%"),"") -> +80.28%
A41: Fast charge EVs connected to the distribution network | B41: =TEXT(Calculations!L163,"#,##0.00")&" MW" -> 17.52 MW | G41: Environmental Reporting & Losses | H41: =TEXT(Calculations!Q430,"+£0.00;-£0.00")&"m" -> -£0.51m | I41: =IFERROR(TEXT(Calculations!Q431,"+0.00%;-0.00%"),"") -> -42.88%
A42: Noise complaints | B42: =Calculations!L166 -> 8.928571429 | G42: Faults | H42: =TEXT(Calculations!Q437,"+£0.00;-£0.00")&"m" -> +£6.92m | I42: =IFERROR(TEXT(Calculations!Q438,"+0.00%;-0.00%"),"") -> +29.28%
G43: Severe Weather 1 in 20 | H43: =TEXT(Calculations!Q444,"+£0.00;-£0.00")&"m" -> -£1.05m | I43: =IFERROR(TEXT(Calculations!Q445,"+0.00%;-0.00%"),"") -> -100.00%
A44: Customer Satisfaction | G44: ONIs | H44: =TEXT(Calculations!Q451,"+£0.00;-£0.00")&"m" -> +£2.25m | I44: =IFERROR(TEXT(Calculations!Q452,"+0.00%;-0.00%"),"") -> +42.86%
B45: 2020 | C45: ED1 trend | D45: RAG rating | E45: Ranking | G45: Tree Cutting | H45: =TEXT(Calculations!Q458,"+£0.00;-£0.00")&"m" -> -£0.30m | I45: =IFERROR(TEXT(Calculations!Q459,"+0.00%;-0.00%"),"") -> -3.32%
A46: Overall CSS Score | B46: =TEXT(Calculations!G174,"#,##0.00") -> 9.04 | D46: =Calculations!G175 -> Green | E46: =Calculations!G176 -> 7.5 | G46: I&M | H46: =TEXT(Calculations!Q465,"+£0.00;-£0.00")&"m" -> +£0.45m | I46: =IFERROR(TEXT(Calculations!Q466,"+0.00%;-0.00%"),"") -> +4.59%
A47: Complaint Metric Score | B47: =TEXT(Calculations!G183,"#,##0.00") -> 1.86 | D47: =Calculations!G184 -> Green | E47: =Calculations!G185 -> 7.5 | G47: NOCs Other | H47: =TEXT(Calculations!Q472,"+£0.00;-£0.00")&"m" -> -£0.36m | I47: =IFERROR(TEXT(Calculations!Q473,"+0.00%;-0.00%"),"") -> -12.50%
A48: CSS Reward/Penalty | B48: ="£"&TEXT(Calculations!G193,"#,##0.00")&"m" -> £3.51m | G48: Non Op Capex | H48: =TEXT(Calculations!Q479,"+£0.00;-£0.00")&"m" -> +£0.62m | I48: =IFERROR(TEXT(Calculations!Q480,"+0.00%;-0.00%"),"") -> +6.20%
A49: Complaints Metric Penalty | B49: ="£"&TEXT(Calculations!G194,"#,##0.00")&"m" -> £0.00m | G49: Smart Meter | H49: =TEXT(Calculations!Q486,"+£0.00;-£0.00")&"m" -> -£0.11m | I49: =IFERROR(TEXT(Calculations!Q487,"+0.00%;-0.00%"),"") -> -4.27%
A50: Stakeholder Engagement and Consumer Vulnerability Score | B50: =TEXT(Calculations!G188,"#,##0.00") -> 4.94 | D50: =Calculations!G189 -> Green | E50: =Calculations!G190 -> 3.642857143 | G50: Closely Associated Indirects | H50: =TEXT(Calculations!Q493,"+£0.00;-£0.00")&"m" -> +£7.64m | I50: =IFERROR(TEXT(Calculations!Q494,"+0.00%;-0.00%"),"") -> +15.03%
A51: Stakeholder Engagement and Consumer Vulnerability Reward | B51: ="£"&TEXT(Calculations!G195,"#,##0.00")&"m" -> £0.81m | G51: Business Support | H51: =TEXT(Calculations!Q500,"+£0.00;-£0.00")&"m" -> +£2.47m | I51: =IFERROR(TEXT(Calculations!Q501,"+0.00%;-0.00%"),"") -> +8.96%
A52: Broad Measure of Customer Service Reward/Penalty | B52: ="£"&TEXT(Calculations!G196,"#,##0.00")&"m" -> £4.33m | G52: HVP ED1 | H52: =TEXT(Calculations!Q507,"+£0.00;-£0.00")&"m" -> +£0.02m | I52: =IFERROR(TEXT(Calculations!Q508,"+0.00%;-0.00%"),"") -> +1.29%
G53: HVP DPCR5 | H53: =TEXT(Calculations!Q514,"+£0.00;-£0.00")&"m" -> +£0.38m | I53: =IFERROR(TEXT(Calculations!Q515,"+0.00%;-0.00%"),"") -> 
A54: Innovation | B54: 2020 | C54: ED1 trend | G54: Total of the disaggregated areas | H54: =TEXT(Calculations!Q521,"+£0.00;-£0.00")&"m" -> +£1.04m | I54: =IFERROR(TEXT(Calculations!Q522,"+0.00%;-0.00%"),"") -> +0.41%
A55: NIA Expenditure | B55: ="£"&TEXT(Calculations!G204,"#,##0.00")&"m" -> £1.77m | G55: Policy Adjustments (Forecast DRS 8, Disposals, Shetland Competitive Process, Shetland Uncertain Energy, WSC, Atypicals) | H55: =TEXT(Calculations!Q528,"+£0.00;-£0.00")&"m" -> -£3.25m | I55: =IFERROR(TEXT(Calculations!Q529,"+0.00%;-0.00%"),"") -> -74.83%
A56: % of NIA Allowance | B56: =Calculations!G205 -> 0.8451763409
A57: NIC Funding Awarded | B57: ="£"&TEXT(Calculations!G207,"#,##0.00")&"m" -> £1.60m

Sheet Guide & drivers
A1: Guide and Drivers
A2: This workbook provides data that is reported in the Annual Report and more detailed data for those who want to undertake further analysis.
A4: Key
B5: Future year input (graphs will be manually pointed to the relevant years' data)
B6: Actual expenditure or performance
B7: Forecast / target expenditure or performance
B8: Baseline allowances
B9: Forecast/Adjusted allowances
B10: Adjustment factor / Difference
B11: Ranking
A13: Price base: | B13: 2019/20
A15: Input Terms
B17: RPI Index
C18: Financial Year Average RPI | D18: Conversion from 12/13 to nominal prices | E18: Conversion from 15/16 to nominal prices | I18: Index adjustment 2019/20 base year
B19: 2009/10 | C19: 215.767 | D19: =C19/$C$22 -> 0.8818514356 | E19: =C19/$C$25 -> 0.8316867939 | I19: 2009/10 | J19: =$C$29/C19 -> 1.347017848
B20: 2010/11 | C20: 226.475 | D20: 0.9256156125 | E20: 0.8729614197 | I20: 2010/11 | J20: =$C$29/C20 -> 1.283329286
B21: 2011/12 | C21: 237.342 | D21: 0.9700296311 | E21: 0.9148489205 | I21: 2011/12 | J21: 1.224570451
B22: 2012/13 | C22: 244.675 | D22: 1 | E22: 0.9431144072 | I22: 2012/13 | J22: 1.187869623
B23: 2013/14 | C23: 251.733 | D23: 1.028846429 | E23: 0.9703198899 | I23: 2013/14 | J23: 1.154564558
B24: 2014/15 | C24: 256.667 | D24: 1.049011955 | E24: 0.9893382877 | I24: 2014/15 | J24: 1.132369958
B25: 2015/16 | C25: 259.433 | D25: =C25/$C$22 -> 1.060316747 | E25: 1 | I25: 2015/16 | J25: 1.120296955
B26: 2016/17 | C26: 264.992 | D26: =C26/$C$22 -> 1.083036681 | E26: =C26/$C$25 -> 1.021427498 | I26: 2016/17 | J26: 1.096795375
B27: 2017/18 | C27: 274.908 | D27: =C27/$C$22 -> 1.123563911 | E27: =C27/$C$25 -> 1.059649312 | I27: 2017/18 | J27: 1.057233693
B28: 2018/19 | C28: 283.308 | D28: =C28/$C$22 -> 1.157895167 | E28: =C28/$C$25 -> 1.092027614 | I28: 2018/19 | J28: 1.02588702
B29: 2019/20 | C29: 290.642 | D29: =C29/$C$22 -> 1.187869623 | E29: =C29/$C$25 -> 1.120296955 | I29: 2019/20 | J29: 1
B30: 2020/21
B31: 2021/22
B32: 2022/23
B35: Convert 2012/13 prices to 2019/20 | C35: =C29/C22 -> 1.187869623
A38: Drivers
B39: Customer numbers
C40: DPCR5 | H40: RIIO ED1
B41: Column1 | C41: 2011 | D41: 2012 | E41: 2013 | F41: 2014 | G41: 2015 | H41: 2016 | I41: 2017 | J41: 2018 | K41: 2019 | L41: 2020 | M41: 2021 | N41: 2022 | O41: 2023
B42: ENWL | C42: ='[2]M14 - Drivers'!AD9 -> 2359391 | D42: ='[2]M14 - Drivers'!AE9 -> 2364446 | E42: ='[2]M14 - Drivers'!AF9 -> 2368572 | F42: ='[2]M14 - Drivers'!AG9 -> 2371790 | G42: ='[2]M14 - Drivers'!AH9 -> 2375305 | H42: ='[2]M14 - Drivers'!AI9 -> 2381080 | I42: ='[2]M14 - Drivers'!AJ9 -> 2383214 | J42: ='[2]M14 - Drivers'!AK9 -> 2383887 | K42: ='[2]M14 - Drivers'!AL9 -> 2393226 | L42: ='[2]M14 - Drivers'!AM9 -> 2399715
B43: NPgN | C43: ='[3]M14 - Drivers'!AD9 -> 1575686 | D43: ='[3]M14 - Drivers'!AE9 -> 1581420 | E43: ='[3]M14 - Drivers'!AF9 -> 1583627 | F43: ='[3]M14 - Drivers'!AG9 -> 1586437 | G43: ='[3]M14 - Drivers'!AH9 -> 1590615 | H43: ='[3]M14 - Drivers'!AI9 -> 1596374 | I43: ='[3]M14 - Drivers'!AJ9 -> 1600885 | J43: ='[3]M14 - Drivers'!AK9 -> 1602128 | K43: ='[3]M14 - Drivers'!AL9 -> 1606300 | L43: ='[3]M14 - Drivers'!AM9 -> 1610820
B44: NPgY | C44: ='[4]M14 - Drivers'!AD9 -> 2258404 | D44: ='[4]M14 - Drivers'!AE9 -> 2266464 | E44: ='[4]M14 - Drivers'!AF9 -> 2272386 | F44: ='[4]M14 - Drivers'!AG9 -> 2277373 | G44: ='[4]M14 - Drivers'!AH9 -> 2284044 | H44: ='[4]M14 - Drivers'!AI9 -> 2291522 | I44: ='[4]M14 - Drivers'!AJ9 -> 2298672 | J44: ='[4]M14 - Drivers'!AK9 -> 2298786 | K44: ='[4]M14 - Drivers'!AL9 -> 2306293 | L44: ='[4]M14 - Drivers'!AM9 -> 2312147
B45: WMID | C45: ='[5]M14 - Drivers'!AD9 -> 2446951 | D45: ='[5]M14 - Drivers'!AE9 -> 2462123 | E45: ='[5]M14 - Drivers'!AF9 -> 2469953 | F45: ='[5]M14 - Drivers'!AG9 -> 2448930 | G45: ='[5]M14 - Drivers'!AH9 -> 2455914 | H45: ='[5]M14 - Drivers'!AI9 -> 2463217 | I45: ='[5]M14 - Drivers'!AJ9 -> 2470151 | J45: ='[5]M14 - Drivers'!AK9 -> 2481944 | K45: ='[5]M14 - Drivers'!AL9 -> 2491212 | L45: ='[5]M14 - Drivers'!AM9 -> 2498337
B46: EMID | C46: ='[6]M14 - Drivers'!AD9 -> 2614165 | D46: ='[6]M14 - Drivers'!AE9 -> 2623103 | E46: ='[6]M14 - Drivers'!AF9 -> 2619183 | F46: ='[6]M14 - Drivers'!AG9 -> 2604846 | G46: ='[6]M14 - Drivers'!AH9 -> 2613507 | H46: ='[6]M14 - Drivers'!AI9 -> 2622449 | I46: ='[6]M14 - Drivers'!AJ9 -> 2631017 | J46: ='[6]M14 - Drivers'!AK9 -> 2647059 | K46: ='[6]M14 - Drivers'!AL9 -> 2658397 | L46: ='[6]M14 - Drivers'!AM9 -> 2665558
B47: SWALES | C47: ='[7]M14 - Drivers'!AD9 -> 1099333 | D47: ='[7]M14 - Drivers'!AE9 -> 1103465 | E47: ='[7]M14 - Drivers'!AF9 -> 1108168 | F47: ='[7]M14 - Drivers'!AG9 -> 1113015 | G47: ='[7]M14 - Drivers'!AH9 -> 1117685 | H47: ='[7]M14 - Drivers'!AI9 -> 1122920 | I47: ='[7]M14 - Drivers'!AJ9 -> 1128284 | J47: ='[7]M14 - Drivers'!AK9 -> 1133101 | K47: ='[7]M14 - Drivers'!AL9 -> 1137812 | L47: ='[7]M14 - Drivers'!AM9 -> 1142731
B48: SWEST | C48: ='[8]M14 - Drivers'!AD9 -> 1541188 | D48: ='[8]M14 - Drivers'!AE9 -> 1551046 | E48: ='[8]M14 - Drivers'!AF9 -> 1561137 | F48: ='[8]M14 - Drivers'!AG9 -> 1570645 | G48: ='[8]M14 - Drivers'!AH9 -> 1579687 | H48: ='[8]M14 - Drivers'!AI9 -> 1590050 | I48: ='[8]M14 - Drivers'!AJ9 -> 1600520 | J48: ='[8]M14 - Drivers'!AK9 -> 1613218 | K48: ='[8]M14 - Drivers'!AL9 -> 1624131 | L48: ='[8]M14 - Drivers'!AM9 -> 1628987
B49: LPN | C49: ='[9]M14 - Drivers'!AD9 -> 2251892 | D49: ='[9]M14 - Drivers'!AE9 -> 2267440 | E49: ='[9]M14 - Drivers'!AF9 -> 2279053 | F49: ='[9]M14 - Drivers'!AG9 -> 2286322 | G49: ='[9]M14 - Drivers'!AH9 -> 2298560 | H49: ='[9]M14 - Drivers'!AI9 -> 2311906 | I49: ='[9]M14 - Drivers'!AJ9 -> 2330356 | J49: ='[9]M14 - Drivers'!AK9 -> 2345807 | K49: ='[9]M14 - Drivers'!AL9 -> 2357951 | L49: ='[9]M14 - Drivers'!AM9 -> 2369157
B50: SPN | C50: ='[10]M14 - Drivers'!AD9 -> 2233288 | D50: ='[10]M14 - Drivers'!AE9 -> 2247823 | E50: ='[10]M14 - Drivers'!AF9 -> 2257968 | F50: ='[10]M14 - Drivers'!AG9 -> 2262882 | G50: ='[10]M14 - Drivers'!AH9 -> 2271189 | H50: ='[10]M14 - Drivers'!AI9 -> 2281009 | I50: ='[10]M14 - Drivers'!AJ9 -> 2288599 | J50: ='[10]M14 - Drivers'!AK9 -> 2296864 | K50: ='[10]M14 - Drivers'!AL9 -> 2304887 | L50: ='[10]M14 - Drivers'!AM9 -> 2311511
B51: EPN | C51: ='[11]M14 - Drivers'!AD9 -> 3516859 | D51: ='[11]M14 - Drivers'!AE9 -> 3537357 | E51: ='[11]M14 - Drivers'!AF9 -> 3556281 | F51: ='[11]M14 - Drivers'!AG9 -> 3565115 | G51: ='[11]M14 - Drivers'!AH9 -> 3581606 | H51: ='[11]M14 - Drivers'!AI9 -> 3599594 | I51: ='[11]M14 - Drivers'!AJ9 -> 3614431 | J51: ='[11]M14 - Drivers'!AK9 -> 3627858 | K51: ='[11]M14 - Drivers'!AL9 -> 3638189 | L51: ='[11]M14 - Drivers'!AM9 -> 3653242
B52: SPD | C52: ='[12]M14 - Drivers'!AD9 -> 1992998 | D52: ='[12]M14 - Drivers'!AE9 -> 1994241 | E52: ='[12]M14 - Drivers'!AF9 -> 1996169 | F52: ='[12]M14 - Drivers'!AG9 -> 1996758 | G52: ='[12]M14 - Drivers'!AH9 -> 1998881 | H52: ='[12]M14 - Drivers'!AI9 -> 2002257 | I52: ='[12]M14 - Drivers'!AJ9 -> 2004462 | J52: ='[12]M14 - Drivers'!AK9 -> 2007341 | K52: ='[12]M14 - Drivers'!AL9 -> 2002889 | L52: ='[12]M14 - Drivers'!AM9 -> 2008433
B53: SPMW | C53: ='[13]M14 - Drivers'!AD9 -> 1485153 | D53: ='[13]M14 - Drivers'!AE9 -> 1487412 | E53: ='[13]M14 - Drivers'!AF9 -> 1490883 | F53: ='[13]M14 - Drivers'!AG9 -> 1494271 | G53: ='[13]M14 - Drivers'!AH9 -> 1499500 | H53: ='[13]M14 - Drivers'!AI9 -> 1503914 | I53: ='[13]M14 - Drivers'!AJ9 -> 1508672 | J53: ='[13]M14 - Drivers'!AK9 -> 1512961 | K53: ='[13]M14 - Drivers'!AL9 -> 1512275 | L53: ='[13]M14 - Drivers'!AM9 -> 1519557
B54: SSEH | C54: ='[14]M14 - Drivers'!AD9 -> 740768 | D54: ='[14]M14 - Drivers'!AE9 -> 745907 | E54: ='[14]M14 - Drivers'!AF9 -> 750446 | F54: ='[14]M14 - Drivers'!AG9 -> 754258 | G54: ='[14]M14 - Drivers'!AH9 -> 757906 | H54: ='[14]M14 - Drivers'!AI9 -> 758000 | I54: ='[14]M14 - Drivers'!AJ9 -> 767082 | J54: ='[14]M14 - Drivers'!AK9 -> 772984 | K54: ='[14]M14 - Drivers'!AL9 -> 778304 | L54: ='[14]M14 - Drivers'!AM9 -> 782536
B55: SSES | C55: ='[15]M14 - Drivers'!AD9 -> 3026488 | D55: ='[15]M14 - Drivers'!AE9 -> 3040102 | E55: ='[15]M14 - Drivers'!AF9 -> 3054120 | F55: ='[15]M14 - Drivers'!AG9 -> 3067274 | G55: ='[15]M14 - Drivers'!AH9 -> 3082913 | H55: ='[15]M14 - Drivers'!AI9 -> 3098577 | I55: ='[15]M14 - Drivers'!AJ9 -> 3032766 | J55: ='[15]M14 - Drivers'!AK9 -> 3049924 | K55: ='[15]M14 - Drivers'!AL9 -> 3067988 | L55: ='[15]M14 - Drivers'!AM9 -> 3092275
B56: Total | C56: =SUM(C42:C55) -> 29142564 | D56: =SUM(D42:D55) -> 29272349 | E56: 29367946 | F56: 29399916 | G56: 29507312 | H56: 29622869 | I56: 29659111 | J56: 29773862 | K56: 29879854 | L56: =SUM(L42:L55) -> 29995006
B58: Network length (km)
C59: DPCR5 | H59: RIIO ED1
C60: 2011 | D60: 2012 | E60: 2013 | F60: 2014 | G60: 2015 | H60: 2016 | I60: 2017 | J60: 2018 | K60: 2019 | L60: 2020 | M60: 2021 | N60: 2022 | O60: 2023
B61: ENWL | C61: ='[2]M14 - Drivers'!AD26 -> 56952.2565 | D61: ='[2]M14 - Drivers'!AE26 -> 57115.77162 | E61: ='[2]M14 - Drivers'!AF26 -> 57296.44743 | F61: ='[2]M14 - Drivers'!AG26 -> 57547.74498 | G61: ='[2]M14 - Drivers'!AH26 -> 57722.14882 | H61: ='[2]M14 - Drivers'!AI26 -> 57946.36778 | I61: ='[2]M14 - Drivers'!AJ26 -> 57090.45584 | J61: ='[2]M14 - Drivers'!AK26 -> 57324.15031 | K61: ='[2]M14 - Drivers'!AL26 -> 57348.87727 | L61: ='[2]M14 - Drivers'!AM26 -> 57432.08682
B62: NPgN | C62: ='[3]M14 - Drivers'!AD26 -> 40159.667 | D62: ='[3]M14 - Drivers'!AE26 -> 40351.759 | E62: ='[3]M14 - Drivers'!AF26 -> 40668.071 | F62: ='[3]M14 - Drivers'!AG26 -> 40787.16 | G62: ='[3]M14 - Drivers'!AH26 -> 41012.91718 | H62: ='[3]M14 - Drivers'!AI26 -> 41243.50856 | I62: ='[3]M14 - Drivers'!AJ26 -> 41503.33523 | J62: ='[3]M14 - Drivers'!AK26 -> 41704.94 | K62: ='[3]M14 - Drivers'!AL26 -> 41839.146 | L62: ='[3]M14 - Drivers'!AM26 -> 41922.93155
B63: NPgY | C63: ='[4]M14 - Drivers'!AD26 -> 52782.96193 | D63: ='[4]M14 - Drivers'!AE26 -> 52946.18823 | E63: ='[4]M14 - Drivers'!AF26 -> 53163.7354 | F63: ='[4]M14 - Drivers'!AG26 -> 53299.51433 | G63: ='[4]M14 - Drivers'!AH26 -> 53567.08269 | H63: ='[4]M14 - Drivers'!AI26 -> 53873.2104 | I63: ='[4]M14 - Drivers'!AJ26 -> 54094.26509 | J63: ='[4]M14 - Drivers'!AK26 -> 54318.59584 | K63: ='[4]M14 - Drivers'!AL26 -> 54653.81543 | L63: ='[4]M14 - Drivers'!AM26 -> 54890.93543
B64: WMID | C64: ='[5]M14 - Drivers'!AD26 -> 63459.141 | D64: ='[5]M14 - Drivers'!AE26 -> 64111.49284 | E64: ='[5]M14 - Drivers'!AF26 -> 64147.94284 | F64: ='[5]M14 - Drivers'!AG26 -> 64280.34684 | G64: ='[5]M14 - Drivers'!AH26 -> 64590.59284 | H64: ='[5]M14 - Drivers'!AI26 -> 64268.96741 | I64: ='[5]M14 - Drivers'!AJ26 -> 64575.20572 | J64: ='[5]M14 - Drivers'!AK26 -> 64878.79094 | K64: ='[5]M14 - Drivers'!AL26 -> 65153.47412 | L64: ='[5]M14 - Drivers'!AM26 -> 65363.59863
B65: EMID | C65: ='[6]M14 - Drivers'!AD26 -> 71700.13171 | D65: ='[6]M14 - Drivers'!AE26 -> 71919.771 | E65: ='[6]M14 - Drivers'!AF26 -> 72058.561 | F65: ='[6]M14 - Drivers'!AG26 -> 72381.282 | G65: ='[6]M14 - Drivers'!AH26 -> 72761.459 | H65: ='[6]M14 - Drivers'!AI26 -> 72976.36852 | I65: ='[6]M14 - Drivers'!AJ26 -> 73379.48601 | J65: ='[6]M14 - Drivers'!AK26 -> 73745.45368 | K65: ='[6]M14 - Drivers'!AL26 -> 74111.28296 | L65: ='[6]M14 - Drivers'!AM26 -> 74399.80441
B66: SWALES | C66: ='[7]M14 - Drivers'!AD26 -> 35162.26796 | D66: ='[7]M14 - Drivers'!AE26 -> 35298.91919 | E66: ='[7]M14 - Drivers'!AF26 -> 35362.00919 | F66: ='[7]M14 - Drivers'!AG26 -> 35458.70019 | G66: ='[7]M14 - Drivers'!AH26 -> 35632.41818 | H66: ='[7]M14 - Drivers'!AI26 -> 35612.29927 | I66: ='[7]M14 - Drivers'!AJ26 -> 35789.68601 | J66: ='[7]M14 - Drivers'!AK26 -> 35678.69495 | K66: ='[7]M14 - Drivers'!AL26 -> 35758.72021 | L66: ='[7]M14 - Drivers'!AM26 -> 35832.16546
B67: SWEST | C67: ='[8]M14 - Drivers'!AD26 -> 50183.208 | D67: ='[8]M14 - Drivers'!AE26 -> 50440.85943 | E67: ='[8]M14 - Drivers'!AF26 -> 50584.05944 | F67: ='[8]M14 - Drivers'!AG26 -> 50761.22542 | G67: ='[8]M14 - Drivers'!AH26 -> 51050.23841 | H67: ='[8]M14 - Drivers'!AI26 -> 50247.79492 | I67: ='[8]M14 - Drivers'!AJ26 -> 50450.1221 | J67: ='[8]M14 - Drivers'!AK26 -> 50610.00051 | K67: ='[8]M14 - Drivers'!AL26 -> 50798.9617 | L67: ='[8]M14 - Drivers'!AM26 -> 50935.80561
B68: LPN | C68: ='[9]M14 - Drivers'!AD26 -> 36627.93 | D68: ='[9]M14 - Drivers'!AE26 -> 36703.93 | E68: ='[9]M14 - Drivers'!AF26 -> 36732.21 | F68: ='[9]M14 - Drivers'!AG26 -> 36822.66089 | G68: ='[9]M14 - Drivers'!AH26 -> 36845.69054 | H68: ='[9]M14 - Drivers'!AI26 -> 36932.86279 | I68: ='[9]M14 - Drivers'!AJ26 -> 37041.84435 | J68: ='[9]M14 - Drivers'!AK26 -> 37159.64061 | K68: ='[9]M14 - Drivers'!AL26 -> 37270.9533 | L68: ='[9]M14 - Drivers'!AM26 -> 37456.53582
B69: SPN | C69: ='[10]M14 - Drivers'!AD26 -> 52200 | D69: ='[10]M14 - Drivers'!AE26 -> 52315.75334 | E69: ='[10]M14 - Drivers'!AF26 -> 52449.36234 | F69: ='[10]M14 - Drivers'!AG26 -> 52686.69774 | G69: ='[10]M14 - Drivers'!AH26 -> 52805.84673 | H69: ='[10]M14 - Drivers'!AI26 -> 52841.05469 | I69: ='[10]M14 - Drivers'!AJ26 -> 52924.03279 | J69: ='[10]M14 - Drivers'!AK26 -> 53014.55406 | K69: ='[10]M14 - Drivers'!AL26 -> 53134.23316 | L69: ='[10]M14 - Drivers'!AM26 -> 53252.59718
B70: EPN | C70: ='[11]M14 - Drivers'!AD26 -> 96266 | D70: ='[11]M14 - Drivers'!AE26 -> 96408.8 | E70: ='[11]M14 - Drivers'!AF26 -> 96541.527 | F70: ='[11]M14 - Drivers'!AG26 -> 96767.73147 | G70: ='[11]M14 - Drivers'!AH26 -> 96913.08314 | H70: ='[11]M14 - Drivers'!AI26 -> 97261.38548 | I70: ='[11]M14 - Drivers'!AJ26 -> 97631.96554 | J70: ='[11]M14 - Drivers'!AK26 -> 97817.45905 | K70: ='[11]M14 - Drivers'!AL26 -> 98070.96429 | L70: ='[11]M14 - Drivers'!AM26 -> 98393.93852
B71: SPD | C71: ='[12]M14 - Drivers'!AD26 -> 63848.4556 | D71: ='[12]M14 - Drivers'!AE26 -> 63943.0006 | E71: ='[12]M14 - Drivers'!AF26 -> 57811.99774 | F71: ='[12]M14 - Drivers'!AG26 -> 57324 | G71: ='[12]M14 - Drivers'!AH26 -> 57628.9 | H71: ='[12]M14 - Drivers'!AI26 -> 57984.4 | I71: ='[12]M14 - Drivers'!AJ26 -> 58303.9 | J71: ='[12]M14 - Drivers'!AK26 -> 58515.3 | K71: ='[12]M14 - Drivers'!AL26 -> 58578.6 | L71: ='[12]M14 - Drivers'!AM26 -> 58696.8
B72: SPMW | C72: ='[13]M14 - Drivers'!AD26 -> 49669.0976 | D72: ='[13]M14 - Drivers'!AE26 -> 49619.0976 | E72: ='[13]M14 - Drivers'!AF26 -> 48454.39517 | F72: ='[13]M14 - Drivers'!AG26 -> 46437.905 | G72: ='[13]M14 - Drivers'!AH26 -> 46589.90371 | H72: ='[13]M14 - Drivers'!AI26 -> 46844.00973 | I72: ='[13]M14 - Drivers'!AJ26 -> 46947 | J72: ='[13]M14 - Drivers'!AK26 -> 47051.39112 | K72: ='[13]M14 - Drivers'!AL26 -> 47151 | L72: ='[13]M14 - Drivers'!AM26 -> 47253.2
B73: SSEH | C73: ='[14]M14 - Drivers'!AD26 -> 47024.21947 | D73: ='[14]M14 - Drivers'!AE26 -> 47477.55799 | E73: ='[14]M14 - Drivers'!AF26 -> 47676.3229 | F73: ='[14]M14 - Drivers'!AG26 -> 48053.1727 | G73: ='[14]M14 - Drivers'!AH26 -> 48407.80773 | H73: ='[14]M14 - Drivers'!AI26 -> 48346.868 | I73: ='[14]M14 - Drivers'!AJ26 -> 49026.46946 | J73: ='[14]M14 - Drivers'!AK26 -> 49153.93914 | K73: ='[14]M14 - Drivers'!AL26 -> 49356.67714 | L73: ='[14]M14 - Drivers'!AM26 -> 49390.11014
B74: SSES | C74: ='[15]M14 - Drivers'!AD26 -> 76219.64 | D74: ='[15]M14 - Drivers'!AE26 -> 76727.2343 | E74: ='[15]M14 - Drivers'!AF26 -> 76965.98655 | F74: ='[15]M14 - Drivers'!AG26 -> 76667.08495 | G74: ='[15]M14 - Drivers'!AH26 -> 77077.0711 | H74: ='[15]M14 - Drivers'!AI26 -> 77958.97015 | I74: ='[15]M14 - Drivers'!AJ26 -> 77378.55482 | J74: ='[15]M14 - Drivers'!AK26 -> 77486.95767 | K74: ='[15]M14 - Drivers'!AL26 -> 77710.03567 | L74: ='[15]M14 - Drivers'!AM26 -> 77998.04867
B75: Total | C75: =SUM(C61:C74) -> 792254.9768 | D75: 795380.1351 | E75: 789912.628 | F75: 789275.2265 | G75: 792605.1601 | H75: 794338.0677 | I75: 796136.323 | J75: 798459.8679 | K75: 800936.7412 | L75: =SUM(L61:L74) -> 803218.5582
B77: Total units distributed (GWh)
C78: DPCR5 | H78: RIIO ED1
C79: 2011 | D79: 2012 | E79: 2013 | F79: 2014 | G79: 2015 | H79: 2016 | I79: 2017 | J79: 2018 | K79: 2019 | L79: 2020 | M79: 2021 | N79: 2022 | O79: 2023
B80: ENWL | C80: ='[2]M14 - Drivers'!AD10 -> 23835.24 | D80: ='[2]M14 - Drivers'!AE10 -> 23367.42 | E80: ='[2]M14 - Drivers'!AF10 -> 23484.00688 | F80: ='[2]M14 - Drivers'!AG10 -> 22820 | G80: ='[2]M14 - Drivers'!AH10 -> 22393 | H80: ='[2]M14 - Drivers'!AI10 -> 22223.98232 | I80: ='[2]M14 - Drivers'!AJ10 -> 22059.6 | J80: ='[2]M14 - Drivers'!AK10 -> 21855.5 | K80: ='[2]M14 - Drivers'!AL10 -> 21712.4 | L80: ='[2]M14 - Drivers'!AM10 -> 21372.05355
B81: NPgN | C81: ='[3]M14 - Drivers'!AD10 -> 15795.56804 | D81: ='[3]M14 - Drivers'!AE10 -> 15271.77665 | E81: ='[3]M14 - Drivers'!AF10 -> 15489.97147 | F81: ='[3]M14 - Drivers'!AG10 -> 15131.45655 | G81: ='[3]M14 - Drivers'!AH10 -> 14984.01833 | H81: ='[3]M14 - Drivers'!AI10 -> 14861.88999 | I81: ='[3]M14 - Drivers'!AJ10 -> 14494.54801 | J81: ='[3]M14 - Drivers'!AK10 -> 14414.14121 | K81: ='[3]M14 - Drivers'!AL10 -> 14092.21149 | L81: ='[3]M14 - Drivers'!AM10 -> 13849.77093
B82: NPgY | C82: ='[4]M14 - Drivers'!AD10 -> 23063.32753 | D82: ='[4]M14 - Drivers'!AE10 -> 22570.84487 | E82: ='[4]M14 - Drivers'!AF10 -> 22692.94041 | F82: ='[4]M14 - Drivers'!AG10 -> 22438.35129 | G82: ='[4]M14 - Drivers'!AH10 -> 22263.32887 | H82: ='[4]M14 - Drivers'!AI10 -> 22012.43424 | I82: ='[4]M14 - Drivers'!AJ10 -> 21674.854 | J82: ='[4]M14 - Drivers'!AK10 -> 21614.84335 | K82: ='[4]M14 - Drivers'!AL10 -> 21387.84575 | L82: ='[4]M14 - Drivers'!AM10 -> 21059.51281
B83: WMID | C83: ='[5]M14 - Drivers'!AD10 -> 24932.16037 | D83: ='[5]M14 - Drivers'!AE10 -> 24247.72246 | E83: ='[5]M14 - Drivers'!AF10 -> 24682.02266 | F83: ='[5]M14 - Drivers'!AG10 -> 24427.3279 | G83: ='[5]M14 - Drivers'!AH10 -> 24212.92271 | H83: ='[5]M14 - Drivers'!AI10 -> 23941.29486 | I83: ='[5]M14 - Drivers'!AJ10 -> 23896.44009 | J83: ='[5]M14 - Drivers'!AK10 -> 23772.67072 | K83: ='[5]M14 - Drivers'!AL10 -> 23198.04349 | L83: ='[5]M14 - Drivers'!AM10 -> 22872.20824
B84: EMID | C84: ='[6]M14 - Drivers'!AD10 -> 27882.57017 | D84: ='[6]M14 - Drivers'!AE10 -> 27073.80591 | E84: ='[6]M14 - Drivers'!AF10 -> 27598.0905 | F84: ='[6]M14 - Drivers'!AG10 -> 26795.42345 | G84: ='[6]M14 - Drivers'!AH10 -> 26627.16446 | H84: ='[6]M14 - Drivers'!AI10 -> 26424.59749 | I84: ='[6]M14 - Drivers'!AJ10 -> 26354.68094 | J84: ='[6]M14 - Drivers'!AK10 -> 26187.57543 | K84: ='[6]M14 - Drivers'!AL10 -> 25596.814 | L84: ='[6]M14 - Drivers'!AM10 -> 25312.93487
B85: SWALES | C85: ='[7]M14 - Drivers'!AD10 -> 12110.70383 | D85: ='[7]M14 - Drivers'!AE10 -> 11776.00643 | E85: ='[7]M14 - Drivers'!AF10 -> 11769.62784 | F85: ='[7]M14 - Drivers'!AG10 -> 11640.55919 | G85: ='[7]M14 - Drivers'!AH10 -> 11490.95206 | H85: ='[7]M14 - Drivers'!AI10 -> 11333.0048 | I85: ='[7]M14 - Drivers'!AJ10 -> 11177.14997 | J85: ='[7]M14 - Drivers'!AK10 -> 11072.68336 | K85: ='[7]M14 - Drivers'!AL10 -> 10940.40889 | L85: ='[7]M14 - Drivers'!AM10 -> 10738.13637
B86: SWEST | C86: ='[8]M14 - Drivers'!AD10 -> 14625.00699 | D86: ='[8]M14 - Drivers'!AE10 -> 14078.27414 | E86: ='[8]M14 - Drivers'!AF10 -> 14412.45131 | F86: ='[8]M14 - Drivers'!AG10 -> 13932.80799 | G86: ='[8]M14 - Drivers'!AH10 -> 13767.54807 | H86: ='[8]M14 - Drivers'!AI10 -> 13561.17809 | I86: ='[8]M14 - Drivers'!AJ10 -> 13531.17623 | J86: ='[8]M14 - Drivers'!AK10 -> 13505.56227 | K86: ='[8]M14 - Drivers'!AL10 -> 13193.50365 | L86: ='[8]M14 - Drivers'!AM10 -> 13015.01699
B87: LPN | C87: ='[9]M14 - Drivers'!AD10 -> 29355 | D87: ='[9]M14 - Drivers'!AE10 -> 28492.36302 | E87: ='[9]M14 - Drivers'!AF10 -> 28722.3 | F87: ='[9]M14 - Drivers'!AG10 -> 28006 | G87: ='[9]M14 - Drivers'!AH10 -> 27632 | H87: ='[9]M14 - Drivers'!AI10 -> 27442.4 | I87: ='[9]M14 - Drivers'!AJ10 -> 27266 | J87: ='[9]M14 - Drivers'!AK10 -> 27012 | K87: ='[9]M14 - Drivers'!AL10 -> 26864 | L87: ='[9]M14 - Drivers'!AM10 -> 25779
B88: SPN | C88: ='[10]M14 - Drivers'!AD10 -> 21694 | D88: ='[10]M14 - Drivers'!AE10 -> 20813 | E88: ='[10]M14 - Drivers'!AF10 -> 20994 | F88: ='[10]M14 - Drivers'!AG10 -> 20508.408 | G88: ='[10]M14 - Drivers'!AH10 -> 19713 | H88: ='[10]M14 - Drivers'!AI10 -> 19413.4 | I88: ='[10]M14 - Drivers'!AJ10 -> 19468 | J88: ='[10]M14 - Drivers'!AK10 -> 19373 | K88: ='[10]M14 - Drivers'!AL10 -> 19379 | L88: ='[10]M14 - Drivers'!AM10 -> 18763
B89: EPN | C89: ='[11]M14 - Drivers'!AD10 -> 34525 | D89: ='[11]M14 - Drivers'!AE10 -> 34093 | E89: ='[11]M14 - Drivers'!AF10 -> 35108 | F89: ='[11]M14 - Drivers'!AG10 -> 33794 | G89: ='[11]M14 - Drivers'!AH10 -> 32882 | H89: ='[11]M14 - Drivers'!AI10 -> 32721 | I89: ='[11]M14 - Drivers'!AJ10 -> 33295 | J89: ='[11]M14 - Drivers'!AK10 -> 33106 | K89: ='[11]M14 - Drivers'!AL10 -> 32994 | L89: ='[11]M14 - Drivers'!AM10 -> 31973
B90: SPD | C90: ='[12]M14 - Drivers'!AD10 -> 16195 | D90: ='[12]M14 - Drivers'!AE10 -> 19341 | E90: ='[12]M14 - Drivers'!AF10 -> 19537 | F90: ='[12]M14 - Drivers'!AG10 -> 18943 | G90: ='[12]M14 - Drivers'!AH10 -> 18589 | H90: ='[12]M14 - Drivers'!AI10 -> 18348 | I90: ='[12]M14 - Drivers'!AJ10 -> 17961 | J90: ='[12]M14 - Drivers'!AK10 -> 17833 | K90: ='[12]M14 - Drivers'!AL10 -> 17266 | L90: ='[12]M14 - Drivers'!AM10 -> 16920.72771
B91: SPMW | C91: ='[13]M14 - Drivers'!AD10 -> 16195 | D91: ='[13]M14 - Drivers'!AE10 -> 15787 | E91: ='[13]M14 - Drivers'!AF10 -> 16065 | F91: ='[13]M14 - Drivers'!AG10 -> 15997 | G91: ='[13]M14 - Drivers'!AH10 -> 15742 | H91: ='[13]M14 - Drivers'!AI10 -> 15449 | I91: ='[13]M14 - Drivers'!AJ10 -> 15211 | J91: ='[13]M14 - Drivers'!AK10 -> 15118 | K91: ='[13]M14 - Drivers'!AL10 -> 14655 | L91: ='[13]M14 - Drivers'!AM10 -> 14377.93888
B92: SSEH | C92: ='[14]M14 - Drivers'!AD10 -> 8521 | D92: ='[14]M14 - Drivers'!AE10 -> 8117.4 | E92: ='[14]M14 - Drivers'!AF10 -> 8333.8 | F92: ='[14]M14 - Drivers'!AG10 -> 8075.6 | G92: ='[14]M14 - Drivers'!AH10 -> 7818.5 | H92: ='[14]M14 - Drivers'!AI10 -> 7859.7 | I92: ='[14]M14 - Drivers'!AJ10 -> 7427.8 | J92: ='[14]M14 - Drivers'!AK10 -> 7662.7 | K92: ='[14]M14 - Drivers'!AL10 -> 7461.9 | L92: ='[14]M14 - Drivers'!AM10 -> 6996.683915
B93: SSES | C93: ='[15]M14 - Drivers'!AD10 -> 33646.1 | D93: ='[15]M14 - Drivers'!AE10 -> 32536.8 | E93: ='[15]M14 - Drivers'!AF10 -> 33207.3 | F93: ='[15]M14 - Drivers'!AG10 -> 32359.1 | G93: ='[15]M14 - Drivers'!AH10 -> 31840.1 | H93: ='[15]M14 - Drivers'!AI10 -> 31425.5 | I93: ='[15]M14 - Drivers'!AJ10 -> 30984.1 | J93: ='[15]M14 - Drivers'!AK10 -> 31527.7 | K93: ='[15]M14 - Drivers'!AL10 -> 30870.8 | L93: ='[15]M14 - Drivers'!AM10 -> 26274.96718
B94: Total | C94: =SUM(C80:C93) -> 302375.6769 | D94: =SUM(D80:D93) -> 297566.4135 | E94: 302096.5111 | F94: 294869.0344 | G94: 289955.5345 | H94: 287017.3818 | I94: 284801.3492 | J94: 284055.3763 | K94: =SUM(K80:K93) -> 279611.9273 | L94: =SUM(L80:L93) -> 269304.9514
B96: Network-wide Peak load (MVA)
C97: DPCR5 | H97: RIIO ED1
C98: 2011 | D98: 2012 | E98: 2013 | F98: 2014 | G98: 2015 | H98: 2016 | I98: 2017 | J98: 2018 | K98: 2019 | L98: 2020 | M98: 2021 | N98: 2022 | O98: 2023
B99: ENWL | C99: ='[2]M14 - Drivers'!AD11 -> 4388.66 | D99: ='[2]M14 - Drivers'!AE11 -> 4280.41 | E99: ='[2]M14 - Drivers'!AF11 -> 4250.4 | F99: ='[2]M14 - Drivers'!AG11 -> 4062.350515 | G99: ='[2]M14 - Drivers'!AH11 -> 4267 | H99: ='[2]M14 - Drivers'!AI11 -> 4233 | I99: ='[2]M14 - Drivers'!AJ11 -> 4262 | J99: ='[2]M14 - Drivers'!AK11 -> 4305 | K99: ='[2]M14 - Drivers'!AL11 -> 4160 | L99: ='[2]M14 - Drivers'!AM11 -> 4140
B100: NPgN | C100: ='[3]M14 - Drivers'!AD11 -> 2997 | D100: ='[3]M14 - Drivers'!AE11 -> 2852 | E100: ='[3]M14 - Drivers'!AF11 -> 2777 | F100: ='[3]M14 - Drivers'!AG11 -> 2604 | G100: ='[3]M14 - Drivers'!AH11 -> 2593 | H100: ='[3]M14 - Drivers'!AI11 -> 2775 | I100: ='[3]M14 - Drivers'!AJ11 -> 2781.3392 | J100: ='[3]M14 - Drivers'!AK11 -> 2723.672 | K100: ='[3]M14 - Drivers'!AL11 -> 2459.074 | L100: ='[3]M14 - Drivers'!AM11 -> 2410.7036
B101: NPgY | C101: ='[4]M14 - Drivers'!AD11 -> 4285 | D101: ='[4]M14 - Drivers'!AE11 -> 4195 | E101: ='[4]M14 - Drivers'!AF11 -> 4041 | F101: ='[4]M14 - Drivers'!AG11 -> 4086 | G101: ='[4]M14 - Drivers'!AH11 -> 3763 | H101: ='[4]M14 - Drivers'!AI11 -> 4059.803 | I101: ='[4]M14 - Drivers'!AJ11 -> 3961.26 | J101: ='[4]M14 - Drivers'!AK11 -> 3786.452 | K101: ='[4]M14 - Drivers'!AL11 -> 3994.02 | L101: ='[4]M14 - Drivers'!AM11 -> 3696.7076
B102: WMID | C102: ='[5]M14 - Drivers'!AD11 -> 4662.231544 | D102: ='[5]M14 - Drivers'!AE11 -> 4792.138457 | E102: ='[5]M14 - Drivers'!AF11 -> 4782.4592 | F102: ='[5]M14 - Drivers'!AG11 -> 4492 | G102: ='[5]M14 - Drivers'!AH11 -> 4597.6 | H102: ='[5]M14 - Drivers'!AI11 -> 4487.2 | I102: ='[5]M14 - Drivers'!AJ11 -> 4469.6 | J102: ='[5]M14 - Drivers'!AK11 -> 4440 | K102: ='[5]M14 - Drivers'!AL11 -> 4323.8 | L102: ='[5]M14 - Drivers'!AM11 -> 4251
B103: EMID | C103: ='[6]M14 - Drivers'!AD11 -> 5042.450848 | D103: ='[6]M14 - Drivers'!AE11 -> 5292.3975 | E103: ='[6]M14 - Drivers'!AF11 -> 5293.0718 | F103: ='[6]M14 - Drivers'!AG11 -> 5056 | G103: ='[6]M14 - Drivers'!AH11 -> 5012.2 | H103: ='[6]M14 - Drivers'!AI11 -> 4968.4 | I103: ='[6]M14 - Drivers'!AJ11 -> 4961.6 | J103: ='[6]M14 - Drivers'!AK11 -> 4801.8 | K103: ='[6]M14 - Drivers'!AL11 -> 4769 | L103: ='[6]M14 - Drivers'!AM11 -> 4699
B104: SWALES | C104: ='[7]M14 - Drivers'!AD11 -> 2152.652603 | D104: ='[7]M14 - Drivers'!AE11 -> 2117.6 | E104: ='[7]M14 - Drivers'!AF11 -> 1999.5122 | F104: ='[7]M14 - Drivers'!AG11 -> 1992 | G104: ='[7]M14 - Drivers'!AH11 -> 2012 | H104: ='[7]M14 - Drivers'!AI11 -> 1970.4 | I104: ='[7]M14 - Drivers'!AJ11 -> 1946.4 | J104: ='[7]M14 - Drivers'!AK11 -> 1914 | K104: ='[7]M14 - Drivers'!AL11 -> 1897.6 | L104: ='[7]M14 - Drivers'!AM11 -> 1824.2
B105: SWEST | C105: ='[8]M14 - Drivers'!AD11 -> 2903.634729 | D105: ='[8]M14 - Drivers'!AE11 -> 2854.9 | E105: ='[8]M14 - Drivers'!AF11 -> 2754.5462 | F105: ='[8]M14 - Drivers'!AG11 -> 2594 | G105: ='[8]M14 - Drivers'!AH11 -> 2583.8 | H105: ='[8]M14 - Drivers'!AI11 -> 2536.8 | I105: ='[8]M14 - Drivers'!AJ11 -> 2590.8 | J105: ='[8]M14 - Drivers'!AK11 -> 2565.8 | K105: ='[8]M14 - Drivers'!AL11 -> 2486.8 | L105: ='[8]M14 - Drivers'!AM11 -> 2462.6
B106: LPN | C106: ='[9]M14 - Drivers'!AD11 -> 5203 | D106: ='[9]M14 - Drivers'!AE11 -> 5125 | E106: ='[9]M14 - Drivers'!AF11 -> 5167 | F106: ='[9]M14 - Drivers'!AG11 -> 4820 | G106: ='[9]M14 - Drivers'!AH11 -> 4952 | H106: ='[9]M14 - Drivers'!AI11 -> 4833 | I106: ='[9]M14 - Drivers'!AJ11 -> 4915 | J106: ='[9]M14 - Drivers'!AK11 -> 5189 | K106: ='[9]M14 - Drivers'!AL11 -> 4780 | L106: ='[9]M14 - Drivers'!AM11 -> 4389
B107: SPN | C107: ='[10]M14 - Drivers'!AD11 -> 3976 | D107: ='[10]M14 - Drivers'!AE11 -> 4108 | E107: ='[10]M14 - Drivers'!AF11 -> 4107 | F107: ='[10]M14 - Drivers'!AG11 -> 3672 | G107: ='[10]M14 - Drivers'!AH11 -> 3795 | H107: ='[10]M14 - Drivers'!AI11 -> 3809 | I107: ='[10]M14 - Drivers'!AJ11 -> 3923 | J107: ='[10]M14 - Drivers'!AK11 -> 4022 | K107: ='[10]M14 - Drivers'!AL11 -> 3672 | L107: ='[10]M14 - Drivers'!AM11 -> 3526
B108: EPN | C108: ='[11]M14 - Drivers'!AD11 -> 6966 | D108: ='[11]M14 - Drivers'!AE11 -> 6407 | E108: ='[11]M14 - Drivers'!AF11 -> 6408 | F108: ='[11]M14 - Drivers'!AG11 -> 6096 | G108: ='[11]M14 - Drivers'!AH11 -> 6267 | H108: ='[11]M14 - Drivers'!AI11 -> 6236 | I108: ='[11]M14 - Drivers'!AJ11 -> 6441 | J108: ='[11]M14 - Drivers'!AK11 -> 6573 | K108: ='[11]M14 - Drivers'!AL11 -> 5926 | L108: ='[11]M14 - Drivers'!AM11 -> 5401
B109: SPD | C109: ='[12]M14 - Drivers'!AD11 -> 3320 | D109: ='[12]M14 - Drivers'!AE11 -> 3611 | E109: ='[12]M14 - Drivers'!AF11 -> 3673 | F109: ='[12]M14 - Drivers'!AG11 -> 3426 | G109: ='[12]M14 - Drivers'!AH11 -> 3414 | H109: ='[12]M14 - Drivers'!AI11 -> 3626 | I109: ='[12]M14 - Drivers'!AJ11 -> 3563 | J109: ='[12]M14 - Drivers'!AK11 -> 3575 | K109: ='[12]M14 - Drivers'!AL11 -> 3596 | L109: ='[12]M14 - Drivers'!AM11 -> 3440
B110: SPMW | C110: ='[13]M14 - Drivers'!AD11 -> 3320 | D110: ='[13]M14 - Drivers'!AE11 -> 3197 | E110: ='[13]M14 - Drivers'!AF11 -> 3245 | F110: ='[13]M14 - Drivers'!AG11 -> 3023 | G110: ='[13]M14 - Drivers'!AH11 -> 3127 | H110: ='[13]M14 - Drivers'!AI11 -> 3014 | I110: ='[13]M14 - Drivers'!AJ11 -> 3022 | J110: ='[13]M14 - Drivers'!AK11 -> 3039 | K110: ='[13]M14 - Drivers'!AL11 -> 3054 | L110: ='[13]M14 - Drivers'!AM11 -> 2999
B111: SSEH | C111: ='[14]M14 - Drivers'!AD11 -> 1633 | D111: ='[14]M14 - Drivers'!AE11 -> 1559 | E111: ='[14]M14 - Drivers'!AF11 -> 1518 | F111: ='[14]M14 - Drivers'!AG11 -> 1518 | G111: ='[14]M14 - Drivers'!AH11 -> 1514 | H111: ='[14]M14 - Drivers'!AI11 -> 1417 | I111: ='[14]M14 - Drivers'!AJ11 -> 1497.2 | J111: ='[14]M14 - Drivers'!AK11 -> 1564.5 | K111: ='[14]M14 - Drivers'!AL11 -> 1429.5 | L111: ='[14]M14 - Drivers'!AM11 -> 1416.0002
B112: SSES | C112: ='[15]M14 - Drivers'!AD11 -> 6692.8 | D112: ='[15]M14 - Drivers'!AE11 -> 6395.7 | E112: ='[15]M14 - Drivers'!AF11 -> 6387.1 | F112: ='[15]M14 - Drivers'!AG11 -> 5916.3 | G112: ='[15]M14 - Drivers'!AH11 -> 6005.4 | H112: ='[15]M14 - Drivers'!AI11 -> 5971.2 | I112: ='[15]M14 - Drivers'!AJ11 -> 6079.3 | J112: ='[15]M14 - Drivers'!AK11 -> 6293 | K112: ='[15]M14 - Drivers'!AL11 -> 5883.7 | L112: ='[15]M14 - Drivers'!AM11 -> 5584.9832
B113: Total | C113: =SUM(C99:C112) -> 57542.42972 | D113: =SUM(D99:D112) -> 56787.14596 | E113: 56403.0894 | F113: 53357.65052 | G113: 53903 | H113: 53936.803 | I113: 54413.4992 | J113: 54792.224 | K113: 52431.494 | L113: =SUM(L99:L112) -> 50240.1946

Sheet RAG and Ranking
A1: Outputs overview
C3: Reliability & Availability | F3: Environment | J3: Connections | O3: Customer satisfaction | T3: Social obligations
C4: Number of interruption (CIs) RAG | D4: Number of minutes lost (CMLs) RAG | F4: BCF (excl. losses) ranking | G4: SF6 ranking | H4: Fluid filled cable leakage ranking | J4: Time to Quote and Time to Connect RAG | K4: Time to Quote and Time to Connect ranking | L4: Connection GSoPs RAG | M4: Connection GSoPs ranking | O4: Complaints RAG | P4: Complaints ranking | Q4: Customer Satisfaction RAG | R4: BMCS ranking | T4: SECV RAG | U4: SECV ranking
A5: ENWL | C5: 1 | D5: 1 | F5: ='Ch2 outputs - environment'!U76 -> 6 | G5: ='Ch2 outputs - environment'!U116 -> 12 | H5: ='Ch2 outputs - environment'!U155 -> 8 | J5: 1 | K5: ='Ch2 outputs - connections'!BZ42 -> 6 | L5: 1 | M5: ='Ch2 outputs - connections'!AL85 -> 8 | O5: 1 | P5: ='Ch2 outputs - cust sat'!AM43 -> 6 | Q5: 1 | R5: ='Ch2 outputs - cust sat'!AH23 -> 12 | T5: 1 | U5: ='Ch2 outputs - cust sat'!I89 -> 4
A6: NPgN | C6: 1 | D6: 1 | F6: ='Ch2 outputs - environment'!U77 -> 4 | G6: ='Ch2 outputs - environment'!U117 -> 3 | H6: ='Ch2 outputs - environment'!U156 -> 4 | J6: 0 | K6: ='Ch2 outputs - connections'!BZ43 -> 14 | L6: 1 | M6: ='Ch2 outputs - connections'!AL86 -> 14 | O6: 1 | P6: ='Ch2 outputs - cust sat'!AM44 -> 14 | Q6: 1 | R6: ='Ch2 outputs - cust sat'!AH24 -> 10 | T6: 1 | U6: ='Ch2 outputs - cust sat'!I90 -> 3
A7: NPgY | C7: 1 | D7: 1 | F7: ='Ch2 outputs - environment'!U78 -> 3 | G7: ='Ch2 outputs - environment'!U118 -> 8 | H7: ='Ch2 outputs - environment'!U157 -> 10 | J7: 0.5 | K7: ='Ch2 outputs - connections'!BZ44 -> 12 | L7: 1 | M7: ='Ch2 outputs - connections'!AL87 -> 13 | O7: 1 | P7: ='Ch2 outputs - cust sat'!AM45 -> 11 | Q7: 1 | R7: ='Ch2 outputs - cust sat'!AH25 -> 13
A8: WMID | C8: 1 | D8: 1 | F8: ='Ch2 outputs - environment'!U79 -> 7 | G8: ='Ch2 outputs - environment'!U119 -> 11 | H8: ='Ch2 outputs - environment'!U158 -> 7 | J8: 1 | K8: ='Ch2 outputs - connections'!BZ45 -> 4 | L8: 1 | M8: ='Ch2 outputs - connections'!AL88 -> 1 | O8: 1 | P8: ='Ch2 outputs - cust sat'!AM46 -> 2 | Q8: 1 | R8: ='Ch2 outputs - cust sat'!AH26 -> 7 | T8: N/A | U8: ='Ch2 outputs - cust sat'!I91 -> 0
A9: EMID | C9: 1 | D9: 1 | F9: ='Ch2 outputs - environment'!U80 -> 8 | G9: ='Ch2 outputs - environment'!U120 -> 10 | H9: ='Ch2 outputs - environment'!U159 -> 5 | J9: 1 | K9: ='Ch2 outputs - connections'!BZ46 -> 2 | L9: 1 | M9: ='Ch2 outputs - connections'!AL89 -> 3 | O9: 1 | P9: ='Ch2 outputs - cust sat'!AM47 -> 1 | Q9: 1 | R9: ='Ch2 outputs - cust sat'!AH27 -> 6
A10: SWALES | C10: 1 | D10: 1 | F10: ='Ch2 outputs - environment'!U81 -> 9 | G10: ='Ch2 outputs - environment'!U121 -> 9 | H10: ='Ch2 outputs - environment'!U160 -> 6 | J10: 1 | K10: ='Ch2 outputs - connections'!BZ47 -> 1 | L10: 1 | M10: ='Ch2 outputs - connections'!AL90 -> 1 | O10: 1 | P10: ='Ch2 outputs - cust sat'!AM48 -> 13 | Q10: 1 | R10: ='Ch2 outputs - cust sat'!AH28 -> 3
A11: SWEST | C11: 1 | D11: 1 | F11: ='Ch2 outputs - environment'!U82 -> 11 | G11: ='Ch2 outputs - environment'!U122 -> 13 | H11: ='Ch2 outputs - environment'!U161 -> 1 | J11: 1 | K11: ='Ch2 outputs - connections'!BZ48 -> 4 | L11: 1 | M11: ='Ch2 outputs - connections'!AL91 -> 4 | O11: 1 | P11: ='Ch2 outputs - cust sat'!AM49 -> 10 | Q11: 1 | R11: ='Ch2 outputs - cust sat'!AH29 -> 8
A12: LPN | C12: 1 | D12: 1 | F12: ='Ch2 outputs - environment'!U83 -> 13 | G12: ='Ch2 outputs - environment'!U123 -> 4 | H12: ='Ch2 outputs - environment'!U162 -> 9 | J12: 0.5 | K12: ='Ch2 outputs - connections'!BZ49 -> 9 | L12: 1 | M12: ='Ch2 outputs - connections'!AL92 -> 6 | O12: 1 | P12: ='Ch2 outputs - cust sat'!AM50 -> 12 | Q12: 1 | R12: ='Ch2 outputs - cust sat'!AH30 -> 9 | T12: 1 | U12: ='Ch2 outputs - cust sat'!I92 -> 1
A13: SPN | C13: 1 | D13: 1 | F13: ='Ch2 outputs - environment'!U84 -> 10 | G13: ='Ch2 outputs - environment'!U124 -> 2 | H13: ='Ch2 outputs - environment'!U163 -> 12 | J13: 0.5 | K13: ='Ch2 outputs - connections'!BZ50 -> 10 | L13: 1 | M13: ='Ch2 outputs - connections'!AL93 -> 9 | O13: 1 | P13: ='Ch2 outputs - cust sat'!AM51 -> 8 | Q13: 1 | R13: ='Ch2 outputs - cust sat'!AH31 -> 11
A14: EPN | C14: 1 | D14: 1 | F14: ='Ch2 outputs - environment'!U85 -> 5 | G14: ='Ch2 outputs - environment'!U125 -> 5 | H14: ='Ch2 outputs - environment'!U164 -> 11 | J14: 1 | K14: ='Ch2 outputs - connections'!BZ51 -> 8 | L14: 1 | M14: ='Ch2 outputs - connections'!AL94 -> 7 | O14: 1 | P14: ='Ch2 outputs - cust sat'!AM52 -> 5 | Q14: 1 | R14: ='Ch2 outputs - cust sat'!AH32 -> 5
A15: SPD | C15: 1 | D15: 1 | F15: ='Ch2 outputs - environment'!U86 -> 1 | G15: ='Ch2 outputs - environment'!U126 -> 1 | H15: ='Ch2 outputs - environment'!U165 -> 2 | J15: 0.5 | K15: ='Ch2 outputs - connections'!BZ52 -> 11 | L15: 1 | M15: ='Ch2 outputs - connections'!AL95 -> 12 | O15: 1 | P15: ='Ch2 outputs - cust sat'!AM53 -> 4 | Q15: 1 | R15: ='Ch2 outputs - cust sat'!AH33 -> 2 | T15: 1 | U15: ='Ch2 outputs - cust sat'!I93 -> 2
A16: SPMW | C16: 1 | D16: 1 | F16: ='Ch2 outputs - environment'!U87 -> 2 | G16: ='Ch2 outputs - environment'!U127 -> 6 | H16: ='Ch2 outputs - environment'!U165 -> 2 | J16: 0.5 | K16: ='Ch2 outputs - connections'!BZ53 -> 13 | L16: 1 | M16: ='Ch2 outputs - connections'!AL96 -> 10 | O16: 1 | P16: ='Ch2 outputs - cust sat'!AM54 -> 3 | Q16: 1 | R16: ='Ch2 outputs - cust sat'!AH34 -> 4
A17: SSEH | C17: 1 | D17: 1 | F17: ='Ch2 outputs - environment'!U88 -> 14 | G17: ='Ch2 outputs - environment'!U128 -> 7 | H17: ='Ch2 outputs - environment'!U166 -> 3 | J17: 1 | K17: ='Ch2 outputs - connections'!BZ54 -> 3 | L17: 1 | M17: ='Ch2 outputs - connections'!AL97 -> 5 | O17: 1 | P17: ='Ch2 outputs - cust sat'!AM55 -> 7 | Q17: 1 | R17: ='Ch2 outputs - cust sat'!AH35 -> 1 | T17: 1 | U17: ='Ch2 outputs - cust sat'!I94 -> 5
A18: SSES | C18: 1 | D18: 1 | F18: ='Ch2 outputs - environment'!U89 -> 12 | G18: ='Ch2 outputs - environment'!U129 -> 14 | H18: ='Ch2 outputs - environment'!U167 -> 13 | J18: 1 | K18: ='Ch2 outputs - connections'!BZ55 -> 7 | L18: 1 | M18: ='Ch2 outputs - connections'!AL98 -> 11 | O18: 1 | P18: ='Ch2 outputs - cust sat'!AM56 -> 9 | Q18: 1 | R18: ='Ch2 outputs - cust sat'!AH36 -> 14
A20: Industry | C20: 1 | D20: 1 | J20: 1 | L20: 1 | O20: 1 | Q20: 1 | T20: 1

Sheet Ch2 - Incentive payments
A1: Chapter 2 - Reliability and Availability
B3: Incentive payments
C5: 2019/20 prices
D6: Interruptions Incentive Scheme (IIS) | E6: Incentive on connections engagement (ICE) | F6: Time to Connect Incentive (TTC) | G6: Broad measure of customer service (BMCS) | H6: Losses discretionary reward scheme (LDR) | I6: Total incentive payments
C7: ENWL | D7: ='Ch2 outputs - reliability'!E131 -> 16.05383032 | E7: ='[16]Incentive payments'!L25 -> 0 | F7: ='Ch2 outputs - connections'!BW42 -> 1.417450529 | G7: ='Ch2 outputs - cust sat'!AB99 -> 3.709149859 | H7: ='Ch2 outputs - environment'!H28/1000000 -> 0 | I7: =SUM(D7:H7) -> 21.18043071
C8: NPgN | D8: ='Ch2 outputs - reliability'!E132 -> 8.986969545 | E8: ='[16]Incentive payments'!L26 -> 0 | F8: ='Ch2 outputs - connections'!BW43 -> 0 | G8: ='Ch2 outputs - cust sat'!AB100 -> 3.092318434 | H8: ='Ch2 outputs - environment'!H29/1000000/2 -> 0 | I8: 12.07928798
C9: NPgY | D9: ='Ch2 outputs - reliability'!E133 -> 13.73079537 | E9: ='[16]Incentive payments'!L27 -> 0 | F9: ='Ch2 outputs - connections'!BW44 -> 0.1197955125 | G9: ='Ch2 outputs - cust sat'!AB101 -> 3.959012577 | H9: ='Ch2 outputs - environment'!H29/1000000/2 -> 0 | I9: 17.80960346
C10: WMID | D10: ='Ch2 outputs - reliability'!E134 -> 21.02529233 | E10: ='[16]Incentive payments'!L28 -> 0 | F10: ='Ch2 outputs - connections'!BW45 -> 1.900591397 | G10: ='Ch2 outputs - cust sat'!AB102 -> 4.751478492 | H10: ='Ch2 outputs - environment'!$H$30/1000000/4 -> 0 | I10: 27.67736222
C11: EMID | D11: ='Ch2 outputs - reliability'!E135 -> 20.22233498 | E11: ='[16]Incentive payments'!L29 -> 0 | F11: ='Ch2 outputs - connections'!BW46 -> 1.900591397 | G11: ='Ch2 outputs - cust sat'!AB103 -> 4.751478492 | H11: ='Ch2 outputs - environment'!$H$30/1000000/4 -> 0 | I11: 26.87440487
C12: SWALES | D12: ='Ch2 outputs - reliability'!E136 -> 5.80336162 | E12: ='[16]Incentive payments'!L30 -> 0 | F12: ='Ch2 outputs - connections'!BW47 -> 0.9502956984 | G12: ='Ch2 outputs - cust sat'!AB104 -> 2.256952284 | H12: ='Ch2 outputs - environment'!$H$30/1000000/4 -> 0 | I12: 9.010609602
C13: SWEST | D13: ='Ch2 outputs - reliability'!E137 -> 6.493484909 | E13: ='[16]Incentive payments'!L31 -> 0 | F13: ='Ch2 outputs - connections'!BW48 -> 1.425443548 | G13: ='Ch2 outputs - cust sat'!AB105 -> 3.326034944 | H13: ='Ch2 outputs - environment'!$H$30/1000000/4 -> 0 | I13: 11.2449634
C14: LPN | D14: ='Ch2 outputs - reliability'!E138 -> 15.5414989 | E14: ='[16]Incentive payments'!L32 -> 0 | F14: ='Ch2 outputs - connections'!BW49 -> 0.4157108715 | G14: ='Ch2 outputs - cust sat'!AB106 -> 5.095960683 | H14: ='Ch2 outputs - environment'!$H$31/1000000/3 -> 0 | I14: 21.05317045
C15: SPN | D15: ='Ch2 outputs - reliability'!E139 -> 12.1300301 | E15: ='[16]Incentive payments'!L33 -> 0 | F15: ='Ch2 outputs - connections'!BW50 -> 0.2923107716 | G15: ='Ch2 outputs - cust sat'!AB107 -> 5.123533104 | H15: ='Ch2 outputs - environment'!$H$31/1000000/3 -> 0 | I15: 17.54587397
C16: EPN | D16: ='Ch2 outputs - reliability'!E140 -> 23.5321461 | E16: ='[16]Incentive payments'!L34 -> 0 | F16: ='Ch2 outputs - connections'!BW51 -> 0.913106714 | G16: ='Ch2 outputs - cust sat'!AB108 -> 7.81380638 | H16: ='Ch2 outputs - environment'!$H$31/1000000/3 -> 0 | I16: 32.25905919
C17: SPD | D17: ='Ch2 outputs - reliability'!E141 -> 6.405178253 | E17: ='[16]Incentive payments'!L35 -> 0 | F17: ='Ch2 outputs - connections'!BW52 -> 0.7102035945 | G17: ='Ch2 outputs - cust sat'!AB109 -> 4.765732927 | H17: ='Ch2 outputs - environment'!$H$32/1000000/2 -> 0 | I17: 11.88111477
C18: SPMW | D18: ='Ch2 outputs - reliability'!E142 -> 2.690651899 | E18: ='[16]Incentive payments'!L36 -> 0 | F18: ='Ch2 outputs - connections'!BW53 -> 0.1228676796 | G18: ='Ch2 outputs - cust sat'!AB110 -> 5.189802383 | H18: ='Ch2 outputs - environment'!$H$32/1000000/2 -> 0 | I18: 8.003321961
C19: SSEH | D19: ='Ch2 outputs - reliability'!E143 -> 1.486737597 | E19: ='[16]Incentive payments'!L37 -> 0 | F19: ='Ch2 outputs - connections'!BW54 -> 0.9502956984 | G19: ='Ch2 outputs - cust sat'!AB111 -> 2.741009155 | H19: ='Ch2 outputs - environment'!$H$33/1000000/2 -> 0 | I19: 5.17804245
C20: SSES | D20: ='Ch2 outputs - reliability'!E144 -> 6.276088266 | E20: ='[16]Incentive payments'!L38 -> 0 | F20: ='Ch2 outputs - connections'!BW55 -> 1.785373526 | G20: ='Ch2 outputs - cust sat'!AB112 -> 4.016124597 | H20: ='Ch2 outputs - environment'!$H$33/1000000/2 -> 0 | I20: 12.07758639
C21: Total | D21: =SUM(D7:D20) -> 160.3784002 | E21: =SUM(E7:E20) -> 0 | F21: =SUM(F7:F20) -> 12.90403694 | G21: =SUM(G7:G20) -> 60.59239431 | H21: =SUM(H7:H20) -> 0 | I21: 233.8748314

Sheet Ch2 outputs - reliability
A1: Chapter 2 - Reliability and Availability
B2: Performance against the outputs that DNOs are incentivised to deliver under RIIO-ED1.
B4: Reliability and availability: providing long-term reliability, minimising the number and duration of interruptions and ensuring adaptation to climate change.
B5: Incentive measure | F5: Incentive type
B6: Interruption incentive scheme (IIS): DNOs can receive a financial reward or incur a financial penalty depending on their performance against a target for both the number and length of their network supply interruptions. | F6: Financial: 250 RORE basis points per annum. Supported by monitoring of Secondary Deliverables. Reputational.
B7: Guaranteed Standards of Performance (GSoP): direct payment to customers of fixed amounts if DNO fails to deliver specified minimum levels of performance. | F7: Financial: payment to customers for failure to meet standards. Reputational.
B8: Worst-served customers (WSC): DNOs have access to funding to improve the reliability for a subset of customers whose supply has been repeatedly interrupted. | F8: Financial: £76.5 million over ED1 (use-it-or-lose-it). Reputational.
B9: Network resilience: proactive network investment for reducing the impact of disruptive events, such as floods or severe storms. | F9: Reputational.
B12: Interruption Incentive Scheme (IIS) | E12: CI performance | N12: 2019/20 RAG status | Q12: CI target (Planned and unplanned)
E13: 2014/15 | F13: 2015/16 | G13: 2016/17 | H13: 2017/18 | I13: 2018/19 | J13: 2019/20 | K13: 2020/21 | L13: 2021/22 | M13: 2022/23 | Q13: 2015/16 | R13: 2016/17 | S13: 2017/18 | T13: 2018/19 | U13: 2019/20 | V13: 2020/21 | W13: 2021/22 | X13: 2022/23
D14: ENWL | E14: ='[17]Without storms weighted'!P7 -> 36.64007359 | F14: ='[17]Without storms weighted'!Q7 -> 36.65750416 | G14: ='[17]Without storms weighted'!R7 -> 32.89872416 | H14: ='[17]Without storms weighted'!S7 -> 33.23113479 | I14: ='[17]Without storms weighted'!T7 -> 33.59983554 | J14: ='[17]Without storms weighted'!U7 -> 27.95317361 | N14: =IF(J14<=U14,"Green",IF(J14<=U14*1.05,"Amber","Red")) -> Green | P14: ENWL | Q14: ='[18]Performance and Targets'!M5+'[18]Performance and Targets'!M41 -> 48.37195356 | R14: ='[18]Performance and Targets'!N5+'[18]Performance and Targets'!N41 -> 48.02825334 | S14: ='[18]Performance and Targets'!O5+'[18]Performance and Targets'!O41 -> 47.4508901 | T14: ='[18]Performance and Targets'!P5+'[18]Performance and Targets'!P41 -> 47.17044608 | U14: ='[18]Performance and Targets'!Q5+'[18]Performance and Targets'!Q41 -> 46.86558384
D15: NPgN | E15: ='[17]Without storms weighted'!P8 -> 65.26359301 | F15: ='[17]Without storms weighted'!Q8 -> 58.34727383 | G15: ='[17]Without storms weighted'!R8 -> 53.28905362 | H15: ='[17]Without storms weighted'!S8 -> 51.81519134 | I15: ='[17]Without storms weighted'!T8 -> 54.28416236 | J15: ='[17]Without storms weighted'!U8 -> 46.97048435 | N15: Green | P15: NPgN | Q15: ='[18]Performance and Targets'!M6+'[18]Performance and Targets'!M42 -> 63.75172954 | R15: ='[18]Performance and Targets'!N6+'[18]Performance and Targets'!N42 -> 62.70868495 | S15: ='[18]Performance and Targets'!O6+'[18]Performance and Targets'!O42 -> 62.16495153 | T15: ='[18]Performance and Targets'!P6+'[18]Performance and Targets'!P42 -> 61.38208007 | U15: ='[18]Performance and Targets'!Q6+'[18]Performance and Targets'!Q42 -> 60.68086191
D16: NPgY | E16: ='[17]Without storms weighted'!P9 -> 60.91975461 | F16: ='[17]Without storms weighted'!Q9 -> 52.53464728 | G16: ='[17]Without storms weighted'!R9 -> 48.5363288 | H16: ='[17]Without storms weighted'!S9 -> 48.1345217 | I16: ='[17]Without storms weighted'!T9 -> 49.3031241 | J16: ='[17]Without storms weighted'!U9 -> 50.78773106 | N16: Green | P16: NPgY | Q16: ='[18]Performance and Targets'!M7+'[18]Performance and Targets'!M43 -> 68.59357099 | R16: ='[18]Performance and Targets'!N7+'[18]Performance and Targets'!N43 -> 67.55372114 | S16: ='[18]Performance and Targets'!O7+'[18]Performance and Targets'!O43 -> 66.47527679 | T16: ='[18]Performance and Targets'!P7+'[18]Performance and Targets'!P43 -> 65.1854765 | U16: ='[18]Performance and Targets'!Q7+'[18]Performance and Targets'!Q43 -> 64.04058283
D17: WMID | E17: ='[17]Without storms weighted'!P10 -> 70.24026493 | F17: ='[17]Without storms weighted'!Q10 -> 65.22689603 | G17: ='[17]Without storms weighted'!R10 -> 58.9599988 | H17: ='[17]Without storms weighted'!S10 -> 55.6442047 | I17: ='[17]Without storms weighted'!T10 -> 55.37075929 | J17: ='[17]Without storms weighted'!U10 -> 48.48407976 | N17: Green | P17: WMID | Q17: ='[18]Performance and Targets'!M8+'[18]Performance and Targets'!M44 -> 89.07684423 | R17: ='[18]Performance and Targets'!N8+'[18]Performance and Targets'!N44 -> 87.05456485 | S17: ='[18]Performance and Targets'!O8+'[18]Performance and Targets'!O44 -> 85.3947733 | T17: ='[18]Performance and Targets'!P8+'[18]Performance and Targets'!P44 -> 84.07887678 | U17: ='[18]Performance and Targets'!Q8+'[18]Performance and Targets'!Q44 -> 82.44388584
D18: EMID | E18: ='[17]Without storms weighted'!P11 -> 45.95520502 | F18: ='[17]Without storms weighted'!Q11 -> 42.65072457 | G18: ='[17]Without storms weighted'!R11 -> 44.12571874 | H18: ='[17]Without storms weighted'!S11 -> 46.94172138 | I18: ='[17]Without storms weighted'!T11 -> 39.77135469 | J18: ='[17]Without storms weighted'!U11 -> 37.90279559 | N18: Green | P18: EMID | Q18: ='[18]Performance and Targets'!M9+'[18]Performance and Targets'!M45 -> 53.22076207 | R18: ='[18]Performance and Targets'!N9+'[18]Performance and Targets'!N45 -> 52.13962623 | S18: ='[18]Performance and Targets'!O9+'[18]Performance and Targets'!O45 -> 51.42330642 | T18: ='[18]Performance and Targets'!P9+'[18]Performance and Targets'!P45 -> 51.05155481 | U18: ='[18]Performance and Targets'!Q9+'[18]Performance and Targets'!Q45 -> 50.82084743
D19: SWALES | E19: ='[17]Without storms weighted'!P12 -> 56.48447461 | F19: ='[17]Without storms weighted'!Q12 -> 48.53141809 | G19: ='[17]Without storms weighted'!R12 -> 41.64040259 | H19: ='[17]Without storms weighted'!S12 -> 48.46686218 | I19: ='[17]Without storms weighted'!T12 -> 41.29104808 | J19: ='[17]Without storms weighted'!U12 -> 43.52130477 | N19: Green | P19: SWALES | Q19: ='[18]Performance and Targets'!M10+'[18]Performance and Targets'!M46 -> 55.06037337 | R19: ='[18]Performance and Targets'!N10+'[18]Performance and Targets'!N46 -> 53.75180744 | S19: ='[18]Performance and Targets'!O10+'[18]Performance and Targets'!O46 -> 53.31319243 | T19: ='[18]Performance and Targets'!P10+'[18]Performance and Targets'!P46 -> 53.09492923 | U19: ='[18]Performance and Targets'!Q10+'[18]Performance and Targets'!Q46 -> 52.71872689
D20: SWEST | E20: ='[17]Without storms weighted'!P13 -> 51.61839023 | F20: ='[17]Without storms weighted'!Q13 -> 51.99880507 | G20: ='[17]Without storms weighted'!R13 -> 52.45442106 | H20: ='[17]Without storms weighted'!S13 -> 62.03699686 | I20: ='[17]Without storms weighted'!T13 -> 51.46478332 | J20: ='[17]Without storms weighted'!U13 -> 46.09622422 | N20: Green | P20: SWEST | Q20: ='[18]Performance and Targets'!M11+'[18]Performance and Targets'!M47 -> 59.17962458 | R20: ='[18]Performance and Targets'!N11+'[18]Performance and Targets'!N47 -> 58.86083942 | S20: ='[18]Performance and Targets'!O11+'[18]Performance and Targets'!O47 -> 58.53708391 | T20: ='[18]Performance and Targets'!P11+'[18]Performance and Targets'!P47 -> 58.48036798 | U20: ='[18]Performance and Targets'!Q11+'[18]Performance and Targets'!Q47 -> 58.42549897
D21: LPN | E21: ='[17]Without storms weighted'!P14 -> 20.88055269 | F21: ='[17]Without storms weighted'!Q14 -> 18.956803 | G21: ='[17]Without storms weighted'!R14 -> 17.22140308 | H21: ='[17]Without storms weighted'!S14 -> 14.21623774 | I21: ='[17]Without storms weighted'!T14 -> 14.09492818 | J21: ='[17]Without storms weighted'!U14 -> 13.19999055 | N21: Green | P21: LPN | Q21: ='[18]Performance and Targets'!M12+'[18]Performance and Targets'!M48 -> 27.80442323 | R21: ='[18]Performance and Targets'!N12+'[18]Performance and Targets'!N48 -> 27.68332947 | S21: ='[18]Performance and Targets'!O12+'[18]Performance and Targets'!O48 -> 27.33851583 | T21: ='[18]Performance and Targets'!P12+'[18]Performance and Targets'!P48 -> 27.03425534 | U21: ='[18]Performance and Targets'!Q12+'[18]Performance and Targets'!Q48 -> 26.69761648
D22: SPN | E22: ='[17]Without storms weighted'!P15 -> 50.09437788 | F22: ='[17]Without storms weighted'!Q15 -> 48.73709832 | G22: ='[17]Without storms weighted'!R15 -> 47.72406612 | H22: ='[17]Without storms weighted'!S15 -> 46.68681691 | I22: ='[17]Without storms weighted'!T15 -> 44.35653462 | J22: ='[17]Without storms weighted'!U15 -> 45.03820228 | N22: Green | P22: SPN | Q22: ='[18]Performance and Targets'!M13+'[18]Performance and Targets'!M49 -> 65.32600982 | R22: ='[18]Performance and Targets'!N13+'[18]Performance and Targets'!N49 -> 64.66907452 | S22: ='[18]Performance and Targets'!O13+'[18]Performance and Targets'!O49 -> 64.09331146 | T22: ='[18]Performance and Targets'!P13+'[18]Performance and Targets'!P49 -> 63.62583163 | U22: ='[18]Performance and Targets'!Q13+'[18]Performance and Targets'!Q49 -> 63.20081553
D23: EPN | E23: ='[17]Without storms weighted'!P16 -> 52.79515655 | F23: ='[17]Without storms weighted'!Q16 -> 45.75570628 | G23: ='[17]Without storms weighted'!R16 -> 49.37111816 | H23: ='[17]Without storms weighted'!S16 -> 48.5218 | I23: ='[17]Without storms weighted'!T16 -> 41.42250444 | J23: ='[17]Without storms weighted'!U16 -> 43.78245405 | N23: Green | P23: EPN | Q23: ='[18]Performance and Targets'!M14+'[18]Performance and Targets'!M50 -> 69.78626007 | R23: ='[18]Performance and Targets'!N14+'[18]Performance and Targets'!N50 -> 68.69974372 | S23: ='[18]Performance and Targets'!O14+'[18]Performance and Targets'!O50 -> 67.94105245 | T23: ='[18]Performance and Targets'!P14+'[18]Performance and Targets'!P50 -> 67.18845091 | U23: ='[18]Performance and Targets'!Q14+'[18]Performance and Targets'!Q50 -> 66.65224917
D24: SPD | E24: ='[17]Without storms weighted'!P17 -> 46.58826613 | F24: ='[17]Without storms weighted'!Q17 -> 48.46533187 | G24: ='[17]Without storms weighted'!R17 -> 42.8901371 | H24: ='[17]Without storms weighted'!S17 -> 41.30501494 | I24: ='[17]Without storms weighted'!T17 -> 49.33473597 | J24: ='[17]Without storms weighted'!U17 -> 44.5284707 | N24: Green | P24: SPD | Q24: ='[18]Performance and Targets'!M15+'[18]Performance and Targets'!M51 -> 52.07347876 | R24: ='[18]Performance and Targets'!N15+'[18]Performance and Targets'!N51 -> 51.90160342 | S24: ='[18]Performance and Targets'!O15+'[18]Performance and Targets'!O51 -> 51.64197259 | T24: ='[18]Performance and Targets'!P15+'[18]Performance and Targets'!P51 -> 51.09507495 | U24: ='[18]Performance and Targets'!Q15+'[18]Performance and Targets'!Q51 -> 50.62929298
D25: SPMW | E25: ='[17]Without storms weighted'!P18 -> 32.77742581 | F25: ='[17]Without storms weighted'!Q18 -> 30.14843269 | G25: ='[17]Without storms weighted'!R18 -> 38.16376257 | H25: ='[17]Without storms weighted'!S18 -> 30.49896858 | I25: ='[17]Without storms weighted'!T18 -> 36.14398836 | J25: ='[17]Without storms weighted'!U18 -> 32.22179227 | N25: Green | P25: SPMW | Q25: ='[18]Performance and Targets'!M16+'[18]Performance and Targets'!M52 -> 38.27366337 | R25: ='[18]Performance and Targets'!N16+'[18]Performance and Targets'!N52 -> 38.0644497 | S25: ='[18]Performance and Targets'!O16+'[18]Performance and Targets'!O52 -> 37.59791787 | T25: ='[18]Performance and Targets'!P16+'[18]Performance and Targets'!P52 -> 37.02580749 | U25: ='[18]Performance and Targets'!Q16+'[18]Performance and Targets'!Q52 -> 36.40715904
D26: SSEH | E26: ='[17]Without storms weighted'!P19 -> 73.52165044 | F26: ='[17]Without storms weighted'!Q19 -> 66.72040063 | G26: ='[17]Without storms weighted'!R19 -> 68.10679953 | H26: ='[17]Without storms weighted'!S19 -> 57.34640044 | I26: ='[17]Without storms weighted'!T19 -> 69.36756075 | J26: ='[17]Without storms weighted'!U19 -> 63.17313197 | N26: Green | P26: SSEH | Q26: ='[18]Performance and Targets'!M17+'[18]Performance and Targets'!M53 -> 71.90053998 | R26: ='[18]Performance and Targets'!N17+'[18]Performance and Targets'!N53 -> 71.18886245 | S26: ='[18]Performance and Targets'!O17+'[18]Performance and Targets'!O53 -> 70.15106303 | T26: ='[18]Performance and Targets'!P17+'[18]Performance and Targets'!P53 -> 70.28042452 | U26: ='[18]Performance and Targets'!Q17+'[18]Performance and Targets'!Q53 -> 69.98556845
D27: SSES | E27: ='[17]Without storms weighted'!P20 -> 59.84592631 | F27: ='[17]Without storms weighted'!Q20 -> 47.50998757 | G27: ='[17]Without storms weighted'!R20 -> 47.81686091 | H27: ='[17]Without storms weighted'!S20 -> 55.13280003 | I27: ='[17]Without storms weighted'!T20 -> 52.10169007 | J27: ='[17]Without storms weighted'!U20 -> 47.15481676 | N27: Green | P27: SSES | Q27: ='[18]Performance and Targets'!M18+'[18]Performance and Targets'!M54 -> 62.53435987 | R27: ='[18]Performance and Targets'!N18+'[18]Performance and Targets'!N54 -> 61.57780772 | S27: ='[18]Performance and Targets'!O18+'[18]Performance and Targets'!O54 -> 60.39368654 | T27: ='[18]Performance and Targets'!P18+'[18]Performance and Targets'!P54 -> 59.39079167 | U27: ='[18]Performance and Targets'!Q18+'[18]Performance and Targets'!Q54 -> 58.95827811
D28: Total | E28: ='[17]Without storms weighted'!P22 -> 50.83062035 | F28: ='[17]Without storms weighted'!Q22 -> 46.26024092 | G28: ='[17]Without storms weighted'!R22 -> 45.06427933 | H28: ='[17]Without storms weighted'!S22 -> 45.28780576 | I28: ='[17]Without storms weighted'!T22 -> 43.8099316 | J28: ='[17]Without storms weighted'!U22 -> 41.21111265
J29: =(J28-$E$28)/$E$28 -> -0.1892463172
E30: CML performance | N30: 2019/20 RAG Status | Q30: CML target (Planned and unplanned)
E31: 2014/15 | F31: 2015/16 | G31: 2016/17 | H31: 2017/18 | I31: 2018/19 | J31: 2019/20 | K31: 2020/21 | L31: 2021/22 | M31: 2022/23 | Q31: 2015/16 | R31: 2016/17 | S31: 2017/18 | T31: 2018/19 | U31: 2019/20 | V31: 2020/21 | W31: 2021/22 | X31: 2022/23
D32: ENWL | E32: ='[17]Without storms weighted'!AJ7 -> 34.76243236 | F32: ='[17]Without storms weighted'!AK7 -> 32.49629202 | G32: ='[17]Without storms weighted'!AL7 -> 33.71355615 | H32: ='[17]Without storms weighted'!AM7 -> 34.63112634 | I32: ='[17]Without storms weighted'!AN7 -> 32.96300426 | J32: ='[17]Without storms weighted'!AO7 -> 27.14609222 | N32: =IF(J32<=U32,"Green",IF(J32<=U32*1.05,"Amber","Red")) -> Green | P32: ENWL | Q32: ='[18]Performance and Targets'!M23+'[18]Performance and Targets'!M59 -> 47.37353943 | R32: ='[18]Performance and Targets'!N23+'[18]Performance and Targets'!N59 -> 45.82728822 | S32: ='[18]Performance and Targets'!O23+'[18]Performance and Targets'!O59 -> 44.22557415 | T32: ='[18]Performance and Targets'!P23+'[18]Performance and Targets'!P59 -> 43.00277457 | U32: ='[18]Performance and Targets'!Q23+'[18]Performance and Targets'!Q59 -> 42.06733042
D33: NPgN | E33: ='[17]Without storms weighted'!AJ8 -> 56.06517018 | F33: ='[17]Without storms weighted'!AK8 -> 50.10896408 | G33: ='[17]Without storms weighted'!AL8 -> 45.00430019 | H33: ='[17]Without storms weighted'!AM8 -> 44.62516576 | I33: ='[17]Without storms weighted'!AN8 -> 47.63165205 | J33: ='[17]Without storms weighted'!AO8 -> 44.10397891 | N33: Green | P33: NPgN | Q33: ='[18]Performance and Targets'!M24+'[18]Performance and Targets'!M60 -> 65.86223246 | R33: ='[18]Performance and Targets'!N24+'[18]Performance and Targets'!N60 -> 64.09760406 | S33: ='[18]Performance and Targets'!O24+'[18]Performance and Targets'!O60 -> 61.87164277 | T33: ='[18]Performance and Targets'!P24+'[18]Performance and Targets'!P60 -> 59.10684654 | U33: ='[18]Performance and Targets'!Q24+'[18]Performance and Targets'!Q60 -> 57.01103882
D34: NPgY | E34: ='[17]Without storms weighted'!AJ9 -> 50.43404375 | F34: ='[17]Without storms weighted'!AK9 -> 41.83767088 | G34: ='[17]Without storms weighted'!AL9 -> 38.0051775 | H34: ='[17]Without storms weighted'!AM9 -> 36.39574708 | I34: ='[17]Without storms weighted'!AN9 -> 38.77214491 | J34: ='[17]Without storms weighted'!AO9 -> 42.10247027 | N34: Green | P34: NPgY | Q34: ='[18]Performance and Targets'!M25+'[18]Performance and Targets'!M61 -> 63.11966704 | R34: ='[18]Performance and Targets'!N25+'[18]Performance and Targets'!N61 -> 61.61618976 | S34: ='[18]Performance and Targets'!O25+'[18]Performance and Targets'!O61 -> 60.17853616 | T34: ='[18]Performance and Targets'!P25+'[18]Performance and Targets'!P61 -> 57.95158627 | U34: ='[18]Performance and Targets'!Q25+'[18]Performance and Targets'!Q61 -> 56.41385376
D35: WMID | E35: ='[17]Without storms weighted'!AJ10 -> 34.24748607 | F35: ='[17]Without storms weighted'!AK10 -> 32.15125114 | G35: ='[17]Without storms weighted'!AL10 -> 31.97361396 | H35: ='[17]Without storms weighted'!AM10 -> 31.02404506 | I35: ='[17]Without storms weighted'!AN10 -> 32.29735482 | J35: ='[17]Without storms weighted'!AO10 -> 29.00255602 | N35: Green | P35: WMID | Q35: ='[18]Performance and Targets'!M26+'[18]Performance and Targets'!M62 -> 55.65600016 | R35: ='[18]Performance and Targets'!N26+'[18]Performance and Targets'!N62 -> 53.60162252 | S35: ='[18]Performance and Targets'!O26+'[18]Performance and Targets'!O62 -> 52.99336073 | T35: ='[18]Performance and Targets'!P26+'[18]Performance and Targets'!P62 -> 52.78337452 | U35: ='[18]Performance and Targets'!Q26+'[18]Performance and Targets'!Q62 -> 52.264842
D36: EMID | E36: ='[17]Without storms weighted'!AJ11 -> 22.85262752 | F36: ='[17]Without storms weighted'!AK11 -> 21.55496789 | G36: ='[17]Without storms weighted'!AL11 -> 21.96212168 | H36: ='[17]Without storms weighted'!AM11 -> 24.07177192 | I36: ='[17]Without storms weighted'!AN11 -> 22.9171638 | J36: ='[17]Without storms weighted'!AO11 -> 22.55823231 | N36: Green | P36: EMID | Q36: ='[18]Performance and Targets'!M27+'[18]Performance and Targets'!M63 -> 40.23357433 | R36: ='[18]Performance and Targets'!N27+'[18]Performance and Targets'!N63 -> 39.10588266 | S36: ='[18]Performance and Targets'!O27+'[18]Performance and Targets'!O63 -> 38.82708102 | T36: ='[18]Performance and Targets'!P27+'[18]Performance and Targets'!P63 -> 38.01194585 | U36: ='[18]Performance and Targets'!Q27+'[18]Performance and Targets'!Q63 -> 37.23704108
D37: SWALES | E37: ='[17]Without storms weighted'!AJ12 -> 30.39829093 | F37: ='[17]Without storms weighted'!AK12 -> 26.3408534 | G37: ='[17]Without storms weighted'!AL12 -> 25.72609148 | H37: ='[17]Without storms weighted'!AM12 -> 28.41460867 | I37: ='[17]Without storms weighted'!AN12 -> 24.87022259 | J37: ='[17]Without storms weighted'!AO12 -> 23.4199746 | N37: Green | P37: SWALES | Q37: ='[18]Performance and Targets'!M28+'[18]Performance and Targets'!M64 -> 35.44214891 | R37: ='[18]Performance and Targets'!N28+'[18]Performance and Targets'!N64 -> 33.56820749 | S37: ='[18]Performance and Targets'!O28+'[18]Performance and Targets'!O64 -> 33.35629545 | T37: ='[18]Performance and Targets'!P28+'[18]Performance and Targets'!P64 -> 33.44477928 | U37: ='[18]Performance and Targets'!Q28+'[18]Performance and Targets'!Q64 -> 33.15731653
D38: SWEST | E38: ='[17]Without storms weighted'!AJ13 -> 38.95592924 | F38: ='[17]Without storms weighted'!AK13 -> 37.51045627 | G38: ='[17]Without storms weighted'!AL13 -> 39.69870511 | H38: ='[17]Without storms weighted'!AM13 -> 42.78232644 | I38: ='[17]Without storms weighted'!AN13 -> 40.22496535 | J38: ='[17]Without storms weighted'!AO13 -> 38.21713875 | N38: Green | P38: SWEST | Q38: ='[18]Performance and Targets'!M29+'[18]Performance and Targets'!M65 -> 43.91734302 | R38: ='[18]Performance and Targets'!N29+'[18]Performance and Targets'!N65 -> 43.63298563 | S38: ='[18]Performance and Targets'!O29+'[18]Performance and Targets'!O65 -> 43.50199529 | T38: ='[18]Performance and Targets'!P29+'[18]Performance and Targets'!P65 -> 43.8273154 | U38: ='[18]Performance and Targets'!Q29+'[18]Performance and Targets'!Q65 -> 43.92305606
D39: LPN | E39: ='[17]Without storms weighted'!AJ14 -> 24.03006735 | F39: ='[17]Without storms weighted'!AK14 -> 19.28684622 | G39: ='[17]Without storms weighted'!AL14 -> 19.78127401 | H39: ='[17]Without storms weighted'!AM14 -> 16.74064131 | I39: ='[17]Without storms weighted'!AN14 -> 15.91679339 | J39: ='[17]Without storms weighted'!AO14 -> 14.38653669 | N39: Green | P39: LPN | Q39: ='[18]Performance and Targets'!M30+'[18]Performance and Targets'!M66 -> 40.44154825 | R39: ='[18]Performance and Targets'!N30+'[18]Performance and Targets'!N66 -> 39.71882371 | S39: ='[18]Performance and Targets'!O30+'[18]Performance and Targets'!O66 -> 38.8503032 | T39: ='[18]Performance and Targets'!P30+'[18]Performance and Targets'!P66 -> 37.72425531 | U39: ='[18]Performance and Targets'!Q30+'[18]Performance and Targets'!Q66 -> 36.64798493
D40: SPN | E40: ='[17]Without storms weighted'!AJ15 -> 35.03520804 | F40: ='[17]Without storms weighted'!AK15 -> 36.34049005 | G40: ='[17]Without storms weighted'!AL15 -> 35.06263583 | H40: ='[17]Without storms weighted'!AM15 -> 37.56921184 | I40: ='[17]Without storms weighted'!AN15 -> 36.68784517 | J40: ='[17]Without storms weighted'!AO15 -> 32.85109672 | N40: Green | P40: SPN | Q40: ='[18]Performance and Targets'!M31+'[18]Performance and Targets'!M67 -> 50.17473647 | R40: ='[18]Performance and Targets'!N31+'[18]Performance and Targets'!N67 -> 48.36490519 | S40: ='[18]Performance and Targets'!O31+'[18]Performance and Targets'!O67 -> 46.54170473 | T40: ='[18]Performance and Targets'!P31+'[18]Performance and Targets'!P67 -> 45.27954349 | U40: ='[18]Performance and Targets'!Q31+'[18]Performance and Targets'!Q67 -> 44.03523923
D41: EPN | E41: ='[17]Without storms weighted'!AJ16 -> 40.20514835 | F41: ='[17]Without storms weighted'!AK16 -> 34.76516025 | G41: ='[17]Without storms weighted'!AL16 -> 39.20381675 | H41: ='[17]Without storms weighted'!AM16 -> 41.79128818 | I41: ='[17]Without storms weighted'!AN16 -> 34.81117617 | J41: ='[17]Without storms weighted'!AO16 -> 33.7663204 | N41: Green | P41: EPN | Q41: ='[18]Performance and Targets'!M32+'[18]Performance and Targets'!M68 -> 55.7003846 | R41: ='[18]Performance and Targets'!N32+'[18]Performance and Targets'!N68 -> 54.22268524 | S41: ='[18]Performance and Targets'!O32+'[18]Performance and Targets'!O68 -> 52.00439817 | T41: ='[18]Performance and Targets'!P32+'[18]Performance and Targets'!P68 -> 49.61100899 | U41: ='[18]Performance and Targets'!Q32+'[18]Performance and Targets'!Q68 -> 48.07036211
D42: SPD | E42: ='[17]Without storms weighted'!AJ17 -> 34.03126444 | F42: ='[17]Without storms weighted'!AK17 -> 34.81463329 | G42: ='[17]Without storms weighted'!AL17 -> 29.32836726 | H42: ='[17]Without storms weighted'!AM17 -> 31.19284596 | I42: ='[17]Without storms weighted'!AN17 -> 35.01017159 | J42: ='[17]Without storms weighted'!AO17 -> 33.71785108 | N42: Green | P42: SPD | Q42: ='[18]Performance and Targets'!M33+'[18]Performance and Targets'!M69 -> 46.23040403 | R42: ='[18]Performance and Targets'!N33+'[18]Performance and Targets'!N69 -> 45.68157588 | S42: ='[18]Performance and Targets'!O33+'[18]Performance and Targets'!O69 -> 44.75054439 | T42: ='[18]Performance and Targets'!P33+'[18]Performance and Targets'!P69 -> 43.41874701 | U42: ='[18]Performance and Targets'!Q33+'[18]Performance and Targets'!Q69 -> 42.08127773
D43: SPMW | E43: ='[17]Without storms weighted'!AJ18 -> 36.13681094 | F43: ='[17]Without storms weighted'!AK18 -> 33.56467524 | G43: ='[17]Without storms weighted'!AL18 -> 37.33744028 | H43: ='[17]Without storms weighted'!AM18 -> 32.98727132 | I43: ='[17]Without storms weighted'!AN18 -> 35.60105498 | J43: ='[17]Without storms weighted'!AO18 -> 33.84297637 | N43: Green | P43: SPMW | Q43: ='[18]Performance and Targets'!M34+'[18]Performance and Targets'!M70 -> 45.61961944 | R43: ='[18]Performance and Targets'!N34+'[18]Performance and Targets'!N70 -> 44.23979445 | S43: ='[18]Performance and Targets'!O34+'[18]Performance and Targets'!O70 -> 42.41891188 | T43: ='[18]Performance and Targets'!P34+'[18]Performance and Targets'!P70 -> 40.30271841 | U43: ='[18]Performance and Targets'!Q34+'[18]Performance and Targets'!Q70 -> 38.24794085
D44: SSEH | E44: ='[17]Without storms weighted'!AJ19 -> 71.56350154 | F44: ='[17]Without storms weighted'!AK19 -> 55.20969992 | G44: ='[17]Without storms weighted'!AL19 -> 59.88609562 | H44: ='[17]Without storms weighted'!AM19 -> 55.24026901 | I44: ='[17]Without storms weighted'!AN19 -> 59.068469 | J44: ='[17]Without storms weighted'!AO19 -> 55.59302741 | N44: Green | P44: SSEH | Q44: ='[18]Performance and Targets'!M35+'[18]Performance and Targets'!M71 -> 64.55381854 | R44: ='[18]Performance and Targets'!N35+'[18]Performance and Targets'!N71 -> 62.23321321 | S44: ='[18]Performance and Targets'!O35+'[18]Performance and Targets'!O71 -> 59.45033586 | T44: ='[18]Performance and Targets'!P35+'[18]Performance and Targets'!P71 -> 59.34947784 | U44: ='[18]Performance and Targets'!Q35+'[18]Performance and Targets'!Q71 -> 59.08513472
D45: SSES | E45: ='[17]Without storms weighted'!AJ20 -> 56.92164691 | F45: ='[17]Without storms weighted'!AK20 -> 41.19510635 | G45: ='[17]Without storms weighted'!AL20 -> 43.29800356 | H45: ='[17]Without storms weighted'!AM20 -> 47.56372229 | I45: ='[17]Without storms weighted'!AN20 -> 49.94647671 | J45: ='[17]Without storms weighted'!AO20 -> 45.91278195 | N45: Green | P45: SSES | Q45: ='[18]Performance and Targets'!M36+'[18]Performance and Targets'!M72 -> 54.12297476 | R45: ='[18]Performance and Targets'!N36+'[18]Performance and Targets'!N72 -> 52.92818986 | S45: ='[18]Performance and Targets'!O36+'[18]Performance and Targets'!O72 -> 50.82738041 | T45: ='[18]Performance and Targets'!P36+'[18]Performance and Targets'!P72 -> 49.51790917 | U45: ='[18]Performance and Targets'!Q36+'[18]Performance and Targets'!Q72 -> 47.88930423
D46: Total | E46: ='[17]Without storms weighted'!AJ22 -> 39.1618001 | F46: ='[17]Without storms weighted'!AK22 -> 34.43367633 | G46: ='[17]Without storms weighted'!AL22 -> 34.71078638 | H46: ='[17]Without storms weighted'!AM22 -> 35.50477918 | I46: ='[17]Without storms weighted'!AN22 -> 35.19895983 | J46: ='[17]Without storms weighted'!AO22 -> 33.11021141
J47: =(J46-$E$46)/$E$46 -> -0.1545278478
J49: Breakdown of performance for CI and CML/planned and unplanned
J50: PLANNED | P50: UNPLANNED
B51: Rewards and penalties under the IIS | D51: 2015/16 | E51: IIS performance total reward | I51: 2015/16 | J51: CI | M51: CML | P51: CI | S51: CML
E52: Total reward (£m)** | F52: Regulation 7 Severe Weather Conditions Adjustment | G52: Normal weather conditions adjustment | J52: Performance | K52: Target | L52: Reward/Penalty (£m) | M52: Performance | N52: Target | O52: Reward/Penalty (£m) | P52: Performance | Q52: Target | R52: Reward/Penalty (£m) | S52: Performance | T52: Target | U52: Reward/Penalty (£m)
D53: ENWL | E53: =('[18]Total Reward'!C4+F53+G53)*'Guide & drivers'!$D$29 -> 15.16447511 | F53: ='[19]Payments made_due 1516'!J6*'Guide & drivers'!$D$29 -> 0 | G53: ='[19]Payments made_due 1516'!K6*'Guide & drivers'!$D$29 -> 0 | I53: ENWL | J53: ='[18]Performance and Targets'!$C41 -> 1.624115947 | K53: ='[18]Performance and Targets'!$M41 -> 2.37195356 | L53: ='[18]Total Reward'!$W24*'Guide & drivers'!$C$35 -> 0.2387474234 | M53: ='[18]Performance and Targets'!$C59 -> 4.058171082 | N53: ='[18]Performance and Targets'!$M59 -> 6.773539429 | O53: ='[18]Total Reward'!$W42*'Guide & drivers'!$C$35 -> 2.085203391 | P53: ='[18]Performance and Targets'!$C5 -> 35.03338821 | Q53: ='[18]Performance and Targets'!$M5 -> 46 | R53: ='[18]Total Reward'!$M24*'Guide & drivers'!$C$35 -> 3.501094707 | S53: ='[18]Performance and Targets'!$C23 -> 28.43812094 | T53: ='[18]Performance and Targets'!$M23 -> 40.6 | U53: ='[18]Total Reward'!$M42*'Guide & drivers'!$C$35 -> 9.339429583
D54: NPgN | E54: =('[18]Total Reward'!C5+F54+G54)*'Guide & drivers'!$D$29 -> 8.865371414 | F54: ='[19]Payments made_due 1516'!J7*'Guide & drivers'!$D$29 -> 0 | G54: ='[19]Payments made_due 1516'!K7*'Guide & drivers'!$D$29 -> -0.03957031288 | I54: NPgN | J54: ='[18]Performance and Targets'!$C42 -> 2.965282572 | K54: ='[18]Performance and Targets'!$M42 -> 3.951729539 | L54: ='[18]Total Reward'!$W25*'Guide & drivers'!$C$35 -> 0.1962949752 | M54: ='[18]Performance and Targets'!$C60 -> 6.802123103 | N54: ='[18]Performance and Targets'!$M60 -> 11.06223246 | O54: ='[18]Total Reward'!$W43*'Guide & drivers'!$C$35 -> 2.119318341 | P54: ='[18]Performance and Targets'!$C6 -> 55.38199126 | Q54: ='[18]Performance and Targets'!$M6 -> 59.8 | R54: ='[18]Total Reward'!$M25*'Guide & drivers'!$C$35 -> 0.8791480379 | S54: ='[18]Performance and Targets'!$C24 -> 43.30684097 | T54: ='[18]Performance and Targets'!$M24 -> 54.8 | U54: ='[18]Total Reward'!$M43*'Guide & drivers'!$C$35 -> 5.717614433
D55: NPgY | E55: =('[18]Total Reward'!C6+F55+G55)*'Guide & drivers'!$D$29 -> 15.45349406 | F55: ='[19]Payments made_due 1516'!J8*'Guide & drivers'!$D$29 -> -0.4905806513 | G55: ='[19]Payments made_due 1516'!K8*'Guide & drivers'!$D$29 -> 0 | I55: NPgY | J55: ='[18]Performance and Targets'!$C43 -> 1.54251192 | K55: ='[18]Performance and Targets'!$M43 -> 1.893570992 | L55: ='[18]Total Reward'!$W26*'Guide & drivers'!$C$35 -> 0.1018761312 | M55: ='[18]Performance and Targets'!$C61 -> 3.989441512 | N55: ='[18]Performance and Targets'!$M61 -> 5.61966704 | O55: ='[18]Total Reward'!$W44*'Guide & drivers'!$C$35 -> 1.162439449 | P55: ='[18]Performance and Targets'!$C7 -> 50.99213536 | Q55: ='[18]Performance and Targets'!$M7 -> 66.7 | R55: ='[18]Total Reward'!$M26*'Guide & drivers'!$C$35 -> 4.55836811 | S55: ='[18]Performance and Targets'!$C25 -> 37.84822937 | T55: ='[18]Performance and Targets'!$M25 -> 57.5 | U55: ='[18]Total Reward'!$M44*'Guide & drivers'!$C$35 -> 14.01278107
D56: WMID | E56: =('[18]Total Reward'!C7+F56+G56)*'Guide & drivers'!$D$29 -> 21.02529233 | F56: ='[19]Payments made_due 1516'!J9*'Guide & drivers'!$D$29 -> 0 | G56: ='[19]Payments made_due 1516'!K9*'Guide & drivers'!$D$29 -> 0 | I56: WMID | J56: ='[18]Performance and Targets'!$C44 -> 2.084164733 | K56: ='[18]Performance and Targets'!$M44 -> 2.376844226 | L56: ='[18]Total Reward'!$W27*'Guide & drivers'!$C$35 -> 0.1155986388 | M56: ='[18]Performance and Targets'!$C62 -> 3.759735338 | N56: ='[18]Performance and Targets'!$M62 -> 4.556000165 | O56: ='[18]Total Reward'!$W45*'Guide & drivers'!$C$35 -> 0.7696925984 | P56: ='[18]Performance and Targets'!$C8 -> 63.1427313 | Q56: ='[18]Performance and Targets'!$M8 -> 86.7 | R56: ='[18]Total Reward'!$M27*'Guide & drivers'!$C$35 -> 9.304335492 | S56: ='[18]Performance and Targets'!$C26 -> 28.3915158 | T56: ='[18]Performance and Targets'!$M26 -> 51.1 | U56: ='[18]Total Reward'!$M45*'Guide & drivers'!$C$35 -> 21.95067723
D57: EMID | E57: =('[18]Total Reward'!C8+F57+G57)*'Guide & drivers'!$D$29 -> 20.31257055 | F57: ='[19]Payments made_due 1516'!J10*'Guide & drivers'!$D$29 -> 0 | G57: ='[19]Payments made_due 1516'!K10*'Guide & drivers'!$D$29 -> 0 | I57: EMID | J57: ='[18]Performance and Targets'!$C45 -> 0.974794934 | K57: ='[18]Performance and Targets'!$M45 -> 1.320762067 | L57: ='[18]Total Reward'!$W28*'Guide & drivers'!$C$35 -> 0.1438373467 | M57: ='[18]Performance and Targets'!$C63 -> 1.658110796 | N57: ='[18]Performance and Targets'!$M63 -> 2.433574328 | O57: ='[18]Total Reward'!$W46*'Guide & drivers'!$C$35 -> 0.797945818 | P57: ='[18]Performance and Targets'!$C9 -> 41.67592964 | Q57: ='[18]Performance and Targets'!$M9 -> 51.9 | R57: ='[18]Total Reward'!$M28*'Guide & drivers'!$C$35 -> 4.250701913 | S57: ='[18]Performance and Targets'!$C27 -> 19.8968571 | T57: ='[18]Performance and Targets'!$M27 -> 37.8 | U57: ='[18]Total Reward'!$M46*'Guide & drivers'!$C$35 -> 18.42219191
D58: SWALES | E58: =('[18]Total Reward'!C9+F58+G58)*'Guide & drivers'!$D$29 -> 5.126736246 | F58: ='[19]Payments made_due 1516'!J11*'Guide & drivers'!$D$29 -> 0 | G58: ='[19]Payments made_due 1516'!K11*'Guide & drivers'!$D$29 -> 0 | I58: SWALES | J58: ='[18]Performance and Targets'!$C46 -> 3.570779753 | K58: ='[18]Performance and Targets'!$M46 -> 4.96037337 | L58: ='[18]Total Reward'!$W29*'Guide & drivers'!$C$35 -> 0.2455350869 | M58: ='[18]Performance and Targets'!$C64 -> 5.625713764 | N58: ='[18]Performance and Targets'!$M64 -> 7.942148915 | O58: ='[18]Total Reward'!$W47*'Guide & drivers'!$C$35 -> 1.011221434 | P58: ='[18]Performance and Targets'!$C10 -> 44.96063834 | Q58: ='[18]Performance and Targets'!$M10 -> 50.1 | R58: ='[18]Total Reward'!$M29*'Guide & drivers'!$C$35 -> 0.9081026259 | S58: ='[18]Performance and Targets'!$C28 -> 20.71513964 | T58: ='[18]Performance and Targets'!$M28 -> 27.5 | U58: ='[18]Total Reward'!$M47*'Guide & drivers'!$C$35 -> 2.9618771
D59: SWEST | E59: =('[18]Total Reward'!C10+F59+G59)*'Guide & drivers'!$D$29 -> 5.72021869 | F59: ='[19]Payments made_due 1516'!J12*'Guide & drivers'!$D$29 -> 0 | G59: ='[19]Payments made_due 1516'!K12*'Guide & drivers'!$D$29 -> 0 | I59: SWEST | J59: ='[18]Performance and Targets'!$C47 -> 3.496934059 | K59: ='[18]Performance and Targets'!$M47 -> 3.479624576 | L59: ='[18]Total Reward'!$W30*'Guide & drivers'!$C$35 -> -0.004317895699 | M59: ='[18]Performance and Targets'!$C65 -> 8.523135122 | N59: ='[18]Performance and Targets'!$M65 -> 8.117343018 | O59: ='[18]Total Reward'!$W48*'Guide & drivers'!$C$35 -> -0.2488470134 | P59: ='[18]Performance and Targets'!$C11 -> 48.50187101 | Q59: ='[18]Performance and Targets'!$M11 -> 55.7 | R59: ='[18]Total Reward'!$M30*'Guide & drivers'!$C$35 -> 1.795592141 | S59: ='[18]Performance and Targets'!$C29 -> 28.98732115 | T59: ='[18]Performance and Targets'!$M29 -> 35.8 | U59: ='[18]Total Reward'!$M48*'Guide & drivers'!$C$35 -> 4.177791458
D60: LPN | E60: =('[18]Total Reward'!C11+F60+G60)*'Guide & drivers'!$D$29 -> 15.41935356 | F60: ='[19]Payments made_due 1516'!J13*'Guide & drivers'!$D$29 -> 0 | G60: ='[19]Payments made_due 1516'!K13*'Guide & drivers'!$D$29 -> -0.2193215951 | I60: LPN | J60: ='[18]Performance and Targets'!$C48 -> 0.2850245641 | K60: ='[18]Performance and Targets'!$M48 -> 0.8044232306 | L60: ='[18]Total Reward'!$W31*'Guide & drivers'!$C$35 -> 0.1438175481 | M60: ='[18]Performance and Targets'!$C66 -> 0.5502822311 | N60: ='[18]Performance and Targets'!$M66 -> 1.64154825 | O60: ='[18]Total Reward'!$W49*'Guide & drivers'!$C$35 -> 0.7424583376 | P60: ='[18]Performance and Targets'!$C12 -> 18.67177844 | Q60: ='[18]Performance and Targets'!$M12 -> 27 | R60: ='[18]Total Reward'!$M31*'Guide & drivers'!$C$35 -> 2.306021332 | S60: ='[18]Performance and Targets'!$C30 -> 18.73656399 | T60: ='[18]Performance and Targets'!$M30 -> 38.8 | U60: ='[18]Total Reward'!$M49*'Guide & drivers'!$C$35 -> 13.6504437
D61: SPN | E61: =('[18]Total Reward'!C12+F61+G61)*'Guide & drivers'!$D$29 -> 13.4582368 | F61: ='[19]Payments made_due 1516'!J14*'Guide & drivers'!$D$29 -> -0.09499155801 | G61: ='[19]Payments made_due 1516'!K14*'Guide & drivers'!$D$29 -> -0.2737250736 | I61: SPN | J61: ='[18]Performance and Targets'!$C49 -> 1.121586982 | K61: ='[18]Performance and Targets'!$M49 -> 1.926009816 | L61: ='[18]Total Reward'!$W32*'Guide & drivers'!$C$35 -> 0.2227385764 | M61: ='[18]Performance and Targets'!$C67 -> 2.433797828 | N61: ='[18]Performance and Targets'!$M67 -> 4.674736473 | O61: ='[18]Total Reward'!$W50*'Guide & drivers'!$C$35 -> 1.5069259 | P61: ='[18]Performance and Targets'!$C13 -> 47.61551134 | Q61: ='[18]Performance and Targets'!$M13 -> 63.4 | R61: ='[18]Total Reward'!$M32*'Guide & drivers'!$C$35 -> 4.370605092 | S61: ='[18]Performance and Targets'!$C31 -> 33.90669222 | T61: ='[18]Performance and Targets'!$M31 -> 45.5 | U61: ='[18]Total Reward'!$M50*'Guide & drivers'!$C$35 -> 7.795954521
D62: EPN | E62: =('[18]Total Reward'!C13+F62+G62)*'Guide & drivers'!$D$29 -> 23.84024391 | F62: ='[19]Payments made_due 1516'!J15*'Guide & drivers'!$D$29 -> -0.002180928628 | G62: ='[19]Payments made_due 1516'!K15*'Guide & drivers'!$D$29 -> -0.2280711387 | I62: EPN | J62: ='[18]Performance and Targets'!$C50 -> 1.434231194 | K62: ='[18]Performance and Targets'!$M50 -> 2.686260072 | L62: ='[18]Total Reward'!$W33*'Guide & drivers'!$C$35 -> 0.5447786025 | M62: ='[18]Performance and Targets'!$C68 -> 3.766439201 | N62: ='[18]Performance and Targets'!$M68 -> 7.700384598 | O62: ='[18]Total Reward'!$W51*'Guide & drivers'!$C$35 -> 4.170384824 | P62: ='[18]Performance and Targets'!$C14 -> 44.32147509 | Q62: ='[18]Performance and Targets'!$M14 -> 67.1 | R62: ='[18]Total Reward'!$M33*'Guide & drivers'!$C$35 -> 9.91131529 | S62: ='[18]Performance and Targets'!$C32 -> 30.99872105 | T62: ='[18]Performance and Targets'!$M32 -> 48 | U62: ='[18]Total Reward'!$M51*'Guide & drivers'!$C$35 -> 18.02309605
D63: SPD | E63: =('[18]Total Reward'!C14+F63+G63)*'Guide & drivers'!$D$29 -> 7.689954891 | F63: ='[19]Payments made_due 1516'!J16*'Guide & drivers'!$D$29 -> 0 | G63: ='[19]Payments made_due 1516'!K16*'Guide & drivers'!$D$29 -> 0 | I63: SPD | J63: ='[18]Performance and Targets'!$C51 -> 1.552173372 | K63: ='[18]Performance and Targets'!$M51 -> 1.673478755 | L63: ='[18]Total Reward'!$W34*'Guide & drivers'!$C$35 -> 0.02987269045 | M63: ='[18]Performance and Targets'!$C69 -> 3.786221998 | N63: ='[18]Performance and Targets'!$M69 -> 4.030404027 | O63: ='[18]Total Reward'!$W52*'Guide & drivers'!$C$35 -> 0.14548142 | P63: ='[18]Performance and Targets'!$C15 -> 46.9131585 | Q63: ='[18]Performance and Targets'!$M15 -> 50.4 | R63: ='[18]Total Reward'!$M34*'Guide & drivers'!$C$35 -> 0.858670359 | S63: ='[18]Performance and Targets'!$C33 -> 31.02841129 | T63: ='[18]Performance and Targets'!$M33 -> 42.2 | U63: ='[18]Total Reward'!$M52*'Guide & drivers'!$C$35 -> 6.655930421
D64: SPMW | E64: =('[18]Total Reward'!C15+F64+G64)*'Guide & drivers'!$D$29 -> 6.847282776 | F64: ='[19]Payments made_due 1516'!J17*'Guide & drivers'!$D$29 -> 0 | G64: ='[19]Payments made_due 1516'!K17*'Guide & drivers'!$D$29 -> 0 | I64: SPMW | J64: ='[18]Performance and Targets'!$C52 -> 2.191182475 | K64: ='[18]Performance and Targets'!$M52 -> 3.073663372 | L64: ='[18]Total Reward'!$W35*'Guide & drivers'!$C$35 -> 0.1612373756 | M64: ='[18]Performance and Targets'!$C70 -> 7.172235912 | N64: ='[18]Performance and Targets'!$M70 -> 10.51961944 | O64: ='[18]Total Reward'!$W53*'Guide & drivers'!$C$35 -> 1.489107576 | P64: ='[18]Performance and Targets'!$C16 -> 27.95725022 | Q64: ='[18]Performance and Targets'!$M16 -> 35.2 | R64: ='[18]Total Reward'!$M35*'Guide & drivers'!$C$35 -> 1.323316993 | S64: ='[18]Performance and Targets'!$C34 -> 26.39243933 | T64: ='[18]Performance and Targets'!$M34 -> 35.1 | U64: ='[18]Total Reward'!$M53*'Guide & drivers'!$C$35 -> 3.873620831
D65: SSEH | E65: =('[18]Total Reward'!C16+F65+G65)*'Guide & drivers'!$D$29 -> 2.628167815 | F65: ='[19]Payments made_due 1516'!J18*'Guide & drivers'!$D$29 -> -0.002793869353 | G65: ='[19]Payments made_due 1516'!K18*'Guide & drivers'!$D$29 -> -0.07030287577 | I65: SSEH | J65: ='[18]Performance and Targets'!$C53 -> 3.095889549 | K65: ='[18]Performance and Targets'!$M53 -> 5.000539981 | L65: ='[18]Total Reward'!$W36*'Guide & drivers'!$C$35 -> 0.1916430627 | M65: ='[18]Performance and Targets'!$C71 -> 5.633821836 | N65: ='[18]Performance and Targets'!$M71 -> 10.65381854 | O65: ='[18]Total Reward'!$W54*'Guide & drivers'!$C$35 -> 1.178577213 | P65: ='[18]Performance and Targets'!$C17 -> 63.62451108 | Q65: ='[18]Performance and Targets'!$M17 -> 66.9 | R65: ='[18]Total Reward'!$M36*'Guide & drivers'!$C$35 -> 0.3295747699 | S65: ='[18]Performance and Targets'!$C35 -> 49.57587808 | T65: ='[18]Performance and Targets'!$M35 -> 53.9 | U65: ='[18]Total Reward'!$M54*'Guide & drivers'!$C$35 -> 1.015202173
D66: SSES | E66: =('[18]Total Reward'!C17+F66+G66)*'Guide & drivers'!$D$29 -> 17.90172911 | F66: ='[19]Payments made_due 1516'!J19*'Guide & drivers'!$D$29 -> -9.978104833e-05 | G66: ='[19]Payments made_due 1516'!K19*'Guide & drivers'!$D$29 -> -0.02841621712 | I66: SSES | J66: ='[18]Performance and Targets'!$C54 -> 1.303539163 | K66: ='[18]Performance and Targets'!$M54 -> 2.234359868 | L66: ='[18]Total Reward'!$W37*'Guide & drivers'!$C$35 -> 0.3590214892 | M66: ='[18]Performance and Targets'!$C72 -> 3.076354745 | N66: ='[18]Performance and Targets'!$M72 -> 6.022974762 | O66: ='[18]Total Reward'!$W55*'Guide & drivers'!$C$35 -> 2.767188439 | P66: ='[18]Performance and Targets'!$C18 -> 46.2064484 | Q66: ='[18]Performance and Targets'!$M18 -> 60.3 | R66: ='[18]Total Reward'!$M37*'Guide & drivers'!$C$35 -> 5.435942554 | S66: ='[18]Performance and Targets'!$C36 -> 38.11875161 | T66: ='[18]Performance and Targets'!$M36 -> 48.1 | U66: ='[18]Total Reward'!$M55*'Guide & drivers'!$C$35 -> 9.373449919
D67: Total | E67: =SUM(E53:E66) -> 179.4531273 | F67: =SUM(F53:F66) -> -0.5906467884 | G67: =SUM(G53:G66) -> -0.8594072131
D68: NB: The total reward includes an adjustment for Regulation 7 Severe weather and Normal weather (Regulation 5,6 and 8)
J71: PLANNED | P71: UNPLANNED
D72: 2016/17 | I72: 2016/17 | J72: CI | M72: CML | P72: CI | S72: CML
E73: Total reward (£m)** | F73: Regulation 7 Severe Weather Conditions Adjustment | G73: Normal weather conditions adjustment | J73: Performance | K73: Target | L73: Reward/Penalty (£m) | M73: Performance | N73: Target | O73: Reward/Penalty (£m) | P73: Performance | Q73: Target | R73: Reward/Penalty (£m) | S73: Performance | T73: Target | U73: Reward/Penalty (£m)
D74: ENWL | E74: =('[18]Total Reward'!D4+F74+G74)*'Guide & drivers'!$D$29 -> 14.0058501 | F74: ='[19]Payments made_due 1617'!J6*'Guide & drivers'!$J$22 -> 0 | G74: ='[19]Payments made_due 1617'!K6*'Guide & drivers'!$J$22 -> -0.1066730679 | I74: ENWL | J74: ='[18]Performance and Targets'!$D41 -> 1.780368863 | K74: ='[18]Performance and Targets'!$N41 -> 2.228253342 | L74: ='[18]Total Reward'!$X24*'Guide & drivers'!$C$35 -> 0.1429872788 | M74: ='[18]Performance and Targets'!$D59 -> 4.370618837 | N74: ='[18]Performance and Targets'!$N59 -> 6.02728822 | O74: ='[18]Total Reward'!$X42*'Guide & drivers'!$C$35 -> 1.27220037 | P74: ='[18]Performance and Targets'!$D5 -> 31.1183553 | Q74: ='[18]Performance and Targets'!$N5 -> 45.8 | R74: ='[18]Total Reward'!$N24*'Guide & drivers'!$C$35 -> 4.687120284 | S74: ='[18]Performance and Targets'!$D23 -> 29.34293731 | T74: ='[18]Performance and Targets'!$N23 -> 39.8 | U74: ='[18]Total Reward'!$N42*'Guide & drivers'!$C$35 -> 8.030255862
D75: NPgN | E75: =('[18]Total Reward'!D5+F75+G75)*'Guide & drivers'!$D$29 -> 11.37296347 | F75: ='[19]Payments made_due 1617'!J7*'Guide & drivers'!$J$22 -> 0 | G75: ='[19]Payments made_due 1617'!K7*'Guide & drivers'!$J$22 -> 0 | I75: NPgN | J75: ='[18]Performance and Targets'!$D42 -> 2.968264429 | K75: ='[18]Performance and Targets'!$N42 -> 3.808684951 | L75: ='[18]Total Reward'!$X25*'Guide & drivers'!$C$35 -> 0.1672368928 | M75: ='[18]Performance and Targets'!$D60 -> 7.378907974 | N75: ='[18]Performance and Targets'!$N60 -> 10.39760406 | O75: ='[18]Total Reward'!$X43*'Guide & drivers'!$C$35 -> 1.50174032 | P75: ='[18]Performance and Targets'!$D6 -> 50.32078919 | Q75: ='[18]Performance and Targets'!$N6 -> 58.9 | R75: ='[18]Total Reward'!$N25*'Guide & drivers'!$C$35 -> 1.707193625 | S75: ='[18]Performance and Targets'!$D24 -> 37.62539222 | T75: ='[18]Performance and Targets'!$N24 -> 53.7 | U75: ='[18]Total Reward'!$N43*'Guide & drivers'!$C$35 -> 7.996792635
D76: NPgY | E76: =('[18]Total Reward'!D6+F76+G76)*'Guide & drivers'!$D$29 -> 16.03623991 | F76: ='[19]Payments made_due 1617'!J8*'Guide & drivers'!$J$22 -> 0 | G76: ='[19]Payments made_due 1617'!K8*'Guide & drivers'!$J$22 -> 0 | I76: NPgY | J76: ='[18]Performance and Targets'!$D43 -> 1.178463043 | K76: ='[18]Performance and Targets'!$N43 -> 1.853721136 | L76: ='[18]Total Reward'!$X26*'Guide & drivers'!$C$35 -> 0.1959575683 | M76: ='[18]Performance and Targets'!$D61 -> 2.974318269 | N76: ='[18]Performance and Targets'!$N61 -> 5.316189761 | O76: ='[18]Total Reward'!$X44*'Guide & drivers'!$C$35 -> 1.669881718 | P76: ='[18]Performance and Targets'!$D7 -> 47.35786576 | Q76: ='[18]Performance and Targets'!$N7 -> 65.7 | R76: ='[18]Total Reward'!$N26*'Guide & drivers'!$C$35 -> 5.322824056 | S76: ='[18]Performance and Targets'!$D25 -> 35.03085923 | T76: ='[18]Performance and Targets'!$N25 -> 56.3 | U76: ='[18]Total Reward'!$N44*'Guide & drivers'!$C$35 -> 15.16605393
D77: WMID | E77: =('[18]Total Reward'!D7+F77+G77)*'Guide & drivers'!$D$29 -> 21.02529233 | F77: ='[19]Payments made_due 1617'!J9*'Guide & drivers'!$J$22 -> 0 | G77: ='[19]Payments made_due 1617'!K9*'Guide & drivers'!$J$22 -> 0 | I77: WMID | J77: ='[18]Performance and Targets'!$D44 -> 2.881645697 | K77: ='[18]Performance and Targets'!$N44 -> 2.054564851 | L77: ='[18]Total Reward'!$X27*'Guide & drivers'!$C$35 -> -0.3266693505 | M77: ='[18]Performance and Targets'!$D62 -> 4.894022268 | N77: ='[18]Performance and Targets'!$N62 -> 3.301622518 | O77: ='[18]Total Reward'!$X45*'Guide & drivers'!$C$35 -> -1.539259628 | P77: ='[18]Performance and Targets'!$D8 -> 56.0783531 | Q77: ='[18]Performance and Targets'!$N8 -> 85 | R77: ='[18]Total Reward'!$N27*'Guide & drivers'!$C$35 -> 11.42308598 | S77: ='[18]Performance and Targets'!$D26 -> 27.07959169 | T77: ='[18]Performance and Targets'!$N26 -> 50.3 | U77: ='[18]Total Reward'!$N45*'Guide & drivers'!$C$35 -> 22.44551787
D78: EMID | E78: =('[18]Total Reward'!D8+F78+G78)*'Guide & drivers'!$D$29 -> 20.31257055 | F78: ='[19]Payments made_due 1617'!J10*'Guide & drivers'!$J$22 -> 0 | G78: ='[19]Payments made_due 1617'!K10*'Guide & drivers'!$J$22 -> 0 | I78: EMID | J78: ='[18]Performance and Targets'!$D45 -> 0.911529648 | K78: ='[18]Performance and Targets'!$N45 -> 1.039626225 | L78: ='[18]Total Reward'!$X28*'Guide & drivers'!$C$35 -> 0.05325671147 | M78: ='[18]Performance and Targets'!$D63 -> 1.519959202 | N78: ='[18]Performance and Targets'!$N63 -> 1.505882664 | O78: ='[18]Total Reward'!$X46*'Guide & drivers'!$C$35 -> -0.0144846457 | P78: ='[18]Performance and Targets'!$D9 -> 43.21418909 | Q78: ='[18]Performance and Targets'!$N9 -> 51.1 | R78: ='[18]Total Reward'!$N28*'Guide & drivers'!$C$35 -> 3.278560329 | S78: ='[18]Performance and Targets'!$D27 -> 20.44216248 | T78: ='[18]Performance and Targets'!$N27 -> 37.6 | U78: ='[18]Total Reward'!$N46*'Guide & drivers'!$C$35 -> 17.65527859
D79: SWALES | E79: =('[18]Total Reward'!D9+F79+G79)*'Guide & drivers'!$D$29 -> 5.563445708 | F79: ='[19]Payments made_due 1617'!J11*'Guide & drivers'!$J$22 -> 0 | G79: ='[19]Payments made_due 1617'!K11*'Guide & drivers'!$J$22 -> 0 | I79: SWALES | J79: ='[18]Performance and Targets'!$D46 -> 3.663084826 | K79: ='[18]Performance and Targets'!$N46 -> 3.851807436 | L79: ='[18]Total Reward'!$X29*'Guide & drivers'!$C$35 -> 0.03334645595 | M79: ='[18]Performance and Targets'!$D64 -> 6.270450968 | N79: ='[18]Performance and Targets'!$N64 -> 6.06820749 | O79: ='[18]Total Reward'!$X47*'Guide & drivers'!$C$35 -> -0.08828778976 | P79: ='[18]Performance and Targets'!$D10 -> 37.97731777 | Q79: ='[18]Performance and Targets'!$N10 -> 49.9 | R79: ='[18]Total Reward'!$N29*'Guide & drivers'!$C$35 -> 2.106685567 | S79: ='[18]Performance and Targets'!$D28 -> 19.45564051 | T79: ='[18]Performance and Targets'!$N28 -> 27.5 | U79: ='[18]Total Reward'!$N47*'Guide & drivers'!$C$35 -> 3.511701475
D80: SWEST | E80: =('[18]Total Reward'!D10+F80+G80)*'Guide & drivers'!$D$29 -> 4.010746958 | F80: ='[19]Payments made_due 1617'!J12*'Guide & drivers'!$J$22 -> 0 | G80: ='[19]Payments made_due 1617'!K12*'Guide & drivers'!$J$22 -> 0 | I80: SWEST | J80: ='[18]Performance and Targets'!$D47 -> 4.144309349 | K80: ='[18]Performance and Targets'!$N47 -> 3.460839424 | L80: ='[18]Total Reward'!$X30*'Guide & drivers'!$C$35 -> -0.1704933641 | M80: ='[18]Performance and Targets'!$D65 -> 9.551975296 | N80: ='[18]Performance and Targets'!$N65 -> 8.032985627 | O80: ='[18]Total Reward'!$X48*'Guide & drivers'!$C$35 -> -0.9315017201 | P80: ='[18]Performance and Targets'!$D11 -> 48.31011171 | Q80: ='[18]Performance and Targets'!$N11 -> 55.4 | R80: ='[18]Total Reward'!$N30*'Guide & drivers'!$C$35 -> 1.768591214 | S80: ='[18]Performance and Targets'!$D29 -> 30.14672981 | T80: ='[18]Performance and Targets'!$N29 -> 35.6 | U80: ='[18]Total Reward'!$N48*'Guide & drivers'!$C$35 -> 3.344150828
D81: LPN | E81: =('[18]Total Reward'!D11+F81+G81)*'Guide & drivers'!$D$29 -> 15.49090146 | F81: ='[19]Payments made_due 1617'!J13*'Guide & drivers'!$J$22 -> 0 | G81: ='[19]Payments made_due 1617'!K13*'Guide & drivers'!$J$22 -> -0.159089478 | I81: LPN | J81: ='[18]Performance and Targets'!$D48 -> 0.1843066038 | K81: ='[18]Performance and Targets'!$N48 -> 0.7833294726 | L81: ='[18]Total Reward'!$X31*'Guide & drivers'!$C$35 -> 0.1658648852 | M81: ='[18]Performance and Targets'!$D66 -> 0.4557331298 | N81: ='[18]Performance and Targets'!$N66 -> 1.618823708 | O81: ='[18]Total Reward'!$X49*'Guide & drivers'!$C$35 -> 0.7913251972 | P81: ='[18]Performance and Targets'!$D12 -> 17.03709648 | Q81: ='[18]Performance and Targets'!$N12 -> 26.9 | R81: ='[18]Total Reward'!$N31*'Guide & drivers'!$C$35 -> 2.730963117 | S81: ='[18]Performance and Targets'!$D30 -> 19.32554088 | T81: ='[18]Performance and Targets'!$N30 -> 38.1 | U81: ='[18]Total Reward'!$N49*'Guide & drivers'!$C$35 -> 12.77346996
D82: SPN | E82: =('[18]Total Reward'!D12+F82+G82)*'Guide & drivers'!$D$29 -> 13.32996313 | F82: ='[19]Payments made_due 1617'!J14*'Guide & drivers'!$J$22 -> -0.005680392537 | G82: ='[19]Payments made_due 1617'!K14*'Guide & drivers'!$J$22 -> -0.2528765362 | I82: SPN | J82: ='[18]Performance and Targets'!$D49 -> 1.190313375 | K82: ='[18]Performance and Targets'!$N49 -> 1.669074517 | L82: ='[18]Total Reward'!$X32*'Guide & drivers'!$C$35 -> 0.1325653259 | M82: ='[18]Performance and Targets'!$D67 -> 2.709920611 | N82: ='[18]Performance and Targets'!$N67 -> 3.864905187 | O82: ='[18]Total Reward'!$X50*'Guide & drivers'!$C$35 -> 0.7766728356 | P82: ='[18]Performance and Targets'!$D13 -> 46.53375275 | Q82: ='[18]Performance and Targets'!$N13 -> 63 | R82: ='[18]Total Reward'!$N32*'Guide & drivers'!$C$35 -> 4.559378871 | S82: ='[18]Performance and Targets'!$D31 -> 32.35271522 | T82: ='[18]Performance and Targets'!$N31 -> 44.5 | U82: ='[18]Total Reward'!$N50*'Guide & drivers'!$C$35 -> 8.168478014
D83: EPN | E83: =('[18]Total Reward'!D13+F83+G83)*'Guide & drivers'!$D$29 -> 23.60779259 | F83: ='[19]Payments made_due 1617'!J15*'Guide & drivers'!$J$22 -> -0.01426868991 | G83: ='[19]Payments made_due 1617'!K15*'Guide & drivers'!$J$22 -> -0.4116709474 | I83: EPN | J83: ='[18]Performance and Targets'!$D50 -> 1.558917572 | K83: ='[18]Performance and Targets'!$N50 -> 2.599743722 | L83: ='[18]Total Reward'!$X33*'Guide & drivers'!$C$35 -> 0.4528807801 | M83: ='[18]Performance and Targets'!$D68 -> 4.245139318 | N83: ='[18]Performance and Targets'!$N68 -> 7.222685244 | O83: ='[18]Total Reward'!$X51*'Guide & drivers'!$C$35 -> 3.156503482 | P83: ='[18]Performance and Targets'!$D14 -> 47.81220059 | Q83: ='[18]Performance and Targets'!$N14 -> 66.1 | R83: ='[18]Total Reward'!$N33*'Guide & drivers'!$C$35 -> 7.957325884 | S83: ='[18]Performance and Targets'!$D32 -> 34.95867743 | T83: ='[18]Performance and Targets'!$N32 -> 47 | U83: ='[18]Total Reward'!$N51*'Guide & drivers'!$C$35 -> 12.76503455
D84: SPD | E84: =('[18]Total Reward'!D14+F84+G84)*'Guide & drivers'!$D$29 -> 11.96225788 | F84: ='[19]Payments made_due 1617'!J16*'Guide & drivers'!$J$22 -> 0 | G84: ='[19]Payments made_due 1617'!K16*'Guide & drivers'!$J$22 -> 0 | I84: SPD | J84: ='[18]Performance and Targets'!$D51 -> 1.10780349 | K84: ='[18]Performance and Targets'!$N51 -> 1.801603415 | L84: ='[18]Total Reward'!$X34*'Guide & drivers'!$C$35 -> 0.170855323 | M84: ='[18]Performance and Targets'!$D69 -> 2.847161982 | N84: ='[18]Performance and Targets'!$N69 -> 4.381575883 | O84: ='[18]Total Reward'!$X52*'Guide & drivers'!$C$35 -> 0.9141897746 | P84: ='[18]Performance and Targets'!$D15 -> 41.78233361 | Q84: ='[18]Performance and Targets'!$N15 -> 50.1 | R84: ='[18]Total Reward'!$N34*'Guide & drivers'!$C$35 -> 2.048310364 | S84: ='[18]Performance and Targets'!$D33 -> 26.48120528 | T84: ='[18]Performance and Targets'!$N33 -> 41.3 | U84: ='[18]Total Reward'!$N52*'Guide & drivers'!$C$35 -> 8.828902417
D85: SPMW | E85: =('[18]Total Reward'!D15+F85+G85)*'Guide & drivers'!$D$29 -> 3.052416396 | F85: ='[19]Payments made_due 1617'!J17*'Guide & drivers'!$J$22 -> 0 | G85: ='[19]Payments made_due 1617'!K17*'Guide & drivers'!$J$22 -> 0 | I85: SPMW | J85: ='[18]Performance and Targets'!$D52 -> 1.829821194 | K85: ='[18]Performance and Targets'!$N52 -> 2.964449697 | L85: ='[18]Total Reward'!$X35*'Guide & drivers'!$C$35 -> 0.2073070621 | M85: ='[18]Performance and Targets'!$D70 -> 5.755886634 | N85: ='[18]Performance and Targets'!$N70 -> 9.939794454 | O85: ='[18]Total Reward'!$X53*'Guide & drivers'!$C$35 -> 1.861241408 | P85: ='[18]Performance and Targets'!$D16 -> 36.33394137 | Q85: ='[18]Performance and Targets'!$N16 -> 35.1 | R85: ='[18]Total Reward'!$N35*'Guide & drivers'!$C$35 -> -0.2254524368 | S85: ='[18]Performance and Targets'!$D34 -> 31.58155364 | T85: ='[18]Performance and Targets'!$N34 -> 34.3 | U85: ='[18]Total Reward'!$N53*'Guide & drivers'!$C$35 -> 1.209320363
D86: SSEH | E86: =('[18]Total Reward'!D16+F86+G86)*'Guide & drivers'!$D$29 -> 0.8611605708 | F86: ='[19]Payments made_due 1617'!J18*'Guide & drivers'!$J$22 -> 0 | G86: ='[19]Payments made_due 1617'!K18*'Guide & drivers'!$J$22 -> 0 | I86: SSEH | J86: ='[18]Performance and Targets'!$D53 -> 5.521052508 | K86: ='[18]Performance and Targets'!$N53 -> 4.588862451 | L86: ='[18]Total Reward'!$X36*'Guide & drivers'!$C$35 -> -0.09379556191 | M86: ='[18]Performance and Targets'!$D71 -> 11.76512746 | N86: ='[18]Performance and Targets'!$N71 -> 9.433213213 | O86: ='[18]Total Reward'!$X54*'Guide & drivers'!$C$35 -> -0.5474786449 | P86: ='[18]Performance and Targets'!$D17 -> 62.58574703 | Q86: ='[18]Performance and Targets'!$N17 -> 66.6 | R86: ='[18]Total Reward'!$N36*'Guide & drivers'!$C$35 -> 0.4039080985 | S86: ='[18]Performance and Targets'!$D35 -> 48.12096816 | T86: ='[18]Performance and Targets'!$N35 -> 52.8 | U86: ='[18]Total Reward'!$N54*'Guide & drivers'!$C$35 -> 1.098526679
D87: SSES | E87: =('[18]Total Reward'!D17+F87+G87)*'Guide & drivers'!$D$29 -> 14.34420769 | F87: ='[19]Payments made_due 1617'!J19*'Guide & drivers'!$J$22 -> -0.0003563608869 | G87: ='[19]Payments made_due 1617'!K19*'Guide & drivers'!$J$22 -> -0.005716028626 | I87: SSES | J87: ='[18]Performance and Targets'!$D54 -> 1.713139095 | K87: ='[18]Performance and Targets'!$N54 -> 2.177807717 | L87: ='[18]Total Reward'!$X37*'Guide & drivers'!$C$35 -> 0.1792246561 | M87: ='[18]Performance and Targets'!$D72 -> 4.102107449 | N87: ='[18]Performance and Targets'!$N72 -> 5.828189858 | O87: ='[18]Total Reward'!$X55*'Guide & drivers'!$C$35 -> 1.620974289 | P87: ='[18]Performance and Targets'!$D18 -> 46.10372182 | Q87: ='[18]Performance and Targets'!$N18 -> 59.4 | R87: ='[18]Total Reward'!$N37*'Guide & drivers'!$C$35 -> 5.128430822 | S87: ='[18]Performance and Targets'!$D36 -> 39.19589611 | T87: ='[18]Performance and Targets'!$N36 -> 47.1 | U87: ='[18]Total Reward'!$N55*'Guide & drivers'!$C$35 -> 7.422791127
D88: Total | E88: =SUM(E74:E87) -> 174.9758087 | F88: =SUM(F74:F87) -> -0.02030544334 | G88: =SUM(G74:G87) -> -0.9360260582
J90: PLANNED | P90: UNPLANNED
D91: 2017/18 | I91: 2017/18 | J91: CI | M91: CML | P91: CI | S91: CML
E92: Total reward (£m)** | F92: Regulation 7 Severe Weather Conditions Adjustment | G92: Normal weather conditions adjustment | J92: Performance | K92: Target | L92: Reward/Penalty (£m) | M92: Performance | N92: Target | O92: Reward/Penalty (£m) | P92: Performance | Q92: Target | R92: Reward/Penalty (£m) | S92: Performance | T92: Target | U92: Reward/Penalty (£m)
D93: ENWL | E93: =('[18]Total Reward'!$E4+F93+G93)*'Guide & drivers'!$D$29 -> 11.43882862 | F93: ='[20]Payments made_due'!J6*'Guide & drivers'!$J$22 -> -0.003192993547 | G93: ='[20]Payments made_due'!K6*'Guide & drivers'!$J$22 -> -0.2675928154 | I93: ENWL | J93: ='[18]Performance and Targets'!$E41 -> 1.892266706 | K93: ='[18]Performance and Targets'!$O41 -> 1.950890097 | L93: ='[18]Total Reward'!$Y24*'Guide & drivers'!$C$35 -> 0.01848448264 | M93: ='[18]Performance and Targets'!$E59 -> 5.03023843 | N93: ='[18]Performance and Targets'!$O59 -> 5.125574149 | O93: ='[18]Total Reward'!$Y42*'Guide & drivers'!$C$35 -> 0.07230699018 | P93: ='[18]Performance and Targets'!$E5 -> 31.33886808 | Q93: ='[18]Performance and Targets'!$O5 -> 45.5 | R93: ='[18]Total Reward'!$O24*'Guide & drivers'!$C$35 -> 4.465132239 | S93: ='[18]Performance and Targets'!$E23 -> 29.60088791 | T93: ='[18]Performance and Targets'!$O23 -> 39.1 | U93: ='[18]Total Reward'!$O42*'Guide & drivers'!$C$35 -> 7.204563142
D94: NPgN | E94: =('[18]Total Reward'!$E5+F94+G94)*'Guide & drivers'!$D$29 -> 10.50794326 | F94: ='[20]Payments made_due'!J7*'Guide & drivers'!$J$22 -> 0 | G94: ='[20]Payments made_due'!K7*'Guide & drivers'!$J$22 -> 0 | I94: NPgN | J94: ='[18]Performance and Targets'!$E42 -> 2.109038728 | K94: ='[18]Performance and Targets'!$O42 -> 3.564951535 | L94: ='[18]Total Reward'!$Y25*'Guide & drivers'!$C$35 -> 0.2861381567 | M94: ='[18]Performance and Targets'!$E60 -> 4.752085388 | N94: ='[18]Performance and Targets'!$O60 -> 9.171642771 | O94: ='[18]Total Reward'!$Y43*'Guide & drivers'!$C$35 -> 2.171496805 | P94: ='[18]Performance and Targets'!$E6 -> 49.70615261 | Q94: ='[18]Performance and Targets'!$O6 -> 58.6 | R94: ='[18]Total Reward'!$O25*'Guide & drivers'!$C$35 -> 1.747954332 | S94: ='[18]Performance and Targets'!$E24 -> 39.87308037 | T94: ='[18]Performance and Targets'!$O24 -> 52.7 | U94: ='[18]Total Reward'!$O43*'Guide & drivers'!$C$35 -> 6.302353961
D95: NPgY | E95: =('[18]Total Reward'!$E6+F95+G95)*'Guide & drivers'!$D$29 -> 15.95753806 | F95: ='[20]Payments made_due'!J8*'Guide & drivers'!$J$22 -> 0 | G95: ='[20]Payments made_due'!K8*'Guide & drivers'!$J$22 -> -0.06625461609 | I95: NPgY | J95: ='[18]Performance and Targets'!$E43 -> 1.300773539 | K95: ='[18]Performance and Targets'!$O43 -> 1.775276789 | L95: ='[18]Total Reward'!$Y26*'Guide & drivers'!$C$35 -> 0.1359992155 | M95: ='[18]Performance and Targets'!$E61 -> 3.277801493 | N95: ='[18]Performance and Targets'!$O61 -> 4.978536158 | O95: ='[18]Total Reward'!$Y44*'Guide & drivers'!$C$35 -> 1.197744491 | P95: ='[18]Performance and Targets'!$E7 -> 46.83374816 | Q95: ='[18]Performance and Targets'!$O7 -> 64.7 | R95: ='[18]Total Reward'!$O26*'Guide & drivers'!$C$35 -> 5.120715679 | S95: ='[18]Performance and Targets'!$E25 -> 33.11794559 | T95: ='[18]Performance and Targets'!$O25 -> 55.2 | U95: ='[18]Total Reward'!$O44*'Guide & drivers'!$C$35 -> 15.55131413
D96: WMID | E96: =('[18]Total Reward'!$E7+F96+G96)*'Guide & drivers'!$D$29 -> 21.02529233 | F96: ='[20]Payments made_due'!J9*'Guide & drivers'!$J$22 -> 0 | G96: ='[20]Payments made_due'!K9*'Guide & drivers'!$J$22 -> 0 | I96: WMID | J96: ='[18]Performance and Targets'!$E44 -> 2.365847094 | K96: ='[18]Performance and Targets'!$O44 -> 2.0947733 | L96: ='[18]Total Reward'!$Y27*'Guide & drivers'!$C$35 -> -0.1057433168 | M96: ='[18]Performance and Targets'!$E62 -> 4.440768406 | N96: ='[18]Performance and Targets'!$O62 -> 3.493360725 | O96: ='[18]Total Reward'!$Y45*'Guide & drivers'!$C$35 -> -0.9044855798 | P96: ='[18]Performance and Targets'!$E8 -> 53.27835761 | Q96: ='[18]Performance and Targets'!$O8 -> 83.3 | R96: ='[18]Total Reward'!$O27*'Guide & drivers'!$C$35 -> 11.71115804 | S96: ='[18]Performance and Targets'!$E26 -> 26.58327666 | T96: ='[18]Performance and Targets'!$O26 -> 49.5 | U96: ='[18]Total Reward'!$O45*'Guide & drivers'!$C$35 -> 21.87848613
D97: EMID | E97: =('[18]Total Reward'!$E8+F97+G97)*'Guide & drivers'!$D$29 -> 16.8358859 | F97: ='[20]Payments made_due'!J10*'Guide & drivers'!$J$22 -> 0 | G97: ='[20]Payments made_due'!K10*'Guide & drivers'!$J$22 -> 0 | I97: EMID | J97: ='[18]Performance and Targets'!$E45 -> 0.8762177194 | K97: ='[18]Performance and Targets'!$O45 -> 1.023306419 | L97: ='[18]Total Reward'!$Y28*'Guide & drivers'!$C$35 -> 0.06039779671 | M97: ='[18]Performance and Targets'!$E63 -> 1.433053249 | N97: ='[18]Performance and Targets'!$O63 -> 1.527081019 | O97: ='[18]Total Reward'!$Y46*'Guide & drivers'!$C$35 -> 0.09555933706 | P97: ='[18]Performance and Targets'!$E9 -> 46.06550366 | Q97: ='[18]Performance and Targets'!$O9 -> 50.4 | R97: ='[18]Total Reward'!$O28*'Guide & drivers'!$C$35 -> 1.779837814 | S97: ='[18]Performance and Targets'!$E27 -> 22.63871867 | T97: ='[18]Performance and Targets'!$O27 -> 37.3 | U97: ='[18]Total Reward'!$O46*'Guide & drivers'!$C$35 -> 14.90009096
D98: SWALES | E98: =('[18]Total Reward'!$E9+F98+G98)*'Guide & drivers'!$D$29 -> 2.976374834 | F98: ='[20]Payments made_due'!J11*'Guide & drivers'!$J$22 -> 0 | G98: ='[20]Payments made_due'!K11*'Guide & drivers'!$J$22 -> 0 | I98: SWALES | J98: ='[18]Performance and Targets'!$E46 -> 3.622316104 | K98: ='[18]Performance and Targets'!$O46 -> 3.713192429 | L98: ='[18]Total Reward'!$Y29*'Guide & drivers'!$C$35 -> 0.01585920731 | M98: ='[18]Performance and Targets'!$E64 -> 5.675784859 | N98: ='[18]Performance and Targets'!$O64 -> 5.956295449 | O98: ='[18]Total Reward'!$Y47*'Guide & drivers'!$C$35 -> 0.1209428918 | P98: ='[18]Performance and Targets'!$E10 -> 44.84454607 | Q98: ='[18]Performance and Targets'!$O10 -> 49.6 | R98: ='[18]Total Reward'!$O29*'Guide & drivers'!$C$35 -> 0.8298941387 | S98: ='[18]Performance and Targets'!$E28 -> 22.73882381 | T98: ='[18]Performance and Targets'!$O28 -> 27.4 | U98: ='[18]Total Reward'!$O47*'Guide & drivers'!$C$35 -> 2.009678596
D99: SWEST | E99: =('[18]Total Reward'!$E10+F99+G99)*'Guide & drivers'!$D$29 -> -0.4264043443 | F99: ='[20]Payments made_due'!J12*'Guide & drivers'!$J$22 -> 0 | G99: ='[20]Payments made_due'!K12*'Guide & drivers'!$J$22 -> 0 | I99: SWEST | J99: ='[18]Performance and Targets'!$E47 -> 3.835253512 | K99: ='[18]Performance and Targets'!$O47 -> 3.437083906 | L99: ='[18]Total Reward'!$Y30*'Guide & drivers'!$C$35 -> -0.09809822388 | M99: ='[18]Performance and Targets'!$E65 -> 8.694057778 | N99: ='[18]Performance and Targets'!$O65 -> 8.101995285 | O99: ='[18]Total Reward'!$Y48*'Guide & drivers'!$C$35 -> -0.3585926291 | P99: ='[18]Performance and Targets'!$E11 -> 58.20174335 | Q99: ='[18]Performance and Targets'!$O11 -> 55.1 | R99: ='[18]Total Reward'!$O30*'Guide & drivers'!$C$35 -> -0.7641856861 | S99: ='[18]Performance and Targets'!$E29 -> 34.08826867 | T99: ='[18]Performance and Targets'!$O29 -> 35.4 | U99: ='[18]Total Reward'!$O48*'Guide & drivers'!$C$35 -> 0.7944721948
D100: LPN | E100: =('[18]Total Reward'!$E11+F100+G100)*'Guide & drivers'!$D$29 -> 15.60646686 | F100: ='[20]Payments made_due'!J13*'Guide & drivers'!$J$22 -> 0 | G100: ='[20]Payments made_due'!K13*'Guide & drivers'!$J$22 -> -0.06180153045 | I100: LPN | J100: ='[18]Performance and Targets'!$E48 -> 0.1235182605 | K100: ='[18]Performance and Targets'!$O48 -> 0.6385158282 | L100: ='[18]Total Reward'!$Y31*'Guide & drivers'!$C$35 -> 0.1408384368 | M100: ='[18]Performance and Targets'!$E66 -> 0.3379394419 | N100: ='[18]Performance and Targets'!$O66 -> 1.350303202 | O100: ='[18]Total Reward'!$Y49*'Guide & drivers'!$C$35 -> 0.6802726569 | P100: ='[18]Performance and Targets'!$E12 -> 14.09271948 | Q100: ='[18]Performance and Targets'!$O12 -> 26.7 | R100: ='[18]Total Reward'!$O31*'Guide & drivers'!$C$35 -> 3.447763236 | S100: ='[18]Performance and Targets'!$E30 -> 16.40270186 | T100: ='[18]Performance and Targets'!$O30 -> 37.5 | U100: ='[18]Total Reward'!$O49*'Guide & drivers'!$C$35 -> 14.1766385
D101: SPN | E101: =('[18]Total Reward'!$E12+F101+G101)*'Guide & drivers'!$D$29 -> 10.26811315 | F101: ='[20]Payments made_due'!J14*'Guide & drivers'!$J$22 -> -0.002494526208 | G101: ='[20]Payments made_due'!K14*'Guide & drivers'!$J$22 -> -0.3773462668 | I101: SPN | J101: ='[18]Performance and Targets'!$E49 -> 0.9905462404 | K101: ='[18]Performance and Targets'!$O49 -> 1.393311458 | L101: ='[18]Total Reward'!$Y32*'Guide & drivers'!$C$35 -> 0.1101458088 | M101: ='[18]Performance and Targets'!$E67 -> 2.161999241 | N101: ='[18]Performance and Targets'!$O67 -> 3.041704732 | O101: ='[18]Total Reward'!$Y50*'Guide & drivers'!$C$35 -> 0.5842573737 | P101: ='[18]Performance and Targets'!$E13 -> 45.69627067 | Q101: ='[18]Performance and Targets'!$O13 -> 62.7 | R101: ='[18]Total Reward'!$O32*'Guide & drivers'!$C$35 -> 4.650077608 | S101: ='[18]Performance and Targets'!$E31 -> 35.4072126 | T101: ='[18]Performance and Targets'!$O31 -> 43.5 | U101: ='[18]Total Reward'!$O50*'Guide & drivers'!$C$35 -> 5.374833695
D102: EPN | E102: =('[18]Total Reward'!$E13+F102+G102)*'Guide & drivers'!$D$29 -> 18.4691693 | F102: ='[20]Payments made_due'!J15*'Guide & drivers'!$J$22 -> 0 | G102: ='[20]Payments made_due'!K15*'Guide & drivers'!$J$22 -> -0.4793709633 | I102: EPN | J102: ='[18]Performance and Targets'!$E50 -> 1.663598741 | K102: ='[18]Performance and Targets'!$O50 -> 2.241052451 | L102: ='[18]Total Reward'!$Y33*'Guide & drivers'!$C$35 -> 0.248157748 | M102: ='[18]Performance and Targets'!$E68 -> 4.4995078 | N102: ='[18]Performance and Targets'!$O68 -> 6.104398168 | O102: ='[18]Total Reward'!$Y51*'Guide & drivers'!$C$35 -> 1.68034378 | P102: ='[18]Performance and Targets'!$E14 -> 46.85820126 | Q102: ='[18]Performance and Targets'!$O14 -> 65.7 | R102: ='[18]Total Reward'!$O33*'Guide & drivers'!$C$35 -> 8.097165644 | S102: ='[18]Performance and Targets'!$E32 -> 37.29178038 | T102: ='[18]Performance and Targets'!$O32 -> 45.9 | U102: ='[18]Total Reward'!$O51*'Guide & drivers'!$C$35 -> 9.012932331
D103: SPD | E103: =('[18]Total Reward'!$E14+F103+G103)*'Guide & drivers'!$D$29 -> 10.49198445 | F103: ='[20]Payments made_due'!J16*'Guide & drivers'!$J$22 -> 0 | G103: ='[20]Payments made_due'!K16*'Guide & drivers'!$J$22 -> 0 | I103: SPD | J103: ='[18]Performance and Targets'!$E51 -> 1.027902085 | K103: ='[18]Performance and Targets'!$O51 -> 1.741972587 | L103: ='[18]Total Reward'!$Y34*'Guide & drivers'!$C$35 -> 0.1736762071 | M103: ='[18]Performance and Targets'!$E69 -> 2.910449196 | N103: ='[18]Performance and Targets'!$O69 -> 4.250544389 | O103: ='[18]Total Reward'!$Y52*'Guide & drivers'!$C$35 -> 0.7885594711 | P103: ='[18]Performance and Targets'!$E15 -> 40.27711286 | Q103: ='[18]Performance and Targets'!$O15 -> 49.9 | R103: ='[18]Total Reward'!$O34*'Guide & drivers'!$C$35 -> 2.340478337 | S103: ='[18]Performance and Targets'!$E33 -> 28.28239676 | T103: ='[18]Performance and Targets'!$O33 -> 40.5 | U103: ='[18]Total Reward'!$O52*'Guide & drivers'!$C$35 -> 7.189270432
D104: SPMW | E104: =('[18]Total Reward'!$E15+F104+G104)*'Guide & drivers'!$D$29 -> 5.424964234 | F104: ='[20]Payments made_due'!J17*'Guide & drivers'!$J$22 -> 0 | G104: ='[20]Payments made_due'!K17*'Guide & drivers'!$J$22 -> 0 | I104: SPMW | J104: ='[18]Performance and Targets'!$E52 -> 1.700473442 | K104: ='[18]Performance and Targets'!$O52 -> 2.697917873 | L104: ='[18]Total Reward'!$Y35*'Guide & drivers'!$C$35 -> 0.1799923657 | M104: ='[18]Performance and Targets'!$E70 -> 5.515700008 | N104: ='[18]Performance and Targets'!$O70 -> 8.918911884 | O104: ='[18]Total Reward'!$Y53*'Guide & drivers'!$C$35 -> 1.49525256 | P104: ='[18]Performance and Targets'!$E16 -> 28.79849514 | Q104: ='[18]Performance and Targets'!$O16 -> 34.9 | R104: ='[18]Total Reward'!$O35*'Guide & drivers'!$C$35 -> 1.101038074 | S104: ='[18]Performance and Targets'!$E34 -> 27.47157131 | T104: ='[18]Performance and Targets'!$O34 -> 33.5 | U104: ='[18]Total Reward'!$O53*'Guide & drivers'!$C$35 -> 2.648681234
D105: SSEH | E105: =('[18]Total Reward'!$E16+F105+G105)*'Guide & drivers'!$D$29 -> 2.248701848 | F105: ='[20]Payments made_due'!J18*'Guide & drivers'!$J$22 -> 0 | G105: ='[20]Payments made_due'!K18*'Guide & drivers'!$J$22 -> 0 | I105: SSEH | J105: ='[18]Performance and Targets'!$E53 -> 5.439763307 | K105: ='[18]Performance and Targets'!$O53 -> 3.95106303 | L105: ='[18]Total Reward'!$Y36*'Guide & drivers'!$C$35 -> -0.1479415145 | M105: ='[18]Performance and Targets'!$E71 -> 12.25645486 | N105: ='[18]Performance and Targets'!$O71 -> 7.850335858 | O105: ='[18]Total Reward'!$Y54*'Guide & drivers'!$C$35 -> -1.021682133 | P105: ='[18]Performance and Targets'!$E17 -> 51.90663714 | Q105: ='[18]Performance and Targets'!$O17 -> 66.2 | R105: ='[18]Total Reward'!$O36*'Guide & drivers'!$C$35 -> 1.420421412 | S105: ='[18]Performance and Targets'!$E35 -> 42.98381415 | T105: ='[18]Performance and Targets'!$O35 -> 51.6 | U105: ='[18]Total Reward'!$O54*'Guide & drivers'!$C$35 -> 1.997904083
D106: SSES | E106: =('[18]Total Reward'!$E17+F106+G106)*'Guide & drivers'!$D$29 -> 5.031177313 | F106: ='[20]Payments made_due'!J19*'Guide & drivers'!$J$22 -> 0 | G106: ='[20]Payments made_due'!K19*'Guide & drivers'!$J$22 -> 0 | I106: SSES | J106: ='[18]Performance and Targets'!$E54 -> 1.658156072 | K106: ='[18]Performance and Targets'!$O54 -> 1.79368654 | L106: ='[18]Total Reward'!$Y37*'Guide & drivers'!$C$35 -> 0.0516293091 | M106: ='[18]Performance and Targets'!$E72 -> 3.289450491 | N106: ='[18]Performance and Targets'!$O72 -> 4.627380411 | O106: ='[18]Total Reward'!$Y55*'Guide & drivers'!$C$35 -> 1.240946144 | P106: ='[18]Performance and Targets'!$E18 -> 53.47464396 | Q106: ='[18]Performance and Targets'!$O18 -> 58.6 | R106: ='[18]Total Reward'!$O37*'Guide & drivers'!$C$35 -> 1.952465716 | S106: ='[18]Performance and Targets'!$E36 -> 44.2742718 | T106: ='[18]Performance and Targets'!$O36 -> 46.2 | U106: ='[18]Total Reward'!$O55*'Guide & drivers'!$C$35 -> 1.786136144
D107: Total | E107: =SUM(E93:E106) -> 145.8560358 | F107: =SUM(F93:F106) -> -0.005687519755 | G107: =SUM(G93:G106) -> -1.252366192
J109: PLANNED | P109: UNPLANNED
D110: 2018/19 | I110: 2018/19 | J110: CI | M110: CML | P110: CI | S110: CML
E111: Total reward (£m)** | F111: Regulation 7 Severe Weather Conditions Adjustment | G111: Normal weather conditions adjustment | J111: Performance | K111: Target | L111: Reward/Penalty (£m) | M111: Performance | N111: Target | O111: Reward/Penalty (£m) | P111: Performance | Q111: Target | R111: Reward/Penalty (£m) | S111: Performance | T111: Target | U111: Reward/Penalty (£m)
D112: ENWL | E112: =('[18]Total Reward'!$F4+F112+G112)*'Guide & drivers'!$D$29 -> 11.89355852 | F112: ='[21]Payments made_due'!J6*'Guide & drivers'!$J$22 -> 0 | G112: ='[21]Payments made_due'!K6*'Guide & drivers'!$J$22 -> -1.669151631e-07 | I112: ENWL | J112: ='[18]Performance and Targets'!F41 -> 0.9369779536 | K112: ='[18]Performance and Targets'!P41 -> 1.870446082 | L112: ='[18]Total Reward'!$Z24*'Guide & drivers'!$C$35 -> 0.2943308952 | M112: ='[18]Performance and Targets'!$F59 -> 2.345466329 | N112: ='[18]Performance and Targets'!P59 -> 4.702774568 | O112: ='[18]Total Reward'!Z42*'Guide & drivers'!$C$35 -> 1.7878909 | P112: ='[18]Performance and Targets'!F5 -> 32.66285758 | Q112: ='[18]Performance and Targets'!P5 -> 45.3 | R112: ='[18]Total Reward'!P24*'Guide & drivers'!$C$35 -> 3.984604645 | S112: ='[18]Performance and Targets'!F23 -> 30.61753793 | T112: ='[18]Performance and Targets'!P23 -> 38.3 | U112: ='[18]Total Reward'!P42*'Guide & drivers'!$C$35 -> 5.82673228
D113: NPgN | E113: =('[18]Total Reward'!$F5+F113+G113)*'Guide & drivers'!$D$29 -> 6.84619774 | F113: ='[21]Payments made_due'!J7*'Guide & drivers'!$J$22 -> -0.01015628528 | G113: ='[21]Payments made_due'!K7*'Guide & drivers'!$J$22 -> -0.1472625729 | I113: NPgN | J113: ='[18]Performance and Targets'!F42 -> 1.890711573 | K113: ='[18]Performance and Targets'!P42 -> 3.082080068 | L113: ='[18]Total Reward'!$Z25*'Guide & drivers'!$C$35 -> 0.2341458798 | M113: ='[18]Performance and Targets'!$F60 -> 4.258405124 | N113: ='[18]Performance and Targets'!P60 -> 7.406846537 | O113: ='[18]Total Reward'!Z43*'Guide & drivers'!$C$35 -> 1.546949134 | P113: ='[18]Performance and Targets'!F6 -> 52.39345079 | Q113: ='[18]Performance and Targets'!P6 -> 58.3 | R113: ='[18]Total Reward'!P25*'Guide & drivers'!$C$35 -> 1.160845001 | S113: ='[18]Performance and Targets'!F24 -> 43.37324692 | T113: ='[18]Performance and Targets'!P24 -> 51.7 | U113: ='[18]Total Reward'!P43*'Guide & drivers'!$C$35 -> 4.091250804
D114: NPgY | E114: =('[18]Total Reward'!$F6+F114+G114)*'Guide & drivers'!$D$29 -> 16.00947823 | F114: ='[21]Payments made_due'!J8*'Guide & drivers'!$J$22 -> 0 | G114: ='[21]Payments made_due'!K8*'Guide & drivers'!$J$22 -> -0.02252913527 | I114: NPgY | J114: ='[18]Performance and Targets'!F43 -> 1.056348868 | K114: ='[18]Performance and Targets'!P43 -> 1.485476497 | L114: ='[18]Total Reward'!$Z26*'Guide & drivers'!$C$35 -> 0.1229939327 | M114: ='[18]Performance and Targets'!$F61 -> 2.384664181 | N114: ='[18]Performance and Targets'!P61 -> 3.85158627 | O114: ='[18]Total Reward'!Z44*'Guide & drivers'!$C$35 -> 1.033081695 | P114: ='[18]Performance and Targets'!F7 -> 48.24677524 | Q114: ='[18]Performance and Targets'!P7 -> 63.7 | R114: ='[18]Total Reward'!P26*'Guide & drivers'!$C$35 -> 4.429108638 | S114: ='[18]Performance and Targets'!F25 -> 36.38748072 | T114: ='[18]Performance and Targets'!P25 -> 54.1 | U114: ='[18]Total Reward'!P44*'Guide & drivers'!$C$35 -> 12.47406361
D115: WMID | E115: =('[18]Total Reward'!$F7+F115+G115)*'Guide & drivers'!$D$29 -> 21.02529233 | F115: ='[21]Payments made_due'!J9*'Guide & drivers'!$J$22 -> 0 | G115: ='[21]Payments made_due'!K9*'Guide & drivers'!$J$22 -> 0 | I115: WMID | J115: ='[18]Performance and Targets'!F44 -> 2.566582049 | K115: ='[18]Performance and Targets'!P44 -> 2.378876779 | L115: ='[18]Total Reward'!$Z27*'Guide & drivers'!$C$35 -> -0.07322204624 | M115: ='[18]Performance and Targets'!$F62 -> 5.260792939 | N115: ='[18]Performance and Targets'!P62 -> 4.083374521 | O115: ='[18]Total Reward'!Z45*'Guide & drivers'!$C$35 -> -1.124075731 | P115: ='[18]Performance and Targets'!F8 -> 52.80417724 | Q115: ='[18]Performance and Targets'!P8 -> 81.7 | R115: ='[18]Total Reward'!P27*'Guide & drivers'!$C$35 -> 11.27198647 | S115: ='[18]Performance and Targets'!F26 -> 27.03656188 | T115: ='[18]Performance and Targets'!P26 -> 48.7 | U115: ='[18]Total Reward'!P45*'Guide & drivers'!$C$35 -> 20.68198072
D116: EMID | E116: =('[18]Total Reward'!$F8+F116+G116)*'Guide & drivers'!$D$29 -> 19.97254653 | F116: ='[21]Payments made_due'!J10*'Guide & drivers'!$J$22 -> 0 | G116: ='[21]Payments made_due'!K10*'Guide & drivers'!$J$22 -> 0 | I116: EMID | J116: ='[18]Performance and Targets'!F45 -> 0.880210894 | K116: ='[18]Performance and Targets'!P45 -> 0.9515548137 | L116: ='[18]Total Reward'!$Z28*'Guide & drivers'!$C$35 -> 0.02929535432 | M116: ='[18]Performance and Targets'!$F63 -> 1.643946521 | N116: ='[18]Performance and Targets'!P63 -> 1.51194585 | O116: ='[18]Total Reward'!Z46*'Guide & drivers'!$C$35 -> -0.1341507582 | P116: ='[18]Performance and Targets'!F9 -> 38.8911438 | Q116: ='[18]Performance and Targets'!P9 -> 50.1 | R116: ='[18]Total Reward'!P28*'Guide & drivers'!$C$35 -> 4.602598446 | S116: ='[18]Performance and Targets'!F27 -> 21.27321728 | T116: ='[18]Performance and Targets'!P27 -> 36.5 | U116: ='[18]Total Reward'!P46*'Guide & drivers'!$C$35 -> 15.47480349
D117: SWALES | E117: =('[18]Total Reward'!$F9+F117+G117)*'Guide & drivers'!$D$29 -> 5.75688771 | F117: ='[21]Payments made_due'!J11*'Guide & drivers'!$J$22 -> 0 | G117: ='[21]Payments made_due'!K11*'Guide & drivers'!$J$22 -> 0 | I117: SWALES | J117: ='[18]Performance and Targets'!F46 -> 3.381534032 | K117: ='[18]Performance and Targets'!P46 -> 3.694929231 | L117: ='[18]Total Reward'!$Z29*'Guide & drivers'!$C$35 -> 0.05469190588 | M117: ='[18]Performance and Targets'!$F64 -> 5.463302373 | N117: ='[18]Performance and Targets'!P64 -> 6.044779277 | O117: ='[18]Total Reward'!Z47*'Guide & drivers'!$C$35 -> 0.2507053242 | P117: ='[18]Performance and Targets'!F10 -> 37.90951405 | Q117: ='[18]Performance and Targets'!P10 -> 49.4 | R117: ='[18]Total Reward'!P29*'Guide & drivers'!$C$35 -> 2.005252724 | S117: ='[18]Performance and Targets'!F28 -> 19.40692021 | T117: ='[18]Performance and Targets'!P28 -> 27.4 | U117: ='[18]Total Reward'!P47*'Guide & drivers'!$C$35 -> 3.446237756
D118: SWEST | E118: =('[18]Total Reward'!$F10+F118+G118)*'Guide & drivers'!$D$29 -> 3.910274384 | F118: ='[21]Payments made_due'!J12*'Guide & drivers'!$J$22 -> 0 | G118: ='[21]Payments made_due'!K12*'Guide & drivers'!$J$22 -> 0 | I118: SWEST | J118: ='[18]Performance and Targets'!F47 -> 3.444087946 | K118: ='[18]Performance and Targets'!P47 -> 3.680367983 | L118: ='[18]Total Reward'!$Z30*'Guide & drivers'!$C$35 -> 0.0582130119 | M118: ='[18]Performance and Targets'!$F65 -> 7.84315674 | N118: ='[18]Performance and Targets'!P65 -> 8.627315401 | O118: ='[18]Total Reward'!Z48*'Guide & drivers'!$C$35 -> 0.4749389112 | P118: ='[18]Performance and Targets'!F11 -> 48.02069537 | Q118: ='[18]Performance and Targets'!P11 -> 54.8 | R118: ='[18]Total Reward'!P30*'Guide & drivers'!$C$35 -> 1.670237339 | S118: ='[18]Performance and Targets'!F29 -> 32.38180861 | T118: ='[18]Performance and Targets'!P29 -> 35.2 | U118: ='[18]Total Reward'!P48*'Guide & drivers'!$C$35 -> 1.706885122
D119: LPN | E119: =('[18]Total Reward'!$F11+F119+G119)*'Guide & drivers'!$D$29 -> 15.67987902 | F119: ='[21]Payments made_due'!J13*'Guide & drivers'!$J$22 -> 0 | G119: ='[21]Payments made_due'!K13*'Guide & drivers'!$J$22 -> -1.245837661e-09 | I119: LPN | J119: ='[18]Performance and Targets'!F48 -> 0.1186411422 | K119: ='[18]Performance and Targets'!P48 -> 0.434255338 | L119: ='[18]Total Reward'!$Z31*'Guide & drivers'!$C$35 -> 0.08631227163 | M119: ='[18]Performance and Targets'!$F66 -> 0.2869809424 | N119: ='[18]Performance and Targets'!P66 -> 0.9242553081 | O119: ='[18]Total Reward'!Z49*'Guide & drivers'!$C$35 -> 0.4282258443 | P119: ='[18]Performance and Targets'!F12 -> 13.97628704 | Q119: ='[18]Performance and Targets'!P12 -> 26.6 | R119: ='[18]Total Reward'!P31*'Guide & drivers'!$C$35 -> 3.45225708 | S119: ='[18]Performance and Targets'!F30 -> 15.62981244 | T119: ='[18]Performance and Targets'!P30 -> 36.8 | U119: ='[18]Total Reward'!P49*'Guide & drivers'!$C$35 -> 14.22561761
D120: SPN | E120: =('[18]Total Reward'!$F12+F120+G120)*'Guide & drivers'!$D$29 -> 10.97583719 | F120: ='[21]Payments made_due'!J14*'Guide & drivers'!$J$22 -> -4.276330643e-11 | G120: ='[21]Payments made_due'!K14*'Guide & drivers'!$J$22 -> -1.411046568e-07 | I120: SPN | J120: ='[18]Performance and Targets'!F49 -> 1.169428263 | K120: ='[18]Performance and Targets'!P49 -> 1.225831627 | L120: ='[18]Total Reward'!$Z32*'Guide & drivers'!$C$35 -> 0.01542485266 | M120: ='[18]Performance and Targets'!$F67 -> 2.568054754 | N120: ='[18]Performance and Targets'!P67 -> 2.679543487 | O120: ='[18]Total Reward'!Z50*'Guide & drivers'!$C$35 -> 0.07404536561 | P120: ='[18]Performance and Targets'!F13 -> 43.18710635 | Q120: ='[18]Performance and Targets'!P13 -> 62.4 | R120: ='[18]Total Reward'!P32*'Guide & drivers'!$C$35 -> 5.254226576 | S120: ='[18]Performance and Targets'!F31 -> 34.11979041 | T120: ='[18]Performance and Targets'!P31 -> 42.6 | U120: ='[18]Total Reward'!P50*'Guide & drivers'!$C$35 -> 5.632140565
D121: EPN | E121: =('[18]Total Reward'!$F13+F121+G121)*'Guide & drivers'!$D$29 -> 24.11375323 | F121: ='[21]Payments made_due'!J15*'Guide & drivers'!$J$22 -> -1.19737258e-09 | G121: ='[21]Payments made_due'!K15*'Guide & drivers'!$J$22 -> -9.536787511e-08 | I121: EPN | J121: ='[18]Performance and Targets'!F50 -> 1.928074655 | K121: ='[18]Performance and Targets'!P50 -> 1.788450915 | L121: ='[18]Total Reward'!$Z33*'Guide & drivers'!$C$35 -> -0.06000258078 | M121: ='[18]Performance and Targets'!$F68 -> 5.267370991 | N121: ='[18]Performance and Targets'!P68 -> 4.711008991 | O121: ='[18]Total Reward'!Z51*'Guide & drivers'!$C$35 -> -0.5825191837 | P121: ='[18]Performance and Targets'!F14 -> 39.49442978 | Q121: ='[18]Performance and Targets'!P14 -> 65.4 | R121: ='[18]Total Reward'!P33*'Guide & drivers'!$C$35 -> 11.13278493 | S121: ='[18]Performance and Targets'!F32 -> 29.54380518 | T121: ='[18]Performance and Targets'!P32 -> 44.9 | U121: ='[18]Total Reward'!P51*'Guide & drivers'!$C$35 -> 16.07816145
D122: SPD | E122: =('[18]Total Reward'!$F14+F122+G122)*'Guide & drivers'!$D$29 -> 5.37605316 | F122: ='[21]Payments made_due'!J16*'Guide & drivers'!$J$22 -> 0 | G122: ='[21]Payments made_due'!K16*'Guide & drivers'!$J$22 -> 0 | I122: SPD | J122: ='[18]Performance and Targets'!F51 -> 1.065710581 | K122: ='[18]Performance and Targets'!P51 -> 1.495074946 | L122: ='[18]Total Reward'!$Z34*'Guide & drivers'!$C$35 -> 0.1044299887 | M122: ='[18]Performance and Targets'!$F69 -> 3.091231217 | N122: ='[18]Performance and Targets'!P69 -> 3.718747006 | O122: ='[18]Total Reward'!Z52*'Guide & drivers'!$C$35 -> 0.3692525142 | P122: ='[18]Performance and Targets'!F15 -> 48.26902539 | Q122: ='[18]Performance and Targets'!P15 -> 49.6 | R122: ='[18]Total Reward'!P34*'Guide & drivers'!$C$35 -> 0.3237196061 | S122: ='[18]Performance and Targets'!F33 -> 31.91894037 | T122: ='[18]Performance and Targets'!P33 -> 39.7 | U122: ='[18]Total Reward'!P52*'Guide & drivers'!$C$35 -> 4.578651051
D123: SPMW | E123: =('[18]Total Reward'!$F15+F123+G123)*'Guide & drivers'!$D$29 -> 2.224874243 | F123: ='[21]Payments made_due'!J17*'Guide & drivers'!$J$22 -> 0 | G123: ='[21]Payments made_due'!K17*'Guide & drivers'!$J$22 -> 0 | I123: SPMW | J123: ='[18]Performance and Targets'!F52 -> 1.636045031 | K123: ='[18]Performance and Targets'!P52 -> 2.325807492 | L123: ='[18]Total Reward'!$Z35*'Guide & drivers'!$C$35 -> 0.1244700689 | M123: ='[18]Performance and Targets'!$F70 -> 5.315877734 | N123: ='[18]Performance and Targets'!P70 -> 7.502718408 | O123: ='[18]Total Reward'!Z53*'Guide & drivers'!$C$35 -> 0.9608214932 | P123: ='[18]Performance and Targets'!F16 -> 34.50794333 | Q123: ='[18]Performance and Targets'!P16 -> 34.7 | R123: ='[18]Total Reward'!P35*'Guide & drivers'!$C$35 -> 0.03465730347 | S123: ='[18]Performance and Targets'!F34 -> 30.28517724 | T123: ='[18]Performance and Targets'!P34 -> 32.8 | U123: ='[18]Total Reward'!P53*'Guide & drivers'!$C$35 -> 1.104925377
D124: SSEH | E124: =('[18]Total Reward'!$F16+F124+G124)*'Guide & drivers'!$D$29 -> 0.15587679 | F124: ='[21]Payments made_due'!J18*'Guide & drivers'!$J$22 -> 0 | G124: ='[21]Payments made_due'!K18*'Guide & drivers'!$J$22 -> 0 | I124: SSEH | J124: ='[18]Performance and Targets'!F53 -> 4.29774227 | K124: ='[18]Performance and Targets'!P53 -> 4.380424523 | L124: ='[18]Total Reward'!$Z36*'Guide & drivers'!$C$35 -> 0.008216655775 | M124: ='[18]Performance and Targets'!$F71 -> 9.310820708 | N124: ='[18]Performance and Targets'!P71 -> 8.849477843 | O124: ='[18]Total Reward'!Z54*'Guide & drivers'!$C$35 -> -0.1069752683 | P124: ='[18]Performance and Targets'!F17 -> 65.06981848 | Q124: ='[18]Performance and Targets'!P17 -> 65.9 | R124: ='[18]Total Reward'!P36*'Guide & drivers'!$C$35 -> 0.08250036206 | S124: ='[18]Performance and Targets'!F35 -> 49.7576483 | T124: ='[18]Performance and Targets'!P35 -> 50.5 | U124: ='[18]Total Reward'!P54*'Guide & drivers'!$C$35 -> 0.1721350404
D125: SSES | E125: =('[18]Total Reward'!$F17+F125+G125)*'Guide & drivers'!$D$29 -> 2.379226693 | F125: ='[21]Payments made_due'!J19*'Guide & drivers'!$J$22 -> 0 | G125: ='[21]Payments made_due'!K19*'Guide & drivers'!$J$22 -> -4.418874997e-09 | I125: SSES | J125: ='[18]Performance and Targets'!F54 -> 1.460321879 | K125: ='[18]Performance and Targets'!P54 -> 1.690791671 | L125: ='[18]Total Reward'!$Z37*'Guide & drivers'!$C$35 -> 0.08779572876 | M125: ='[18]Performance and Targets'!$F72 -> 3.685621978 | N125: ='[18]Performance and Targets'!P72 -> 4.217909169 | O125: ='[18]Total Reward'!Z55*'Guide & drivers'!$C$35 -> 0.493702792 | P125: ='[18]Performance and Targets'!F18 -> 50.64136819 | Q125: ='[18]Performance and Targets'!P18 -> 57.7 | R125: ='[18]Total Reward'!P37*'Guide & drivers'!$C$35 -> 2.688932533 | S125: ='[18]Performance and Targets'!F36 -> 46.26085473 | T125: ='[18]Performance and Targets'!P36 -> 45.3 | U125: ='[18]Total Reward'!P55*'Guide & drivers'!$C$35 -> -0.891204356
D126: Total | E126: =SUM(E112:E125) -> 146.3197358 | F126: =SUM(F112:F125) -> -0.01015628652 | G126: =SUM(G112:G125) -> -0.1697921172
J128: PLANNED | P128: UNPLANNED
D129: 2019/20 | I129: 2019/20 | J129: CI | M129: CML | P129: CI | S129: CML
E130: Total reward (£m)** | F130: Regulation 7 Severe Weather Conditions Adjustment | G130: Normal weather conditions adjustment | J130: Performance | K130: Target | L130: Reward/Penalty (£m) | M130: Performance | N130: Target | O130: Reward/Penalty (£m) | P130: Performance | Q130: Target | R130: Reward/Penalty (£m) | S130: Performance | T130: Target | U130: Reward/Penalty (£m)
D131: ENWL | E131: =('[18]Total Reward'!$G4+F131+G131)*'Guide & drivers'!$D$29 -> 16.05383032 | F131: ='[22]Payments made_due'!$J6*'Guide & drivers'!$D$29 -> -0.001254390322 | G131: ='[22]Payments made_due'!$K6*'Guide & drivers'!$D$29 -> -0.0839372433 | I131: ENWL | J131: ='[18]Performance and Targets'!$G41 -> 1.282756494 | K131: ='[18]Performance and Targets'!$Q41 -> 1.765583839 | L131: ='[18]Total Reward'!$AA24*'Guide & drivers'!$C$35 -> 0.1522398037 | M131: ='[18]Performance and Targets'!$G59 -> 3.20509248 | N131: ='[18]Performance and Targets'!$Q59 -> 4.467330416 | O131: ='[18]Total Reward'!$AA42*'Guide & drivers'!$C$35 -> 0.9573392575 | P131: ='[18]Performance and Targets'!G5 -> 26.67041711 | Q131: ='[18]Performance and Targets'!Q5 -> 45.1 | R131: ='[18]Total Reward'!Q24*'Guide & drivers'!$C$35 -> 5.811013215 | S131: ='[18]Performance and Targets'!G23 -> 23.94099974 | T131: ='[18]Performance and Targets'!Q23 -> 37.6 | U131: ='[18]Total Reward'!Q42*'Guide & drivers'!$C$35 -> 10.3596135
D132: NPgN | E132: =('[18]Total Reward'!$G5+F132+G132)*'Guide & drivers'!$D$29 -> 8.986969545 | F132: ='[22]Payments made_due'!$J7*'Guide & drivers'!$D$29 -> 0 | G132: ='[22]Payments made_due'!$K7*'Guide & drivers'!$D$29 -> -0.04153029776 | I132: NPgN | J132: ='[18]Performance and Targets'!$G42 -> 1.423933152 | K132: ='[18]Performance and Targets'!$Q42 -> 2.68086191 | L132: ='[18]Total Reward'!$AA25*'Guide & drivers'!$C$35 -> 0.2470307811 | M132: ='[18]Performance and Targets'!$G60 -> 2.89559015 | N132: ='[18]Performance and Targets'!$Q60 -> 6.311038822 | O132: ='[18]Total Reward'!$AA43*'Guide & drivers'!$C$35 -> 1.678139966 | P132: ='[18]Performance and Targets'!G6 -> 45.5465512 | Q132: ='[18]Performance and Targets'!Q6 -> 58 | R132: ='[18]Total Reward'!Q25*'Guide & drivers'!$C$35 -> 2.447541411 | S132: ='[18]Performance and Targets'!G24 -> 41.20838876 | T132: ='[18]Performance and Targets'!Q24 -> 50.7 | U132: ='[18]Total Reward'!Q43*'Guide & drivers'!$C$35 -> 4.663589967
D133: NPgY | E133: =('[18]Total Reward'!$G6+F133+G133)*'Guide & drivers'!$D$29 -> 13.73079537 | F133: ='[22]Payments made_due'!$J8*'Guide & drivers'!$D$29 -> -0.0007982483866 | G133: ='[22]Payments made_due'!$K8*'Guide & drivers'!$D$29 -> -0.1225026185 | I133: NPgY | J133: ='[18]Performance and Targets'!$G43 -> 0.9844097283 | K133: ='[18]Performance and Targets'!$Q43 -> 1.340582834 | L133: ='[18]Total Reward'!$AA26*'Guide & drivers'!$C$35 -> 0.1020841541 | M133: ='[18]Performance and Targets'!$G61 -> 1.884521616 | N133: ='[18]Performance and Targets'!$Q61 -> 3.413853758 | O133: ='[18]Total Reward'!$AA44*'Guide & drivers'!$C$35 -> 1.077034052 | P133: ='[18]Performance and Targets'!G7 -> 49.80332133 | Q133: ='[18]Performance and Targets'!Q7 -> 62.7 | R133: ='[18]Total Reward'!Q26*'Guide & drivers'!$C$35 -> 3.696367054 | S133: ='[18]Performance and Targets'!G25 -> 40.21794866 | T133: ='[18]Performance and Targets'!Q25 -> 53 | U133: ='[18]Total Reward'!Q44*'Guide & drivers'!$C$35 -> 9.001775467
D134: WMID | E134: =('[18]Total Reward'!$G7+F134+G134)*'Guide & drivers'!$D$29 -> 21.02529233 | F134: ='[22]Payments made_due'!$J9*'Guide & drivers'!$D$29 -> 0 | G134: ='[22]Payments made_due'!$K9*'Guide & drivers'!$D$29 -> 0 | I134: WMID | J134: ='[18]Performance and Targets'!$G44 -> 2.252638455 | K134: ='[18]Performance and Targets'!$Q44 -> 2.443885841 | L134: ='[18]Total Reward'!$AA27*'Guide & drivers'!$C$35 -> 0.07460379194 | M134: ='[18]Performance and Targets'!$G62 -> 4.833512452 | N134: ='[18]Performance and Targets'!$Q62 -> 4.364842004 | O134: ='[18]Total Reward'!$AA45*'Guide & drivers'!$C$35 -> -0.4474374348 | P134: ='[18]Performance and Targets'!G8 -> 46.2314413 | Q134: ='[18]Performance and Targets'!Q8 -> 80 | R134: ='[18]Total Reward'!Q27*'Guide & drivers'!$C$35 -> 13.17279456 | S134: ='[18]Performance and Targets'!G26 -> 24.16904357 | T134: ='[18]Performance and Targets'!Q26 -> 47.9 | U134: ='[18]Total Reward'!Q45*'Guide & drivers'!$C$35 -> 22.65583057
D135: EMID | E135: =('[18]Total Reward'!$G8+F135+G135)*'Guide & drivers'!$D$29 -> 20.22233498 | F135: ='[22]Payments made_due'!$J10*'Guide & drivers'!$D$29 -> 0 | G135: ='[22]Payments made_due'!$K10*'Guide & drivers'!$D$29 -> 0 | I135: EMID | J135: ='[18]Performance and Targets'!$G45 -> 0.6842469757 | K135: ='[18]Performance and Targets'!$Q45 -> 0.9208474338 | L135: ='[18]Total Reward'!$AA28*'Guide & drivers'!$C$35 -> 0.09715325822 | M135: ='[18]Performance and Targets'!$G63 -> 1.28170762 | N135: ='[18]Performance and Targets'!$Q63 -> 1.537041082 | O135: ='[18]Total Reward'!$AA46*'Guide & drivers'!$C$35 -> 0.2594924502 | P135: ='[18]Performance and Targets'!G9 -> 37.21854861 | Q135: ='[18]Performance and Targets'!Q9 -> 49.9 | R135: ='[18]Total Reward'!Q28*'Guide & drivers'!$C$35 -> 5.207277835 | S135: ='[18]Performance and Targets'!G27 -> 21.27652469 | T135: ='[18]Performance and Targets'!Q27 -> 35.7 | U135: ='[18]Total Reward'!Q46*'Guide & drivers'!$C$35 -> 14.65841144
D136: SWALES | E136: =('[18]Total Reward'!$G9+F136+G136)*'Guide & drivers'!$D$29 -> 5.80336162 | F136: ='[22]Payments made_due'!$J11*'Guide & drivers'!$D$29 -> 0 | G136: ='[22]Payments made_due'!$K11*'Guide & drivers'!$D$29 -> 0 | I136: SWALES | J136: ='[18]Performance and Targets'!$G46 -> 2.897269786 | K136: ='[18]Performance and Targets'!$Q46 -> 3.618726894 | L136: ='[18]Total Reward'!$AA29*'Guide & drivers'!$C$35 -> 0.1259044951 | M136: ='[18]Performance and Targets'!$G64 -> 4.454346211 | N136: ='[18]Performance and Targets'!$Q64 -> 5.857316531 | O136: ='[18]Total Reward'!$AA47*'Guide & drivers'!$C$35 -> 0.6048944104 | P136: ='[18]Performance and Targets'!G10 -> 40.62403498 | Q136: ='[18]Performance and Targets'!Q10 -> 49.1 | R136: ='[18]Total Reward'!Q29*'Guide & drivers'!$C$35 -> 1.479176078 | S136: ='[18]Performance and Targets'!G28 -> 18.96562839 | T136: ='[18]Performance and Targets'!Q28 -> 27.3 | U136: ='[18]Total Reward'!Q47*'Guide & drivers'!$C$35 -> 3.593386637
D137: SWEST | E137: =('[18]Total Reward'!$G10+F137+G137)*'Guide & drivers'!$D$29 -> 6.493484909 | F137: ='[22]Payments made_due'!$J12*'Guide & drivers'!$D$29 -> 0 | G137: ='[22]Payments made_due'!$K12*'Guide & drivers'!$D$29 -> 0 | I137: SWEST | J137: ='[18]Performance and Targets'!$G47 -> 3.41650977 | K137: ='[18]Performance and Targets'!$Q47 -> 3.825498973 | L137: ='[18]Total Reward'!$AA30*'Guide & drivers'!$C$35 -> 0.1007638803 | M137: ='[18]Performance and Targets'!$G65 -> 8.125964787 | N137: ='[18]Performance and Targets'!$Q65 -> 8.923056065 | O137: ='[18]Total Reward'!$AA48*'Guide & drivers'!$C$35 -> 0.4827717693 | P137: ='[18]Performance and Targets'!G11 -> 42.67971445 | Q137: ='[18]Performance and Targets'!Q11 -> 54.6 | R137: ='[18]Total Reward'!Q30*'Guide & drivers'!$C$35 -> 2.936836022 | S137: ='[18]Performance and Targets'!G29 -> 30.09117396 | T137: ='[18]Performance and Targets'!Q29 -> 35 | U137: ='[18]Total Reward'!Q48*'Guide & drivers'!$C$35 -> 2.973113238
D138: LPN | E138: =('[18]Total Reward'!$G11+F138+G138)*'Guide & drivers'!$D$29 -> 15.5414989 | F138: ='[22]Payments made_due'!$J13*'Guide & drivers'!$D$29 -> 0 | G138: ='[22]Payments made_due'!$K13*'Guide & drivers'!$D$29 -> -0.1164943739 | I138: LPN | J138: ='[18]Performance and Targets'!$G48 -> 0.05046098676 | K138: ='[18]Performance and Targets'!$Q48 -> 0.1976164761 | L138: ='[18]Total Reward'!$AA31*'Guide & drivers'!$C$35 -> 0.04024319799 | M138: ='[18]Performance and Targets'!$G66 -> 0.1220064044 | N138: ='[18]Performance and Targets'!$Q66 -> 0.4479849342 | O138: ='[18]Total Reward'!$AA49*'Guide & drivers'!$C$35 -> 0.2190460478 | P138: ='[18]Performance and Targets'!G12 -> 13.14952956 | Q138: ='[18]Performance and Targets'!Q12 -> 26.5 | R138: ='[18]Total Reward'!Q31*'Guide & drivers'!$C$35 -> 3.651006344 | S138: ='[18]Performance and Targets'!G30 -> 14.26453029 | T138: ='[18]Performance and Targets'!Q30 -> 36.2 | U138: ='[18]Total Reward'!Q49*'Guide & drivers'!$C$35 -> 14.73986017
D139: SPN | E139: =('[18]Total Reward'!$G12+F139+G139)*'Guide & drivers'!$D$29 -> 12.1300301 | F139: ='[22]Payments made_due'!$J14*'Guide & drivers'!$D$29 -> 0 | G139: ='[22]Payments made_due'!$K14*'Guide & drivers'!$D$29 -> -0.2230318109 | I139: SPN | J139: ='[18]Performance and Targets'!$G49 -> 1.08301453 | K139: ='[18]Performance and Targets'!$Q49 -> 1.100815532 | L139: ='[18]Total Reward'!$AA32*'Guide & drivers'!$C$35 -> 0.004868110987 | M139: ='[18]Performance and Targets'!$G67 -> 2.42706761 | N139: ='[18]Performance and Targets'!$Q67 -> 2.435239227 | O139: ='[18]Total Reward'!$AA50*'Guide & drivers'!$C$35 -> 0.005427188459 | P139: ='[18]Performance and Targets'!G13 -> 43.95518775 | Q139: ='[18]Performance and Targets'!Q13 -> 62.1 | R139: ='[18]Total Reward'!Q32*'Guide & drivers'!$C$35 -> 4.9621341 | S139: ='[18]Performance and Targets'!G31 -> 30.42402911 | T139: ='[18]Performance and Targets'!Q31 -> 41.6 | U139: ='[18]Total Reward'!Q50*'Guide & drivers'!$C$35 -> 7.422533412
D140: EPN | E140: =('[18]Total Reward'!$G13+F140+G140)*'Guide & drivers'!$D$29 -> 23.5321461 | F140: ='[22]Payments made_due'!$J15*'Guide & drivers'!$D$29 -> 0 | G140: ='[22]Payments made_due'!$K15*'Guide & drivers'!$D$29 -> -0.4896221261 | I140: EPN | J140: ='[18]Performance and Targets'!$G50 -> 1.659512291 | K140: ='[18]Performance and Targets'!$Q50 -> 1.552249169 | L140: ='[18]Total Reward'!$AA33*'Guide & drivers'!$C$35 -> -0.0460957723 | M140: ='[18]Performance and Targets'!$G68 -> 4.285547788 | N140: ='[18]Performance and Targets'!$Q68 -> 4.170362106 | O140: ='[18]Total Reward'!$AA51*'Guide & drivers'!$C$35 -> -0.1206011 | P140: ='[18]Performance and Targets'!G14 -> 42.12294176 | Q140: ='[18]Performance and Targets'!Q14 -> 65.1 | R140: ='[18]Total Reward'!Q33*'Guide & drivers'!$C$35 -> 9.874272045 | S140: ='[18]Performance and Targets'!G32 -> 29.48077262 | T140: ='[18]Performance and Targets'!Q32 -> 43.9 | U140: ='[18]Total Reward'!Q51*'Guide & drivers'!$C$35 -> 15.09714279
D141: SPD | E141: =('[18]Total Reward'!$G14+F141+G141)*'Guide & drivers'!$D$29 -> 6.405178253 | F141: ='[22]Payments made_due'!$J16*'Guide & drivers'!$D$29 -> 0 | G141: ='[22]Payments made_due'!$K16*'Guide & drivers'!$D$29 -> 0 | I141: SPD | J141: ='[18]Performance and Targets'!$G51 -> 1.159486027 | K141: ='[18]Performance and Targets'!$Q51 -> 1.229292983 | L141: ='[18]Total Reward'!$AA34*'Guide & drivers'!$C$35 -> 0.01697844574 | M141: ='[18]Performance and Targets'!$G69 -> 3.44695591 | N141: ='[18]Performance and Targets'!$Q69 -> 3.181277725 | O141: ='[18]Total Reward'!$AA52*'Guide & drivers'!$C$35 -> -0.156334453 | P141: ='[18]Performance and Targets'!G15 -> 43.36898468 | Q141: ='[18]Performance and Targets'!Q15 -> 49.4 | R141: ='[18]Total Reward'!Q34*'Guide & drivers'!$C$35 -> 1.466863376 | S141: ='[18]Performance and Targets'!G33 -> 30.27089517 | T141: ='[18]Performance and Targets'!Q33 -> 38.9 | U141: ='[18]Total Reward'!Q52*'Guide & drivers'!$C$35 -> 5.077670885
D142: SPMW | E142: =('[18]Total Reward'!$G15+F142+G142)*'Guide & drivers'!$D$29 -> 2.690651899 | F142: ='[22]Payments made_due'!$J17*'Guide & drivers'!$D$29 -> 0 | G142: ='[22]Payments made_due'!$K17*'Guide & drivers'!$D$29 -> 0 | I142: SPMW | J142: ='[18]Performance and Targets'!$G52 -> 1.684800241 | K142: ='[18]Performance and Targets'!$Q52 -> 1.907159037 | L142: ='[18]Total Reward'!$AA35*'Guide & drivers'!$C$35 -> 0.04012542902 | M142: ='[18]Performance and Targets'!$G70 -> 5.050036293 | N142: ='[18]Performance and Targets'!$Q70 -> 6.147940852 | O142: ='[18]Total Reward'!$AA53*'Guide & drivers'!$C$35 -> 0.4823809568 | P142: ='[18]Performance and Targets'!G16 -> 30.53699203 | Q142: ='[18]Performance and Targets'!Q16 -> 34.5 | R142: ='[18]Total Reward'!Q35*'Guide & drivers'!$C$35 -> 0.7151387667 | S142: ='[18]Performance and Targets'!G34 -> 28.79294008 | T142: ='[18]Performance and Targets'!Q34 -> 32.1 | U142: ='[18]Total Reward'!Q53*'Guide & drivers'!$C$35 -> 1.453006746
D143: SSEH | E143: =('[18]Total Reward'!$G16+F143+G143)*'Guide & drivers'!$D$29 -> 1.486737597 | F143: ='[22]Payments made_due'!$J18*'Guide & drivers'!$D$29 -> 0 | G143: ='[22]Payments made_due'!$K18*'Guide & drivers'!$D$29 -> 0 | I143: SSEH | J143: ='[18]Performance and Targets'!$G53 -> 3.598364804 | K143: ='[18]Performance and Targets'!$Q53 -> 4.685568454 | L143: ='[18]Total Reward'!$AA36*'Guide & drivers'!$C$35 -> 0.1080422683 | M143: ='[18]Performance and Targets'!$G71 -> 7.824006819 | N143: ='[18]Performance and Targets'!$Q71 -> 9.885134716 | O143: ='[18]Total Reward'!$AA54*'Guide & drivers'!$C$35 -> 0.4779302484 | P143: ='[18]Performance and Targets'!G17 -> 59.57476717 | Q143: ='[18]Performance and Targets'!Q17 -> 65.3 | R143: ='[18]Total Reward'!Q36*'Guide & drivers'!$C$35 -> 0.5689524141 | S143: ='[18]Performance and Targets'!G35 -> 47.76902059 | T143: ='[18]Performance and Targets'!Q35 -> 49.2 | U143: ='[18]Total Reward'!Q54*'Guide & drivers'!$C$35 -> 0.3318126661
D144: SSES | E144: =('[18]Total Reward'!$G17+F144+G144)*'Guide & drivers'!$D$29 -> 6.276088266 | F144: ='[22]Payments made_due'!$J19*'Guide & drivers'!$D$29 -> 0 | G144: ='[22]Payments made_due'!$K19*'Guide & drivers'!$D$29 -> -0.0451224155 | I144: SSES | J144: ='[18]Performance and Targets'!$G54 -> 1.537460284 | K144: ='[18]Performance and Targets'!$Q54 -> 1.55827811 | L144: ='[18]Total Reward'!$AA37*'Guide & drivers'!$C$35 -> 0.007930393689 | M144: ='[18]Performance and Targets'!$G72 -> 3.561941451 | N144: ='[18]Performance and Targets'!$Q72 -> 3.489304228 | O144: ='[18]Total Reward'!$AA55*'Guide & drivers'!$C$35 -> -0.06737190018 | P144: ='[18]Performance and Targets'!G18 -> 45.61735648 | Q144: ='[18]Performance and Targets'!Q18 -> 57.4 | R144: ='[18]Total Reward'!Q37*'Guide & drivers'!$C$35 -> 4.488509157 | S144: ='[18]Performance and Targets'!G36 -> 42.3508405 | T144: ='[18]Performance and Targets'!Q36 -> 44.4 | U144: ='[18]Total Reward'!Q55*'Guide & drivers'!$C$35 -> 1.900620163
D145: Total | E145: =SUM(E131:E144) -> 160.3784002 | F145: =SUM(F131:F144) -> -0.002052638708 | G145: =SUM(G131:G144) -> -1.122240886
J147: PLANNED | P147: UNPLANNED
D148: 2020/21 | I148: 2020/21 | J148: CI | M148: CML | P148: CI | S148: CML
E149: Total reward (£m)** | F149: Regulation 7 Severe Weather Conditions Adjustment | G149: Normal weather conditions adjustment | J149: Performance | K149: Target | L149: Reward/Penalty (£m) | M149: Performance | N149: Target | O149: Reward/Penalty (£m) | P149: Performance | Q149: Target | R149: Reward/Penalty (£m) | S149: Performance | T149: Target | U149: Reward/Penalty (£m)
D150: ENWL | I150: ENWL
D151: NPgN | I151: NPgN
D152: NPgY | I152: NPgY
D153: WMID | I153: WMID
D154: EMID | I154: EMID
D155: SWALES | I155: SWALES
D156: SWEST | I156: SWEST
D157: LPN | I157: LPN
D158: SPN | I158: SPN
D159: EPN | I159: EPN
D160: SPD | I160: SPD
D161: SPMW | I161: SPMW
D162: SSEH | I162: SSEH
D163: SSES | I163: SSES
D164: Total | E164: =SUM(E150:E163) -> 0 | F164: =SUM(F150:F163) -> 0 | G164: =SUM(G150:G163) -> 0
J166: PLANNED | P166: UNPLANNED
D167: 2021/22 | I167: 2021/22 | J167: CI | M167: CML | P167: CI | S167: CML
E168: Total reward (£m)** | F168: Regulation 7 Severe Weather Conditions Adjustment | G168: Normal weather conditions adjustment | J168: Performance | K168: Target | L168: Reward/Penalty (£m) | M168: Performance | N168: Target | O168: Reward/Penalty (£m) | P168: Performance | Q168: Target | R168: Reward/Penalty (£m) | S168: Performance | T168: Target | U168: Reward/Penalty (£m)
D169: ENWL | I169: ENWL
D170: NPgN | I170: NPgN
D171: NPgY | I171: NPgY
D172: WMID | I172: WMID
D173: EMID | I173: EMID
D174: SWALES | I174: SWALES
D175: SWEST | I175: SWEST
D176: LPN | I176: LPN
D177: SPN | I177: SPN
D178: EPN | I178: EPN
D179: SPD | I179: SPD
D180: SPMW | I180: SPMW
D181: SSEH | I181: SSEH
D182: SSES | I182: SSES
D183: Total | E183: =SUM(E169:E182) -> 0 | F183: =SUM(F169:F182) -> 0 | G183: =SUM(G169:G182) -> 0
J185: PLANNED | P185: UNPLANNED
D186: 2022/23 | I186: 2022/23 | J186: CI | M186: CML | P186: CI | S186: CML
E187: Total reward (£m)** | F187: Regulation 7 Severe Weather Conditions Adjustment | G187: Normal weather conditions adjustment | J187: Performance | K187: Target | L187: Reward/Penalty (£m) | M187: Performance | N187: Target | O187: Reward/Penalty (£m) | P187: Performance | Q187: Target | R187: Reward/Penalty (£m) | S187: Performance | T187: Target | U187: Reward/Penalty (£m)
D188: ENWL | I188: ENWL
D189: NPgN | I189: NPgN
D190: NPgY | I190: NPgY
D191: WMID | I191: WMID
D192: EMID | I192: EMID
D193: SWALES | I193: SWALES
D194: SWEST | I194: SWEST
D195: LPN | I195: LPN
D196: SPN | I196: SPN
D197: EPN | I197: EPN
D198: SPD | I198: SPD
D199: SPMW | I199: SPMW
D200: SSEH | I200: SSEH
D201: SSES | I201: SSES
D202: Total | E202: =SUM(E188:E201) -> 0 | F202: =SUM(F188:F201) -> 0 | G202: =SUM(G188:G201) -> 0
B206: Guaranteed Standards of Performance (GSoP)
E207: Guaranteed Standards of Performance - payments owed and percentage of mandatory payments made, 2015/16
E208: Regulation 5 (Supply Restoration: Normal Conditions)* | G208: Regulation 6 (Supply Restoration: Normal Conditions - 5,000 or more customers' premises interrupted) | I208: Regulation 7(1) - Supply Restoration: Category 1 Severe Weather Conditions* | K208: Regulation 7(2) - Supply Restoration: Category 2 Severe Weather Conditions* | M208: Regulation 7(3) - Supply Restoration: Category 3 Severe Weather Conditions* | O208: Regulation 8 (Supply Restoration: Rota Disconnection) | Q208: Regulation 10 (Supply Restoration: Multiple interruptions) | S208: Regulation 11 (Responding to Operation of Distributor's Fuse) | U208: Regulation 12 (Notice of Supply Interruption ) | W208: Regulation 13 (Investigation of Voltage complaints) | X208: Regulation 17 (Making and Keeping Appointments) | Z208: Regulation 19 (Payments owed under the Guaranteed Standards)
E209: Number of valid payments owed | F209: Mandatory payments vs valid payments owed | G209: Number of valid payments owed | H209: Mandatory payments vs valid payments owed | I209: Number of valid payments owed | J209: Mandatory payments vs valid payments owed | K209: Number of valid payments owed | L209: Mandatory payments vs valid payments owed | M209: Number of valid payments owed | N209: Mandatory payments vs valid payments owed | O209: Number of valid payments owed | P209: Mandatory payments vs valid payments owed | Q209: Number of valid payments owed | R209: Mandatory payments vs valid payments owed | S209: Number of failures to attend on time | T209: Mandatory payments vs valid payments owed | U209: Number of valid payments owed | V209: Mandatory payments vs valid payments owed | W209: Total number of mandatory payments made | X209: Failures to offer timed appt. | Y209: Mandatory payments vs valid payments owed | Z209: Total payments due | AA209: Mandatory payments vs valid payments owed
D210: ENWL | E210: ='[19]Analysis JA'!C4 -> 256 | F210: ='[19]Analysis JA'!D4 -> 1.1015625 | G210: ='[19]Analysis JA'!E4 -> 0 | H210: ='[19]Analysis JA'!F4 -> N/A | I210: ='[19]Analysis JA'!G4 -> 0 | J210: ='[19]Analysis JA'!H4 -> N/A | K210: ='[19]Analysis JA'!I4 -> 3 | L210: ='[19]Analysis JA'!J4 -> 1 | M210: ='[19]Analysis JA'!K4 -> 0 | N210: ='[19]Analysis JA'!L4 -> N/A | O210: ='[19]Analysis JA'!M4 -> 0 | P210: ='[19]Analysis JA'!N4 -> N/A | Q210: ='[19]Analysis JA'!O4 -> 21 | R210: ='[19]Analysis JA'!P4 -> 1 | S210: ='[19]Analysis JA'!Q4 -> 0 | T210: ='[19]Analysis JA'!R4 -> N/A | U210: ='[19]Analysis JA'!S4 -> 383 | V210: ='[19]Analysis JA'!T4 -> 1 | W210: ='[19]Analysis JA'!U4 -> 0 | X210: ='[19]Analysis JA'!$C90-'[19]Analysis JA'!$D90 -> 1079 | Y210: ='[19]Analysis JA'!W4 -> 1 | Z210: ='[19]Analysis JA'!X4 -> 1042 | AA210: ='[19]Analysis JA'!Y4 -> 1
D211: NPGN | E211: ='[19]Analysis JA'!C5 -> 2426 | F211: ='[19]Analysis JA'!D5 -> 1 | G211: ='[19]Analysis JA'!E5 -> 0 | H211: ='[19]Analysis JA'!F5 -> N/A | I211: ='[19]Analysis JA'!G5 -> 321 | J211: ='[19]Analysis JA'!H5 -> 1 | K211: ='[19]Analysis JA'!I5 -> 0 | L211: ='[19]Analysis JA'!J5 -> N/A | M211: ='[19]Analysis JA'!K5 -> 0 | N211: ='[19]Analysis JA'!L5 -> N/A | O211: ='[19]Analysis JA'!M5 -> 0 | P211: ='[19]Analysis JA'!N5 -> N/A | Q211: ='[19]Analysis JA'!O5 -> 2 | R211: ='[19]Analysis JA'!P5 -> 1 | S211: ='[19]Analysis JA'!Q5 -> 0 | T211: ='[19]Analysis JA'!R5 -> N/A | U211: ='[19]Analysis JA'!S5 -> 28 | V211: ='[19]Analysis JA'!T5 -> 1 | W211: ='[19]Analysis JA'!U5 -> 0 | X211: ='[19]Analysis JA'!$C91-'[19]Analysis JA'!$D91 -> 18 | Y211: ='[19]Analysis JA'!W5 -> 0.7727272727 | Z211: ='[19]Analysis JA'!X5 -> 14 | AA211: ='[19]Analysis JA'!Y5 -> 1
D212: NPGY | E212: ='[19]Analysis JA'!C6 -> 1455 | F212: ='[19]Analysis JA'!D6 -> 1 | G212: ='[19]Analysis JA'!E6 -> 0 | H212: ='[19]Analysis JA'!F6 -> N/A | I212: ='[19]Analysis JA'!G6 -> 1067 | J212: ='[19]Analysis JA'!H6 -> 1 | K212: ='[19]Analysis JA'!I6 -> 0 | L212: ='[19]Analysis JA'!J6 -> N/A | M212: ='[19]Analysis JA'!K6 -> 0 | N212: ='[19]Analysis JA'!L6 -> N/A | O212: ='[19]Analysis JA'!M6 -> 0 | P212: ='[19]Analysis JA'!N6 -> N/A | Q212: ='[19]Analysis JA'!O6 -> 0 | R212: ='[19]Analysis JA'!P6 -> N/A | S212: ='[19]Analysis JA'!Q6 -> 0 | T212: ='[19]Analysis JA'!R6 -> N/A | U212: ='[19]Analysis JA'!S6 -> 24 | V212: ='[19]Analysis JA'!T6 -> 1 | W212: ='[19]Analysis JA'!U6 -> 0 | X212: ='[19]Analysis JA'!$C92-'[19]Analysis JA'!$D92 -> 27 | Y212: ='[19]Analysis JA'!W6 -> 0.6923076923 | Z212: ='[19]Analysis JA'!X6 -> 17 | AA212: ='[19]Analysis JA'!Y6 -> 1
D213: WMID | E213: ='[19]Analysis JA'!C7 -> 0 | F213: ='[19]Analysis JA'!D7 -> N/A | G213: ='[19]Analysis JA'!E7 -> 0 | H213: ='[19]Analysis JA'!F7 -> N/A | I213: ='[19]Analysis JA'!G7 -> 0 | J213: ='[19]Analysis JA'!H7 -> N/A | K213: ='[19]Analysis JA'!I7 -> 0 | L213: ='[19]Analysis JA'!J7 -> N/A | M213: ='[19]Analysis JA'!K7 -> 0 | N213: ='[19]Analysis JA'!L7 -> N/A | O213: ='[19]Analysis JA'!M7 -> 0 | P213: ='[19]Analysis JA'!N7 -> N/A | Q213: ='[19]Analysis JA'!O7 -> 0 | R213: ='[19]Analysis JA'!P7 -> N/A | S213: ='[19]Analysis JA'!Q7 -> 0 | T213: ='[19]Analysis JA'!R7 -> N/A | U213: ='[19]Analysis JA'!S7 -> 0 | V213: ='[19]Analysis JA'!T7 -> N/A | W213: ='[19]Analysis JA'!U7 -> 0 | X213: ='[19]Analysis JA'!$C93-'[19]Analysis JA'!$D93 -> 12664 | Y213: ='[19]Analysis JA'!W7 -> 0 | Z213: ='[19]Analysis JA'!X7 -> 0 | AA213: ='[19]Analysis JA'!Y7 -> N/A
D214: EMID | E214: ='[19]Analysis JA'!C8 -> 0 | F214: ='[19]Analysis JA'!D8 -> N/A | G214: ='[19]Analysis JA'!E8 -> 0 | H214: ='[19]Analysis JA'!F8 -> N/A | I214: ='[19]Analysis JA'!G8 -> 0 | J214: ='[19]Analysis JA'!H8 -> N/A | K214: ='[19]Analysis JA'!I8 -> 0 | L214: ='[19]Analysis JA'!J8 -> N/A | M214: ='[19]Analysis JA'!K8 -> 0 | N214: ='[19]Analysis JA'!L8 -> N/A | O214: ='[19]Analysis JA'!M8 -> 0 | P214: ='[19]Analysis JA'!N8 -> N/A | Q214: ='[19]Analysis JA'!O8 -> 0 | R214: ='[19]Analysis JA'!P8 -> N/A | S214: ='[19]Analysis JA'!Q8 -> 0 | T214: ='[19]Analysis JA'!R8 -> N/A | U214: ='[19]Analysis JA'!S8 -> 3 | V214: ='[19]Analysis JA'!T8 -> 1 | W214: ='[19]Analysis JA'!U8 -> 0 | X214: ='[19]Analysis JA'!$C94-'[19]Analysis JA'!$D94 -> 17409 | Y214: ='[19]Analysis JA'!W8 -> 0 | Z214: ='[19]Analysis JA'!X8 -> 0 | AA214: ='[19]Analysis JA'!Y8 -> N/A
D215: SWALES | E215: ='[19]Analysis JA'!C9 -> 0 | F215: ='[19]Analysis JA'!D9 -> N/A | G215: ='[19]Analysis JA'!E9 -> 0 | H215: ='[19]Analysis JA'!F9 -> N/A | I215: ='[19]Analysis JA'!G9 -> 0 | J215: ='[19]Analysis JA'!H9 -> N/A | K215: ='[19]Analysis JA'!I9 -> 0 | L215: ='[19]Analysis JA'!J9 -> N/A | M215: ='[19]Analysis JA'!K9 -> 0 | N215: ='[19]Analysis JA'!L9 -> N/A | O215: ='[19]Analysis JA'!M9 -> 0 | P215: ='[19]Analysis JA'!N9 -> N/A | Q215: ='[19]Analysis JA'!O9 -> 0 | R215: ='[19]Analysis JA'!P9 -> N/A | S215: ='[19]Analysis JA'!Q9 -> 0 | T215: ='[19]Analysis JA'!R9 -> N/A | U215: ='[19]Analysis JA'!S9 -> 1 | V215: ='[19]Analysis JA'!T9 -> 1 | W215: ='[19]Analysis JA'!U9 -> 0 | X215: ='[19]Analysis JA'!$C95-'[19]Analysis JA'!$D95 -> 7505 | Y215: ='[19]Analysis JA'!W9 -> 0.0001332445037 | Z215: ='[19]Analysis JA'!X9 -> 0 | AA215: ='[19]Analysis JA'!Y9 -> N/A
... 296 more rows

Sheet Ch2 - Network Asset SDs
A1: Chapter 2 - Reliability and Availability
B2: Performance against the outputs that DNOs are incentivised to deliver under RIIO-ED1.
B4: Reliability and availability: providing long-term reliability, minimising the number and duration of interruptions and ensuring adaptation to climate change.
B5: Incentive measure | F5: Incentive type
B6: Health, criticality and monetised risk: DNOs can receive a financial reward or incur a financial penalty depending on their performance against a target for the reduction in network risk that is delivered through specified asset replacement and refurbishment activities. | F6: Financial: penalty of 2.5% of under delivery or reward of 2.5% of over delivery.
D8: Year 1 to Year 5 cumulative delivery against rebased NAW target (Monetised risk points)
B9: Network Asset Indices Secondary Deliverables
D10: Position at Beginning of RIIO-ED1 | E10: End of RIIO-ED1 (Without Investment) | F10: End of RIIO-ED1 (With Investment) | G10: Impact of investment | H10: Deterioration | I10: Year 1 to Year 5 cumulative delivery against rebased NAW target | J10: % Delivered
C11: ENWL | D11: =[42]SDs!D5 -> 34717173.95 | E11: =[42]SDs!E5 -> 52801732.97 | F11: =[42]SDs!F5 -> 41290441.3 | G11: =SUM(F11-E11) * -1 -> 11511291.66 | H11: =+E11-D11 -> 18084559.02 | I11: =[42]SDs!M5 -> 8390111.233 | J11: =I11/G11 -> 0.7288592347
C12: NPgN | D12: =[42]SDs!D6 -> 35398060.56 | E12: =[42]SDs!E6 -> 50635472.35 | F12: =[42]SDs!F6 -> 40069116.53 | G12: =SUM(F12-E12) * -1 -> 10566355.82 | H12: =+E12-D12 -> 15237411.79 | I12: =[42]SDs!M6 -> 7931172.749 | J12: =I12/G12 -> 0.7506062527
C13: NPgY | D13: =[42]SDs!D7 -> 29674137.94 | E13: =[42]SDs!E7 -> 39226669.01 | F13: =[42]SDs!F7 -> 29830607.61 | G13: 9396061.403 | H13: 9552531.069 | I13: =[42]SDs!M7 -> 5406926.26 | J13: 0.575446033
C14: WMID | D14: =[42]SDs!D8 -> 40210986.97 | E14: =[42]SDs!E8 -> 52621580.09 | F14: =[42]SDs!F8 -> 35393380.37 | G14: 17228199.72 | H14: 12410593.12 | I14: =[42]SDs!M8 -> 15331890.62 | J14: 0.8899299328
C15: EMID | D15: =[42]SDs!D9 -> 34930944.44 | E15: =[42]SDs!E9 -> 42724719.56 | F15: =[42]SDs!F9 -> 30194501.95 | G15: 12530217.61 | H15: 7793775.128 | I15: =[42]SDs!M9 -> 10844552.19 | J15: 0.8654719752
C16: SWALES | D16: =[42]SDs!D10 -> 20709600.89 | E16: =[42]SDs!E10 -> 27797837.72 | F16: =[42]SDs!F10 -> 17981336.21 | G16: 9816501.507 | H16: 7088236.823 | I16: =[42]SDs!M10 -> 8037163.919 | J16: 0.8187401503
C17: SWEST | D17: =[42]SDs!D11 -> 31601986.91 | E17: =[42]SDs!E11 -> 46546170.72 | F17: =[42]SDs!F11 -> 30235486.38 | G17: 16310684.34 | H17: 14944183.81 | I17: =[42]SDs!M11 -> 12299687.29 | J17: 0.7540877524
C18: LPN | D18: =[42]SDs!D12 -> 27708452.58 | E18: =[42]SDs!E12 -> 35728247.99 | F18: =[42]SDs!F12 -> 26585580.8 | G18: 9142667.194 | H18: 8019795.416 | I18: =[42]SDs!M12 -> 6217258.538 | J18: 0.6800267806
C19: SPN | D19: =[42]SDs!D13 -> 35848065.34 | E19: =[42]SDs!E13 -> 46097951.08 | F19: =[42]SDs!F13 -> 37659235.17 | G19: 8438715.907 | H19: 10249885.73 | I19: =[42]SDs!M13 -> 6042405.278 | J19: 0.716033736
C20: EPN | D20: =[42]SDs!D14 -> 50577623.92 | E20: =[42]SDs!E14 -> 65823784.59 | F20: =[42]SDs!F14 -> 54362805.49 | G20: 11460979.09 | H20: 15246160.66 | I20: =[42]SDs!M14 -> 8117218.567 | J20: 0.7082482658
C21: SPD | D21: =[42]SDs!D15 -> 30942854.04 | E21: =[42]SDs!E15 -> 46997140.34 | F21: =[42]SDs!F15 -> 40114396.53 | G21: 6882743.814 | H21: 16054286.3 | I21: =[42]SDs!M15 -> 5955496.443 | J21: 0.8652794008
C22: SPMW | D22: =[42]SDs!D16 -> 36840842.87 | E22: =[42]SDs!E16 -> 52578037.67 | F22: =[42]SDs!F16 -> 42446657.55 | G22: 10131380.12 | H22: 15737194.81 | I22: =[42]SDs!M16 -> 7477229.842 | J22: 0.7380267792
C23: SSEH | D23: =[42]SDs!D17 -> 29746923.89 | E23: =[42]SDs!E17 -> 40727721.33 | F23: =[42]SDs!F17 -> 34325214.59 | G23: 6402506.739 | H23: 10980797.44 | I23: =[42]SDs!M17 -> 4329964 | J23: 0.6762919863
C24: SSES | D24: =[42]SDs!D18 -> 47453646.57 | E24: =[42]SDs!E18 -> 65647485.21 | F24: =[42]SDs!F18 -> 49343867.27 | G24: 16303617.94 | H24: 18193838.64 | I24: =[42]SDs!M18 -> 9737896.037 | J24: 0.5972843619
C25: Total | D25: =SUM(D11:D24) -> 486361300.9 | E25: =SUM(E11:E24) -> 665954550.6 | F25: =SUM(F11:F24) -> 509832627.8 | G25: =SUM(F25-E25) * -1 -> 156121922.9 | H25: =+E25-D25 -> 179593249.8 | I25: =SUM(I11:I24) -> 116118973 | J25: 0.7437710914

Sheet Ch2 outputs - connections
A1: Chapter 2 - Connections
B2: Performance against the outputs that DNOs are incentivised to deliver under RIIO-ED1.
B4: Connections: connecting customers in a timely and efficient way, including responding to different customers' specific needs, while enabling competition.
B5: Incentive measure | F5: Incentive type
B6: Time to Connect Incentive: reward for reducing average time taken to connect smaller and less complex customer connections. | F6: Financial: reward only of up to 0.4% base revenue.
B7: Incentive on Connections Engagement (ICE): penalty where DNOs fail to engage effectively with, and understand requirements of, customers seeking larger and more complex connections. | F7: Financial: penalty only of up to 0.9% of base revenue.
B8: Connections Guaranteed Standards of Performance (GSOP): direct payment to customers of fixed amounts if DNO fails to deliver specified minimum levels of performance regarding connections. | F8: Financial: payment to customers for failure to meet standards. Reputational.
B9: Customer satisfaction survey: connection customers are one of three customer types in the Broad Measure of Customer Satisfaction survey. | F9: Financial: reward or penalty of 0.5% of base revenue which feeds into the overall reward or penalty under BMCS of +/- 1.5% of base revenue.
B12: Distributed Generation (DG) | D12: Capacity of generation connected to the distribution network by type (MW)
E13: 2016 | F13: 2017 | G13: 2018 | H13: 2019 | I13: 2020 | J13: 2021 | K13: 2022 | L13: 2023
D14: Photovoltaic (G83) | E14: ='[43]DG connected'!$X$12+'[43]DG connected'!$X$21 -> 365.9510778 | F14: ='[43]DG connected'!$X$34+'[43]DG connected'!$X$43 -> 60.38518237 | G14: ='[43]DG connected'!$X$55+'[43]DG connected'!$X$64 -> 41.752305 | H14: ='[43]DG connected'!$X$76+'[43]DG connected'!$X$85 -> 64.306345 | I14: ='[43]DG connected'!$X97+'[43]DG connected'!$X106 -> 27.86872945
D15: Other DG (G83) | E15: ='[43]DG connected'!$X$13+'[43]DG connected'!$X$22 -> 0.63915 | F15: ='[43]DG connected'!$X$35+'[43]DG connected'!$X$44 -> 0.190423 | G15: ='[43]DG connected'!$X$56+'[43]DG connected'!$X$65 -> 0.3235 | H15: ='[43]DG connected'!$X$77+'[43]DG connected'!$X$86 -> 0.511 | I15: ='[43]DG connected'!$X98+'[43]DG connected'!$X107 -> 1.423341
D16: DG (non G83) | E16: ='[43]DG connected'!$X$14+'[43]DG connected'!$X$23 -> 3404.36418 | F16: ='[43]DG connected'!$X$36+'[43]DG connected'!$X$45 -> 3394.38509 | G16: ='[43]DG connected'!$X$57+'[43]DG connected'!$X$66 -> 1783.6006 | H16: ='[43]DG connected'!$X$78+'[43]DG connected'!$X$87 -> 941.92234 | I16: ='[43]DG connected'!$X99+'[43]DG connected'!$X108 -> 1186.599356
B21: Time to connect incentive
D22: Industry average Time to Connect improvements from targets (working days) comparing 2013 and 2019-20 performance
F23: LVSSA | I23: LVSSB
F24: Average Time to Quote | G24: Time to Connect | H24: Overall | I24: Average Time to Quote | J24: Time to Connect | K24: Overall
E25: Previous industry average (2013 performance) | F25: ='[44]Time to connect improvement'!$Q$10 -> 9.140409588 | G25: ='[44]Time to connect improvement'!$Q$12 -> 46.3821136 | H25: ='[44]Time to connect improvement'!$Q$14 -> 55.52252319 | I25: ='[44]Time to connect improvement'!$Q$11 -> 14.45688562 | J25: ='[44]Time to connect improvement'!$Q$13 -> 57.00932472 | K25: ='[44]Time to connect improvement'!$Q$15 -> 71.46621034
D26: New industry average | E26: 2016 | F26: =E56 -> 4.913018774 | G26: =G56 -> 35.71963442 | H26: ='[45]Time to connect improvement'!$R$55 -> 40.63265319 | I26: =I56 -> 7.438419017 | J26: =K56 -> 43.1603969 | K26: ='[45]Time to connect improvement'!$R$56 -> 50.59881592
E27: 2017 | F27: =U56 -> 4.641116624 | G27: =W56 -> 43.50555453 | H27: =[46]CR13!$T$22 -> 48.14667115 | I27: =Y56 -> 7.178433711 | J27: =AA56 -> 53.13871612 | K27: =[46]CR13!$T$23 -> 60.31714983
E28: 2018 | F28: =AJ56 -> 4.979260877 | G28: =AL56 -> 38.62718439 | H28: =[44]CR13!$T$22 -> 43.60644526 | I28: =AN56 -> 8.906817939 | J28: =AP56 -> 47.51635595 | K28: =[44]CR13!$T$23 -> 56.42317389
E29: 2019 | F29: =AY56 -> 4.829855035 | G29: =BA56 -> 36.17609876 | H29: =[47]CR13!$T$22 -> 41.0059538 | I29: =BC56 -> 8.001225029 | J29: =BE56 -> 44.71706555 | K29: =[47]CR13!$T$23 -> 52.71829058
E30: 2020 | F30: =BN56 -> 4.10658022 | G30: =BP56 -> 33.9884512 | H30: =[48]CR13!$T$22 -> 38.09503142 | I30: =BR56 -> 6.260514907 | J30: =BT56 -> 41.34040034 | K30: =[48]CR13!$T$23 -> 47.60091524
E31: 2021
E32: 2022
E33: 2023
E34: Improvement | F34: =F25-F30 -> 5.033829368 | G34: 12.3936624 | H34: 17.42749177 | I34: 8.196370713 | J34: 15.66892438 | K34: 23.86529509
E35: Improvement - % | F35: =F34/F25 -> 0.5507225163 | G35: 0.2672077971 | H35: 0.3138814803 | I35: 0.5669527261 | J35: 0.2748484473 | K35: 0.3339381644
E38: 2015/16 | U38: 2016/17 | AJ38: 2017/18 | AY38: 2018/19 | BN38: 2019-20 | CC38: 2020-21 | CR38: 2021-22 | DG38: 2022-23
E39: LVSSA | I39: LVSSB | M39: Reward | O39: RAG and ranking | U39: LVSSA | Y39: LVSSB | AC39: Reward | AE39: RAG and ranking | AJ39: LVSSA | AN39: LVSSB | AR39: Reward | AT39: RAG and ranking | AY39: LVSSA | BC39: LVSSB | BG39: Reward | BI39: RAG and ranking | BN39: LVSSA | BR39: LVSSB | BV39: Reward | BX39: RAG and ranking | CC39: LVSSA | CG39: LVSSB | CK39: Reward | CM39: RAG and ranking | CR39: LVSSA | CV39: LVSSB | CZ39: Reward | DB39: RAG and ranking | DG39: LVSSA | DK39: LVSSB | DO39: Reward | DQ39: RAG and ranking
E40: Average Time to Quote | F40: Ranking | G40: Time to Connect | H40: Ranking | I40: Time to Quote | J40: Ranking | K40: Time to Connect | L40: Ranking | M40: (£m 2012/13 Prices) | N40: (£m 2019/20 Prices) | O40: RAG | P40: Average ranking | Q40: Overall ranking | R40: Overall (LVSSA + LVSSB) | U40: Average Time to Quote | V40: Ranking | W40: Time to Connect | X40: Ranking | Y40: Time to Quote | Z40: Ranking | AA40: Time to Connect | AB40: Ranking | AC40: (£m 2012/13 Prices) | AD40: (£m 2019/20 Prices) | AE40: RAG | AF40: Average ranking | AG40: Overall ranking | AH40: Overall (LVSSA + LVSSB) | AJ40: Average Time to Quote | AK40: Ranking | AL40: Time to Connect | AM40: Ranking | AN40: Time to Quote | AO40: Ranking | AP40: Time to Connect | AQ40: Ranking | AR40: (£m 2012/13 Prices) | AS40: (£m 2019/20 Prices) | AT40: RAG | AU40: Average ranking | AV40: Overall ranking | AW40: Overall (LVSSA + LVSSB) | AY40: Average Time to Quote | AZ40: Ranking | BA40: Time to Connect | BB40: Ranking | BC40: Time to Quote | BD40: Ranking | BE40: Time to Connect | BF40: Ranking | BG40: (£m 2012/13 Prices) | BH40: (£m 2019/20 Prices) | BI40: RAG | BJ40: Average ranking | BK40: Overall ranking | BL40: Overall (LVSSA + LVSSB) | BN40: Average Time to Quote | BO40: Ranking | BP40: Time to Connect | BQ40: Ranking | BR40: Time to Quote | BS40: Ranking | BT40: Time to Connect | BU40: Ranking | BV40: (£m 2012/13 Prices) | BW40: (£m 2019/20 Prices) | BX40: RAG | BY40: Average ranking | BZ40: Overall ranking | CA40: Overall (LVSSA + LVSSB) | CC40: Average Time to Quote | CD40: Ranking | CE40: Time to Connect | CF40: Ranking | CG40: Time to Quote | CH40: Ranking | CI40: Time to Connect | CJ40: Ranking | CK40: (£m 2012/13 Prices) | CL40: (£m 2016/17 Prices) | CM40: RAG | CN40: Average ranking | CO40: Overall ranking | CP40: Overall (LVSSA + LVSSB) | CR40: Average Time to Quote | CS40: Ranking | CT40: Time to Connect | CU40: Ranking | CV40: Time to Quote | CW40: Ranking | CX40: Time to Connect | CY40: Ranking | CZ40: (£m 2012/13 Prices) | DA40: (£m 2016/17 Prices) | DB40: RAG | DC40: Average ranking | DD40: Overall ranking | DE40: Overall (LVSSA + LVSSB) | DG40: Average Time to Quote | DH40: Ranking | DI40: Time to Connect | DJ40: Ranking | DK40: Time to Quote | DL40: Ranking | DM40: Time to Connect | DN40: Ranking | DO40: (£m 2012/13 Prices) | DP40: (£m 2016/17 Prices) | DQ40: RAG | DR40: Average ranking | DS40: Overall ranking | DT40: Overall (LVSSA + LVSSB)
E41: Working days | U41: Working days | AJ41: Working days | AY41: Working days | BN41: Working days | CC41: Working days | CR41: Working days | DG41: Working days
D42: ENWL | E42: =[45]CR13!C87 -> 4.002441406 | F42: =RANK(E42,$E$42:$E$55,1) -> 5 | G42: =[45]CR13!D87 -> 30.36199095 | H42: =RANK(G42,$G$42:$G$55,1) -> 2 | I42: =[45]CR13!E87 -> 7.434077079 | J42: =RANK(I42,$I$42:$I$55,1) -> 9 | K42: =[45]CR13!F87 -> 36.88172043 | L42: =RANK(K42,$K$42:$K$55,1) -> 2 | M42: =[45]CR13!G87 -> 1.2 | N42: =M42*'Guide & drivers'!$D$29 -> 1.425443548 | O42: =IF(SUM(IF(E42<=$E$57,1,0),IF(G42<=$G$57,1,0),IF(I42<=$I$57,1,0),IF(K42<=$K$57,1,0))=4,"Green",IF(SUM(IF(E42>$E$59,1,0),IF(G42>$G$59,1,0),IF(I42>$I$59,1,0),IF(K42>$K$59,1,0))>=3,"Red","Amber")) -> Green | P42: =AVERAGE(F42,H42,J42,L42) -> 4.5 | Q42: =RANK(P42,$P$42:$P$55,1) -> 3 | R42: =SUM(E42,G42,I42,K42) -> 78.68022987 | T42: ENWL | U42: =VLOOKUP(T42,[46]CR13!$B$87:$G$101,2,FALSE) -> 2.96 | V42: =RANK(U42,$U$42:$U$55,1) -> 2 | W42: =VLOOKUP(T42,[46]CR13!$B$85:$G$101,3,FALSE) -> 31.91009464 | X42: =RANK(W42,$W$42:$W$55,1) -> 2 | Y42: =VLOOKUP(T42,[46]CR13!$B$85:$G$101,4,FALSE) -> 7.91556367 | Z42: =RANK(Y42,$Y$42:$Y$55,1) -> 10 | AA42: =VLOOKUP(T42,[46]CR13!$B$85:$G$101,5,FALSE) -> 31.672 | AB42: =RANK(AA42,$AA$42:$AA$55,1) -> 1 | AC42: =SUM('[49]R7 Output Incentives'!$H$263:$H$266) -> 1.2 | AD42: =AC42*'Guide & drivers'!$D$29 -> 1.425443548 | AE42: =IF(SUM(IF(U42<=$U$57,1,0),IF(W42<=$W$57,1,0),IF(Y42<=$Y$57,1,0),IF(AA42<=$AA$57,1,0))=4,"Green",IF(SUM(IF(U42>$U$59,1,0),IF(W42>$W$59,1,0),IF(Y42>$Y$59,1,0),IF(AA42>$AA$59,1,0))>=3,"Red","Amber")) -> Green | AF42: =AVERAGE(V42,X42,Z42,AB42) -> 3.75 | AG42: =RANK(AF42,$AF$42:$AF$55,1) -> 3 | AH42: =SUM(U42,W42,Y42,AA42) -> 74.45765831 | AI42: ENWL | AJ42: =VLOOKUP(T42,[44]CR13!$B$87:$G$101,2,FALSE) -> 3.7 | AK42: =RANK(AJ42,$AJ$42:$AJ$55,1) -> 5 | AL42: =VLOOKUP(T42,[44]CR13!$B$85:$G$101,3,FALSE) -> 31.72 | AM42: =RANK(AL42,$AL$42:$AL$55,1) -> 6 | AN42: =VLOOKUP(T42,[44]CR13!$B$87:$G$101,4,FALSE) -> 8.25 | AO42: =RANK(AN42,$AN$42:$AN$55,1) -> 7 | AP42: =VLOOKUP(T42,[44]CR13!$B$87:$G$101,5,FALSE) -> 34.28 | AQ42: =RANK(AP42,$AP$42:$AP$55,1) -> 3 | AR42: 1.2 | AS42: =AR42*'Guide & drivers'!C35 -> 1.425443548 | AT42: =IF(SUM(IF(AJ42<=$AJ$57,1,0),IF(AL42<=$AL$57,1,0),IF(AN42<=$AN$57,1,0),IF(AP42<=$AP$57,1,0))=4,"Green",IF(SUM(IF(AJ42>$AJ$59,1,0),IF(AL42>$AL$59,1,0),IF(AN42>$AN$59,1,0),IF(AP42>$AP$59,1,0))>=3,"Red","Amber")) -> Green | AU42: =AVERAGE(AK42,AM42,AO42,AQ42) -> 5.25 | AV42: =RANK(AU42,$AU$42:$AU$55,1) -> 6 | AW42: =SUM(AJ42,AL42,AN42,AP42) -> 77.95 | AY42: =VLOOKUP(AI42,[47]CR13!$B$87:$G$101,2,FALSE) -> 3.72 | AZ42: =RANK(AY42,$AY$42:$AY$55,1) -> 6 | BA42: =VLOOKUP(AI42,[47]CR13!$B$85:$G$101,3,FALSE) -> 32.87 | BB42: =RANK(BA42,$BA$42:$BA$55,1) -> 7 | BC42: =VLOOKUP(AI42,[47]CR13!$B$87:$G$101,4,FALSE) -> 6.79 | BD42: =RANK(BC42,$BC$42:$BC$55,1) -> 7 | BE42: =VLOOKUP(AI42,[47]CR13!$B$87:$G$101,5,FALSE) -> 35.67 | BF42: =RANK(BE42,$BE$42:$BE$55,1) -> 5 | BG42: =BH42/'Guide & drivers'!$J$22 -> 1.1763 | BH42: =[50]Sheet1!D3*'Guide & drivers'!$J$28 -> 1.397291037 | BI42: =IF(SUM(IF(AY42<=$AY$57,1,0),IF(BA42<=$BA$57,1,0),IF(BC42<=$BC$57,1,0),IF(BE42<=$BE$57,1,0))=4,"Green",IF(SUM(IF(AY42>$AY$59,1,0),IF(BA42>$BA$59,1,0),IF(BC42>$BC$59,1,0),IF(BE42>$BE$59,1,0))>=3,"Red","Amber")) -> Green | BJ42: =AVERAGE(AZ42,BB42,BD42,BF42) -> 6.25 | BK42: =RANK(BJ42,$BJ$42:$BJ$55,1) -> 6 | BL42: =SUM(AY42,BA42,BC42,BE42) -> 79.05 | BN42: =VLOOKUP(AI42,[48]CR13!$B$87:$G$101,2,FALSE) -> 2.460748048 | BO42: =RANK(BN42,$BN$42:$BN$55,1) -> 4 | BP42: =VLOOKUP(AI42,[48]CR13!$B$85:$G$101,3,FALSE) -> 27.765625 | BQ42: =RANK(BP42,$BP$42:$BP$55,1) -> 5 | BR42: =VLOOKUP(AI42,[48]CR13!$B$87:$G$101,4,FALSE) -> 4.900815801 | BS42: =RANK(BR42,$BR$42:$BR$55,1) -> 7 | BT42: =VLOOKUP(AI42,[48]CR13!$B$87:$G$101,5,FALSE) -> 27.61734694 | BU42: =RANK(BT42,$BT$42:$BT$55,1) -> 2 | BV42: =BW42/'Guide & drivers'!$J$22 -> 1.193271131 | BW42: =[50]Sheet1!E3 -> 1.417450529 | BX42: =IF(SUM(IF(BN42<=$BN$57,1,0),IF(BP42<=$BP$57,1,0),IF(BR42<=$BR$57,1,0),IF(BT42<=$BT$57,1,0))=4,"Green",IF(SUM(IF(BN42>$BN$59,1,0),IF(BP42>$BP$59,1,0),IF(BR42>$BR$59,1,0),IF(BT42>$BT$59,1,0))>=3,"Red","Amber")) -> Green | BY42: =AVERAGE(BO42,BQ42,BS42,BU42) -> 4.5 | BZ42: =RANK(BY42,$BY$42:$BY$55,1) -> 6 | CA42: =SUM(BN42,BP42,BR42,BT42) -> 62.74453579
D43: NPgN | E43: =[45]CR13!C88 -> 5.715898401 | F43: =RANK(E43,$E$42:$E$55,1) -> 11 | G43: =[45]CR13!D88 -> 40.14694656 | H43: =RANK(G43,$G$42:$G$55,1) -> 11 | I43: =[45]CR13!E88 -> 9.584170854 | J43: =RANK(I43,$I$42:$I$55,1) -> 12 | K43: =[45]CR13!F88 -> 47.12105263 | L43: =RANK(K43,$K$42:$K$55,1) -> 12 | M43: =[45]CR13!G88 -> 0.5502400161 | N43: =M43*'Guide & drivers'!$D$29 -> 0.6536134004 | O43: Green | P43: =AVERAGE(F43,H43,J43,L43) -> 11.5 | Q43: =RANK(P43,$P$42:$P$55,1) -> 12 | R43: =SUM(E43,G43,I43,K43) -> 102.5680685 | T43: NPgN | U43: =VLOOKUP(T43,[46]CR13!$B$87:$G$101,2,FALSE) -> 5.581349206 | V43: =RANK(U43,$U$42:$U$55,1) -> 13 | W43: =VLOOKUP(T43,[46]CR13!$B$85:$G$101,3,FALSE) -> 50.62416107 | X43: =RANK(W43,$W$42:$W$55,1) -> 10 | Y43: =VLOOKUP(T43,[46]CR13!$B$85:$G$101,4,FALSE) -> 9.408921933 | Z43: =RANK(Y43,$Y$42:$Y$55,1) -> 13 | AA43: =VLOOKUP(T43,[46]CR13!$B$85:$G$101,5,FALSE) -> 57.69114471 | AB43: =RANK(AA43,$AA$42:$AA$55,1) -> 8 | AC43: =SUM('[51]R7 Output Incentives'!$H$263:$H$266) -> 0.4 | AD43: =AC43*'Guide & drivers'!$D$29 -> 0.4751478492 | AE43: Amber | AF43: =AVERAGE(V43,X43,Z43,AB43) -> 11 | AG43: 12 | AH43: =SUM(U43,W43,Y43,AA43) -> 123.3055769 | AI43: NPgN | AJ43: =VLOOKUP(T43,[44]CR13!$B$87:$G$101,2,FALSE) -> 7.99 | AK43: =RANK(AJ43,$AJ$42:$AJ$55,1) -> 14 | AL43: =VLOOKUP(T43,[44]CR13!$B$85:$G$101,3,FALSE) -> 53.75 | AM43: =RANK(AL43,$AL$42:$AL$55,1) -> 13 | AN43: =VLOOKUP(T43,[44]CR13!$B$87:$G$101,4,FALSE) -> 15.9 | AO43: =RANK(AN43,$AN$42:$AN$55,1) -> 13 | AP43: =VLOOKUP(T43,[44]CR13!$B$87:$G$101,5,FALSE) -> 63.01 | AQ43: =RANK(AP43,$AP$42:$AP$55,1) -> 11 | AR43: 0.03 | AS43: =AR43*'Guide & drivers'!C35 -> 0.03563608869 | AT43: =IF(SUM(IF(AJ43<=$AJ$57,1,0),IF(AL43<=$AL$57,1,0),IF(AN43<=$AN$57,1,0),IF(AP43<=$AP$57,1,0))=4,"Green",IF(SUM(IF(AJ43>$AJ$59,1,0),IF(AL43>$AL$59,1,0),IF(AN43>$AN$59,1,0),IF(AP43>$AP$59,1,0))>=3,"Red","Amber")) -> Red | AU43: =AVERAGE(AK43,AM43,AO43,AQ43) -> 12.75 | AV43: 14 | AW43: =SUM(AJ43,AL43,AN43,AP43) -> 140.65 | AY43: =VLOOKUP(AI43,[47]CR13!$B$87:$G$101,2,FALSE) -> 6.3 | AZ43: =RANK(AY43,$AY$42:$AY$55,1) -> 11 | BA43: =VLOOKUP(AI43,[47]CR13!$B$85:$G$101,3,FALSE) -> 41.15 | BB43: =RANK(BA43,$BA$42:$BA$55,1) -> 10 | BC43: =VLOOKUP(AI43,[47]CR13!$B$87:$G$101,4,FALSE) -> 11.39 | BD43: =RANK(BC43,$BC$42:$BC$55,1) -> 13 | BE43: =VLOOKUP(AI43,[47]CR13!$B$87:$G$101,5,FALSE) -> 50.75 | BF43: =RANK(BE43,$BE$42:$BE$55,1) -> 10 | BG43: =BH43/'Guide & drivers'!$J$22 -> 0.3052 | BH43: =[50]Sheet1!D4*'Guide & drivers'!$J$28 -> 0.3625378089 | BI43: =IF(SUM(IF(AY43<=$AY$57,1,0),IF(BA43<=$BA$57,1,0),IF(BC43<=$BC$57,1,0),IF(BE43<=$BE$57,1,0))=4,"Green",IF(SUM(IF(AY43>$AY$59,1,0),IF(BA43>$BA$59,1,0),IF(BC43>$BC$59,1,0),IF(BE43>$BE$59,1,0))>=3,"Red","Amber")) -> Green | BJ43: =AVERAGE(AZ43,BB43,BD43,BF43) -> 11 | BK43: =RANK(BJ43,$BJ$42:$BJ$55,1) -> 11 | BL43: =SUM(AY43,BA43,BC43,BE43) -> 109.59 | BN43: =VLOOKUP(AI43,[48]CR13!$B$87:$G$101,2,FALSE) -> 7.572450805 | BO43: 14 | BP43: =VLOOKUP(AI43,[48]CR13!$B$85:$G$101,3,FALSE) -> 40.45202952 | BQ43: 12 | BR43: =VLOOKUP(AI43,[48]CR13!$B$87:$G$101,4,FALSE) -> 14.29889299 | BS43: 14 | BT43: =VLOOKUP(AI43,[48]CR13!$B$87:$G$101,5,FALSE) -> 50.73857868 | BU43: 12 | BV43: =BW43/'Guide & drivers'!$J$22 -> 0 | BW43: =[50]Sheet1!E4 -> 0 | BX43: =IF(SUM(IF(BN43<=$BN$57,1,0),IF(BP43<=$BP$57,1,0),IF(BR43<=$BR$57,1,0),IF(BT43<=$BT$57,1,0))=4,"Green",IF(SUM(IF(BN43>$BN$59,1,0),IF(BP43>$BP$59,1,0),IF(BR43>$BR$59,1,0),IF(BT43>$BT$59,1,0))>=3,"Red","Amber")) -> Red | BY43: =AVERAGE(BO43,BQ43,BS43,BU43) -> 13 | BZ43: 14 | CA43: =SUM(BN43,BP43,BR43,BT43) -> 113.061952
D44: NPgY | E44: =[45]CR13!C89 -> 5.929051988 | F44: 12 | G44: =[45]CR13!D89 -> 43.39694656 | H44: 14 | I44: =[45]CR13!E89 -> 8.811673152 | J44: 11 | K44: =[45]CR13!F89 -> 47.90960452 | L44: 13 | M44: =[45]CR13!G89 -> 0.6958079096 | N44: =M44*'Guide & drivers'!$D$29 -> 0.8265290792 | O44: Amber | P44: 12.5 | Q44: 14 | R44: 106.0472762 | T44: NPgY | U44: =VLOOKUP(T44,[46]CR13!$B$87:$G$101,2,FALSE) -> 5.449211356 | V44: 11 | W44: =VLOOKUP(T44,[46]CR13!$B$85:$G$101,3,FALSE) -> 47.31283906 | X44: 9 | Y44: =VLOOKUP(T44,[46]CR13!$B$85:$G$101,4,FALSE) -> 8.455755677 | Z44: 12 | AA44: =VLOOKUP(T44,[46]CR13!$B$85:$G$101,5,FALSE) -> 55.8582996 | AB44: 7 | AC44: =SUM('[52]R7 Output Incentives'!$H$263:$H$266) -> 0.6 | AD44: =AC44*'Guide & drivers'!$D$29 -> 0.7127217738 | AE44: Amber | AF44: 9.75 | AG44: 10 | AH44: 117.0761057 | AI44: NPgY | AJ44: =VLOOKUP(T44,[44]CR13!$B$87:$G$101,2,FALSE) -> 7.84 | AK44: 13 | AL44: =VLOOKUP(T44,[44]CR13!$B$85:$G$101,3,FALSE) -> 47.07 | AM44: 12 | AN44: =VLOOKUP(T44,[44]CR13!$B$87:$G$101,4,FALSE) -> 16.81 | AO44: 14 | AP44: =VLOOKUP(T44,[44]CR13!$B$87:$G$101,5,FALSE) -> 55.51 | AQ44: 10 | AR44: 0.06 | AS44: =AR44*'Guide & drivers'!C35 -> 0.07127217738 | AT44: =IF(SUM(IF(AJ44<=$AJ$57,1,0),IF(AL44<=$AL$57,1,0),IF(AN44<=$AN$57,1,0),IF(AP44<=$AP$57,1,0))=4,"Green",IF(SUM(IF(AJ44>$AJ$59,1,0),IF(AL44>$AL$59,1,0),IF(AN44>$AN$59,1,0),IF(AP44>$AP$59,1,0))>=3,"Red","Amber")) -> Red | AU44: 12.25 | AV44: 13 | AW44: 127.23 | AY44: =VLOOKUP(AI44,[47]CR13!$B$87:$G$101,2,FALSE) -> 6.81 | AZ44: 12 | BA44: =VLOOKUP(AI44,[47]CR13!$B$85:$G$101,3,FALSE) -> 41.36 | BB44: 11 | BC44: =VLOOKUP(AI44,[47]CR13!$B$87:$G$101,4,FALSE) -> 15.14 | BD44: 14 | BE44: =VLOOKUP(AI44,[47]CR13!$B$87:$G$101,5,FALSE) -> 48.04 | BF44: 9 | BG44: =BH44/'Guide & drivers'!$J$22 -> 0.3528 | BH44: =[50]Sheet1!D5*'Guide & drivers'!$J$28 -> 0.419080403 | BI44: Amber | BJ44: 11.5 | BK44: 13 | BL44: 111.35 | BN44: =VLOOKUP(AI44,[48]CR13!$B$87:$G$101,2,FALSE) -> 7.112997347 | BO44: 13 | BP44: =VLOOKUP(AI44,[48]CR13!$B$85:$G$101,3,FALSE) -> 37.80387931 | BQ44: 11 | BR44: =VLOOKUP(AI44,[48]CR13!$B$87:$G$101,4,FALSE) -> 13.94715447 | BS44: 13 | BT44: =VLOOKUP(AI44,[48]CR13!$B$87:$G$101,5,FALSE) -> 44.90777339 | BU44: 11 | BV44: =BW44/'Guide & drivers'!$J$22 -> 0.1008490411 | BW44: =[50]Sheet1!E5 -> 0.1197955125 | BX44: Amber | BY44: 12 | BZ44: 12 | CA44: 103.7718045
D45: WMID | E45: =[45]CR13!C97 -> 4.8 | F45: 7 | G45: =[45]CR13!D97 -> 34.32 | H45: 7 | I45: =[45]CR13!E97 -> 6.11 | J45: 4 | K45: =[45]CR13!F97 -> 44.8 | L45: 8 | M45: =[45]CR13!G97 -> 1.3474 | N45: =M45*'Guide & drivers'!$D$29 -> 1.60053553 | O45: Green | P45: 6.5 | Q45: 5 | R45: 90.03 | T45: WMID | U45: =VLOOKUP(T45,[46]CR13!$B$87:$G$101,2,FALSE) -> 4.516757011 | V45: 6 | W45: =VLOOKUP(T45,[46]CR13!$B$85:$G$101,3,FALSE) -> 37.18447876 | X45: 6 | Y45: =VLOOKUP(T45,[46]CR13!$B$85:$G$101,4,FALSE) -> 6.083300114 | Z45: 4 | AA45: =VLOOKUP(T45,[46]CR13!$B$85:$G$101,5,FALSE) -> 47.50359726 | AB45: 6 | AC45: 1.15 | AD45: =AC45*'Guide & drivers'!$D$29 -> 1.366050066 | AE45: Green | AF45: 5.5 | AG45: 6 | AH45: 95.28813314 | AI45: WMID | AJ45: =VLOOKUP(T45,[44]CR13!$B$87:$G$101,2,FALSE) -> 4.14 | AK45: 6 | AL45: =VLOOKUP(T45,[44]CR13!$B$85:$G$101,3,FALSE) -> 28.08 | AM45: 3 | AN45: =VLOOKUP(T45,[44]CR13!$B$87:$G$101,4,FALSE) -> 4.47 | AO45: 1 | AP45: =VLOOKUP(T45,[44]CR13!$B$87:$G$101,5,FALSE) -> 40.28 | AQ45: 6 | AR45: 1.57 | AS45: =AR45*'Guide & drivers'!C35 -> 1.864955308 | AT45: Green | AU45: 4 | AV45: 3 | AW45: 76.97 | AY45: =VLOOKUP(AI45,[47]CR13!$B$87:$G$101,2,FALSE) -> 4.867473602 | AZ45: 8 | BA45: =VLOOKUP(AI45,[47]CR13!$B$85:$G$101,3,FALSE) -> 29.94631958 | BB45: 4 | BC45: =VLOOKUP(AI45,[47]CR13!$B$87:$G$101,4,FALSE) -> 5.705698967 | BD45: 4 | BE45: =VLOOKUP(AI45,[47]CR13!$B$87:$G$101,5,FALSE) -> 37.60849762 | BF45: 6 | BG45: =BH45/'Guide & drivers'!$J$22 -> 1.6 | BH45: =[50]Sheet1!D6*'Guide & drivers'!$J$28 -> 1.900591397 | BI45: Green | BJ45: 5.5 | BK45: 5 | BL45: 78.12798977 | BN45: =VLOOKUP(AI45,[48]CR13!$B$87:$G$101,2,FALSE) -> 2.274220467 | BO45: 3 | BP45: =VLOOKUP(AI45,[48]CR13!$B$85:$G$101,3,FALSE) -> 28.67314529 | BQ45: 6 | BR45: =VLOOKUP(AI45,[48]CR13!$B$87:$G$101,4,FALSE) -> 2.812472343 | BS45: 1 | BT45: =VLOOKUP(AI45,[48]CR13!$B$87:$G$101,5,FALSE) -> 34.81228256 | BU45: 6 | BV45: =BW45/'Guide & drivers'!$J$22 -> 1.6 | BW45: =[50]Sheet1!E6 -> 1.900591397 | BX45: Green | BY45: 4 | BZ45: 4 | CA45: 68.57212067
D46: EMID | E46: =[45]CR13!C98 -> 3.48 | F46: 3 | G46: =[45]CR13!D98 -> 31.89 | H46: 4 | I46: =[45]CR13!E98 -> 5.2 | J46: 3 | K46: =[45]CR13!F98 -> 41.25 | L46: 5 | M46: =[45]CR13!G98 -> 1.5435 | N46: =M46*'Guide & drivers'!$D$29 -> 1.833476763 | O46: Green | P46: 3.75 | Q46: 2 | R46: 81.82 | T46: EMID | U46: =VLOOKUP(T46,[46]CR13!$B$87:$G$101,2,FALSE) -> 3.475764751 | V46: 3 | W46: =VLOOKUP(T46,[46]CR13!$B$85:$G$101,3,FALSE) -> 34.40456009 | X46: 4 | Y46: =VLOOKUP(T46,[46]CR13!$B$85:$G$101,4,FALSE) -> 4.734363079 | Z46: 1 | AA46: =VLOOKUP(T46,[46]CR13!$B$85:$G$101,5,FALSE) -> 45.77630234 | AB46: 5 | AC46: 1.31 | AD46: =AC46*'Guide & drivers'!$D$29 -> 1.556109206 | AE46: Green | AF46: 3.25 | AG46: 1 | AH46: 88.39099026 | AI46: EMID | AJ46: =VLOOKUP(T46,[44]CR13!$B$87:$G$101,2,FALSE) -> 3.51 | AK46: 4 | AL46: =VLOOKUP(T46,[44]CR13!$B$85:$G$101,3,FALSE) -> 28.16 | AM46: 4 | AN46: =VLOOKUP(T46,[44]CR13!$B$87:$G$101,4,FALSE) -> 4.91 | AO46: 2 | AP46: =VLOOKUP(T46,[44]CR13!$B$87:$G$101,5,FALSE) -> 35.42 | AQ46: 4 | AR46: 1.6 | AS46: =AR46*'Guide & drivers'!C35 -> 1.900591397 | AT46: Green | AU46: 3.5 | AV46: 1 | AW46: 72 | AY46: =VLOOKUP(AI46,[47]CR13!$B$87:$G$101,2,FALSE) -> 3.63255024 | AZ46: 5 | BA46: =VLOOKUP(AI46,[47]CR13!$B$85:$G$101,3,FALSE) -> 30.38181877 | BB46: 5 | BC46: =VLOOKUP(AI46,[47]CR13!$B$87:$G$101,4,FALSE) -> 5.293838978 | BD46: 1 | BE46: =VLOOKUP(AI46,[47]CR13!$B$87:$G$101,5,FALSE) -> 35.40050507 | BF46: 4 | BG46: =BH46/'Guide & drivers'!$J$22 -> 1.6 | BH46: =[50]Sheet1!D7*'Guide & drivers'!$J$28 -> 1.900591397 | BI46: Green | BJ46: 3.75 | BK46: 2 | BL46: 74.70871305 | BN46: =VLOOKUP(AI46,[48]CR13!$B$87:$G$101,2,FALSE) -> 2.202741623 | BO46: 2 | BP46: =VLOOKUP(AI46,[48]CR13!$B$85:$G$101,3,FALSE) -> 27.54807663 | BQ46: 4 | BR46: =VLOOKUP(AI46,[48]CR13!$B$87:$G$101,4,FALSE) -> 3.45736146 | BS46: 2 | BT46: =VLOOKUP(AI46,[48]CR13!$B$87:$G$101,5,FALSE) -> 33.98343658 | BU46: 5 | BV46: =BW46/'Guide & drivers'!$J$22 -> 1.6 | BW46: =[50]Sheet1!E7 -> 1.900591397 | BX46: Green | BY46: 3.25 | BZ46: 2 | CA46: 67.1916163
D47: SWALES | E47: =[45]CR13!C99 -> 8.37 | F47: 14 | G47: =[45]CR13!D99 -> 30.26 | H47: 1 | I47: =[45]CR13!E99 -> 11.1 | J47: 14 | K47: =[45]CR13!F99 -> 34.55 | L47: 1 | M47: =[45]CR13!G99 -> 0.4571 | N47: =M47*'Guide & drivers'!$D$29 -> 0.5429752047 | O47: Amber | P47: 7.5 | Q47: 7 | R47: 84.28 | T47: SWALES | U47: =VLOOKUP(T47,[46]CR13!$B$87:$G$101,2,FALSE) -> 4.298858166 | V47: 5 | W47: =VLOOKUP(T47,[46]CR13!$B$85:$G$101,3,FALSE) -> 33.75547409 | X47: 3 | Y47: =VLOOKUP(T47,[46]CR13!$B$85:$G$101,4,FALSE) -> 5.778291225 | Z47: 2 | AA47: =VLOOKUP(T47,[46]CR13!$B$85:$G$101,5,FALSE) -> 42.5506897 | AB47: 3 | AC47: 0.67 | AD47: =AC47*'Guide & drivers'!$D$29 -> 0.7958726474 | AE47: Green | AF47: 3.25 | AG47: 1 | AH47: 86.38331318 | AI47: SWALES | AJ47: =VLOOKUP(T47,[44]CR13!$B$87:$G$101,2,FALSE) -> 3.3 | AK47: 2 | AL47: =VLOOKUP(T47,[44]CR13!$B$85:$G$101,3,FALSE) -> 28.35 | AM47: 5 | AN47: =VLOOKUP(T47,[44]CR13!$B$87:$G$101,4,FALSE) -> 4.93 | AO47: 3 | AP47: =VLOOKUP(T47,[44]CR13!$B$87:$G$101,5,FALSE) -> 38.51 | AQ47: 5 | AR47: 0.74 | AS47: =AR47*'Guide & drivers'!C35 -> 0.879023521 | AT47: Green | AU47: 3.75 | AV47: 2 | AW47: 75.09 | AY47: =VLOOKUP(AI47,[47]CR13!$B$87:$G$101,2,FALSE) -> 3.612288237 | AZ47: 4 | BA47: =VLOOKUP(AI47,[47]CR13!$B$85:$G$101,3,FALSE) -> 27.12729645 | BB47: 2 | BC47: =VLOOKUP(AI47,[47]CR13!$B$87:$G$101,4,FALSE) -> 6.367875576 | BD47: 6 | BE47: =VLOOKUP(AI47,[47]CR13!$B$87:$G$101,5,FALSE) -> 34.06459427 | BF47: 3 | BG47: =BH47/'Guide & drivers'!$J$22 -> 0.8 | BH47: =[50]Sheet1!D8*'Guide & drivers'!$J$28 -> 0.9502956984 | BI47: Green | BJ47: 3.75 | BK47: 2 | BL47: 71.17205453 | BN47: =VLOOKUP(AI47,[48]CR13!$B$87:$G$101,2,FALSE) -> 1.983154655 | BO47: 1 | BP47: =VLOOKUP(AI47,[48]CR13!$B$85:$G$101,3,FALSE) -> 24.60497284 | BQ47: 2 | BR47: =VLOOKUP(AI47,[48]CR13!$B$87:$G$101,4,FALSE) -> 3.663430452 | BS47: 4 | BT47: =VLOOKUP(AI47,[48]CR13!$B$87:$G$101,5,FALSE) -> 30.31649017 | BU47: 3 | BV47: =BW47/'Guide & drivers'!$J$22 -> 0.8 | BW47: =[50]Sheet1!E8 -> 0.9502956984 | BX47: Green | BY47: 2.5 | BZ47: 1 | CA47: 60.56804812
D48: SWEST | E48: =[45]CR13!C100 -> 6.64 | F48: 13 | G48: =[45]CR13!D100 -> 32.01 | H48: 5 | I48: =[45]CR13!E100 -> 7.87 | J48: 10 | K48: =[45]CR13!F100 -> 37.68 | L48: 3 | M48: =[45]CR13!G100 -> 1.1355 | N48: =M48*'Guide & drivers'!$D$29 -> 1.348825957 | O48: Green | P48: 7.75 | Q48: 10 | R48: 84.2 | T48: SWEST | U48: =VLOOKUP(T48,[46]CR13!$B$87:$G$101,2,FALSE) -> 5.15520525 | V48: 8 | W48: =VLOOKUP(T48,[46]CR13!$B$85:$G$101,3,FALSE) -> 36.52682114 | X48: 5 | Y48: =VLOOKUP(T48,[46]CR13!$B$85:$G$101,4,FALSE) -> 5.863285065 | Z48: 3 | AA48: =VLOOKUP(T48,[46]CR13!$B$85:$G$101,5,FALSE) -> 43.38860703 | AB48: 4 | AC48: 0.95 | AD48: =AC48*'Guide & drivers'!$D$29 -> 1.128476142 | AE48: Green | AF48: 5 | AG48: 5 | AH48: 90.93391848 | AI48: SWEST | AJ48: =VLOOKUP(T48,[44]CR13!$B$87:$G$101,2,FALSE) -> 4.87 | AK48: 9 | AL48: =VLOOKUP(T48,[44]CR13!$B$85:$G$101,3,FALSE) -> 25.73 | AM48: 1 | AN48: =VLOOKUP(T48,[44]CR13!$B$87:$G$101,4,FALSE) -> 5.4 | AO48: 4 | AP48: =VLOOKUP(T48,[44]CR13!$B$87:$G$101,5,FALSE) -> 29.92 | AQ48: 2 | AR48: 1.2 | AS48: =AR48*'Guide & drivers'!C35 -> 1.425443548 | AT48: Green | AU48: 4 | AV48: 3 | AW48: 65.92 | AY48: =VLOOKUP(AI48,[47]CR13!$B$87:$G$101,2,FALSE) -> 5.370464325 | AZ48: 9 | BA48: =VLOOKUP(AI48,[47]CR13!$B$85:$G$101,3,FALSE) -> 27.41638947 | BB48: 3 | BC48: =VLOOKUP(AI48,[47]CR13!$B$87:$G$101,4,FALSE) -> 5.609411716 | BD48: 3 | BE48: =VLOOKUP(AI48,[47]CR13!$B$87:$G$101,5,FALSE) -> 33.39303589 | BF48: 2 | BG48: =BH48/'Guide & drivers'!$J$22 -> 1.2 | BH48: =[50]Sheet1!D9*'Guide & drivers'!$J$28 -> 1.425443548 | BI48: Green | BJ48: 4.25 | BK48: 4 | BL48: 71.7893014 | BN48: =VLOOKUP(AI48,[48]CR13!$B$87:$G$101,2,FALSE) -> 3.116337299 | BO48: 6 | BP48: =VLOOKUP(AI48,[48]CR13!$B$85:$G$101,3,FALSE) -> 26.90512276 | BQ48: 3 | BR48: =VLOOKUP(AI48,[48]CR13!$B$87:$G$101,4,FALSE) -> 3.656934261 | BS48: 3 | BT48: =VLOOKUP(AI48,[48]CR13!$B$87:$G$101,5,FALSE) -> 32.45755386 | BU48: 4 | BV48: =BW48/'Guide & drivers'!$J$22 -> 1.2 | BW48: =[50]Sheet1!E9 -> 1.425443548 | BX48: Green | BY48: 4 | BZ48: 4 | CA48: 66.13594818
D49: LPN | E49: =[45]CR13!C94 -> 3.64244898 | F49: 4 | G49: =[45]CR13!D94 -> 41.29574468 | H49: 12 | I49: =[45]CR13!E94 -> 4.729618768 | J49: 1 | K49: =[45]CR13!F94 -> 46.79542396 | L49: 11 | M49: =[45]CR13!G94 -> 0.7416191804 | N49: =M49*'Guide & drivers'!$D$29 -> 0.8809468963 | O49: Green | P49: 7 | Q49: 6 | R49: 96.46323639 | T49: LPN | U49: =VLOOKUP(T49,[46]CR13!$B$87:$G$101,2,FALSE) -> 5.37 | V49: 10 | W49: =VLOOKUP(T49,[46]CR13!$B$85:$G$101,3,FALSE) -> 59.64 | X49: 14 | Y49: =VLOOKUP(T49,[46]CR13!$B$85:$G$101,4,FALSE) -> 8.38 | Z49: 11 | AA49: =VLOOKUP(T49,[46]CR13!$B$85:$G$101,5,FALSE) -> 57.85 | AB49: 9 | AC49: =SUM('[53]R7 Output Incentives'!$H$263:$H$266) -> 0.6 | AD49: =AC49*'Guide & drivers'!$D$29 -> 0.7127217738 | AE49: Amber | AF49: 11 | AG49: 12 | AH49: 131.24 | AI49: LPN | AJ49: =VLOOKUP(T49,[44]CR13!$B$87:$G$101,2,FALSE) -> 5.734031414 | AK49: 10 | AL49: =VLOOKUP(T49,[44]CR13!$B$85:$G$101,3,FALSE) -> 40.97727273 | AM49: 8 | AN49: =VLOOKUP(T49,[44]CR13!$B$87:$G$101,4,FALSE) -> 7.368633791 | AO49: 6 | AP49: =VLOOKUP(T49,[44]CR13!$B$87:$G$101,5,FALSE) -> 45.04388298 | AQ49: 7 | AR49: 0.79 | AS49: =AR49*'Guide & drivers'!C35 -> 0.9384170021 | AT49: Green | AU49: 7.75 | AV49: 7 | AW49: 99.12382091 | AY49: =VLOOKUP(AI49,[47]CR13!$B$87:$G$101,2,FALSE) -> 5.391160221 | AZ49: 10 | BA49: =VLOOKUP(AI49,[47]CR13!$B$85:$G$101,3,FALSE) -> 34.06010929 | BB49: 8 | BC49: =VLOOKUP(AI49,[47]CR13!$B$87:$G$101,4,FALSE) -> 6.973474801 | BD49: 8 | BE49: =VLOOKUP(AI49,[47]CR13!$B$87:$G$101,5,FALSE) -> 43.08343711 | BF49: 8 | BG49: =BH49/'Guide & drivers'!$J$22 -> 1.032927979 | BH49: =[50]Sheet1!D10*'Guide & drivers'!$J$28 -> 1.226983769 | BI49: Green | BJ49: 8.5 | BK49: 8 | BL49: 89.50818142 | BN49: =VLOOKUP(AI49,[48]CR13!$B$87:$G$101,2,FALSE) -> 5.287654321 | BO49: 11 | BP49: =VLOOKUP(AI49,[48]CR13!$B$85:$G$101,3,FALSE) -> 35.41071429 | BQ49: 8 | BR49: =VLOOKUP(AI49,[48]CR13!$B$87:$G$101,4,FALSE) -> 6.513590034 | BS49: 10 | BT49: =VLOOKUP(AI49,[48]CR13!$B$87:$G$101,5,FALSE) -> 44.00504414 | BU49: 10 | BV49: =BW49/'Guide & drivers'!$J$22 -> 0.3499633827 | BW49: =[50]Sheet1!E10 -> 0.4157108715 | BX49: Amber | BY49: 9.75 | BZ49: 9 | CA49: 91.21700278
D50: SPN | E50: =[45]CR13!C95 -> 4.624687239 | F50: 6 | G50: =[45]CR13!D95 -> 37.6561939 | H50: 10 | I50: =[45]CR13!E95 -> 7.345218801 | J50: 8 | K50: =[45]CR13!F95 -> 45.30828025 | L50: 10 | M50: =[45]CR13!G95 -> 0.880548578 | N50: =M50*'Guide & drivers'!$D$29 -> 1.045976907 | O50: Green | P50: 8.5 | Q50: 11 | R50: 94.93438019 | T50: SPN | U50: =VLOOKUP(T50,[46]CR13!$B$87:$G$101,2,FALSE) -> 5.57 | V50: 12 | W50: =VLOOKUP(T50,[46]CR13!$B$85:$G$101,3,FALSE) -> 52.91 | X50: 12 | Y50: =VLOOKUP(T50,[46]CR13!$B$85:$G$101,4,FALSE) -> 6.52 | Z50: 6 | AA50: =VLOOKUP(T50,[46]CR13!$B$85:$G$101,5,FALSE) -> 66.43 | AB50: 13 | AC50: =SUM('[54]R7 Output Incentives'!$H$263:$H$266) -> 0.6 | AD50: =AC50*'Guide & drivers'!$D$29 -> 0.7127217738 | AE50: Amber | AF50: 10.75 | AG50: 11 | AH50: 131.43 | AI50: SPN | AJ50: =VLOOKUP(T50,[44]CR13!$B$87:$G$101,2,FALSE) -> 5.748065015 | AK50: 11 | AL50: =VLOOKUP(T50,[44]CR13!$B$85:$G$101,3,FALSE) -> 36.50903832 | AM50: 7 | AN50: =VLOOKUP(T50,[44]CR13!$B$87:$G$101,4,FALSE) -> 9.797826087 | AO50: 10 | AP50: =VLOOKUP(T50,[44]CR13!$B$87:$G$101,5,FALSE) -> 46.02680653 | AQ50: 8 | AR50: 0.9 | AS50: =AR50*'Guide & drivers'!C35 -> 1.069082661 | AT50: Green | AU50: 9 | AV50: 10 | AW50: 98.08173595 | AY50: =VLOOKUP(AI50,[47]CR13!$B$87:$G$101,2,FALSE) -> 7.122287968 | AZ50: 13 | BA50: =VLOOKUP(AI50,[47]CR13!$B$85:$G$101,3,FALSE) -> 39.25501433 | BB50: 9 | BC50: =VLOOKUP(AI50,[47]CR13!$B$87:$G$101,4,FALSE) -> 9.400570885 | BD50: 10 | BE50: =VLOOKUP(AI50,[47]CR13!$B$87:$G$101,5,FALSE) -> 51.56063618 | BF50: 11 | BG50: =BH50/'Guide & drivers'!$J$22 -> 0.5924478919 | BH50: =[50]Sheet1!D11*'Guide & drivers'!$J$28 -> 0.703750854 | BI50: Green | BJ50: 10.75 | BK50: 10 | BL50: 107.3385094 | BN50: =VLOOKUP(AI50,[48]CR13!$B$87:$G$101,2,FALSE) -> 6.442512619 | BO50: 12 | BP50: =VLOOKUP(AI50,[48]CR13!$B$85:$G$101,3,FALSE) -> 36.44101633 | BQ50: 9 | BR50: =VLOOKUP(AI50,[48]CR13!$B$87:$G$101,4,FALSE) -> 7.193635383 | BS50: 11 | BT50: =VLOOKUP(AI50,[48]CR13!$B$87:$G$101,5,FALSE) -> 43.56531049 | BU50: 9 | BV50: =BW50/'Guide & drivers'!$J$22 -> 0.2460798441 | BW50: =[50]Sheet1!E11 -> 0.2923107716 | BX50: Amber | BY50: 10.25 | BZ50: 10 | CA50: 93.64247483
D51: EPN | E51: =[45]CR13!C96 -> 5.560302162 | F51: 9 | G51: =[45]CR13!D96 -> 42.76034483 | H51: 13 | I51: =[45]CR13!E96 -> 9.705137751 | J51: 13 | K51: =[45]CR13!F96 -> 51.00676329 | L51: 14 | M51: =[45]CR13!G96 -> 1.067729469 | N51: =M51*'Guide & drivers'!$D$29 -> 1.268323401 | O51: Amber | P51: 12.25 | Q51: 13 | R51: 109.032548 | T51: EPN | U51: =VLOOKUP(T51,[46]CR13!$B$87:$G$101,2,FALSE) -> 6.12 | V51: 14 | W51: =VLOOKUP(T51,[46]CR13!$B$85:$G$101,3,FALSE) -> 54.17 | X51: 13 | Y51: =VLOOKUP(T51,[46]CR13!$B$85:$G$101,4,FALSE) -> 9.76 | Z51: 14 | AA51: =VLOOKUP(T51,[46]CR13!$B$85:$G$101,5,FALSE) -> 67.37 | AB51: 14 | AC51: =SUM('[55]R7 Output Incentives'!$H$263:$H$266) -> 1 | AD51: =AC51*'Guide & drivers'!$D$29 -> 1.187869623 | AE51: Amber | AF51: 13.75 | AG51: 14 | AH51: 137.42 | AI51: EPN | AJ51: =VLOOKUP(T51,[44]CR13!$B$87:$G$101,2,FALSE) -> 7.240318302 | AK51: 12 | AL51: =VLOOKUP(T51,[44]CR13!$B$85:$G$101,3,FALSE) -> 43.22931985 | AM51: 9 | AN51: =VLOOKUP(T51,[44]CR13!$B$87:$G$101,4,FALSE) -> 11.46362253 | AO51: 12 | AP51: =VLOOKUP(T51,[44]CR13!$B$87:$G$101,5,FALSE) -> 49.01349693 | AQ51: 9 | AR51: 0.48 | AS51: =AR51*'Guide & drivers'!C35 -> 0.570177419 | AT51: Amber | AU51: 10.5 | AV51: 11 | AW51: 110.9467576 | AY51: =VLOOKUP(AI51,[47]CR13!$B$87:$G$101,2,FALSE) -> 7.144962406 | AZ51: 14 | BA51: =VLOOKUP(AI51,[47]CR13!$B$85:$G$101,3,FALSE) -> 41.90106802 | BB51: =RANK(BA51,$BA$42:$BA$55,1) -> 12 | BC51: =VLOOKUP(AI51,[47]CR13!$B$87:$G$101,4,FALSE) -> 9.982537517 | BD51: 12 | BE51: =VLOOKUP(AI51,[47]CR13!$B$87:$G$101,5,FALSE) -> 52.47799386 | BF51: 12 | BG51: =BH51/'Guide & drivers'!$J$22 -> 0.7947366193 | BH51: =[50]Sheet1!D12*'Guide & drivers'!$J$28 -> 0.9440434883 | BI51: Green | BJ51: 12.5 | BK51: 14 | BL51: 111.5065618 | BN51: =VLOOKUP(AI51,[48]CR13!$B$87:$G$101,2,FALSE) -> 4.798682043 | BO51: 10 | BP51: =VLOOKUP(AI51,[48]CR13!$B$85:$G$101,3,FALSE) -> 36.59057203 | BQ51: 10 | BR51: =VLOOKUP(AI51,[48]CR13!$B$87:$G$101,4,FALSE) -> 5.685373134 | BS51: 9 | BT51: =VLOOKUP(AI51,[48]CR13!$B$87:$G$101,5,FALSE) -> 42.70946353 | BU51: 8 | BV51: =BW51/'Guide & drivers'!$J$22 -> 0.7686927052 | BW51: =[50]Sheet1!E12 -> 0.913106714 | BX51: Green | BY51: 9.25 | BZ51: 8 | CA51: 89.78409074
D52: SPD | E52: =[45]CR13!C92 -> 5.24955595 | F52: 8 | G52: =[45]CR13!D92 -> 35.73757455 | H52: 9 | I52: =[45]CR13!E92 -> 7.325987144 | J52: 7 | K52: =[45]CR13!F92 -> 42.42203742 | L52: 6 | M52: 0.962 | N52: =M52*'Guide & drivers'!$D$29 -> 1.142730577 | O52: Green | P52: 7.5 | Q52: 7 | R52: 90.73515507 | T52: SPD | U52: =VLOOKUP(T52,[46]CR13!$B$87:$G$101,2,FALSE) -> 4.92173189 | V52: 7 | W52: =VLOOKUP(T52,[46]CR13!$B$85:$G$101,3,FALSE) -> 51.10739191 | X52: 11 | Y52: =VLOOKUP(T52,[46]CR13!$B$85:$G$101,4,FALSE) -> 6.309927361 | Z52: 5 | AA52: =VLOOKUP(T52,[46]CR13!$B$85:$G$101,5,FALSE) -> 63.96688742 | AB52: 12 | AC52: =SUM('[56]R7 Output Incentives'!$H$263:$H$266) -> 0.6 | AD52: =AC52*'Guide & drivers'!$D$29 -> 0.7127217738 | AE52: Amber | AF52: 8.75 | AG52: 9 | AH52: 126.3059386 | AI52: SPD | AJ52: =VLOOKUP(T52,[44]CR13!$B$87:$G$101,2,FALSE) -> 3.208126858 | AK52: 1 | AL52: =VLOOKUP(T52,[44]CR13!$B$85:$G$101,3,FALSE) -> 58.93573668 | AM52: 14 | AN52: =VLOOKUP(T52,[44]CR13!$B$87:$G$101,4,FALSE) -> 7.006410256 | AO52: 5 | AP52: =VLOOKUP(T52,[44]CR13!$B$87:$G$101,5,FALSE) -> 69.57369255 | AQ52: 14 | AR52: 0.6 | AS52: =AR52*'Guide & drivers'!C35 -> 0.7127217738 | AT52: Amber | AU52: 8.5 | AV52: 8 | AW52: 138.7239663 | AY52: =VLOOKUP(AI52,[47]CR13!$B$87:$G$101,2,FALSE) -> 2.850731707 | AZ52: 1 | BA52: =VLOOKUP(AI52,[47]CR13!$B$85:$G$101,3,FALSE) -> 54.30344828 | BB52: 14 | BC52: =VLOOKUP(AI52,[47]CR13!$B$87:$G$101,4,FALSE) -> 5.744360902 | BD52: 5 | BE52: =VLOOKUP(AI52,[47]CR13!$B$87:$G$101,5,FALSE) -> 69.34831461 | BF52: 14 | BG52: =BH52/'Guide & drivers'!$J$22 -> 0.6 | BH52: =[50]Sheet1!D13*'Guide & drivers'!$J$28 -> 0.7127217738 | BI52: Amber | BJ52: 8.5 | BK52: =RANK(BJ52,$BJ$42:$BJ$55,1) -> 8 | BL52: 132.2468555 | BN52: =VLOOKUP(AI52,[48]CR13!$B$87:$G$101,2,FALSE) -> 3.325231481 | BO52: 8 | BP52: =VLOOKUP(AI52,[48]CR13!$B$85:$G$101,3,FALSE) -> 51.41762452 | BQ52: 13 | BR52: =VLOOKUP(AI52,[48]CR13!$B$87:$G$101,4,FALSE) -> 5.506613757 | BS52: 8 | BT52: =VLOOKUP(AI52,[48]CR13!$B$87:$G$101,5,FALSE) -> 64.44222539 | BU52: 13 | BV52: =BW52/'Guide & drivers'!$J$22 -> 0.5978800878 | BW52: =[50]Sheet1!E13 -> 0.7102035945 | BX52: Amber | BY52: 10.5 | BZ52: 11 | CA52: 124.6916952
D53: SPMW | E53: =[45]CR13!C93 -> 5.607876712 | F53: 10 | G53: =[45]CR13!D93 -> 35.55913978 | H53: 8 | I53: =[45]CR13!E93 -> 6.881982691 | J53: 5 | K53: =[45]CR13!F93 -> 43.46067416 | L53: 7 | M53: 1.008 | N53: =M53*'Guide & drivers'!$D$29 -> 1.19737258 | O53: Green | P53: 7.5 | Q53: 7 | R53: 91.50967335 | T53: SPMW | U53: =VLOOKUP(T53,[46]CR13!$B$87:$G$101,2,FALSE) -> 5.315705128 | V53: 9 | W53: =VLOOKUP(T53,[46]CR13!$B$85:$G$101,3,FALSE) -> 45.25950413 | X53: 8 | Y53: =VLOOKUP(T53,[46]CR13!$B$85:$G$101,4,FALSE) -> 6.839459865 | Z53: 7 | AA53: =VLOOKUP(T53,[46]CR13!$B$85:$G$101,5,FALSE) -> 59.76293823 | AB53: 10 | AC53: =SUM('[57]R7 Output Incentives'!$H$263:$H$266) -> 0.6 | AD53: =AC53*'Guide & drivers'!$D$29 -> 0.7127217738 | AE53: Amber | AF53: 8.5 | AG53: 8 | AH53: 117.1776074 | AI53: SPMW | AJ53: =VLOOKUP(T53,[44]CR13!$B$87:$G$101,2,FALSE) -> 4.792436975 | AK53: 8 | AL53: =VLOOKUP(T53,[44]CR13!$B$85:$G$101,3,FALSE) -> 44.72089314 | AM53: 10 | AN53: =VLOOKUP(T53,[44]CR13!$B$87:$G$101,4,FALSE) -> 10.09006211 | AO53: 11 | AP53: =VLOOKUP(T53,[44]CR13!$B$87:$G$101,5,FALSE) -> 65.87636364 | AQ53: 13 | AR53: 0.6 | AS53: =AR53*'Guide & drivers'!C35 -> 0.7127217738 | AT53: Amber | AU53: 10.5 | AV53: 11 | AW53: 125.4797559 | AY53: =VLOOKUP(AI53,[47]CR13!$B$87:$G$101,2,FALSE) -> 4.82605178 | AZ53: 7 | BA53: =VLOOKUP(AI53,[47]CR13!$B$85:$G$101,3,FALSE) -> 52.7539185 | BB53: 13 | BC53: =VLOOKUP(AI53,[47]CR13!$B$87:$G$101,4,FALSE) -> 9.629381059 | BD53: 11 | BE53: =VLOOKUP(AI53,[47]CR13!$B$87:$G$101,5,FALSE) -> 66.55190311 | BF53: 13 | BG53: =BH53/'Guide & drivers'!$J$22 -> 0.6 | BH53: =[50]Sheet1!D14*'Guide & drivers'!$J$28 -> 0.7127217738 | BI53: Amber | BJ53: 11 | BK53: 11 | BL53: 133.7612544 | BN53: =VLOOKUP(AI53,[48]CR13!$B$87:$G$101,2,FALSE) -> 4.641932701 | BO53: 9 | BP53: =VLOOKUP(AI53,[48]CR13!$B$85:$G$101,3,FALSE) -> 55.8022508 | BQ53: 14 | BR53: =VLOOKUP(AI53,[48]CR13!$B$87:$G$101,4,FALSE) -> 7.350769231 | BS53: 12 | BT53: =VLOOKUP(AI53,[48]CR13!$B$87:$G$101,5,FALSE) -> 73.23462783 | BU53: 14 | BV53: =BW53/'Guide & drivers'!$J$22 -> 0.1034353242 | BW53: =[50]Sheet1!E14 -> 0.1228676796 | BX53: Amber | BY53: 12.25 | BZ53: 13 | CA53: 141.0295806
D54: SSEH | E54: =[45]CR13!C90 -> 2.5 | F54: 1 | G54: =[45]CR13!D90 -> 31.5 | H54: 3 | I54: =[45]CR13!E90 -> 5.1 | J54: 2 | K54: =[45]CR13!F90 -> 40.02 | L54: 4 | M54: =[45]CR13!G90 -> 0.8 | N54: =M54*'Guide & drivers'!$D$29 -> 0.9502956984 | O54: Green | P54: 2.5 | Q54: 1 | R54: 79.12 | T54: SSEH | U54: =VLOOKUP(T54,[46]CR13!$B$87:$G$101,2,FALSE) -> 3.552147239 | V54: 4 | W54: =VLOOKUP(T54,[46]CR13!$B$85:$G$101,3,FALSE) -> 29.97927461 | X54: 1 | Y54: =VLOOKUP(T54,[46]CR13!$B$85:$G$101,4,FALSE) -> 7.220560748 | Z54: 8 | AA54: =VLOOKUP(T54,[46]CR13!$B$85:$G$101,5,FALSE) -> 40.43773585 | AB54: 2 | AC54: =SUM('[58]R7 Output Incentives'!$H$263:$H$266) -> 0.8 | AD54: =AC54*'Guide & drivers'!$D$29 -> 0.9502956984 | AE54: Green | AF54: 3.75 | AG54: 3 | AH54: 81.18971845 | AI54: SSEH | AJ54: =VLOOKUP(T54,[44]CR13!$B$87:$G$101,2,FALSE) -> 4.22214941 | AK54: 7 | AL54: =VLOOKUP(T54,[44]CR13!$B$85:$G$101,3,FALSE) -> 27.83704735 | AM54: 2 | AN54: =VLOOKUP(T54,[44]CR13!$B$87:$G$101,4,FALSE) -> 9.015625 | AO54: 8 | AP54: =VLOOKUP(T54,[44]CR13!$B$87:$G$101,5,FALSE) -> 28.75909091 | AQ54: 1 | AR54: 0.8 | AS54: =AR54*'Guide & drivers'!C35 -> 0.9502956984 | AT54: Green | AU54: 4.5 | AV54: 5 | AW54: 69.83391267 | AY54: =VLOOKUP(AI54,[47]CR13!$B$87:$G$101,2,FALSE) -> 2.86 | AZ54: 2 | BA54: =VLOOKUP(AI54,[47]CR13!$B$85:$G$101,3,FALSE) -> 22.1 | BB54: 1 | BC54: =VLOOKUP(AI54,[47]CR13!$B$87:$G$101,4,FALSE) -> 5.34 | BD54: 2 | BE54: =VLOOKUP(AI54,[47]CR13!$B$87:$G$101,5,FALSE) -> 27.8 | BF54: 1 | BG54: =BH54/'Guide & drivers'!$J$22 -> 0.8 | BH54: =[50]Sheet1!D15*'Guide & drivers'!$J$28 -> 0.9502956984 | BI54: Green | BJ54: 1.5 | BK54: 1 | BL54: 58.1 | BN54: =VLOOKUP(AI54,[48]CR13!$B$87:$G$101,2,FALSE) -> 3.261591299 | BO54: 7 | BP54: =VLOOKUP(AI54,[48]CR13!$B$85:$G$101,3,FALSE) -> 17.13384813 | BQ54: 1 | BR54: =VLOOKUP(AI54,[48]CR13!$B$87:$G$101,4,FALSE) -> 4.131868132 | BS54: 5 | BT54: =VLOOKUP(AI54,[48]CR13!$B$87:$G$101,5,FALSE) -> 21.10970464 | BU54: 1 | BV54: =BW54/'Guide & drivers'!$J$22 -> 0.8 | BW54: =[50]Sheet1!E15 -> 0.9502956984 | BX54: Green | BY54: 3.5 | BZ54: 3 | CA54: 45.63701221
D55: SSES | E55: =[45]CR13!C91 -> 2.66 | F55: 2 | G55: =[45]CR13!D91 -> 33.18 | H55: 6 | I55: =[45]CR13!E91 -> 6.94 | J55: 6 | K55: =[45]CR13!F91 -> 45.04 | L55: 9 | M55: =[45]CR13!G91 -> 1.3858 | N55: =M55*'Guide & drivers'!$D$29 -> 1.646149724 | O55: Green | P55: 5.75 | Q55: 4 | R55: 87.82 | T55: SSES | U55: =VLOOKUP(T55,[46]CR13!$B$87:$G$101,2,FALSE) -> 2.688902743 | V55: 1 | W55: =VLOOKUP(T55,[46]CR13!$B$85:$G$101,3,FALSE) -> 44.29316389 | X55: 7 | Y55: =VLOOKUP(T55,[46]CR13!$B$85:$G$101,4,FALSE) -> 7.228643216 | Z55: 9 | AA55: =VLOOKUP(T55,[46]CR13!$B$85:$G$101,5,FALSE) -> 63.68382353 | AB55: 11 | AC55: 0.8 | AD55: =AC55*'Guide & drivers'!$D$29 -> 0.9502956984 | AE55: Amber | AF55: 7 | AG55: 7 | AH55: 117.8945334 | AI55: SSES | AJ55: =VLOOKUP(T55,[44]CR13!$B$87:$G$101,2,FALSE) -> 3.414524301 | AK55: 3 | AL55: =VLOOKUP(T55,[44]CR13!$B$85:$G$101,3,FALSE) -> 45.71127332 | AM55: 11 | AN55: =VLOOKUP(T55,[44]CR13!$B$87:$G$101,4,FALSE) -> 9.283271375 | AO55: 9 | AP55: =VLOOKUP(T55,[44]CR13!$B$87:$G$101,5,FALSE) -> 64.00564972 | AQ55: 12 | AR55: 0.8 | AS55: =AR55*'Guide & drivers'!C35 -> 0.9502956984 | AT55: Amber | AU55: 8.75 | AV55: 9 | AW55: 122.4147187 | AY55: =VLOOKUP(AI55,[47]CR13!$B$87:$G$101,2,FALSE) -> 3.11 | AZ55: 3 | BA55: =VLOOKUP(AI55,[47]CR13!$B$85:$G$101,3,FALSE) -> 31.84 | BB55: 6 | BC55: =VLOOKUP(AI55,[47]CR13!$B$87:$G$101,4,FALSE) -> 8.65 | BD55: 9 | BE55: =VLOOKUP(AI55,[47]CR13!$B$87:$G$101,5,FALSE) -> 40.29 | BF55: 7 | BG55: =BH55/'Guide & drivers'!$J$22 -> 1.5723 | BH55: =[50]Sheet1!D16*'Guide & drivers'!$J$28 -> 1.867687408 | BI55: Green | BJ55: 6.25 | BK55: 6 | BL55: 83.89 | BN55: =VLOOKUP(AI55,[48]CR13!$B$87:$G$101,2,FALSE) -> 3.011868369 | BO55: 5 | BP55: =VLOOKUP(AI55,[48]CR13!$B$85:$G$101,3,FALSE) -> 29.28943937 | BQ55: 7 | BR55: =VLOOKUP(AI55,[48]CR13!$B$87:$G$101,4,FALSE) -> 4.528297244 | BS55: 6 | BT55: =VLOOKUP(AI55,[48]CR13!$B$87:$G$101,5,FALSE) -> 34.86576648 | BU55: 7 | BV55: =BW55/'Guide & drivers'!$J$22 -> 1.503004615 | BW55: =[50]Sheet1!E16 -> 1.785373526 | BX55: Green | BY55: 6.25 | BZ55: 7 | CA55: 71.69537147
D56: Industry Average Score/Total Reward | E56: =AVERAGE(E42:E55) -> 4.913018774 | G56: 35.71963442 | I56: 7.438419017 | K56: 43.1603969 | M56: =SUM(M42:M55) -> 13.77524515 | N56: =SUM(N42:N55) -> 16.36319527 | T56: Industry Average Score/Total Reward | U56: =AVERAGE(U42:U55) -> 4.641116624 | W56: =AVERAGE(W42:W55) -> 43.50555453 | Y56: =AVERAGE(Y42:Y55) -> 7.178433711 | AA56: =AVERAGE(AA42:AA55) -> 53.13871612 | AC56: =SUM(AC42:AC55) -> 11.28 | AD56: =SUM(AD42:AD55) -> 13.39916935 | AF56: Industry Average Score/Total Reward | AJ56: =AVERAGE(AJ42:AJ55) -> 4.979260877 | AL56: =AVERAGE(AL42:AL55) -> 38.62718439 | AN56: =AVERAGE(AN42:AN55) -> 8.906817939 | AP56: =AVERAGE(AP42:AP55) -> 47.51635595 | AR56: =SUM(AR42:AR55) -> 11.37 | AS56: =SUM(AS42:AS55) -> 13.50607761 | AU56: Industry Average Score/Total Reward | AY56: =AVERAGE(AY42:AY55) -> 4.829855035 | BA56: =AVERAGE(BA42:BA55) -> 36.17609876 | BC56: =AVERAGE(BC42:BC55) -> 8.001225029 | BE56: =AVERAGE(BE42:BE55) -> 44.71706555 | BG56: =SUM(BG42:BG55) -> 13.02671249 | BH56: =SUM(BH42:BH55) -> 15.47403605 | BN56: =AVERAGE(BN42:BN55) -> 4.10658022 | BP56: =AVERAGE(BP42:BP55) -> 33.9884512 | BR56: =AVERAGE(BR42:BR55) -> 6.260514907 | BT56: =AVERAGE(BT42:BT55) -> 41.34040034 | BV56: =SUM(BV42:BV55) -> 10.86317613 | BW56: =SUM(BW42:BW55) -> 12.90403694
D57: Target | E57: =[45]CR13!$L$87 -> 8.21 | G57: =[45]CR13!$M$87 -> 42.08 | I57: =[45]CR13!$N$87 -> 11.73 | K57: =[45]CR13!$O$87 -> 52.7 | T57: Target | U57: =[46]CR13!L87 -> 8.21 | W57: =[46]CR13!M87 -> 42.08 | Y57: =[46]CR13!N87 -> 11.73 | AA57: =[46]CR13!O87 -> 52.7 | AI57: Target | AJ57: =[44]CR13!$L$87 -> 8.21 | AL57: =[44]CR13!$M$87 -> 42.08 | AN57: =[44]CR13!$N$87 -> 11.73 | AP57: =[44]CR13!$O$87 -> 52.7 | AX57: Target | AY57: =[44]CR13!$L$87 -> 8.21 | BA57: =[44]CR13!$M$87 -> 42.08 | BC57: =[44]CR13!$N$87 -> 11.73 | BE57: =[44]CR13!$O$87 -> 52.7 | BN57: =[48]CR13!$L$87 -> 4.84 | BP57: =[48]CR13!$M$87 -> 39.28 | BR57: =[48]CR13!$N$87 -> 7.84 | BT57: =[48]CR13!$O$87 -> 47.94
D58: Maximum Reward score | E58: 6.4 | G58: 32.47 | I58: 10.12 | K58: 39.91 | T58: Maximum Reward score | U58: =[44]CR13!$L$88 -> 6.4 | W58: =[44]CR13!$M$88 -> 32.47 | Y58: =[44]CR13!$N$88 -> 10.12 | AA58: =[44]CR13!$O$88 -> 39.91 | AI58: Maximum Reward score | AJ58: =E58 -> 6.4 | AK58: =G58 -> 32.47 | AL58: =I58 -> 10.12 | AM58: =K58 -> 39.91 | AT58: =U58 -> 6.4 | AX58: Maximum Reward score | BD58: =AJ58 -> 6.4 | BE58: =AK58 -> 32.47 | BF58: =AL58 -> 10.12 | BG58: =AM58 -> 39.91 | BS58: =AY58 -> 0 | BT58: =AZ58 -> 0 | BU58: =BA58 -> 0 | BV58: =BB58 -> 0 | CH58: =BN58 -> 0 | CI58: =BO58 -> 0 | CJ58: =BP58 -> 0 | CK58: =BQ58 -> 0
D59: 105% of target | E59: =E57*1.05 -> 8.6205 | G59: =G57*1.05 -> 44.184 | I59: =I57*1.05 -> 12.3165 | K59: =K57*1.05 -> 55.335 | T59: 105% of target | U59: =U57*1.05 -> 8.6205 | W59: =W57*1.05 -> 44.184 | Y59: =Y57*1.05 -> 12.3165 | AA59: =AA57*1.05 -> 55.335 | AH59: 105% of target | AJ59: =AJ57*1.05 -> 8.6205 | AL59: =AL57*1.05 -> 44.184 | AN59: =AN57*1.05 -> 12.3165 | AP59: =AP57*1.05 -> 55.335 | AW59: 105% of target | AY59: =AY57*1.05 -> 8.6205 | BA59: =BA57*1.05 -> 44.184 | BC59: =BC57*1.05 -> 12.3165 | BE59: =BE57*1.05 -> 55.335 | BN59: =BN57*1.05 -> 5.082 | BP59: =BP57*1.05 -> 41.244 | BR59: =BR57*1.05 -> 8.232 | BT59: =BT57*1.05 -> 50.337
D61: Time to Connect improvements from 2013
E62: 2015/16 | L62: 2016/17 | S62: 2017/18 | Z62: 2018/19 | AG62: 2019/20 | AN62: 2020/21 | AU62: 2021/22 | BB62: 2022/23
E63: LVSSA | H63: LVSSB | L63: LVSSA | O63: LVSSB | S63: LVSSA | V63: LVSSB | Z63: LVSSA | AC63: LVSSB | AG63: LVSSA | AJ63: LVSSB | AN63: LVSSA | AQ63: LVSSB | AU63: LVSSA | AX63: LVSSB | BB63: LVSSA | BE63: LVSSB
E64: Average Time to Quote | F64: Time to Connect | G64: Overall | H64: Average Time to Quote | I64: Time to Connect | J64: Overall | L64: Average Time to Quote | M64: Time to Connect | N64: Overall | O64: Average Time to Quote | P64: Time to Connect | Q64: Overall | S64: Average Time to Quote | T64: Time to Connect | U64: Overall | V64: Average Time to Quote | W64: Time to Connect | X64: Overall | Z64: Average Time to Quote | AA64: Time to Connect | AB64: Overall | AC64: Average Time to Quote | AD64: Time to Connect | AE64: Overall | AG64: Average Time to Quote | AH64: Time to Connect | AI64: Overall | AJ64: Average Time to Quote | AK64: Time to Connect | AL64: Overall | AN64: Average Time to Quote | AO64: Time to Connect | AP64: Overall | AQ64: Average Time to Quote | AR64: Time to Connect | AS64: Overall | AU64: Average Time to Quote | AV64: Time to Connect | AW64: Overall | AX64: Average Time to Quote | AY64: Time to Connect | AZ64: Overall | BB64: Average Time to Quote | BC64: Time to Connect | BD64: Overall | BE64: Average Time to Quote | BF64: Time to Connect | BG64: Overall
D65: ENWL | E65: ='[45]Time to connect improvement'!$N$74 -> 3.523335197 | F65: ='[45]Time to connect improvement'!$N$76 -> 43.79341055 | G65: ='[45]Time to connect improvement'!$N$78 -> 47.31674575 | H65: ='[45]Time to connect improvement'!$N$75 -> 4.083818411 | I65: ='[45]Time to connect improvement'!$N$77 -> 45.79215901 | J65: ='[45]Time to connect improvement'!$N$79 -> 49.87597742 | L65: ='[46]Time to connect improvement'!$N$74 -> 4.565776603 | M65: ='[46]Time to connect improvement'!$N$76 -> 42.24530686 | N65: ='[46]Time to connect improvement'!$N$78 -> 46.81108347 | O65: ='[46]Time to connect improvement'!$N$75 -> 3.602331821 | P65: ='[46]Time to connect improvement'!$N$77 -> 51.00187944 | Q65: ='[46]Time to connect improvement'!$N$79 -> 54.60421126 | S65: ='[44]Time to connect improvement'!$N$74 -> 3.825776603 | T65: ='[44]Time to connect improvement'!$N$76 -> 42.4354015 | U65: ='[44]Time to connect improvement'!$N$78 -> 46.2611781 | V65: ='[44]Time to connect improvement'!$N$75 -> 3.26789549 | W65: ='[44]Time to connect improvement'!$N$77 -> 48.39387944 | X65: ='[44]Time to connect improvement'!$N$79 -> 51.66177493 | Z65: ='[47]Time to connect improvement'!$N$74 -> 3.805776603 | AA65: ='[47]Time to connect improvement'!$N$76 -> 41.2854015 | AB65: ='[47]Time to connect improvement'!$N$78 -> 45.0911781 | AC65: ='[47]Time to connect improvement'!$N$75 -> 4.72789549 | AD65: ='[47]Time to connect improvement'!$N$77 -> 47.00387944 | AE65: ='[47]Time to connect improvement'!$N$79 -> 51.73177493 | AG65: ='[48]Time to connect improvement'!$N$74 -> 5.065028555 | AH65: ='[48]Time to connect improvement'!$N$76 -> 46.3897765 | AI65: ='[48]Time to connect improvement'!$N$78 -> 51.45480506 | AJ65: ='[48]Time to connect improvement'!$N$75 -> 6.61707969 | AK65: ='[48]Time to connect improvement'!$N$77 -> 55.0565325 | AL65: ='[48]Time to connect improvement'!$N$79 -> 61.67361219
D66: NPgN | E66: ='[45]Time to connect improvement'!$M$74 -> 5.407092376 | F66: ='[45]Time to connect improvement'!$M$76 -> 11.4797201 | G66: ='[45]Time to connect improvement'!$M$78 -> 16.88681248 | H66: ='[45]Time to connect improvement'!$M$75 -> 10.23449286 | I66: ='[45]Time to connect improvement'!$M$77 -> 5.570614035 | J66: ='[45]Time to connect improvement'!$M$79 -> 15.8051069 | L66: ='[46]Time to connect improvement'!$M$74 -> 5.541641571 | M66: ='[46]Time to connect improvement'!$M$76 -> 1.002505593 | N66: ='[46]Time to connect improvement'!$M$78 -> 6.544147164 | O66: ='[46]Time to connect improvement'!$M$75 -> 10.40974178 | P66: ='[46]Time to connect improvement'!$M$77 -> -4.999478042 | Q66: ='[46]Time to connect improvement'!$M$79 -> 5.410263742 | S66: ='[44]Time to connect improvement'!$M$74 -> 3.132990777 | T66: ='[44]Time to connect improvement'!$M$76 -> -2.123333333 | U66: ='[44]Time to connect improvement'!$M$78 -> 1.009657444 | V66: ='[44]Time to connect improvement'!$M$75 -> 3.918663717 | W66: ='[44]Time to connect improvement'!$M$77 -> -10.31833333 | X66: ='[44]Time to connect improvement'!$M$79 -> -6.399669617 | Z66: ='[47]Time to connect improvement'!$M$74 -> 4.822990777 | AA66: ='[47]Time to connect improvement'!$M$76 -> 10.47666667 | AB66: ='[47]Time to connect improvement'!$M$78 -> 15.29965744 | AC66: ='[47]Time to connect improvement'!$M$75 -> 8.428663717 | AD66: ='[47]Time to connect improvement'!$M$77 -> 1.941666667 | AE66: ='[47]Time to connect improvement'!$M$79 -> 10.37033038 | AG66: ='[48]Time to connect improvement'!$M$74 -> 3.550539972 | AH66: ='[48]Time to connect improvement'!$M$76 -> 11.17463715 | AI66: ='[48]Time to connect improvement'!$M$78 -> 14.72517712 | AJ66: ='[48]Time to connect improvement'!$M$75 -> 5.519770728 | AK66: ='[48]Time to connect improvement'!$M$77 -> 1.953087986 | AL66: ='[48]Time to connect improvement'!$M$79 -> 7.472858714
D67: NPgY | E67: ='[45]Time to connect improvement'!$L$74 -> 5.193938789 | F67: ='[45]Time to connect improvement'!$L$76 -> 4.234720102 | G67: ='[45]Time to connect improvement'!$L$78 -> 9.428658891 | H67: ='[45]Time to connect improvement'!$L$75 -> 10.50699056 | I67: ='[45]Time to connect improvement'!$L$77 -> 11.71872881 | J67: ='[45]Time to connect improvement'!$L$79 -> 22.22571938 | L67: ='[46]Time to connect improvement'!$L$74 -> 5.673779421 | M67: ='[46]Time to connect improvement'!$L$76 -> 0.318827607 | N67: ='[46]Time to connect improvement'!$L$78 -> 5.992607028 | O67: ='[46]Time to connect improvement'!$L$75 -> 10.86290804 | P67: ='[46]Time to connect improvement'!$L$77 -> 3.770033738 | Q67: ='[46]Time to connect improvement'!$L$79 -> 14.63294178 | S67: ='[44]Time to connect improvement'!$L$74 -> 3.282990777 | T67: ='[44]Time to connect improvement'!$L$76 -> 0.5616666667 | U67: ='[44]Time to connect improvement'!$L$78 -> 3.844657444 | V67: ='[44]Time to connect improvement'!$L$75 -> 2.508663717 | W67: ='[44]Time to connect improvement'!$L$77 -> 4.118333333 | X67: ='[44]Time to connect improvement'!$L$79 -> 6.62699705 | Z67: ='[47]Time to connect improvement'!$L$74 -> 4.312990777 | AA67: ='[47]Time to connect improvement'!$L$76 -> 6.271666667 | AB67: ='[47]Time to connect improvement'!$L$78 -> 10.58465744 | AC67: ='[47]Time to connect improvement'!$L$75 -> 4.178663717 | AD67: ='[47]Time to connect improvement'!$L$77 -> 11.58833333 | AE67: ='[47]Time to connect improvement'!$L$79 -> 15.76699705 | AG67: ='[48]Time to connect improvement'!$L$74 -> 4.00999343 | AH67: ='[48]Time to connect improvement'!$L$76 -> 9.827787356 | AI67: ='[48]Time to connect improvement'!$L$78 -> 13.83778079 | AJ67: ='[48]Time to connect improvement'!$L$75 -> 5.371509245 | AK67: ='[48]Time to connect improvement'!$L$77 -> 14.72055995 | AL67: ='[48]Time to connect improvement'!$L$79 -> 20.09206919
D68: WMID | E68: ='[45]Time to connect improvement'!$D$74 -> 4.272990777 | F68: ='[45]Time to connect improvement'!$D$76 -> 17.82 | G68: ='[45]Time to connect improvement'!$D$78 -> 22.09299078 | H68: ='[45]Time to connect improvement'!$D$75 -> 11.04199705 | I68: ='[45]Time to connect improvement'!$D$77 -> 11.72 | J68: ='[45]Time to connect improvement'!$D$79 -> 22.76199705 | L68: ='[46]Time to connect improvement'!$D$74 -> 4.556233766 | M68: ='[46]Time to connect improvement'!$D$76 -> 14.95552124 | N68: ='[46]Time to connect improvement'!$D$78 -> 19.51175501 | O68: ='[46]Time to connect improvement'!$D$75 -> 11.06869694 | P68: ='[46]Time to connect improvement'!$D$77 -> 9.01640274 | Q68: ='[46]Time to connect improvement'!$D$79 -> 20.08509968 | S68: ='[44]Time to connect improvement'!$D$74 -> 4.932990777 | T68: ='[44]Time to connect improvement'!$D$76 -> 24.06 | U68: ='[44]Time to connect improvement'!$D$78 -> 28.99299078 | V68: ='[44]Time to connect improvement'!$D$75 -> 12.68199705 | W68: ='[44]Time to connect improvement'!$D$77 -> 16.24 | X68: ='[44]Time to connect improvement'!$D$79 -> 28.92199705 | Z68: ='[47]Time to connect improvement'!$D$74 -> 4.205517175 | AA68: ='[47]Time to connect improvement'!$D$76 -> 22.19368042 | AB68: ='[47]Time to connect improvement'!$D$78 -> 26.39919759 | AC68: ='[47]Time to connect improvement'!$D$75 -> 11.44629808 | AD68: ='[47]Time to connect improvement'!$D$77 -> 18.91150238 | AE68: ='[47]Time to connect improvement'!$D$79 -> 30.35780046 | AG68: ='[48]Time to connect improvement'!$D$74 -> 6.798770311 | AH68: ='[48]Time to connect improvement'!$D$76 -> 23.46685471 | AI68: ='[48]Time to connect improvement'!$D$78 -> 30.26562502 | AJ68: ='[48]Time to connect improvement'!$D$75 -> 14.33952471 | AK68: ='[48]Time to connect improvement'!$D$77 -> 21.70771744 | AL68: ='[48]Time to connect improvement'!$D$79 -> 36.04724214
D69: EMID | E69: ='[45]Time to connect improvement'!$C$74 -> 4.762990777 | F69: ='[45]Time to connect improvement'!$C$76 -> 12.33 | G69: ='[45]Time to connect improvement'!$C$78 -> 17.09299078 | H69: ='[45]Time to connect improvement'!$C$75 -> 9.19199705 | I69: ='[45]Time to connect improvement'!$C$77 -> 13.85 | J69: ='[45]Time to connect improvement'!$C$79 -> 23.04199705 | L69: ='[46]Time to connect improvement'!$C$74 -> 4.767226026 | M69: ='[46]Time to connect improvement'!$C$76 -> 9.815439911 | N69: ='[46]Time to connect improvement'!$C$78 -> 14.58266594 | O69: ='[46]Time to connect improvement'!$C$75 -> 9.657633971 | P69: ='[46]Time to connect improvement'!$C$77 -> 9.323697662 | Q69: ='[46]Time to connect improvement'!$C$79 -> 18.98133163 | S69: ='[44]Time to connect improvement'!$C$74 -> 4.732990777 | T69: ='[44]Time to connect improvement'!$C$76 -> 16.06 | U69: ='[44]Time to connect improvement'!$C$78 -> 20.79299078 | V69: ='[44]Time to connect improvement'!$C$75 -> 9.48199705 | W69: ='[44]Time to connect improvement'!$C$77 -> 19.68 | X69: ='[44]Time to connect improvement'!$C$79 -> 29.16199705 | Z69: ='[47]Time to connect improvement'!$C$74 -> 4.610440538 | AA69: ='[47]Time to connect improvement'!$C$76 -> 13.83818123 | AB69: ='[47]Time to connect improvement'!$C$78 -> 18.44862177 | AC69: ='[47]Time to connect improvement'!$C$75 -> 9.098158072 | AD69: ='[47]Time to connect improvement'!$C$77 -> 19.69949493 | AE69: ='[47]Time to connect improvement'!$C$79 -> 28.79765301 | AG69: ='[48]Time to connect improvement'!$C$74 -> 6.040249154 | AH69: ='[48]Time to connect improvement'!$C$76 -> 16.67192337 | AI69: ='[48]Time to connect improvement'!$C$78 -> 22.71217252 | AJ69: ='[48]Time to connect improvement'!$C$75 -> 10.93463559 | AK69: ='[48]Time to connect improvement'!$C$77 -> 21.11656342 | AL69: ='[48]Time to connect improvement'!$C$79 -> 32.05119901
D70: SWALES | E70: ='[45]Time to connect improvement'!$E$74 -> -1.257009223 | F70: ='[45]Time to connect improvement'!$E$76 -> 11.81 | G70: ='[45]Time to connect improvement'!$E$78 -> 10.55299078 | H70: ='[45]Time to connect improvement'!$E$75 -> -1.24800295 | I70: ='[45]Time to connect improvement'!$E$77 -> 21.55 | J70: ='[45]Time to connect improvement'!$E$79 -> 20.30199705 | L70: ='[46]Time to connect improvement'!$E$74 -> 2.814132611 | M70: ='[46]Time to connect improvement'!$E$76 -> 8.314525909 | N70: ='[46]Time to connect improvement'!$E$78 -> 11.12865852 | O70: ='[46]Time to connect improvement'!$E$75 -> 4.073705825 | P70: ='[46]Time to connect improvement'!$E$77 -> 13.5493103 | Q70: ='[46]Time to connect improvement'!$E$79 -> 17.62301613 | S70: ='[44]Time to connect improvement'!$E$74 -> 3.812990777 | T70: ='[44]Time to connect improvement'!$E$76 -> 13.72 | U70: ='[44]Time to connect improvement'!$E$78 -> 17.53299078 | V70: ='[44]Time to connect improvement'!$E$75 -> 4.92199705 | W70: ='[44]Time to connect improvement'!$E$77 -> 17.59 | X70: ='[44]Time to connect improvement'!$E$79 -> 22.51199705 | Z70: ='[47]Time to connect improvement'!$E$74 -> 3.500702541 | AA70: ='[47]Time to connect improvement'!$E$76 -> 14.94270355 | AB70: ='[47]Time to connect improvement'!$E$78 -> 18.44340609 | AC70: ='[47]Time to connect improvement'!$E$75 -> 3.484121474 | AD70: ='[47]Time to connect improvement'!$E$77 -> 22.03540573 | AE70: ='[47]Time to connect improvement'!$E$79 -> 25.51952721 | AG70: ='[48]Time to connect improvement'!$E$74 -> 5.129836123 | AH70: ='[48]Time to connect improvement'!$E$76 -> 17.46502716 | AI70: ='[48]Time to connect improvement'!$E$78 -> 22.59486328 | AJ70: ='[48]Time to connect improvement'!$E$75 -> 6.188566598 | AK70: ='[48]Time to connect improvement'!$E$77 -> 25.78350983 | AL70: ='[48]Time to connect improvement'!$E$79 -> 31.97207642
D71: SWEST | E71: ='[45]Time to connect improvement'!$F$74 -> 0.8729907772 | F71: ='[45]Time to connect improvement'!$F$76 -> 11.59 | G71: ='[45]Time to connect improvement'!$F$78 -> 12.46299078 | H71: ='[45]Time to connect improvement'!$F$75 -> 2.25199705 | I71: ='[45]Time to connect improvement'!$F$77 -> 19.79 | J71: ='[45]Time to connect improvement'!$F$79 -> 22.04199705 | L71: ='[46]Time to connect improvement'!$F$74 -> 2.357785527 | M71: ='[46]Time to connect improvement'!$F$76 -> 7.073178864 | N71: ='[46]Time to connect improvement'!$F$78 -> 9.430964391 | O71: ='[46]Time to connect improvement'!$F$75 -> 4.258711985 | P71: ='[46]Time to connect improvement'!$F$77 -> 14.08139297 | Q71: ='[46]Time to connect improvement'!$F$79 -> 18.34010496 | S71: ='[44]Time to connect improvement'!$F$74 -> 2.642990777 | T71: ='[44]Time to connect improvement'!$F$76 -> 17.87 | U71: ='[44]Time to connect improvement'!$F$78 -> 20.51299078 | V71: ='[44]Time to connect improvement'!$F$75 -> 4.72199705 | W71: ='[44]Time to connect improvement'!$F$77 -> 27.55 | X71: ='[44]Time to connect improvement'!$F$79 -> 32.27199705 | Z71: ='[47]Time to connect improvement'!$F$74 -> 2.142526452 | AA71: ='[47]Time to connect improvement'!$F$76 -> 16.18361053 | AB71: ='[47]Time to connect improvement'!$F$78 -> 18.32613699 | AC71: ='[47]Time to connect improvement'!$F$75 -> 4.512585334 | AD71: ='[47]Time to connect improvement'!$F$77 -> 24.07696411 | AE71: ='[47]Time to connect improvement'!$F$79 -> 28.58954944 | AG71: ='[48]Time to connect improvement'!$F$74 -> 4.396653478 | AH71: ='[48]Time to connect improvement'!$F$76 -> 16.69487724 | AI71: ='[48]Time to connect improvement'!$F$78 -> 21.09153072 | AJ71: ='[48]Time to connect improvement'!$F$75 -> 6.465062789 | AK71: ='[48]Time to connect improvement'!$F$77 -> 25.01244614 | AL71: ='[48]Time to connect improvement'!$F$79 -> 31.47750893
D72: LPN | E72: ='[45]Time to connect improvement'!$H$74 -> 6.07755102 | F72: ='[45]Time to connect improvement'!$H$76 -> 7.734255319 | G72: ='[45]Time to connect improvement'!$H$78 -> 13.81180634 | H72: ='[45]Time to connect improvement'!$H$75 -> 11.37038123 | I72: ='[45]Time to connect improvement'!$H$77 -> 23.02457604 | J72: ='[45]Time to connect improvement'!$H$79 -> 34.39495727 | L72: ='[46]Time to connect improvement'!$H$74 -> 4.35 | M72: ='[46]Time to connect improvement'!$H$76 -> -10.61 | N72: ='[46]Time to connect improvement'!$H$78 -> -6.26 | O72: ='[46]Time to connect improvement'!$H$75 -> 7.72 | P72: ='[46]Time to connect improvement'!$H$77 -> 11.97 | Q72: ='[46]Time to connect improvement'!$H$79 -> 19.69 | S72: ='[44]Time to connect improvement'!$H$74 -> 3.985968586 | T72: ='[44]Time to connect improvement'!$H$76 -> 8.052727273 | U72: ='[44]Time to connect improvement'!$H$78 -> 12.03869586 | V72: ='[44]Time to connect improvement'!$H$75 -> 8.731366209 | W72: ='[44]Time to connect improvement'!$H$77 -> 24.77611702 | X72: ='[44]Time to connect improvement'!$H$79 -> 33.50748323 | Z72: ='[47]Time to connect improvement'!$H$74 -> 4.328839779 | AA72: ='[47]Time to connect improvement'!$H$76 -> 14.96989071 | AB72: ='[47]Time to connect improvement'!$H$78 -> 19.29873049 | AC72: ='[47]Time to connect improvement'!$H$75 -> 9.126525199 | AD72: ='[47]Time to connect improvement'!$H$77 -> 26.73656289 | AE72: ='[47]Time to connect improvement'!$H$79 -> 35.86308809 | AG72: ='[48]Time to connect improvement'!$H$74 -> 4.432345679 | AH72: ='[48]Time to connect improvement'!$H$76 -> 13.61928571 | AI72: ='[48]Time to connect improvement'!$H$78 -> 18.05163139 | AJ72: ='[48]Time to connect improvement'!$H$75 -> 9.586409966 | AK72: ='[48]Time to connect improvement'!$H$77 -> 25.81495586 | AL72: ='[48]Time to connect improvement'!$H$79 -> 35.40136583
D73: SPN | E73: ='[45]Time to connect improvement'!$I$74 -> 5.775312761 | F73: ='[45]Time to connect improvement'!$I$76 -> 11.4338061 | G73: ='[45]Time to connect improvement'!$I$78 -> 17.20911886 | H73: ='[45]Time to connect improvement'!$I$75 -> 10.5447812 | I73: ='[45]Time to connect improvement'!$I$77 -> 18.23171975 | J73: ='[45]Time to connect improvement'!$I$79 -> 28.77650094 | L73: ='[46]Time to connect improvement'!$I$74 -> 4.83 | M73: ='[46]Time to connect improvement'!$I$76 -> -3.82 | N73: ='[46]Time to connect improvement'!$I$78 -> 1.01 | O73: ='[46]Time to connect improvement'!$I$75 -> 11.37 | P73: ='[46]Time to connect improvement'!$I$77 -> -2.89 | Q73: ='[46]Time to connect improvement'!$I$79 -> 8.48 | S73: ='[44]Time to connect improvement'!$I$74 -> 4.651934985 | T73: ='[44]Time to connect improvement'!$I$76 -> 12.58096168 | U73: ='[44]Time to connect improvement'!$I$78 -> 17.23289666 | V73: ='[44]Time to connect improvement'!$I$75 -> 8.092173913 | W73: ='[44]Time to connect improvement'!$I$77 -> 17.51319347 | X73: ='[44]Time to connect improvement'!$I$79 -> 25.60536739 | Z73: ='[47]Time to connect improvement'!$I$74 -> 3.277712032 | AA73: ='[47]Time to connect improvement'!$I$76 -> 9.834985673 | AB73: ='[47]Time to connect improvement'!$I$78 -> 13.1126977 | AC73: ='[47]Time to connect improvement'!$I$75 -> 8.489429115 | AD73: ='[47]Time to connect improvement'!$I$77 -> 11.97936382 | AE73: ='[47]Time to connect improvement'!$I$79 -> 20.46879293 | AG73: ='[48]Time to connect improvement'!$I$74 -> 3.957487381 | AH73: ='[48]Time to connect improvement'!$I$76 -> 12.64898367 | AI73: ='[48]Time to connect improvement'!$I$78 -> 16.60647105 | AJ73: ='[48]Time to connect improvement'!$I$75 -> 10.69636462 | AK73: ='[48]Time to connect improvement'!$I$77 -> 19.97468951 | AL73: ='[48]Time to connect improvement'!$I$79 -> 30.67105412
D74: EPN | E74: ='[45]Time to connect improvement'!$G$74 -> 4.499697838 | F74: ='[45]Time to connect improvement'!$G$76 -> -0.5103448276 | G74: ='[45]Time to connect improvement'!$G$78 -> 3.98935301 | H74: ='[45]Time to connect improvement'!$G$75 -> 5.914862249 | I74: ='[45]Time to connect improvement'!$G$77 -> 2.693236715 | J74: ='[45]Time to connect improvement'!$G$79 -> 8.608098964 | L74: ='[46]Time to connect improvement'!$G$74 -> 3.94 | M74: ='[46]Time to connect improvement'!$G$76 -> -11.92 | N74: ='[46]Time to connect improvement'!$G$78 -> -7.98 | O74: ='[46]Time to connect improvement'!$G$75 -> 5.86 | P74: ='[46]Time to connect improvement'!$G$77 -> -13.67 | Q74: ='[46]Time to connect improvement'!$G$79 -> -7.81 | S74: ='[44]Time to connect improvement'!$G$74 -> 2.819681698 | T74: ='[44]Time to connect improvement'!$G$76 -> -0.9793198529 | U74: ='[44]Time to connect improvement'!$G$78 -> 1.840361845 | V74: ='[44]Time to connect improvement'!$G$75 -> 4.156377473 | W74: ='[44]Time to connect improvement'!$G$77 -> 4.686503067 | X74: ='[44]Time to connect improvement'!$G$79 -> 8.842880541 | Z74: ='[47]Time to connect improvement'!$G$74 -> 2.915037594 | AA74: ='[47]Time to connect improvement'!$G$76 -> 0.3489319843 | AB74: ='[47]Time to connect improvement'!$G$78 -> 3.263969578 | AC74: ='[47]Time to connect improvement'!$G$75 -> 5.637462483 | AD74: ='[47]Time to connect improvement'!$G$77 -> 1.222006141 | AE74: ='[47]Time to connect improvement'!$G$79 -> 6.859468624 | AG74: ='[48]Time to connect improvement'!$G$74 -> 5.261317957 | AH74: ='[48]Time to connect improvement'!$G$76 -> 5.659427966 | AI74: ='[48]Time to connect improvement'!$G$78 -> 10.92074592 | AJ74: ='[48]Time to connect improvement'!$G$75 -> 9.934626866 | AK74: ='[48]Time to connect improvement'!$G$77 -> 10.99053647 | AL74: ='[48]Time to connect improvement'!$G$79 -> 20.92516333
D75: SPD | E75: ='[45]Time to connect improvement'!$P$74 -> 4.574434157 | F75: ='[45]Time to connect improvement'!$P$76 -> 6.391408755 | G75: ='[45]Time to connect improvement'!$P$78 -> 10.96584291 | H75: ='[45]Time to connect improvement'!$P$75 -> 6.171719278 | I75: ='[45]Time to connect improvement'!$P$77 -> 2.598634413 | J75: ='[45]Time to connect improvement'!$P$79 -> 8.77035369 | L75: ='[46]Time to connect improvement'!$P$74 -> 4.902258217 | M75: ='[46]Time to connect improvement'!$P$76 -> -8.978408603 | N75: ='[46]Time to connect improvement'!$P$78 -> -4.076150386 | O75: ='[46]Time to connect improvement'!$P$75 -> 7.187779061 | P75: ='[46]Time to connect improvement'!$P$77 -> -18.94621558 | Q75: ='[46]Time to connect improvement'!$P$79 -> -11.75843652 | S75: ='[44]Time to connect improvement'!$P$74 -> 6.615863249 | T75: ='[44]Time to connect improvement'!$P$76 -> -16.80675337 | U75: ='[44]Time to connect improvement'!$P$78 -> -10.19089012 | V75: ='[44]Time to connect improvement'!$P$75 -> 6.491296166 | W75: ='[44]Time to connect improvement'!$P$77 -> -24.55302072 | X75: ='[44]Time to connect improvement'!$P$79 -> -18.06172455 | Z75: ='[47]Time to connect improvement'!$P$74 -> 6.9732584 | AA75: ='[47]Time to connect improvement'!$P$76 -> -12.17446497 | AB75: ='[47]Time to connect improvement'!$P$78 -> -5.201206568 | AC75: ='[47]Time to connect improvement'!$P$75 -> 7.75334552 | AD75: ='[47]Time to connect improvement'!$P$77 -> -24.32764277 | AE75: ='[47]Time to connect improvement'!$P$79 -> -16.57429725 | AG75: ='[48]Time to connect improvement'!$P$74 -> 6.498758626 | AH75: ='[48]Time to connect improvement'!$P$76 -> -9.288641213 | AI75: ='[48]Time to connect improvement'!$P$78 -> -2.789882587 | AJ75: ='[48]Time to connect improvement'!$P$75 -> 7.991092665 | AK75: ='[48]Time to connect improvement'!$P$77 -> -19.42155356 | AL75: ='[48]Time to connect improvement'!$P$79 -> -11.43046089
D76: SPMW | E76: ='[45]Time to connect improvement'!$O$74 -> 3.668890964 | F76: ='[45]Time to connect improvement'!$O$76 -> 1.269745615 | G76: ='[45]Time to connect improvement'!$O$78 -> 4.93863658 | H76: ='[45]Time to connect improvement'!$O$75 -> 4.161614039 | I76: ='[45]Time to connect improvement'!$O$77 -> 2.508318091 | J76: ='[45]Time to connect improvement'!$O$79 -> 6.66993213 | L76: ='[46]Time to connect improvement'!$O$74 -> 3.961062549 | M76: ='[46]Time to connect improvement'!$O$76 -> -8.430618732 | N76: ='[46]Time to connect improvement'!$O$78 -> -4.469556183 | O76: ='[46]Time to connect improvement'!$O$75 -> 4.204136865 | P76: ='[46]Time to connect improvement'!$O$77 -> -13.79394598 | Q76: ='[46]Time to connect improvement'!$O$79 -> -9.589809117 | S76: ='[44]Time to connect improvement'!$O$74 -> 4.484330702 | T76: ='[44]Time to connect improvement'!$O$76 -> -7.892007742 | U76: ='[44]Time to connect improvement'!$O$78 -> -3.40767704 | V76: ='[44]Time to connect improvement'!$O$75 -> 0.9535346184 | W76: ='[44]Time to connect improvement'!$O$77 -> -19.90737139 | X76: ='[44]Time to connect improvement'!$O$79 -> -18.95383677 | Z76: ='[47]Time to connect improvement'!$O$74 -> 4.450715897 | AA76: ='[47]Time to connect improvement'!$O$76 -> -15.92503309 | AB76: ='[47]Time to connect improvement'!$O$78 -> -11.4743172 | AC76: ='[47]Time to connect improvement'!$O$75 -> 1.414215671 | AD76: ='[47]Time to connect improvement'!$O$77 -> -20.58291087 | AE76: ='[47]Time to connect improvement'!$O$79 -> -19.16869519 | AG76: ='[48]Time to connect improvement'!$O$74 -> 4.634834976 | AH76: ='[48]Time to connect improvement'!$O$76 -> -18.9733654 | AI76: ='[48]Time to connect improvement'!$O$78 -> -14.33853043 | AJ76: ='[48]Time to connect improvement'!$O$75 -> 3.692827499 | AK76: ='[48]Time to connect improvement'!$O$77 -> -27.26563558 | AL76: ='[48]Time to connect improvement'!$O$79 -> -23.57280808
D77: SSEH | E77: ='[45]Time to connect improvement'!$J$74 -> 6.278027356 | F77: ='[45]Time to connect improvement'!$J$76 -> 3.581850534 | G77: ='[45]Time to connect improvement'!$J$78 -> 9.859877889 | H77: ='[45]Time to connect improvement'!$J$75 -> 8.599600464 | I77: ='[45]Time to connect improvement'!$J$77 -> 12.68906631 | J77: ='[45]Time to connect improvement'!$J$79 -> 21.28866677 | L77: ='[46]Time to connect improvement'!$J$74 -> 5.225880116 | M77: ='[46]Time to connect improvement'!$J$76 -> 5.102575922 | N77: ='[46]Time to connect improvement'!$J$78 -> 10.32845604 | O77: ='[46]Time to connect improvement'!$J$75 -> 6.479039717 | P77: ='[46]Time to connect improvement'!$J$77 -> 12.27133046 | Q77: ='[46]Time to connect improvement'!$J$79 -> 18.75037017 | S77: ='[44]Time to connect improvement'!$J$74 -> 4.555877945 | T77: ='[44]Time to connect improvement'!$J$76 -> 7.24480318 | U77: ='[44]Time to connect improvement'!$J$78 -> 11.80068113 | V77: ='[44]Time to connect improvement'!$J$75 -> 4.683975464 | W77: ='[44]Time to connect improvement'!$J$77 -> 23.9499754 | X77: ='[44]Time to connect improvement'!$J$79 -> 28.63395086 | Z77: ='[47]Time to connect improvement'!$J$74 -> 5.918027356 | AA77: ='[47]Time to connect improvement'!$J$76 -> 12.98185053 | AB77: ='[47]Time to connect improvement'!$J$78 -> 18.89987789 | AC77: ='[47]Time to connect improvement'!$J$75 -> 8.359600464 | AD77: ='[47]Time to connect improvement'!$J$77 -> 24.90906631 | AE77: ='[47]Time to connect improvement'!$J$79 -> 33.26866677 | AG77: ='[48]Time to connect improvement'!$J$74 -> 5.516436056 | AH77: ='[48]Time to connect improvement'!$J$76 -> 17.9480024 | AI77: ='[48]Time to connect improvement'!$J$78 -> 23.46443846 | AJ77: ='[48]Time to connect improvement'!$J$75 -> 9.567732332 | AK77: ='[48]Time to connect improvement'!$J$77 -> 31.59936166 | AL77: ='[48]Time to connect improvement'!$J$79 -> 41.167094
D78: SSES | E78: ='[45]Time to connect improvement'!$K$74 -> 5.533227827 | F78: ='[45]Time to connect improvement'!$K$76 -> 6.316136364 | G78: ='[45]Time to connect improvement'!$K$78 -> 11.84936419 | H78: ='[45]Time to connect improvement'!$K$75 -> 5.432283935 | I78: ='[45]Time to connect improvement'!$K$77 -> 2.147936191 | J78: ='[45]Time to connect improvement'!$K$79 -> 7.580220127 | L78: ='[46]Time to connect improvement'!$K$74 -> 5.504325084 | M78: ='[46]Time to connect improvement'!$K$76 -> -4.797027528 | N78: ='[46]Time to connect improvement'!$K$78 -> 0.7072975564 | O78: ='[46]Time to connect improvement'!$K$75 -> 5.143640719 | P78: ='[46]Time to connect improvement'!$K$77 -> -16.49588734 | Q78: ='[46]Time to connect improvement'!$K$79 -> -11.35224662 | S78: ='[44]Time to connect improvement'!$K$74 -> 4.778703526 | T78: ='[44]Time to connect improvement'!$K$76 -> -6.215136953 | U78: ='[44]Time to connect improvement'!$K$78 -> -1.436433427 | V78: ='[44]Time to connect improvement'!$K$75 -> 3.08901256 | W78: ='[44]Time to connect improvement'!$K$77 -> -16.81771353 | X78: ='[44]Time to connect improvement'!$K$79 -> -13.72870097 | Z78: ='[47]Time to connect improvement'!$K$74 -> 5.083227827 | AA78: ='[47]Time to connect improvement'!$K$76 -> 7.656136364 | AB78: ='[47]Time to connect improvement'!$K$78 -> 12.73936419 | AC78: ='[47]Time to connect improvement'!$K$75 -> 3.722283935 | AD78: ='[47]Time to connect improvement'!$K$77 -> 6.897936191 | AE78: ='[47]Time to connect improvement'!$K$79 -> 10.62022013 | AG78: ='[48]Time to connect improvement'!$K$74 -> 5.181359458 | AH78: ='[48]Time to connect improvement'!$K$76 -> 10.20669699 | AI78: ='[48]Time to connect improvement'!$K$78 -> 15.38805645 | AJ78: ='[48]Time to connect improvement'!$K$75 -> 7.843986691 | AK78: ='[48]Time to connect improvement'!$K$77 -> 12.32216971 | AL78: ='[48]Time to connect improvement'!$K$79 -> 20.1661564
D79: Industry Average | E79: =AVERAGE(E65:E78) -> 4.227390814 | F79: 10.66247919 | G79: 14.88987 | H79: 7.018466603 | I79: 13.84892781 | J79: 20.86739441 | L79: =AVERAGE(L65:L78) -> 4.499292964 | M79: 2.876559075 | N79: 7.375852039 | O79: 7.278451909 | P79: 3.870608598 | Q79: 11.14906051 | S79: ='[44]Time to connect improvement'!$Q$74 -> 4.161148711 | T79: ='[44]Time to connect improvement'!$Q$76 -> 7.754929218 | U79: ='[44]Time to connect improvement'!$Q$78 -> 11.91607793 | V79: ='[44]Time to connect improvement'!$Q$75 -> 5.55006768 | W79: ='[44]Time to connect improvement'!$Q$77 -> 9.492968769 | X79: ='[44]Time to connect improvement'!$Q$79 -> 15.04303645 | Z79: ='[47]Time to connect improvement'!$Q$74 -> 4.310554553 | AA79: ='[47]Time to connect improvement'!$Q$76 -> 10.20601484 | AB79: ='[47]Time to connect improvement'!$Q$78 -> 14.51656939 | AC79: ='[47]Time to connect improvement'!$Q$75 -> 6.455660591 | AD79: ='[47]Time to connect improvement'!$Q$77 -> 12.29225916 | AE79: ='[47]Time to connect improvement'!$Q$79 -> 18.74791976 | AG79: ='[48]Time to connect improvement'!$Q$74 -> 5.033829368 | AH79: ='[48]Time to connect improvement'!$Q$76 -> 12.3936624 | AI79: ='[48]Time to connect improvement'!$Q$78 -> 17.42749177 | AJ79: ='[48]Time to connect improvement'!$Q$75 -> 8.196370713 | AK79: ='[48]Time to connect improvement'!$Q$77 -> 15.66892438 | AL79: ='[48]Time to connect improvement'!$Q$79 -> 23.86529509
D80: *2015/16 targets in cells E57:K57 | L80: *2016/17 targets in cells U57:AA57 | S80: *2017/18 targets in cells AJ57:AP57 | Z80: *2018/19 targets in cells AY57:BE57 | AG80: *2019/20 targets in cells BN57:BT57
B82: Connections Guaranteed Standards of Performance (GSOPs) | D82: Connections Guaranteed Standard of Performance
E83: 2015/16 | L83: 2016/17 | S83: 2017/18 | Z83: 2018/19 | AG83: 2019/20 | AN83: 2020/21 | AU83: 2021/22 | BB83: 2022/23
E84: Total number of cases where the Connection GSOPs apply | F84: Total number of cases where the Connection GSOPs apply and the standard was not met | G84: Total penalties paid against the Connection GSOPs (£) (2019/20 prices) | H84: % of total cases when standard not met | I84: RAG | J84: Ranking | L84: Total number of cases where the Connection GSOPs apply | M84: Total number of cases where the Connection GSOPs apply and the standard was not met | N84: Total penalties paid against the Connection GSOPs (£) (2019/20 prices) | O84: % of total cases when standard not met | P84: RAG | Q84: Ranking | S84: Total number of cases where the Connection GSOPs apply | T84: Total number of cases where the Connection GSOPs apply and the standard was not met | U84: Total penalties paid against the Connection GSOPs (£) (2019/20 prices) | V84: % of total cases when standard not met | W84: RAG | X84: Ranking | Z84: Total number of cases where the Connection GSOPs apply | AA84: Total number of cases where the Connection GSOPs apply and the standard was not met | AB84: Total penalties paid against the Connection GSOPs (£) (2019/20 prices) | AC84: % of total cases when standard not met | AD84: RAG | AE84: Ranking | AG84: Total number of cases where the Connection GSOPs apply | AH84: Total number of cases where the Connection GSOPs apply and the standard was not met | AI84: Total penalties paid against the Connection GSOPs (£) | AJ84: % of total cases when standard not met | AK84: RAG | AL84: Ranking | AN84: Total number of cases where the Connection GSOPs apply | AO84: Total number of cases where the Connection GSOPs apply and the standard was not met | AP84: Total penalties paid against the Connection GSOPs (£) | AQ84: % of total cases when standard not met | AR84: RAG | AS84: Ranking | AU84: Total number of cases where the Connection GSOPs apply | AV84: Total number of cases where the Connection GSOPs apply and the standard was not met | AW84: Total penalties paid against the Connection GSOPs (£) | AX84: % of total cases when standard not met | AY84: RAG | AZ84: Ranking | BB84: Total number of cases where the Connection GSOPs apply | BC84: Total number of cases where the Connection GSOPs apply and the standard was not met | BD84: Total penalties paid against the Connection GSOPs (£) | BE84: % of total cases when standard not met | BF84: RAG | BG84: Ranking
D85: ENWL | E85: ='[59]Guaranteed standards'!E80 -> 21541 | F85: ='[59]Guaranteed standards'!E81 -> 338 | G85: ='[59]Guaranteed standards'!$E$83*'Guide & drivers'!E29 -> 106993.9607 | H85: =F85/E85 -> 0.01569100785 | I85: =IF(H85<=2%,"Green",IF(H85:H85>5%,"Red","Amber")) -> Green | J85: =RANK(H85,$H$85:$H$98,1) -> 14 | L85: ='[60]Guaranteed standards'!$E$80 -> 19435 | M85: ='[60]Guaranteed standards'!$E$81 -> 179 | N85: ='[60]Guaranteed standards'!$E$83*'Guide & drivers'!J26 -> 46641.22332 | O85: =M85/L85 -> 0.009210187806 | P85: =IF(O85<=2%,"Green",IF(O85:O85>5%,"Red","Amber")) -> Green | Q85: =RANK(O85,O$85:O$98,1) -> 14 | S85: ='[61]Guaranteed standards'!$E$80 -> 19960 | T85: ='[61]Guaranteed standards'!$E$81 -> 59 | U85: ='[61]Guaranteed standards'!$E$83*'Guide & drivers'!J27 -> 10968.79956 | V85: =T85/S85 -> 0.002955911824 | W85: =IF(V85<=2%,"Green",IF(V85:V85>5%,"Red","Amber")) -> Green | X85: =RANK(V85,V$85:V$98,1) -> 9 | Z85: ='[62]Guaranteed standards'!$E$80 -> 20857 | AA85: ='[62]Guaranteed standards'!$E$81 -> 22 | AB85: ='[62]Guaranteed standards'!$E$83*'Guide & drivers'!J28 -> 6616.971282 | AC85: =AA85/Z85 -> 0.001054801745 | AD85: =IF(AC85<=2%,"Green",IF(AC85:AC85>5%,"Red","Amber")) -> Green | AE85: =RANK(AC85,AC$85:AC$98,1) -> 7 | AG85: ='[63]Guaranteed standards'!$E$80 -> 19630 | AH85: ='[63]Guaranteed standards'!$E$81 -> 23 | AI85: ='[63]Guaranteed standards'!$E$83 -> 6740 | AJ85: =AH85/AG85 -> 0.001171676006 | AK85: =IF(AJ85<=2%,"Green",IF(AJ85:AJ85>5%,"Red","Amber")) -> Green | AL85: =RANK(AJ85,AJ$85:AJ$98,1) -> 8
D86: NPgN | E86: ='[59]Guaranteed standards'!$F$80 -> 25025 | F86: ='[59]Guaranteed standards'!F81 -> 32 | G86: ='[59]Guaranteed standards'!$F$83*'Guide & drivers'!E29 -> 4559.608608 | H86: =F86/E86 -> 0.001278721279 | I86: =IF(H86<=2%,"Green",IF(H86:H86>5%,"Red","Amber")) -> Green | J86: =RANK(H86,$H$85:$H$98,1) -> 9 | L86: ='[60]Guaranteed standards'!$F$80 -> 21151 | M86: ='[60]Guaranteed standards'!$F$81 -> 66 | N86: ='[60]Guaranteed standards'!$F$83*'Guide & drivers'!J26 -> 10353.74834 | O86: =M86/L86 -> 0.003120419838 | P86: =IF(O86<=2%,"Green",IF(O86:O86>5%,"Red","Amber")) -> Green | Q86: =RANK(O86,O$85:O$98,1) -> 10 | S86: ='[61]Guaranteed standards'!F$80 -> 22582 | T86: ='[61]Guaranteed standards'!F$81 -> 110 | U86: ='[61]Guaranteed standards'!F$83*'Guide & drivers'!J27 -> 27683.66424 | V86: =T86/S86 -> 0.004871136303 | W86: =IF(V86<=2%,"Green",IF(V86:V86>5%,"Red","Amber")) -> Green | X86: =RANK(V86,V$85:V$98,1) -> 11 | Z86: ='[62]Guaranteed standards'!$F$80 -> 18686 | AA86: ='[62]Guaranteed standards'!$F$81 -> 84 | AB86: ='[62]Guaranteed standards'!$F$83*'Guide & drivers'!J28 -> 22564.38502 | AC86: =AA86/Z86 -> 0.004495344108 | AD86: =IF(AC86<=2%,"Green",IF(AC86:AC86>5%,"Red","Amber")) -> Green | AE86: =RANK(AC86,AC$85:AC$98,1) -> 10 | AG86: ='[63]Guaranteed standards'!$F$80 -> 16874 | AH86: ='[63]Guaranteed standards'!$F$81 -> 222 | AI86: ='[63]Guaranteed standards'!$F$83 -> 28245 | AJ86: =AH86/AG86 -> 0.01315633519 | AK86: =IF(AJ86<=2%,"Green",IF(AJ86:AJ86>5%,"Red","Amber")) -> Green | AL86: =RANK(AJ86,AJ$85:AJ$98,1) -> 14
D87: NPgY | E87: ='[59]Guaranteed standards'!$G$80 -> 35257 | F87: ='[59]Guaranteed standards'!$G$81 -> 29 | G87: ='[59]Guaranteed standards'!$G$83*'Guide & drivers'!E29 -> 10037.86072 | H87: 0.0008225316958 | I87: =IF(H87<=2%,"Green",IF(H87:H87>5%,"Red","Amber")) -> Green | J87: 7 | L87: ='[60]Guaranteed standards'!$G$80 -> 30076 | M87: ='[60]Guaranteed standards'!$G$81 -> 50 | N87: ='[60]Guaranteed standards'!$G$83*'Guide & drivers'!J26 -> 15108.35629 | O87: 0.001662455114 | P87: Green | Q87: =RANK(O87,O$85:O$98,1) -> 8 | S87: ='[61]Guaranteed standards'!$G$80 -> 29262 | T87: ='[61]Guaranteed standards'!$G$81 -> 176 | U87: ='[61]Guaranteed standards'!$G$83*'Guide & drivers'!J27 -> 37140.61963 | V87: 0.006014626478 | W87: Green | X87: =RANK(V87,V$85:V$98,1) -> 12 | Z87: ='[62]Guaranteed standards'!$G$80 -> 27120 | AA87: ='[62]Guaranteed standards'!$G$81 -> 173 | AB87: ='[62]Guaranteed standards'!$G$83*'Guide & drivers'!J28 -> 38716.97615 | AC87: 0.006379056047 | AD87: Green | AE87: =RANK(AC87,AC$85:AC$98,1) -> 12 | AG87: ='[63]Guaranteed standards'!$G$80 -> 25661 | AH87: ='[63]Guaranteed standards'!$G$81 -> 189 | AI87: ='[63]Guaranteed standards'!$G$83 -> 43005 | AJ87: 0.007365262461 | AK87: Green | AL87: 13
D88: WMID | E88: ='[59]Guaranteed standards'!$O$80 -> 36475 | F88: ='[59]Guaranteed standards'!$O$81 -> 0 | G88: ='[59]Guaranteed standards'!$O$83*'Guide & drivers'!E29 -> 0 | H88: 0 | I88: Green | J88: 1 | L88: ='[60]Guaranteed standards'!$O$80 -> 33786 | M88: ='[60]Guaranteed standards'!$O$81 -> 0 | N88: ='[60]Guaranteed standards'!$O$83*'Guide & drivers'!J26 -> 0 | O88: 0 | P88: Green | Q88: 1 | S88: ='[61]Guaranteed standards'!$O$80 -> 37789 | T88: ='[61]Guaranteed standards'!$O$81 -> 0 | U88: ='[61]Guaranteed standards'!$O$83 -> 0 | V88: 0 | W88: Green | X88: 1 | Z88: ='[62]Guaranteed standards'!$O$80 -> 36158 | AA88: ='[62]Guaranteed standards'!$O$81 -> 1 | AB88: ='[62]Guaranteed standards'!$O$83*'Guide & drivers'!J28 -> 133.3653127 | AC88: 2.765639692e-05 | AD88: Green | AE88: 3 | AG88: ='[63]Guaranteed standards'!$O$80 -> 35222 | AH88: ='[63]Guaranteed standards'!$O$81 -> 0 | AI88: ='[63]Guaranteed standards'!$O$83 -> 0 | AJ88: 0 | AK88: Green | AL88: 1
D89: EMID | E89: ='[59]Guaranteed standards'!$P$80 -> 36477 | F89: ='[59]Guaranteed standards'!$P$81 -> 3 | G89: ='[59]Guaranteed standards'!$P$83*'Guide & drivers'!E29 -> 291.2772084 | H89: 8.224360556e-05 | I89: Green | J89: 4 | L89: ='[60]Guaranteed standards'!$P$80 -> 35861 | M89: ='[60]Guaranteed standards'!$P$81 -> 0 | N89: ='[60]Guaranteed standards'!$P$83*'Guide & drivers'!J26 -> 0 | O89: 0 | P89: Green | Q89: 1 | S89: ='[61]Guaranteed standards'!$P$80 -> 37198 | T89: ='[61]Guaranteed standards'!$P$81 -> 0 | U89: ='[61]Guaranteed standards'!$P$83 -> 0 | V89: 0 | W89: Green | X89: 1 | Z89: ='[62]Guaranteed standards'!$P$80 -> 38018 | AA89: ='[62]Guaranteed standards'!$P$81 -> 0 | AB89: ='[62]Guaranteed standards'!$P$83*'Guide & drivers'!J28 -> 0 | AC89: 0 | AD89: Green | AE89: 1 | AG89: ='[63]Guaranteed standards'!$P$80 -> 37309 | AH89: ='[63]Guaranteed standards'!$P$81 -> 1 | AI89: ='[63]Guaranteed standards'!$P$83 -> 200 | AJ89: 2.680318422e-05 | AK89: Green | AL89: 3
D90: SWALES | E90: ='[59]Guaranteed standards'!$Q$80 -> 17189 | F90: ='[59]Guaranteed standards'!$Q$81 -> 0 | G90: ='[59]Guaranteed standards'!$Q$83*'Guide & drivers'!E29 -> 0 | H90: 0 | I90: Green | J90: 1 | L90: ='[60]Guaranteed standards'!$Q$80 -> 17373 | M90: ='[60]Guaranteed standards'!$Q$81 -> 0 | N90: ='[60]Guaranteed standards'!$Q$83*'Guide & drivers'!J26 -> 0 | O90: 0 | P90: Green | Q90: 1 | S90: ='[61]Guaranteed standards'!$Q$80 -> 16412 | T90: ='[61]Guaranteed standards'!$Q$81 -> 0 | U90: ='[61]Guaranteed standards'!$Q$83 -> 0 | V90: 0 | W90: Green | X90: 1 | Z90: ='[62]Guaranteed standards'!$Q$80 -> 15416 | AA90: ='[62]Guaranteed standards'!$Q$81 -> 0 | AB90: ='[62]Guaranteed standards'!$Q$83*'Guide & drivers'!J28 -> 0 | AC90: 0 | AD90: Green | AE90: 1 | AG90: ='[63]Guaranteed standards'!$Q$80 -> 15766 | AH90: ='[63]Guaranteed standards'!$Q$81 -> 0 | AI90: ='[63]Guaranteed standards'!$Q$83 -> 0 | AJ90: 0 | AK90: Green | AL90: 1
D91: SWEST | E91: ='[59]Guaranteed standards'!$R$80 -> 34727 | F91: ='[59]Guaranteed standards'!$R$81 -> 1 | G91: ='[59]Guaranteed standards'!$R$83*'Guide & drivers'!E29 -> 72.81930209 | H91: 2.879603767e-05 | I91: Green | J91: 3 | L91: ='[60]Guaranteed standards'!$R$80 -> 35009 | M91: ='[60]Guaranteed standards'!$R$81 -> 0 | N91: ='[60]Guaranteed standards'!$R$83*'Guide & drivers'!J26 -> 0 | O91: 0 | P91: Green | Q91: 1 | S91: ='[61]Guaranteed standards'!$R$80 -> 36429 | T91: ='[61]Guaranteed standards'!$R$81 -> 0 | U91: ='[61]Guaranteed standards'!$R$83 -> 0 | V91: 0 | W91: Green | X91: 1 | Z91: ='[62]Guaranteed standards'!$R$80 -> 35922 | AA91: ='[62]Guaranteed standards'!$R$81 -> 1 | AB91: ='[62]Guaranteed standards'!$R$83*'Guide & drivers'!J28 -> 30.77661061 | AC91: 2.783809365e-05 | AD91: Green | AE91: 4 | AG91: ='[63]Guaranteed standards'!$R$80 -> 35406 | AH91: ='[63]Guaranteed standards'!$R$81 -> 7 | AI91: ='[63]Guaranteed standards'!$R$83 -> 3405 | AJ91: 0.0001977066034 | AK91: Green | AL91: 4
D92: LPN | E92: ='[59]Guaranteed standards'!$L$80 -> 23103 | F92: ='[59]Guaranteed standards'!$L$81 -> 59 | G92: ='[59]Guaranteed standards'!$L$83*'Guide & drivers'!E29 -> 22349.92426 | H92: 0.002553780894 | I92: Green | J92: 11 | L92: ='[60]Guaranteed standards'!$L$80 -> 24042 | M92: ='[60]Guaranteed standards'!$L$81 -> 33 | N92: ='[60]Guaranteed standards'!$L$83*'Guide & drivers'!J26 -> 3186.190564 | O92: 0.001372597954 | P92: Green | Q92: 7 | S92: ='[61]Guaranteed standards'!$L$80 -> 22392 | T92: ='[61]Guaranteed standards'!$L$81 -> 20 | U92: ='[61]Guaranteed standards'!$L$83*'Guide & drivers'!J27 -> 6205.961776 | V92: 0.0008931761343 | W92: Green | X92: 6 | Z92: ='[62]Guaranteed standards'!$L$80 -> 21455 | AA92: ='[62]Guaranteed standards'!$L$81 -> 4 | AB92: ='[62]Guaranteed standards'!$L$83*'Guide & drivers'!J28 -> 420.6136784 | AC92: 0.000186436728 | AD92: Green | AE92: 5 | AG92: ='[63]Guaranteed standards'!$L$80 -> 20903 | AH92: ='[63]Guaranteed standards'!$L$81 -> 19 | AI92: ='[63]Guaranteed standards'!$L$83 -> 8360 | AJ92: 0.0009089604363 | AK92: Green | AL92: 6
D93: SPN | E93: ='[59]Guaranteed standards'!$M$80 -> 28093 | F93: ='[59]Guaranteed standards'!$M$81 -> 106 | G93: ='[59]Guaranteed standards'!$M$83*'Guide & drivers'!E29 -> 49410.69721 | H93: 0.003773181931 | I93: Green | J93: 12 | L93: ='[60]Guaranteed standards'!$M$80 -> 28894 | M93: ='[60]Guaranteed standards'!$M$81 -> 148 | N93: ='[60]Guaranteed standards'!$M$83*'Guide & drivers'!J26 -> 35421.00663 | O93: 0.005122170693 | P93: Green | Q93: 13 | S93: ='[61]Guaranteed standards'!$M$80 -> 29614 | T93: ='[61]Guaranteed standards'!$M$81 -> 65 | U93: ='[61]Guaranteed standards'!$M$83*'Guide & drivers'!J27 -> 19352.66275 | V93: 0.002194907814 | W93: Green | X93: 7 | Z93: ='[62]Guaranteed standards'!$M$80 -> 28627 | AA93: ='[62]Guaranteed standards'!$M$81 -> 42 | AB93: ='[62]Guaranteed standards'!$M$83*'Guide & drivers'!J28 -> 14090.55823 | AC93: 0.0014671464 | AD93: Green | AE93: 9 | AG93: ='[63]Guaranteed standards'!$M$80 -> 27565 | AH93: ='[63]Guaranteed standards'!$M$81 -> 45 | AI93: ='[63]Guaranteed standards'!$M$83 -> 6660 | AJ93: 0.001632504988 | AK93: Green | AL93: 9
D94: EPN | E94: ='[59]Guaranteed standards'!$N$80 -> 48149 | F94: ='[59]Guaranteed standards'!$N$81 -> 183 | G94: ='[59]Guaranteed standards'!$N$83*'Guide & drivers'!E29 -> 52396.2886 | H94: 0.003800701988 | I94: Green | J94: 13 | L94: ='[60]Guaranteed standards'!$N$80 -> 51074 | M94: ='[60]Guaranteed standards'!$N$81 -> 241 | N94: ='[60]Guaranteed standards'!$N$83*'Guide & drivers'!J26 -> 52986.18456 | O94: 0.004718643537 | P94: Green | Q94: 12 | S94: ='[61]Guaranteed standards'!$N$80 -> 51254 | T94: ='[61]Guaranteed standards'!$N$81 -> 113 | U94: ='[61]Guaranteed standards'!$N$83*'Guide & drivers'!J27 -> 17539.50696 | V94: 0.002204705974 | W94: Green | X94: 8 | Z94: ='[62]Guaranteed standards'!$N$80 -> 52745 | AA94: ='[62]Guaranteed standards'!$N$81 -> 70 | AB94: ='[62]Guaranteed standards'!$N$83*'Guide & drivers'!J28 -> 9007.28804 | AC94: 0.001327140013 | AD94: Green | AE94: 8 | AG94: ='[63]Guaranteed standards'!$N$80 -> 48337 | AH94: ='[63]Guaranteed standards'!$N$81 -> 55 | AI94: ='[63]Guaranteed standards'!$N$83 -> 12805 | AJ94: 0.001137844715 | AK94: Green | AL94: 7
D95: SPD | E95: ='[59]Guaranteed standards'!$J$80 -> 14518 | F95: ='[59]Guaranteed standards'!$J$81 -> 23 | G95: ='[59]Guaranteed standards'!$J$83*'Guide & drivers'!E29 -> 2834.351297 | H95: 0.001584240253 | I95: Green | J95: 10 | L95: ='[60]Guaranteed standards'!$J$80 -> 14270 | M95: ='[60]Guaranteed standards'!$J$81 -> 54 | N95: ='[60]Guaranteed standards'!$J$83*'Guide & drivers'!J26 -> 8686.61937 | O95: 0.003784162579 | P95: Green | Q95: 11 | S95: ='[61]Guaranteed standards'!$J$80 -> 13973 | T95: ='[61]Guaranteed standards'!$J$81 -> 55 | U95: ='[61]Guaranteed standards'!$J$83*'Guide & drivers'!J27 -> 11550.27809 | V95: 0.003936162599 | W95: Green | X95: 10 | Z95: ='[62]Guaranteed standards'!$J$80 -> 12718 | AA95: ='[62]Guaranteed standards'!$J$81 -> 133 | AB95: ='[62]Guaranteed standards'!$J$83*'Guide & drivers'!J28 -> 52202.26104 | AC95: 0.01045761912 | AD95: Green | AE95: 13 | AG95: ='[63]Guaranteed standards'!$J$80 -> 12813 | AH95: ='[63]Guaranteed standards'!$J$81 -> 70 | AI95: ='[63]Guaranteed standards'!$J$83 -> 22380 | AJ95: =AH95/AG95 -> 0.005463201436 | AK95: Green | AL95: =RANK(AJ95,AJ$85:AJ$98,1) -> 12
D96: SPMW | E96: ='[59]Guaranteed standards'!$K$80 -> 17438 | F96: ='[59]Guaranteed standards'!$K$81 -> 12 | G96: ='[59]Guaranteed standards'!$K$83*'Guide & drivers'!E29 -> 10782.85819 | H96: 0.000688152311 | I96: Green | J96: 5 | L96: ='[60]Guaranteed standards'!$K$80 -> 16411 | M96: ='[60]Guaranteed standards'!$K$81 -> 18 | N96: ='[60]Guaranteed standards'!$K$83*'Guide & drivers'!J26 -> 3411.033616 | O96: 0.0010968253 | P96: Green | Q96: 6 | S96: ='[61]Guaranteed standards'!$K$80 -> 15272 | T96: ='[61]Guaranteed standards'!$K$81 -> 96 | U96: ='[61]Guaranteed standards'!$K$83*'Guide & drivers'!J27 -> 26970.0315 | V96: 0.00628601362 | W96: Green | X96: 13 | Z96: ='[62]Guaranteed standards'!$K$80 -> 13664 | AA96: ='[62]Guaranteed standards'!$K$81 -> 64 | AB96: ='[62]Guaranteed standards'!$K$83*'Guide & drivers'!J28 -> 42723.06497 | AC96: 0.004683840749 | AD96: Green | AE96: 11 | AG96: ='[63]Guaranteed standards'!$K$80 -> 12464 | AH96: ='[63]Guaranteed standards'!$K$81 -> 35 | AI96: ='[63]Guaranteed standards'!$K$83 -> 7210 | AJ96: 0.002808087291 | AK96: Green | AL96: 10
D97: SSEH | E97: ='[59]Guaranteed standards'!$H$80 -> 17111 | F97: ='[59]Guaranteed standards'!$H$81 -> 16 | G97: ='[59]Guaranteed standards'!$H$83*'Guide & drivers'!E29 -> 9488.915211 | H97: 0.000935071007 | I97: Green | J97: 8 | L97: ='[60]Guaranteed standards'!$H$80 -> 16147 | M97: ='[60]Guaranteed standards'!$H$81 -> 10 | N97: ='[60]Guaranteed standards'!$H$83*'Guide & drivers'!J26 -> 6240.765683 | O97: 0.0006193100886 | P97: Green | Q97: 5 | S97: ='[61]Guaranteed standards'!$H$80 -> 15972 | T97: ='[61]Guaranteed standards'!$H$81 -> 14 | U97: ='[61]Guaranteed standards'!$H$83*'Guide & drivers'!J27 -> 44239.94387 | V97: 0.0008765339344 | W97: Green | X97: 5 | Z97: ='[62]Guaranteed standards'!$H$80 -> 16295 | AA97: ='[62]Guaranteed standards'!$H$81 -> 17 | AB97: ='[62]Guaranteed standards'!$H$83*'Guide & drivers'!J28 -> 15239.55169 | AC97: 0.001043264805 | AD97: Green | AE97: 6 | AG97: ='[63]Guaranteed standards'!$H$80 -> 14958 | AH97: ='[63]Guaranteed standards'!$H$81 -> 12 | AI97: ='[63]Guaranteed standards'!$H$83 -> 4880 | AJ97: =AH97/AG97 -> 0.0008022462896 | AK97: Green | AL97: =RANK(AJ97,AJ$85:AJ$98,1) -> 5
D98: SSES | E98: ='[59]Guaranteed standards'!$I$80 -> 50730 | F98: ='[59]Guaranteed standards'!$I$81 -> 38 | G98: ='[59]Guaranteed standards'!$I$83*'Guide & drivers'!E29 -> 13365.14268 | H98: 0.0007490636704 | I98: Green | J98: 6 | L98: ='[60]Guaranteed standards'!$I$80 -> 46064 | M98: ='[60]Guaranteed standards'!$I$81 -> 121 | N98: ='[60]Guaranteed standards'!$I$83*'Guide & drivers'!J26 -> 36172.31147 | O98: 0.002626780132 | P98: Green | Q98: 9 | S98: ='[61]Guaranteed standards'!$I$80 -> 48229 | T98: ='[61]Guaranteed standards'!$I$81 -> 307 | U98: ='[61]Guaranteed standards'!$I$83*'Guide & drivers'!J27 -> 68720.19003 | V98: 0.006365464762 | W98: Green | X98: 14 | Z98: ='[62]Guaranteed standards'!$I$80 -> 49956 | AA98: ='[62]Guaranteed standards'!$I$81 -> 869 | AB98: ='[62]Guaranteed standards'!$I$83*'Guide & drivers'!J28 -> 613988.2523 | AC98: 0.01739530787 | AD98: Green | AE98: 14 | AG98: ='[63]Guaranteed standards'!$I$80 -> 46817 | AH98: ='[63]Guaranteed standards'!$I$81 -> 229 | AI98: ='[63]Guaranteed standards'!$I$83 -> 67725 | AJ98: 0.004891385608 | AK98: Green | AL98: 11
D99: Total | E99: =SUM(E85:E98) -> 405833 | F99: =SUM(F85:F98) -> 840 | G99: =SUM(G85:G98) -> 282583.704 | L99: =SUM(L85:L98) -> 389593 | M99: =SUM(M85:M98) -> 920 | N99: =SUM(N85:N98) -> 218207.4398 | S99: =SUM(S85:S98) -> 396338 | T99: =SUM(T85:T98) -> 1015 | U99: =SUM(U85:U98) -> 270371.6584 | Z99: =SUM(Z85:Z98) -> 387637 | AA99: =SUM(AA85:AA98) -> 1480 | AB99: =SUM(AB85:AB98) -> 815734.0643 | AG99: =SUM(AG85:AG98) -> 369725 | AH99: =SUM(AH85:AH98) -> 907 | AI99: =SUM(AI85:AI98) -> 211615 | AN99: =SUM(AN85:AN98) -> 0 | AO99: =SUM(AO85:AO98) -> 0 | AP99: =SUM(AP85:AP98) -> 0 | AU99: =SUM(AU85:AU98) -> 0 | AV99: =SUM(AV85:AV98) -> 0 | AW99: =SUM(AW85:AW98) -> 0 | BB99: =SUM(BB85:BB98) -> 0 | BC99: =SUM(BC85:BC98) -> 0 | BD99: =SUM(BD85:BD98) -> 0

Sheet Ch2 outputs - cust sat
A1: Chapter 2 - Customer Satisfaction
C2: Performance against the outputs that DNOs are incentivised to deliver under RIIO-ED1.
B4: Customer Service: maintaining high levels of customer satisfaction and improving service where required. Undertaking effective stakeholder engagement and reflecting stakeholders' views in the day-to-day operation of their business.
B5: Incentive measure | F5: Incentive type
B6: Customer satisfaction survey: a survey under the Broad Measure of Customer Satisfaction (BMCS) of three customer types (connections, interruptions, general enquiries) to drive DNOs to deliver good customer service. | F6: Financial: reward or penalty of +/- 1% of base revenue which feeds into the overall reward or penalty under BMCS of +/- 1.5% of base revenues.
B7: Complaints metric: part of the Broad Measure of Customer Satisfaction measuring DNOs' complaint handling procedures to drive DNOs to deliver good customer service. | F7: Financial: penalty only of 0.5% of base revenue which feeds into the overall reward or penalty under BMCS of +/- 1.5% of base revenues.
B8: Stakeholder engagement and customer vulnerability: annual panel assessment with reward for DNOs who demonstrate strong engagement with all stakeholders and address customer vulnerability issues. | F8: Financial: reward only of 0.5% of base revenue which feeds into the reward or penalty under BMCS of +/- 1.5% of base revenues.
B11: Customer satisfaction survey
D12: Customer satisfaction scores (out of 10)
E13: 2014/15 | F13: 2015/16 | G13: 2016/17 | H13: 2017/18 | I13: 2018/19 | J13: 2019/20 | K13: 2020/21 | L13: 2021/22 | M13: 2022/23 | O13: 2012/13 - baseline
D14: Interruptions | E14: ='[64]Customer Satisfaction 201516'!$R14 -> 8.624285714 | F14: =AVERAGE(E23:E36) -> 8.745 | G14: =AVERAGE(K23:K36) -> 8.798335714 | H14: =AVERAGE(Q23:Q36) -> 8.839011901 | I14: =AVERAGE(W23:W36) -> 8.950271429 | J14: =AVERAGE(AC23:AC36) -> 9.015122347 | O14: 8.2
D15: Connections | E15: ='[64]Customer Satisfaction 201516'!$R15 -> 8.16 | F15: =AVERAGE(F23:F36) -> 8.320714286 | G15: =AVERAGE(L23:L36) -> 8.485342857 | H15: =AVERAGE(R23:R36) -> 8.55074279 | I15: =AVERAGE(X23:X36) -> 8.6924 | J15: =AVERAGE(AD23:AD36) -> 8.952098052 | O15: 7.76
D16: General Enquiries | E16: ='[64]Customer Satisfaction 201516'!$R16 -> 8.725714286 | F16: =AVERAGE(G23:G36) -> 8.974285714 | G16: =AVERAGE(M23:M36) -> 9.09265 | H16: =AVERAGE(S23:S36) -> 9.054650962 | I16: =AVERAGE(Y23:Y36) -> 9.1381 | J16: =AVERAGE(AE23:AE36) -> 9.27475345 | O16: 8.05
D19: Annual customer satisfaction score by DNO per category (out of 10)
E20: 2015/16 | K20: 2016/17 | Q20: 2017/18 | W20: 2018/19 | AC20: 2019/20 | AI20: 2020/21 | AO20: 2021/22 | AU20: 2022/23
E21: Interruptions | F21: Connections | G21: General Enquiries | H21: Overall | I21: RAG | J21: Ranking | K21: Interruptions | L21: Connections | M21: General Enquiries | N21: Overall | O21: RAG | P21: Ranking | Q21: Interruptions | R21: Connections | S21: General Enquiries | T21: Overall | U21: RAG | V21: Ranking | W21: Interruptions | X21: Connections | Y21: General Enquiries | Z21: Overall | AA21: RAG | AB21: Ranking | AC21: Interruptions | AD21: Connections | AE21: General Enquiries | AF21: Overall | AG21: RAG | AH21: Ranking | AI21: Interruptions | AJ21: Connections | AK21: General Enquiries | AL21: Overall | AM21: RAG | AN21: Ranking | AO21: Interruptions | AP21: Connections | AQ21: General Enquiries | AR21: Overall | AS21: RAG | AT21: Ranking | AU21: Interruptions | AV21: Connections | AW21: General Enquiries | AX21: Overall | AY21: RAG | AZ21: Ranking
E22: 0.3 | F22: 0.5 | G22: 0.2 | K22: 0.3 | L22: 0.5 | M22: 0.2 | Q22: 0.3 | R22: 0.5 | S22: 0.2 | W22: 0.3 | X22: 0.5 | Y22: 0.2 | AC22: 0.3 | AD22: 0.5 | AE22: 0.2 | AI22: 0.3 | AJ22: 0.5 | AK22: 0.2 | AO22: 0.3 | AP22: 0.5 | AQ22: 0.2 | AU22: 0.3 | AV22: 0.5 | AW22: 0.2
C23: =Z23-H23 -> 0.6441 | D23: ENWL | E23: =TRANSPOSE('[65]Customer Satisfaction Survey'!$L$5:$L$7) -> 8.08 | F23: 7.75 | G23: 8.52 | H23: =(E23*E$22)+(F23*F$22)+(G23*G$22) -> 8.003 | I23: =IF(H23<7.79,"Red",IF(H23>=8.2,"Green","Amber")) -> Amber | J23: =RANK(H23,H$23:H$36,0) -> 14 | K23: =TRANSPOSE('[66]Customer Satisfaction Survey'!$L$5:$L$7) -> 8.1788 | L23: 8.2403 | M23: 8.7478 | N23: =(K23*K$22)+(L23*L$22)+(M23*M$22) -> 8.32335 | O23: =IF(N23<7.79,"Red",IF(N23>=8.2,"Green","Amber")) -> Green | P23: =RANK(N23,N$23:N$36,0) -> 14 | Q23: ='[67]Customer Satisfaction Survey'!$L$5 -> 8.3228 | R23: ='[67]Customer Satisfaction Survey'!$L$6 -> 8.3476 | S23: ='[67]Customer Satisfaction Survey'!$L$7 -> 8.9806 | T23: =(Q23*Q$22)+(R23*R$22)+(S23*S$22) -> 8.46676 | U23: =IF(T23<7.79,"Red",IF(T23>=8.2,"Green","Amber")) -> Green | V23: =RANK(T23,T$23:T$36,0) -> 13 | W23: ='[68]Customer Satisfaction Survey'!$L$5 -> 8.6774 | X23: ='[68]Customer Satisfaction Survey'!$L$6 -> 8.4408 | Y23: ='[68]Customer Satisfaction Survey'!$L$7 -> 9.1174 | Z23: =(W23*W$22)+(X23*X$22)+(Y23*Y$22) -> 8.6471 | AA23: =IF(Z23<7.79,"Red",IF(Z23>=8.2,"Green","Amber")) -> Green | AB23: =RANK(Z23,Z$23:Z$36,0) -> 12 | AC23: ='[69]Customer Satisfaction Survey'!$L$5 -> 8.7385 | AD23: ='[69]Customer Satisfaction Survey'!$L$6 -> 8.764 | AE23: ='[69]Customer Satisfaction Survey'!$L$7 -> 9.2297 | AF23: =(AC23*AC$22)+(AD23*AD$22)+(AE23*AE$22) -> 8.84949 | AG23: =IF(AF23<7.79,"Red",IF(AF23>=8.2,"Green","Amber")) -> Green | AH23: =RANK(AF23,AF$23:AF$36,0) -> 12
C24: 0.336 | D24: NPgN | E24: =TRANSPOSE('[70]Customer Satisfaction Survey'!$L$5:$L$7) -> 8.68 | F24: 8.03 | G24: 8.93 | H24: =(E24*E$22)+(F24*F$22)+(G24*G$22) -> 8.405 | I24: =IF(H24<7.79,"Red",IF(H24>=8.2,"Green","Amber")) -> Green | J24: =RANK(H24,H$23:H$36,0) -> 10 | K24: =TRANSPOSE('[71]Customer Satisfaction Survey'!$L$5:$L$7) -> 8.8098 | L24: 8.4809 | M24: 9.0074 | N24: =(K24*K$22)+(L24*L$22)+(M24*M$22) -> 8.68487 | O24: =IF(N24<7.79,"Red",IF(N24>=8.2,"Green","Amber")) -> Green | P24: =RANK(N24,N$23:N$36,0) -> 8 | Q24: ='[72]Customer Satisfaction Survey'!$L$5 -> 8.77 | R24: ='[72]Customer Satisfaction Survey'!$L$6 -> 8.55 | S24: ='[72]Customer Satisfaction Survey'!$L$7 -> 9.05 | T24: =(Q24*Q$22)+(R24*R$22)+(S24*S$22) -> 8.716 | U24: =IF(T24<7.79,"Red",IF(T24>=8.2,"Green","Amber")) -> Green | V24: =RANK(T24,T$23:T$36,0) -> 10 | W24: ='[73]Customer Satisfaction Survey'!$L$5 -> 8.84 | X24: ='[73]Customer Satisfaction Survey'!$L$6 -> 8.55 | Y24: ='[73]Customer Satisfaction Survey'!$L$7 -> 9.07 | Z24: =(W24*W$22)+(X24*X$22)+(Y24*Y$22) -> 8.741 | AA24: =IF(Z24<7.79,"Red",IF(Z24>=8.2,"Green","Amber")) -> Green | AB24: =RANK(Z24,Z$23:Z$36,0) -> 10 | AC24: ='[74]Customer Satisfaction Survey'!$L$5 -> 8.9274 | AD24: ='[74]Customer Satisfaction Survey'!$L$6 -> 8.9743 | AE24: ='[74]Customer Satisfaction Survey'!$L$7 -> 9.2922 | AF24: =(AC24*AC$22)+(AD24*AD$22)+(AE24*AE$22) -> 9.02381 | AG24: =IF(AF24<7.79,"Red",IF(AF24>=8.2,"Green","Amber")) -> Green | AH24: =RANK(AF24,AF$23:AF$36,0) -> 10
C25: 0.283 | D25: NPgY | E25: =TRANSPOSE('[75]Customer Satisfaction Survey'!$L$5:$L$7) -> 8.69 | F25: 7.95 | G25: 8.76 | H25: 8.334 | I25: =IF(H25<7.79,"Red",IF(H25>=8.2,"Green","Amber")) -> Green | J25: =RANK(H25,H$23:H$36,0) -> 12 | K25: =TRANSPOSE('[76]Customer Satisfaction Survey'!$L$5:$L$7) -> 8.7253 | L25: 8.4332 | M25: 8.7674 | N25: 8.58767 | O25: Green | P25: 12 | Q25: ='[77]Customer Satisfaction Survey'!$L$5 -> 8.73 | R25: ='[77]Customer Satisfaction Survey'!$L$6 -> 8.34 | S25: ='[77]Customer Satisfaction Survey'!$L$7 -> 8.84 | T25: =(Q25*Q$22)+(R25*R$22)+(S25*S$22) -> 8.557 | U25: =IF(T25<7.79,"Red",IF(T25>=8.2,"Green","Amber")) -> Green | V25: =RANK(T25,T$23:T$36,0) -> 12 | W25: ='[78]Customer Satisfaction Survey'!$L$5 -> 8.79 | X25: ='[78]Customer Satisfaction Survey'!$L$6 -> 8.44 | Y25: ='[78]Customer Satisfaction Survey'!$L$7 -> 8.8 | Z25: =(W25*W$22)+(X25*X$22)+(Y25*Y$22) -> 8.617 | AA25: =IF(Z25<7.79,"Red",IF(Z25>=8.2,"Green","Amber")) -> Green | AB25: =RANK(Z25,Z$23:Z$36,0) -> 13 | AC25: ='[79]Customer Satisfaction Survey'!$L$5 -> 8.8714 | AD25: ='[79]Customer Satisfaction Survey'!$L$6 -> 8.7422 | AE25: ='[79]Customer Satisfaction Survey'!$L$7 -> 8.8167 | AF25: =(AC25*AC$22)+(AD25*AD$22)+(AE25*AE$22) -> 8.79586 | AG25: =IF(AF25<7.79,"Red",IF(AF25>=8.2,"Green","Amber")) -> Green | AH25: =RANK(AF25,AF$23:AF$36,0) -> 13
C26: 0.19066 | D26: WMID | E26: =TRANSPOSE('[80]Customer Satisfaction Survey'!$L$5:$L$7) -> 8.88 | F26: 8.7 | G26: 9.14 | H26: 8.842 | I26: Green | J26: 4 | K26: =TRANSPOSE('[81]Customer Satisfaction Survey'!$L$5:$L$7) -> 8.98 | L26: 8.66 | M26: 9.2 | N26: 8.864 | O26: Green | P26: 4 | Q26: ='[82]Customer Satisfaction Survey'!$L$5 -> 8.9862 | R26: ='[82]Customer Satisfaction Survey'!$L$6 -> 8.7127 | S26: ='[82]Customer Satisfaction Survey'!$L$7 -> 9.2665 | T26: 8.90551 | U26: Green | V26: 2 | W26: ='[83]Customer Satisfaction Survey'!$L$5 -> 9.0773 | X26: ='[83]Customer Satisfaction Survey'!$L$6 -> 8.8675 | Y26: ='[83]Customer Satisfaction Survey'!$L$7 -> 9.3786 | Z26: 9.03266 | AA26: Green | AB26: 3 | AC26: ='[84]Customer Satisfaction Survey'!$L$5 -> 9.0828 | AD26: ='[84]Customer Satisfaction Survey'!$L$6 -> 8.9723 | AE26: ='[84]Customer Satisfaction Survey'!$L$7 -> 9.4834 | AF26: 9.10767 | AG26: Green | AH26: 7
C27: 0.03116 | D27: EMID | E27: =TRANSPOSE('[85]Customer Satisfaction Survey'!$L$5:$L$7) -> 8.97 | F27: 8.79 | G27: 9.35 | H27: 8.956 | I27: Green | J27: 2 | K27: =TRANSPOSE('[86]Customer Satisfaction Survey'!$L$5:$L$7) -> 9.02 | L27: 8.78 | M27: 9.32 | N27: 8.96 | O27: =IF(N27<7.79,"Red",IF(N27>=8.2,"Green","Amber")) -> Green | P27: 1 | Q27: ='[87]Customer Satisfaction Survey'!$L$5 -> 8.8675 | R27: ='[87]Customer Satisfaction Survey'!$L$6 -> 8.8073 | S27: ='[87]Customer Satisfaction Survey'!$L$7 -> 9.1944 | T27: 8.90278 | U27: Green | V27: 3 | W27: ='[88]Customer Satisfaction Survey'!$L$5 -> 9.031 | X27: ='[88]Customer Satisfaction Survey'!$L$6 -> 8.872 | Y27: ='[88]Customer Satisfaction Survey'!$L$7 -> 9.2093 | Z27: 8.98716 | AA27: Green | AB27: 5 | AC27: ='[89]Customer Satisfaction Survey'!$L$5 -> 9.0698 | AD27: ='[89]Customer Satisfaction Survey'!$L$6 -> 9.0133 | AE27: ='[89]Customer Satisfaction Survey'!$L$7 -> 9.492 | AF27: 9.12599 | AG27: Green | AH27: 6
C28: 0.15618 | D28: SWALES | E28: =TRANSPOSE('[90]Customer Satisfaction Survey'!$L$5:$L$7) -> 9.14 | F28: 8.75 | G28: 9.29 | H28: 8.975 | I28: Green | J28: 1 | K28: =TRANSPOSE('[91]Customer Satisfaction Survey'!$L$5:$L$7) -> 9.07 | L28: 8.68 | M28: 9.15 | N28: 8.891 | O28: Green | P28: 3 | Q28: ='[92]Customer Satisfaction Survey'!$L$5 -> 9.1037 | R28: ='[92]Customer Satisfaction Survey'!$L$6 -> 8.9076 | S28: ='[92]Customer Satisfaction Survey'!$L$7 -> 9.2067 | T28: 9.02625 | U28: Green | V28: 1 | W28: ='[93]Customer Satisfaction Survey'!$L$5 -> 9.234 | X28: ='[93]Customer Satisfaction Survey'!$L$6 -> 8.9812 | Y28: ='[93]Customer Satisfaction Survey'!$L$7 -> 9.3519 | Z28: 9.13118 | AA28: Green | AB28: 1 | AC28: ='[94]Customer Satisfaction Survey'!$L$5 -> 9.1762 | AD28: ='[94]Customer Satisfaction Survey'!$L$6 -> 9.0532 | AE28: ='[94]Customer Satisfaction Survey'!$L$7 -> 9.4124 | AF28: 9.16194 | AG28: Green | AH28: 3
C29: 0.11793 | D29: SWEST | E29: =TRANSPOSE('[95]Customer Satisfaction Survey'!$L$5:$L$7) -> 8.86 | F29: 8.73 | G29: 9.18 | H29: 8.859 | I29: Green | J29: 3 | K29: =TRANSPOSE('[96]Customer Satisfaction Survey'!$L$5:$L$7) -> 8.92 | L29: 8.77 | M29: 9.24 | N29: 8.909 | O29: Green | P29: 2 | Q29: ='[97]Customer Satisfaction Survey'!$L$5 -> 8.8683 | R29: ='[97]Customer Satisfaction Survey'!$L$6 -> 8.7658 | S29: ='[97]Customer Satisfaction Survey'!$L$7 -> 9.2888 | T29: 8.90115 | U29: Green | V29: 4 | W29: ='[98]Customer Satisfaction Survey'!$L$5 -> 9.0012 | X29: ='[98]Customer Satisfaction Survey'!$L$6 -> 8.8419 | Y29: ='[98]Customer Satisfaction Survey'!$L$7 -> 9.2781 | Z29: 8.97693 | AA29: Green | AB29: 6 | AC29: ='[99]Customer Satisfaction Survey'!$L$5 -> 9.1017 | AD29: ='[99]Customer Satisfaction Survey'!$L$6 -> 8.9498 | AE29: ='[99]Customer Satisfaction Survey'!$L$7 -> 9.3491 | AF29: 9.07523 | AG29: Green | AH29: 8
C30: 0.38898 | D30: LPN | E30: =TRANSPOSE('[100]Customer Satisfaction Survey'!$L$5:$L$7) -> 8.52 | F30: 8.13 | G30: 8.86 | H30: 8.393 | I30: Green | J30: 11 | K30: =TRANSPOSE('[101]Customer Satisfaction Survey'!$L$5:$L$7) -> 8.5501 | L30: 8.4166 | M30: 9.3043 | N30: 8.63419 | O30: Green | P30: 10 | Q30: ='[102]Customer Satisfaction Survey'!$L$5 -> 8.77 | R30: ='[102]Customer Satisfaction Survey'!$L$6 -> 8.7 | S30: ='[102]Customer Satisfaction Survey'!$L$7 -> 8.84 | T30: 8.749 | U30: Green | V30: 6 | W30: ='[103]Customer Satisfaction Survey'!$L$5 -> 8.7892 | X30: ='[103]Customer Satisfaction Survey'!$L$6 -> 8.6432 | Y30: ='[103]Customer Satisfaction Survey'!$L$7 -> 9.1181 | Z30: 8.78198 | AA30: Green | AB30: 9 | AC30: ='[104]Customer Satisfaction Survey'!$L$5 -> 9.034246575 | AD30: ='[104]Customer Satisfaction Survey'!$L$6 -> 8.948672566 | AE30: ='[104]Customer Satisfaction Survey'!$L$7 -> 9.333333333 | AF30: 9.051276922 | AG30: Green | AH30: 9
C31: 0.15677 | D31: SPN | E31: =TRANSPOSE('[105]Customer Satisfaction Survey'!$L$5:$L$7) -> 8.63 | F31: 8.34 | G31: 9.12 | H31: 8.583 | I31: Green | J31: 8 | K31: =TRANSPOSE('[106]Customer Satisfaction Survey'!$L$5:$L$7) -> 8.7693 | L31: 8.4119 | M31: 9.2622 | N31: 8.68918 | O31: Green | P31: 7 | Q31: ='[107]Customer Satisfaction Survey'!$L$5 -> 8.793373494 | R31: ='[107]Customer Satisfaction Survey'!$L$6 -> 8.503448276 | S31: ='[107]Customer Satisfaction Survey'!$L$7 -> 9.254901961 | T31: 8.740716578 | U31: Green | V31: 8 | W31: ='[108]Customer Satisfaction Survey'!$L$5 -> 8.951 | X31: ='[108]Customer Satisfaction Survey'!$L$6 -> 8.4701 | Y31: ='[108]Customer Satisfaction Survey'!$L$7 -> 9.0971 | Z31: 8.73977 | AA31: Green | AB31: 11 | AC31: ='[109]Customer Satisfaction Survey'!$L$5 -> 8.989037759 | AD31: ='[109]Customer Satisfaction Survey'!$L$6 -> 8.847392638 | AE31: ='[109]Customer Satisfaction Survey'!$L$7 -> 9.28407225 | AF31: 8.977222097 | AG31: Green | AH31: 11
C32: 0.26589 | D32: EPN | E32: =TRANSPOSE('[110]Customer Satisfaction Survey'!$L$5:$L$7) -> 8.88 | F32: 8.1 | G32: 9.16 | H32: 8.546 | I32: Green | J32: 9 | K32: =TRANSPOSE('[111]Customer Satisfaction Survey'!$L$5:$L$7) -> 8.8178 | L32: 8.18 | M32: 9.3541 | N32: 8.60616 | O32: Green | P32: 11 | Q32: ='[112]Customer Satisfaction Survey'!$L$5 -> 8.883293124 | R32: ='[112]Customer Satisfaction Survey'!$L$6 -> 8.429350791 | S32: ='[112]Customer Satisfaction Survey'!$L$7 -> 9.228611501 | T32: 8.725385633 | U32: Green | V32: 9 | W32: ='[113]Customer Satisfaction Survey'!$L$5 -> 9.0434 | X32: ='[113]Customer Satisfaction Survey'!$L$6 -> 8.5071 | Y32: ='[113]Customer Satisfaction Survey'!$L$7 -> 9.2266 | Z32: 8.81189 | AA32: Green | AB32: 8 | AC32: ='[114]Customer Satisfaction Survey'!$L$5 -> 9.125228519 | AD32: ='[114]Customer Satisfaction Survey'!$L$6 -> 9.035307517 | AE32: ='[114]Customer Satisfaction Survey'!$L$7 -> 9.450242718 | AF32: 9.145270858 | AG32: Green | AH32: 5
C33: 0.35007 | D33: SPD | E33: =TRANSPOSE('[115]Customer Satisfaction Survey'!$L$5:$L$7) -> 8.79 | F33: 8.36 | G33: 8.84 | H33: 8.585 | I33: Green | J33: 7 | K33: =TRANSPOSE('[116]Customer Satisfaction Survey'!$L$5:$L$7) -> 8.7406 | L33: 8.4311 | M33: 9.045 | N33: 8.64673 | O33: Green | P33: 9 | Q33: ='[117]Customer Satisfaction Survey'!$L$5 -> 8.822 | R33: ='[117]Customer Satisfaction Survey'!$L$6 -> 8.5213 | S33: ='[117]Customer Satisfaction Survey'!$L$7 -> 8.9478 | T33: 8.69681 | U33: Green | V33: 11 | W33: ='[118]Customer Satisfaction Survey'!$L$5 -> 8.8902 | X33: ='[118]Customer Satisfaction Survey'!$L$6 -> 8.8173 | Y33: ='[118]Customer Satisfaction Survey'!$L$7 -> 9.2968 | Z33: 8.93507 | AA33: Green | AB33: 7 | AC33: ='[119]Customer Satisfaction Survey'!$L$5 -> 9.1328 | AD33: ='[119]Customer Satisfaction Survey'!$L$6 -> 9.1242 | AE33: ='[119]Customer Satisfaction Survey'!$L$7 -> 9.3218 | AF33: 9.1663 | AG33: Green | AH33: 2
C34: 0.28588 | D34: SPMW | E34: =TRANSPOSE('[120]Customer Satisfaction Survey'!$L$5:$L$7) -> 8.86 | F34: 8.43 | G34: 9.24 | H34: 8.721 | I34: Green | J34: 6 | K34: =TRANSPOSE('[121]Customer Satisfaction Survey'!$L$5:$L$7) -> 8.735 | L34: 8.6808 | M34: 9.2989 | N34: 8.82068 | O34: =IF(N34<7.79,"Red",IF(N34>=8.2,"Green","Amber")) -> Green | P34: 6 | Q34: ='[122]Customer Satisfaction Survey'!$L$5 -> 8.859 | R34: ='[122]Customer Satisfaction Survey'!$L$6 -> 8.4253 | S34: ='[122]Customer Satisfaction Survey'!$L$7 -> 9.3868 | T34: 8.74771 | U34: Green | V34: 7 | W34: ='[123]Customer Satisfaction Survey'!$L$5 -> 8.9991 | X34: ='[123]Customer Satisfaction Survey'!$L$6 -> 8.8825 | Y34: ='[123]Customer Satisfaction Survey'!$L$7 -> 9.3295 | Z34: 9.00688 | AA34: Green | AB34: 4 | AC34: ='[124]Customer Satisfaction Survey'!$L$5 -> 9.0626 | AD34: ='[124]Customer Satisfaction Survey'!$L$6 -> 9.1047 | AE34: ='[124]Customer Satisfaction Survey'!$L$7 -> 9.4416 | AF34: 9.15945 | AG34: Green | AH34: 4
C35: 0.332 | D35: SSEH | E35: =TRANSPOSE('[125]Customer Satisfaction Survey'!$L$5:$L$7) -> 9.06 | F35: 8.55 | G35: 8.72 | H35: 8.737 | I35: Green | J35: 5 | K35: =TRANSPOSE('[126]Customer Satisfaction Survey'!$L$5:$L$7) -> 9.15 | L35: 8.53 | M35: 9.06 | N35: 8.822 | O35: Green | P35: 5 | Q35: ='[127]Customer Satisfaction Survey'!$L$5 -> 9.22 | R35: ='[127]Customer Satisfaction Survey'!$L$6 -> 8.59 | S35: ='[127]Customer Satisfaction Survey'!$L$7 -> 8.96 | T35: 8.853 | U35: Green | V35: 5 | W35: ='[128]Customer Satisfaction Survey'!$L$5 -> 9.19 | X35: ='[128]Customer Satisfaction Survey'!$L$6 -> 8.96 | Y35: ='[128]Customer Satisfaction Survey'!$L$7 -> 9.16 | Z35: 9.069 | AA35: Green | AB35: 2 | AC35: ='[129]Customer Satisfaction Survey'!$L$5 -> 9.23 | AD35: ='[129]Customer Satisfaction Survey'!$L$6 -> 9.16 | AE35: ='[129]Customer Satisfaction Survey'!$L$7 -> 9.21 | AF35: 9.191 | AG35: Green | AH35: 1
C36: 0.384 | D36: SSES | E36: =TRANSPOSE('[130]Customer Satisfaction Survey'!$L$5:$L$7) -> 8.39 | F36: 7.88 | G36: 8.53 | H36: 8.163 | I36: =IF(H36<7.79,"Red",IF(H36>=8.2,"Green","Amber")) -> Amber | J36: 13 | K36: =TRANSPOSE('[131]Customer Satisfaction Survey'!$L$5:$L$7) -> 8.71 | L36: 8.1 | M36: 8.54 | N36: 8.371 | O36: =IF(N36<7.79,"Red",IF(N36>=8.2,"Green","Amber")) -> Green | P36: 13 | Q36: ='[132]Customer Satisfaction Survey'!$L$5 -> 8.75 | R36: ='[132]Customer Satisfaction Survey'!$L$6 -> 8.11 | S36: ='[132]Customer Satisfaction Survey'!$L$7 -> 8.32 | T36: 8.344 | U36: Green | V36: 14 | W36: ='[133]Customer Satisfaction Survey'!$L$5 -> 8.79 | X36: ='[133]Customer Satisfaction Survey'!$L$6 -> 8.42 | Y36: ='[133]Customer Satisfaction Survey'!$L$7 -> 8.5 | Z36: 8.547 | AA36: Green | AB36: 14 | AC36: ='[134]Customer Satisfaction Survey'!$L$5 -> 8.67 | AD36: ='[134]Customer Satisfaction Survey'!$L$6 -> 8.64 | AE36: ='[134]Customer Satisfaction Survey'!$L$7 -> 8.73 | AF36: 8.667 | AG36: Green | AH36: 14
D37: Target | E37: 8.2 | F37: 8.2 | G37: 8.2 | H37: 8.2 | K37: 8.2 | L37: 8.2 | M37: 8.2 | N37: 8.2 | Q37: 8.2 | R37: 8.2 | S37: 8.2 | T37: 8.2 | W37: 8.2 | X37: 8.2 | Y37: 8.2 | Z37: 8.2 | AC37: 8.2 | AD37: 8.2 | AE37: 8.2 | AF37: 8.2 | AI37: 8.2 | AJ37: 8.2 | AK37: 8.2 | AO37: 8.2 | AP37: 8.2 | AQ37: 8.2 | AU37: 8.2 | AV37: 8.2 | AW37: 8.2
B40: Complaints metric | D40: DNO complaint metric scores
E41: 2015/16 | L41: 2016/17 | S41: 2017/18 | Z41: 2018/19 | AG41: 2019/20 | AN41: 2020/21 | AU41: 2021/22 | BB41: 2022/23
E42: The percentage of total complaints outstanding after one day | F42: The percentage of total complaints outstanding after 31 days | G42: The percentage of total complaints that are repeat complaints | H42: The number of Energy Ombudsman (EO) Findings Against the Licensee as a percentage of the total complaints | I42: Complaints Metric Score | J42: RAG | K42: Ranking | L42: The percentage of total complaints outstanding after one day | M42: The percentage of total complaints outstanding after 31 days | N42: The percentage of total complaints that are repeat complaints | O42: The number of Energy Ombudsman (EO) Findings Against the Licensee as a percentage of the total complaints | P42: Complaints Metric Score | Q42: RAG | R42: Ranking | S42: The percentage of total complaints outstanding after one day | T42: The percentage of total complaints outstanding after 31 days | U42: The percentage of total complaints that are repeat complaints | V42: The number of Energy Ombudsman (EO) Findings Against the Licensee as a percentage of the total complaints | W42: Complaints Metric Score | X42: RAG | Y42: Ranking | Z42: The percentage of total complaints outstanding after one day | AA42: The percentage of total complaints outstanding after 31 days | AB42: The percentage of total complaints that are repeat complaints | AC42: The number of Energy Ombudsman (EO) Findings Against the Licensee as a percentage of the total complaints | AD42: Complaints Metric Score | AE42: RAG | AF42: Ranking | AG42: The percentage of total complaints outstanding after one day | AH42: The percentage of total complaints outstanding after 31 days | AI42: The percentage of total complaints that are repeat complaints | AJ42: The number of Energy Ombudsman (EO) Findings Against the Licensee as a percentage of the total complaints | AK42: Complaints Metric Score | AL42: RAG | AM42: Ranking | AN42: The percentage of total complaints outstanding after one day | AO42: The percentage of total complaints outstanding after 31 days | AP42: The percentage of total complaints that are repeat complaints | AQ42: The number of Energy Ombudsman (EO) Findings Against the Licensee as a percentage of the total complaints | AR42: Complaints Metric Score | AS42: RAG | AT42: Ranking | AU42: The percentage of total complaints outstanding after one day | AV42: The percentage of total complaints outstanding after 31 days | AW42: The percentage of total complaints that are repeat complaints | AX42: The number of Energy Ombudsman (EO) Findings Against the Licensee as a percentage of the total complaints | AY42: Complaints Metric Score | AZ42: RAG | BA42: Ranking | BB42: The percentage of total complaints outstanding after one day | BC42: The percentage of total complaints outstanding after 31 days | BD42: The percentage of total complaints that are repeat complaints | BE42: The number of Energy Ombudsman (EO) Findings Against the Licensee as a percentage of the total complaints | BF42: Complaints Metric Score | BG42: RAG | BH42: Ranking
C43: =AD43-I43 -> -5.599018854 | D43: ENWL | E43: ='[65]Complaints handling'!$AA$9 -> 0.4879626684 | F43: ='[65]Complaints handling'!$AA$11 -> 0.09248064482 | G43: ='[65]Complaints handling'!$AA$13 -> 0 | H43: ='[65]Complaints handling'!$AA$19 -> 0 | I43: ='[65]Complaints handling'!$AA$27 -> 7.654046028 | J43: =IF(I43<=$I$57,"Green",IF(I43<=$I$57*1.05,"Amber","Red")) -> Green | K43: =RANK(I43,I$43:I$56,1) -> 13 | L43: ='[66]Complaints handling'!$AA$9 -> 0.2330568481 | M43: ='[66]Complaints handling'!$AA$11 -> 0.03722435768 | N43: ='[66]Complaints handling'!$AA$13 -> 0 | O43: ='[66]Complaints handling'!$AA$19 -> 0 | P43: ='[66]Complaints handling'!$AA$27 -> 3.447299211 | Q43: =IF(P43<=$P$57,"Green",IF(P43<=$P$57*1.05,"Amber","Red")) -> Green | R43: =RANK(P43,P$43:P$56,1) -> 9 | S43: ='[67]Complaints handling'!$AA$9 -> 0.1792799412 | T43: ='[67]Complaints handling'!$AA$11 -> 0.01653196179 | U43: ='[67]Complaints handling'!$AA$13 -> 0 | V43: ='[67]Complaints handling'!$AA$19 -> 0 | W43: ='[67]Complaints handling'!$AA$27 -> 2.288758266 | X43: =IF(W43<=$W$57,"Green",IF(W43<=$W$57*1.05,"Amber","Red")) -> Green | Y43: =RANK(W43,W$43:W$56,1) -> 6 | Z43: ='[68]Complaints handling'!$AA$9 -> 0.1790081522 | AA43: ='[68]Complaints handling'!$AA$11 -> 0.008831521739 | AB43: ='[68]Complaints handling'!$AA$13 -> 0 | AC43: ='[68]Complaints handling'!$AA$19 -> 0 | AD43: ='[68]Complaints handling'!$AA$27 -> 2.055027174 | AE43: =IF(AD43<=$W$57,"Green",IF(AD43<=$W$57*1.05,"Amber","Red")) -> Green | AF43: =RANK(AD43,AD$43:AD$56,1) -> 8 | AG43: ='[69]Complaints handling'!$AA$9 -> 0.1558419819 | AH43: ='[69]Complaints handling'!$AA$11 -> 0.01104787412 | AI43: ='[69]Complaints handling'!$AA$13 -> 0 | AJ43: ='[69]Complaints handling'!$AA$19 -> 0 | AK43: ='[69]Complaints handling'!$AA$27 -> 1.889856043 | AL43: =IF(AK43<=$AK$57,"Green",IF(AK43<=$AK$57*1.05,"Amber","Red")) -> Green | AM43: =RANK(AK43,AK$43:AK$56,1) -> 6
C44: =AD44-I44 -> -4.471551626 | D44: NPgN | E44: ='[70]Complaints handling'!$AA$9 -> 0.4985549133 | F44: ='[70]Complaints handling'!$AA$11 -> 0.09971098266 | G44: ='[70]Complaints handling'!$AA$13 -> 0.0004816955684 | H44: ='[70]Complaints handling'!$AA$19 -> 0 | I44: ='[70]Complaints handling'!$AA$27 -> 8.000963391 | J44: Green | K44: 14 | L44: ='[71]Complaints handling'!$AA$9 -> 0.3858093126 | M44: ='[71]Complaints handling'!$AA$11 -> 0.1075388027 | N44: ='[71]Complaints handling'!$AA$13 -> 0 | O44: ='[71]Complaints handling'!$AA$19 -> 0 | P44: ='[71]Complaints handling'!$AA$27 -> 7.084257206 | Q44: =IF(P44<=$P$57,"Green",IF(P44<=$P$57*1.05,"Amber","Red")) -> Green | R44: 14 | S44: ='[72]Complaints handling'!$AA$9 -> 0.2820343461 | T44: ='[72]Complaints handling'!$AA$11 -> 0.07529722589 | U44: ='[72]Complaints handling'!$AA$13 -> 0 | V44: ='[72]Complaints handling'!$AA$19 -> 0 | W44: ='[72]Complaints handling'!$AA$27 -> 5.079260238 | X44: =IF(W44<=$W$57,"Green",IF(W44<=$W$57*1.05,"Amber","Red")) -> Green | Y44: =RANK(W44,W$43:W$56,1) -> 14 | Z44: ='[73]Complaints handling'!$AA$9 -> 0.2171945701 | AA44: ='[73]Complaints handling'!$AA$11 -> 0.04524886878 | AB44: ='[73]Complaints handling'!$AA$13 -> 0 | AC44: ='[73]Complaints handling'!$AA$19 -> 0 | AD44: ='[73]Complaints handling'!$AA$27 -> 3.529411765 | AE44: =IF(AD44<=$W$57,"Green",IF(AD44<=$W$57*1.05,"Amber","Red")) -> Green | AF44: =RANK(AD44,AD$43:AD$56,1) -> 14 | AG44: ='[74]Complaints handling'!$AA$9 -> 0.1643454039 | AH44: ='[74]Complaints handling'!$AA$11 -> 0.03621169916 | AI44: ='[74]Complaints handling'!$AA$13 -> 0 | AJ44: ='[74]Complaints handling'!$AA$19 -> 0 | AK44: ='[74]Complaints handling'!$AA$27 -> 2.729805014 | AL44: Green | AM44: =RANK(AK44,AK$43:AK$56,1) -> 14
C45: -4.531174021 | D45: NPgY | E45: ='[75]Complaints handling'!$AA$9 -> 0.473316913 | F45: ='[75]Complaints handling'!$AA$11 -> 0.08128078818 | G45: ='[75]Complaints handling'!$AA$13 -> 0.0004105090312 | H45: ='[75]Complaints handling'!$AA$19 -> 0 | I45: ='[75]Complaints handling'!$AA$27 -> 7.192118227 | J45: Green | K45: 12 | L45: ='[76]Complaints handling'!$AA$9 -> 0.3170620438 | M45: ='[76]Complaints handling'!$AA$11 -> 0.07436131387 | N45: ='[76]Complaints handling'!$AA$13 -> 0 | O45: ='[76]Complaints handling'!$AA$19 -> 0 | P45: ='[76]Complaints handling'!$AA$27 -> 5.401459854 | Q45: Green | R45: 12 | S45: ='[77]Complaints handling'!$AA$9 -> 0.2820242488 | T45: ='[77]Complaints handling'!$AA$11 -> 0.06062203479 | U45: ='[77]Complaints handling'!$AA$13 -> 0 | V45: ='[77]Complaints handling'!$AA$19 -> 0 | W45: ='[77]Complaints handling'!$AA$27 -> 4.638903532 | X45: Green | Y45: 13 | Z45: ='[78]Complaints handling'!$AA$9 -> 0.1811158798 | AA45: ='[78]Complaints handling'!$AA$11 -> 0.02832618026 | AB45: ='[78]Complaints handling'!$AA$13 -> 0 | AC45: ='[78]Complaints handling'!$AA$19 -> 0 | AD45: ='[78]Complaints handling'!$AA$27 -> 2.660944206 | AE45: Green | AF45: 11 | AG45: ='[79]Complaints handling'!$AA$9 -> 0.1451612903 | AH45: ='[79]Complaints handling'!$AA$11 -> 0.02284946237 | AI45: ='[79]Complaints handling'!$AA$13 -> 0 | AJ45: ='[79]Complaints handling'!$AA$19 -> 0 | AK45: ='[79]Complaints handling'!$AA$27 -> 2.137096774 | AL45: Green | AM45: 11
C46: -0.4276054226 | D46: WMID | E46: ='[80]Complaints handling'!$AA$9 -> 0.1480505796 | F46: ='[80]Complaints handling'!$AA$11 -> 0.007376185458 | G46: ='[80]Complaints handling'!$AA$13 -> 0 | H46: ='[80]Complaints handling'!$AA$19 -> 0 | I46: ='[80]Complaints handling'!$AA$27 -> 1.701791359 | J46: Green | K46: 1 | L46: ='[81]Complaints handling'!$AA$9 -> 0.1252399232 | M46: ='[81]Complaints handling'!$AA$11 -> 0.00575815739 | N46: ='[81]Complaints handling'!$AA$13 -> 0 | O46: ='[81]Complaints handling'!$AA$19 -> 0 | P46: ='[81]Complaints handling'!$AA$27 -> 1.425143954 | Q46: Green | R46: 1 | S46: ='[82]Complaints handling'!$AA$9 -> 0.1162909836 | T46: ='[82]Complaints handling'!$AA$11 -> 0.006147540984 | U46: ='[82]Complaints handling'!$AA$13 -> 0 | V46: ='[82]Complaints handling'!$AA$19 -> 0 | W46: ='[82]Complaints handling'!$AA$27 -> 1.347336066 | X46: Green | Y46: 1 | Z46: ='[83]Complaints handling'!$AA$9 -> 0.1160924965 | AA46: ='[83]Complaints handling'!$AA$11 -> 0.003775365739 | AB46: ='[83]Complaints handling'!$AA$13 -> 0 | AC46: ='[83]Complaints handling'!$AA$19 -> 0 | AD46: ='[83]Complaints handling'!$AA$27 -> 1.274185937 | AE46: Green | AF46: 3 | AG46: ='[84]Complaints handling'!$AA$9 -> 0.08507462687 | AH46: ='[84]Complaints handling'!$AA$11 -> 0.008457711443 | AI46: ='[84]Complaints handling'!$AA$13 -> 0 | AJ46: ='[84]Complaints handling'!$AA$19 -> 0 | AK46: ='[84]Complaints handling'!$AA$27 -> 1.104477612 | AL46: Green | AM46: 2
C47: -0.6909627663 | D47: EMID | E47: ='[85]Complaints handling'!$AA$9 -> 0.1588669951 | F47: ='[85]Complaints handling'!$AA$11 -> 0.01108374384 | G47: ='[85]Complaints handling'!$AA$13 -> 0 | H47: ='[85]Complaints handling'!$AA$19 -> 0 | I47: ='[85]Complaints handling'!$AA$27 -> 1.921182266 | J47: Green | K47: 2 | L47: ='[86]Complaints handling'!$AA$9 -> 0.1431034483 | M47: ='[86]Complaints handling'!$AA$11 -> 0.01034482759 | N47: ='[86]Complaints handling'!$AA$13 -> 0 | O47: ='[86]Complaints handling'!$AA$19 -> 0 | P47: ='[86]Complaints handling'!$AA$27 -> 1.74137931 | Q47: Green | R47: 2 | S47: ='[87]Complaints handling'!$AA$9 -> 0.1253644315 | T47: ='[87]Complaints handling'!$AA$11 -> 0.008163265306 | U47: ='[87]Complaints handling'!$AA$13 -> 0 | V47: ='[87]Complaints handling'!$AA$19 -> 0 | W47: ='[87]Complaints handling'!$AA$27 -> 1.498542274 | X47: Green | Y47: 2 | Z47: ='[88]Complaints handling'!$AA$9 -> 0.1061766207 | AA47: ='[88]Complaints handling'!$AA$11 -> 0.00561510975 | AB47: ='[88]Complaints handling'!$AA$13 -> 0 | AC47: ='[88]Complaints handling'!$AA$19 -> 0 | AD47: ='[88]Complaints handling'!$AA$27 -> 1.2302195 | AE47: Green | AF47: 2 | AG47: ='[89]Complaints handling'!$AA$9 -> 0.08024691358 | AH47: ='[89]Complaints handling'!$AA$11 -> 0.007122507123 | AI47: ='[89]Complaints handling'!$AA$13 -> 0 | AJ47: ='[89]Complaints handling'!$AA$19 -> 0 | AK47: ='[89]Complaints handling'!$AA$27 -> 1.016144349 | AL47: Green | AM47: 1
C48: -1.195028836 | D48: SWALES | E48: ='[90]Complaints handling'!$AA$9 -> 0.2439281943 | F48: ='[90]Complaints handling'!$AA$11 -> 0.02006335797 | G48: ='[90]Complaints handling'!$AA$13 -> 0 | H48: ='[90]Complaints handling'!$AA$19 -> 0 | I48: ='[90]Complaints handling'!$AA$27 -> 3.041182682 | J48: Green | K48: 4 | L48: ='[91]Complaints handling'!$AA$9 -> 0.1983663944 | M48: ='[91]Complaints handling'!$AA$11 -> 0.02100350058 | N48: ='[91]Complaints handling'!$AA$13 -> 0 | O48: ='[91]Complaints handling'!$AA$19 -> 0 | P48: ='[91]Complaints handling'!$AA$27 -> 2.613768961 | Q48: Green | R48: 5 | S48: ='[92]Complaints handling'!$AA$9 -> 0.2054794521 | T48: ='[92]Complaints handling'!$AA$11 -> 0.01598173516 | U48: ='[92]Complaints handling'!$AA$13 -> 0 | V48: ='[92]Complaints handling'!$AA$19 -> 0 | W48: ='[92]Complaints handling'!$AA$27 -> 2.534246575 | X48: Green | Y48: 7 | Z48: ='[93]Complaints handling'!$AA$9 -> 0.1582417582 | AA48: ='[93]Complaints handling'!$AA$11 -> 0.008791208791 | AB48: ='[93]Complaints handling'!$AA$13 -> 0 | AC48: ='[93]Complaints handling'!$AA$19 -> 0 | AD48: ='[93]Complaints handling'!$AA$27 -> 1.846153846 | AE48: Green | AF48: 6 | AG48: ='[94]Complaints handling'!$AA$9 -> 0.1698754247 | AH48: ='[94]Complaints handling'!$AA$11 -> 0.01698754247 | AI48: ='[94]Complaints handling'!$AA$13 -> 0 | AJ48: ='[94]Complaints handling'!$AA$19 -> 0 | AK48: ='[94]Complaints handling'!$AA$27 -> 2.208380521 | AL48: Green | AM48: 13
C49: -0.347287912 | D49: SWEST | E49: ='[95]Complaints handling'!$AA$9 -> 0.1954066265 | F49: ='[95]Complaints handling'!$AA$11 -> 0.01468373494 | G49: ='[95]Complaints handling'!$AA$13 -> 0.0003765060241 | H49: ='[95]Complaints handling'!$AA$19 -> 0 | I49: ='[95]Complaints handling'!$AA$27 -> 2.413403614 | J49: Green | K49: 3 | L49: ='[96]Complaints handling'!$AA$9 -> 0.1814569536 | M49: ='[96]Complaints handling'!$AA$11 -> 0.01589403974 | N49: ='[96]Complaints handling'!$AA$13 -> 0 | O49: ='[96]Complaints handling'!$AA$19 -> 0 | P49: ='[96]Complaints handling'!$AA$27 -> 2.291390728 | Q49: Green | R49: 4 | S49: ='[97]Complaints handling'!$AA$9 -> 0.1635420822 | T49: ='[97]Complaints handling'!$AA$11 -> 0.009972078181 | U49: ='[97]Complaints handling'!$AA$13 -> 0 | V49: ='[97]Complaints handling'!$AA$19 -> 0 | W49: ='[97]Complaints handling'!$AA$27 -> 1.934583167 | X49: Green | Y49: 4 | Z49: ='[98]Complaints handling'!$AA$9 -> 0.1673553719 | AA49: ='[98]Complaints handling'!$AA$11 -> 0.01239669421 | AB49: ='[98]Complaints handling'!$AA$13 -> 0.0004132231405 | AC49: ='[98]Complaints handling'!$AA$19 -> 0 | AD49: ='[98]Complaints handling'!$AA$27 -> 2.066115702 | AE49: Green | AF49: 9 | AG49: ='[99]Complaints handling'!$AA$9 -> 0.1454856654 | AH49: ='[99]Complaints handling'!$AA$11 -> 0.02225074882 | AI49: ='[99]Complaints handling'!$AA$13 -> 0 | AJ49: ='[99]Complaints handling'!$AA$19 -> 0 | AK49: ='[99]Complaints handling'!$AA$27 -> 2.122379119 | AL49: Green | AM49: 10
C50: -2.386322575 | D50: LPN | E50: ='[100]Complaints handling'!$AA$9 -> 0.3590096286 | F50: ='[100]Complaints handling'!$AA$11 -> 0.05295735901 | G50: ='[100]Complaints handling'!$AA$13 -> 0 | H50: ='[100]Complaints handling'!$AA$19 -> 0 | I50: ='[100]Complaints handling'!$AA$27 -> 5.178817056 | J50: Green | K50: 9 | L50: ='[101]Complaints handling'!$AA$9 -> 0.3456090652 | M50: ='[101]Complaints handling'!$AA$11 -> 0.07507082153 | N50: ='[101]Complaints handling'!$AA$13 -> 0 | O50: ='[101]Complaints handling'!$AA$19 -> 0 | P50: ='[101]Complaints handling'!$AA$27 -> 5.708215297 | Q50: Green | R50: 13 | S50: ='[102]Complaints handling'!$AA$9 -> 0.2565130261 | T50: ='[102]Complaints handling'!$AA$11 -> 0.05911823647 | U50: ='[102]Complaints handling'!$AA$13 -> 0 | V50: ='[102]Complaints handling'!$AA$19 -> 0 | W50: ='[102]Complaints handling'!$AA$27 -> 4.338677355 | X50: Green | Y50: 12 | Z50: ='[103]Complaints handling'!$AA$9 -> 0.1931567329 | AA50: ='[103]Complaints handling'!$AA$11 -> 0.02869757174 | AB50: ='[103]Complaints handling'!$AA$13 -> 0 | AC50: ='[103]Complaints handling'!$AA$19 -> 0 | AD50: ='[103]Complaints handling'!$AA$27 -> 2.792494481 | AE50: Green | AF50: 12 | AG50: ='[104]Complaints handling'!$AA$9 -> 0.170153417 | AH50: ='[104]Complaints handling'!$AA$11 -> 0.01534170153 | AI50: ='[104]Complaints handling'!$AA$13 -> 0 | AJ50: ='[104]Complaints handling'!$AA$19 -> 0 | AK50: ='[104]Complaints handling'!$AA$27 -> 2.161785216 | AL50: Green | AM50: 12
C51: -3.613458028 | D51: SPN | E51: ='[105]Complaints handling'!$AA$9 -> 0.4019534185 | F51: ='[105]Complaints handling'!$AA$11 -> 0.06949661908 | G51: ='[105]Complaints handling'!$AA$13 -> 0 | H51: ='[105]Complaints handling'!$AA$19 -> 0 | I51: ='[105]Complaints handling'!$AA$27 -> 6.104432757 | J51: Green | K51: 11 | L51: ='[106]Complaints handling'!$AA$9 -> 0.3390461997 | M51: ='[106]Complaints handling'!$AA$11 -> 0.06333830104 | N51: ='[106]Complaints handling'!$AA$13 -> 0 | O51: ='[106]Complaints handling'!$AA$19 -> 0 | P51: ='[106]Complaints handling'!$AA$27 -> 5.290611028 | Q51: Green | R51: 11 | S51: ='[107]Complaints handling'!$AA$9 -> 0.2431451613 | T51: ='[107]Complaints handling'!$AA$11 -> 0.05725806452 | U51: ='[107]Complaints handling'!$AA$13 -> 0 | V51: ='[107]Complaints handling'!$AA$19 -> 0 | W51: ='[107]Complaints handling'!$AA$27 -> 4.149193548 | X51: Green | Y51: 11 | Z51: ='[108]Complaints handling'!$AA$9 -> 0.1576413959 | AA51: ='[108]Complaints handling'!$AA$11 -> 0.03048535901 | AB51: ='[108]Complaints handling'!$AA$13 -> 0 | AC51: ='[108]Complaints handling'!$AA$19 -> 0 | AD51: ='[108]Complaints handling'!$AA$27 -> 2.490974729 | AE51: Green | AF51: 10 | AG51: ='[109]Complaints handling'!$AA$9 -> 0.1501642421 | AH51: ='[109]Complaints handling'!$AA$11 -> 0.01642421398 | AI51: ='[109]Complaints handling'!$AA$13 -> 0 | AJ51: ='[109]Complaints handling'!$AA$19 -> 0 | AK51: ='[109]Complaints handling'!$AA$27 -> 1.994368841 | AL51: Green | AM51: 8
C52: -2.541009809 | D52: EPN | E52: ='[110]Complaints handling'!$AA$9 -> 0.3853528628 | F52: ='[110]Complaints handling'!$AA$11 -> 0.05832223702 | G52: ='[110]Complaints handling'!$AA$13 -> 0 | H52: ='[110]Complaints handling'!$AA$19 -> 0 | I52: ='[110]Complaints handling'!$AA$27 -> 5.603195739 | J52: Green | K52: 10 | L52: ='[111]Complaints handling'!$AA$9 -> 0.3233442458 | M52: ='[111]Complaints handling'!$AA$11 -> 0.06094182825 | N52: ='[111]Complaints handling'!$AA$13 -> 0 | O52: ='[111]Complaints handling'!$AA$19 -> 0 | P52: ='[111]Complaints handling'!$AA$27 -> 5.061697305 | Q52: Green | R52: 10 | S52: ='[112]Complaints handling'!$AA$9 -> 0.2247032222 | T52: ='[112]Complaints handling'!$AA$11 -> 0.04663651781 | U52: ='[112]Complaints handling'!$AA$13 -> 0 | V52: ='[112]Complaints handling'!$AA$19 -> 0 | W52: ='[112]Complaints handling'!$AA$27 -> 3.646127756 | X52: Green | Y52: 10 | Z52: ='[113]Complaints handling'!$AA$9 -> 0.1903266332 | AA52: ='[113]Complaints handling'!$AA$11 -> 0.03863065327 | AB52: ='[113]Complaints handling'!$AA$13 -> 0 | AC52: ='[113]Complaints handling'!$AA$19 -> 0 | AD52: ='[113]Complaints handling'!$AA$27 -> 3.06218593 | AE52: Green | AF52: 13 | AG52: ='[114]Complaints handling'!$AA$9 -> 0.1337817638 | AH52: ='[114]Complaints handling'!$AA$11 -> 0.01307922272 | AI52: ='[114]Complaints handling'!$AA$13 -> 0 | AJ52: ='[114]Complaints handling'!$AA$19 -> 0 | AK52: ='[114]Complaints handling'!$AA$27 -> 1.73019432 | AL52: Green | AM52: 5
C53: -2.006304729 | D53: SPD | E53: ='[115]Complaints handling'!$AA$9 -> 0.2331428571 | F53: ='[115]Complaints handling'!$AA$11 -> 0.04228571429 | G53: ='[115]Complaints handling'!$AA$13 -> 0 | H53: ='[115]Complaints handling'!$AA$19 -> 0 | I53: ='[115]Complaints handling'!$AA$27 -> 3.6 | J53: Green | K53: 6 | L53: ='[116]Complaints handling'!$AA$9 -> 0.1892575928 | M53: ='[116]Complaints handling'!$AA$11 -> 0.03205849269 | N53: ='[116]Complaints handling'!$AA$13 -> 0 | O53: ='[116]Complaints handling'!$AA$19 -> 0 | P53: ='[116]Complaints handling'!$AA$27 -> 2.854330709 | Q53: Green | R53: 7 | S53: ='[117]Complaints handling'!$AA$9 -> 0.1291525424 | T53: ='[117]Complaints handling'!$AA$11 -> 0.02677966102 | U53: ='[117]Complaints handling'!$AA$13 -> 0 | V53: ='[117]Complaints handling'!$AA$19 -> 0 | W53: ='[117]Complaints handling'!$AA$27 -> 2.094915254 | X53: Green | Y53: 5 | Z53: ='[118]Complaints handling'!$AA$9 -> 0.1068301226 | AA53: ='[118]Complaints handling'!$AA$11 -> 0.01751313485 | AB53: ='[118]Complaints handling'!$AA$13 -> 0 | AC53: ='[118]Complaints handling'!$AA$19 -> 0 | AD53: ='[118]Complaints handling'!$AA$27 -> 1.593695271 | AE53: Green | AF53: 4 | AG53: ='[119]Complaints handling'!$AA$9 -> 0.1070678796 | AH53: ='[119]Complaints handling'!$AA$11 -> 0.01294611617 | AI53: ='[119]Complaints handling'!$AA$13 -> 0 | AJ53: ='[119]Complaints handling'!$AA$19 -> 0 | AK53: ='[119]Complaints handling'!$AA$27 -> 1.459062281 | AL53: Green | AM53: 4
